Workbook

Sheet Cover
C2: Powercor
C3: Revised regulatory proposal 2026-31
C5: Drysdale feeder: DDL023
C6: Model number: | D6: 3.3.06
C8: 2025-12-01
A40: =_xlfn.SHEETS() -> 14
A41: 2025-05-12

Sheet Summary
A1: =bus -> Powercor
A2: =proj -> Drysdale feeder: DDL023
A3: SUMMARY
A5: RESULTS
G7: PV of costs | H7: PV of benefits | I7: NPV
C8: Option | G8: =output_dollars -> 2026-06-30 | H8: =output_dollars -> 2026-06-30 | I8: =output_dollars -> 2026-06-30
C9: =options -> Option 1 (base case) | D9: =INDEX(Assumptions!$E$14:$E$18, MATCH(C9, Assumptions!$C$14:$C$18,0)) -> No change to existing practices | G9: =IF(Data!$C9, "", INDEX(Consol!$F$15:$F$82, MATCH($C9&G$7, Consol!$D$15:$D$82,0))/mill_conv) -> 0 | H9: =IF(Data!$C9, "", INDEX(Consol!$F$15:$F$82, MATCH($C9&H$7, Consol!$D$15:$D$82,0))/mill_conv) -> 0 | I9: =IF(Data!$C9, "", INDEX(Consol!$F$15:$F$82, MATCH($C9&I$7, Consol!$D$15:$D$82,0))/mill_conv) -> 0
C10: Option 2 | D10: =INDEX(Assumptions!$E$14:$E$18, MATCH(C10, Assumptions!$C$14:$C$18,0)) -> DDL023 feeder exit cable upgrade | G10: =IF(Data!$C10, "", INDEX(Consol!$F$15:$F$82, MATCH($C10&G$7, Consol!$D$15:$D$82,0))/mill_conv) -> -0.9025896589 | H10: =IF(Data!$C10, "", INDEX(Consol!$F$15:$F$82, MATCH($C10&H$7, Consol!$D$15:$D$82,0))/mill_conv) -> 5.82218371 | I10: =IF(Data!$C10, "", INDEX(Consol!$F$15:$F$82, MATCH($C10&I$7, Consol!$D$15:$D$82,0))/mill_conv) -> 4.919594051
C11: Option 3 | D11: =INDEX(Assumptions!$E$14:$E$18, MATCH(C11, Assumptions!$C$14:$C$18,0)) -> WPD032 construct a new feeder | G11: =IF(Data!$C11, "", INDEX(Consol!$F$15:$F$82, MATCH($C11&G$7, Consol!$D$15:$D$82,0))/mill_conv) -> -2.00404775 | H11: =IF(Data!$C11, "", INDEX(Consol!$F$15:$F$82, MATCH($C11&H$7, Consol!$D$15:$D$82,0))/mill_conv) -> 5.503958778 | I11: =IF(Data!$C11, "", INDEX(Consol!$F$15:$F$82, MATCH($C11&I$7, Consol!$D$15:$D$82,0))/mill_conv) -> 3.499911029
C12: Option 4 | D12: =INDEX(Assumptions!$E$14:$E$18, MATCH(C12, Assumptions!$C$14:$C$18,0)) -> 0 | G12: =IF(Data!$C12, "", INDEX(Consol!$F$15:$F$82, MATCH($C12&G$7, Consol!$D$15:$D$82,0))/mill_conv) ->  | H12: =IF(Data!$C12, "", INDEX(Consol!$F$15:$F$82, MATCH($C12&H$7, Consol!$D$15:$D$82,0))/mill_conv) ->  | I12: =IF(Data!$C12, "", INDEX(Consol!$F$15:$F$82, MATCH($C12&I$7, Consol!$D$15:$D$82,0))/mill_conv) -> 
C13: Option 5 | D13: =INDEX(Assumptions!$E$14:$E$18, MATCH(C13, Assumptions!$C$14:$C$18,0)) -> 0 | G13: =IF(Data!$C13, "", INDEX(Consol!$F$15:$F$82, MATCH($C13&G$7, Consol!$D$15:$D$82,0))/mill_conv) ->  | H13: =IF(Data!$C13, "", INDEX(Consol!$F$15:$F$82, MATCH($C13&H$7, Consol!$D$15:$D$82,0))/mill_conv) ->  | I13: =IF(Data!$C13, "", INDEX(Consol!$F$15:$F$82, MATCH($C13&I$7, Consol!$D$15:$D$82,0))/mill_conv) -> 
G16: NPV
C17: Preferred option: | G17: =output_dollars -> 2026-06-30
C18: =INDEX($C$9:$C$13,MATCH(G18, $I$9:$I$13,0)) -> Option 2 | D18: =INDEX($D$9:$D$13,MATCH(G18, $I$9:$I$13,0)) -> DDL023 feeder exit cable upgrade | G18: =_xlfn.MAXIFS(I9:I13, IF(compliance, Data!$F$9:$F$13, Data!$C$9:$C$13),FALSE) -> 4.919594051
A23: PREFERRED OPTION
C25: Preferred Option
C26: =C18 -> Option 2
C29: Expenditure forecast | D29: =output_dollars -> 2026-06-30 | F29: =Assumptions!K89 -> 2026-27 | G29: =Assumptions!L89 -> 2027-28 | H29: =Assumptions!M89 -> 2028-29 | I29: =Assumptions!N89 -> 2029-30 | J29: =Assumptions!O89 -> 2030-31 | L29: Total
C30: Capital expenditure | F30: =-INDEX(Consol!$I$15:$Q$82,MATCH($C$26&$C30,Consol!$D$15:$D$82,0), MATCH(F$29, Consol!$I$9:$Q$9,0))/mill_conv -> 0 | G30: =-INDEX(Consol!$I$15:$Q$82,MATCH($C$26&$C30,Consol!$D$15:$D$82,0), MATCH(G$29, Consol!$I$9:$Q$9,0))/mill_conv -> 1.625980943 | H30: =-INDEX(Consol!$I$15:$Q$82,MATCH($C$26&$C30,Consol!$D$15:$D$82,0), MATCH(H$29, Consol!$I$9:$Q$9,0))/mill_conv -> 0 | I30: =-INDEX(Consol!$I$15:$Q$82,MATCH($C$26&$C30,Consol!$D$15:$D$82,0), MATCH(I$29, Consol!$I$9:$Q$9,0))/mill_conv -> 0 | J30: =-INDEX(Consol!$I$15:$Q$82,MATCH($C$26&$C30,Consol!$D$15:$D$82,0), MATCH(J$29, Consol!$I$9:$Q$9,0))/mill_conv -> 0 | L30: =SUM(F30:J30) -> 1.625980943
C31: Operating expenditure | F31: =-INDEX(Consol!$I$15:$Q$82,MATCH($C$26&$C31,Consol!$D$15:$D$82,0), MATCH(F$29, Consol!$I$9:$Q$9,0))/mill_conv -> 0 | G31: =-INDEX(Consol!$I$15:$Q$82,MATCH($C$26&$C31,Consol!$D$15:$D$82,0), MATCH(G$29, Consol!$I$9:$Q$9,0))/mill_conv -> 0 | H31: =-INDEX(Consol!$I$15:$Q$82,MATCH($C$26&$C31,Consol!$D$15:$D$82,0), MATCH(H$29, Consol!$I$9:$Q$9,0))/mill_conv -> 0 | I31: =-INDEX(Consol!$I$15:$Q$82,MATCH($C$26&$C31,Consol!$D$15:$D$82,0), MATCH(I$29, Consol!$I$9:$Q$9,0))/mill_conv -> 0 | J31: =-INDEX(Consol!$I$15:$Q$82,MATCH($C$26&$C31,Consol!$D$15:$D$82,0), MATCH(J$29, Consol!$I$9:$Q$9,0))/mill_conv -> 0 | L31: =SUM(F31:J31) -> 0
A35: CHART
C37: Capex and risk ($M, 2026) | F37: Value of expected unserved energy ($M, 2026)
A63: SENSITIVITIES
C66: Sensitivity | D66: =output_dollars -> 2026-06-30 | F66: =Sensitivity_calcs!C89 -> Option 1 (base case) | G66: =Sensitivity_calcs!D89 -> Option 2 | H66: =Sensitivity_calcs!E89 -> Option 3 | I66: =Sensitivity_calcs!F89 -> Option 4 | J66: =Sensitivity_calcs!G89 -> Option 5 | L66: Preferred option
C67: =Sensitivity_calcs!B90 -> None | F67: =Sensitivity_calcs!C90 -> 0 | G67: =Sensitivity_calcs!D90 -> 4.919594051 | H67: =Sensitivity_calcs!E90 -> 3.499911029 | I67: =Sensitivity_calcs!F90 ->  | J67: =Sensitivity_calcs!G90 ->  | L67: =Sensitivity_calcs!K90 -> Option 2
C68: =Sensitivity_calcs!B91 -> Capex 10% higher | F68: =Sensitivity_calcs!C91 -> 0 | G68: =Sensitivity_calcs!D91 -> 4.829335085 | H68: =Sensitivity_calcs!E91 -> 3.299506254 | I68: =Sensitivity_calcs!F91 ->  | J68: =Sensitivity_calcs!G91 ->  | L68: =Sensitivity_calcs!K91 -> Option 2
C69: =Sensitivity_calcs!B92 -> Capex 10% lower | F69: =Sensitivity_calcs!C92 -> 0 | G69: =Sensitivity_calcs!D92 -> 5.009853017 | H69: =Sensitivity_calcs!E92 -> 3.700315804 | I69: =Sensitivity_calcs!F92 ->  | J69: =Sensitivity_calcs!G92 ->  | L69: =Sensitivity_calcs!K92 -> Option 2
C70: =Sensitivity_calcs!B93 -> Total benefits 10% higher | F70: =Sensitivity_calcs!C93 -> 0 | G70: =Sensitivity_calcs!D93 -> 5.501812422 | H70: =Sensitivity_calcs!E93 -> 4.050306906 | I70: =Sensitivity_calcs!F93 ->  | J70: =Sensitivity_calcs!G93 ->  | L70: =Sensitivity_calcs!K93 -> Option 2
C71: =Sensitivity_calcs!B94 -> Total benefits 10% lower | F71: =Sensitivity_calcs!C94 -> 0 | G71: =Sensitivity_calcs!D94 -> 4.33737568 | H71: =Sensitivity_calcs!E94 -> 2.949515151 | I71: =Sensitivity_calcs!F94 ->  | J71: =Sensitivity_calcs!G94 ->  | L71: =Sensitivity_calcs!K94 -> Option 2
C72: =Sensitivity_calcs!B95 -> Capex 10% higher & Total benefits 10% lower | F72: =Sensitivity_calcs!C95 -> 0 | G72: =Sensitivity_calcs!D95 -> 4.247116714 | H72: =Sensitivity_calcs!E95 -> 2.749110376 | I72: =Sensitivity_calcs!F95 ->  | J72: =Sensitivity_calcs!G95 ->  | L72: =Sensitivity_calcs!K95 -> Option 2
C73: =Sensitivity_calcs!B96 -> 0 | F73: =Sensitivity_calcs!C96 ->  | G73: =Sensitivity_calcs!D96 ->  | H73: =Sensitivity_calcs!E96 ->  | I73: =Sensitivity_calcs!F96 ->  | J73: =Sensitivity_calcs!G96 ->  | L73: =Sensitivity_calcs!K96 -> 
C74: =Sensitivity_calcs!B97 -> 0 | F74: =Sensitivity_calcs!C97 ->  | G74: =Sensitivity_calcs!D97 ->  | H74: =Sensitivity_calcs!E97 ->  | I74: =Sensitivity_calcs!F97 ->  | J74: =Sensitivity_calcs!G97 ->  | K74: =IF(C74=0,0, INDEX($F$66:$J$66, MATCH(MAX($F74:$I74),$F74:$I74,0))) -> 0 | L74: =Sensitivity_calcs!K97 -> 
D75: =Sensitivity_calcs!B98 -> 0 | F75: =Sensitivity_calcs!C98 ->  | G75: =Sensitivity_calcs!D98 ->  | H75: =Sensitivity_calcs!E98 ->  | I75: =Sensitivity_calcs!F98 ->  | J75: =Sensitivity_calcs!G98 ->  | L75: =Sensitivity_calcs!K98 -> 
D76: =Sensitivity_calcs!B99 -> 0

Sheet Assumptions
A1: =bus -> Powercor
A2: =proj -> Drysdale feeder: DDL023
A4: Project
C6: Business: | E6: Powercor
C8: Descripton: | E8: Drysdale feeder: DDL023
C10: Date of cost inputs: | E10: December | G10: 2023
C13: Option | E13: Description
C14: =options -> Option 1 (base case) | E14: No change to existing practices
C15: Option 2 | E15: DDL023 feeder exit cable upgrade
C16: Option 3 | E16: WPD032 construct a new feeder
C17: Option 4
C18: Option 5
C20: Compliance project | E20: No
C22: Expenditure starts | E22: 2026-27 | F22: [start]
A25: Timing & WACC
C27: Input dollars | G27: =EOMONTH(DATE(Assumptions!$G$10,INDEX(Data!$K$107:$K$108, MATCH(Assumptions!$E$10, Data!$J$107:$J$108,0)), 1),0) -> 2023-12-31 | H27: [input_dollars]
C28: Pre-tax real WACC | G28: 0.035 | H28: [real_disc]
C29: VCR date | G29: 2024-12-31 | H29: [vcr_date]
C31: Analysis period (years) | G31: 20 | H31: [years]\
C33: Output dollars | G33: 2026-06-30 | H33: [output_dollars]
C34: Other benefits date | G34: 2023-12-31 | H34: [custval_date]
C35: Value of CO2 reductions input date | G35: 2023-06-30
A39: VCR
C41: Enter ZSS code >> | D41: eg. AR | E41: Drysdale | G41: DDL | H41: 37211.71796 | I41: 2024 VCR ($/MWh)
A45: Risks
B48: SAFETY
C50: Value of statistical life | G50: 5400000 | H50: 2023-06-30
C52: Value of injury | G52: 0 | H52: =input_dollars -> 2023-12-31
C54: =Data!A83 -> Disproportionate factors applied to various bushfire and other risk valuations
C55: =Data!B85 -> Harm to property from network | G55: =Data!F85 -> 1
C56: =Data!B86 -> Harm to property from bushfire | G56: =Data!F86 -> 1
C57: =Data!B87 -> Harm to environment | G57: =Data!F87 -> 1
C58: =Data!B88 -> Safety - Public trespass | G58: =Data!F88 -> 1
C59: =Data!B89 -> Safety - Single fatality or serious injury ^ | G59: =Data!F89 -> 3
C60: =Data!B90 -> Safety from bushfire in HBRA | G60: =Data!F90 -> 3
C61: =Data!B91 -> Safety - Multiple fatality or serious injury ^ | G61: =Data!F91 -> 6
C62: =Data!B92 -> Safety from bushfire (REFCL declared areas) | G62: =Data!F92 -> 6
C63: =Data!B93 -> Safety from bushfire (electric line construction areas) | G63: =Data!F93 -> 10
C66: ^ Public or employee
C69: Incident type | G69: Value | H69: Probability | I69: DF selected | J69: Description/comment
C70: Safety (fatality) | G70: =G50*INDEX(hy_escalation, MATCH(input_dollars,hy_dates,0))/INDEX(hy_escalation, MATCH(H50,hy_dates,0)) -> 5607473.52 | H70: 0 | I70: 0 | J70: 0
C71: Safety (injury) | G71: =G52*INDEX(hy_escalation, MATCH(input_dollars,hy_dates,0))/INDEX(hy_escalation, MATCH(H52,hy_dates,0)) -> 0 | H71: 0 | I71: 0 | J71: 0
B77: UNPLANNED REPLACEMENT/REPAIR
C78: Major failure (replace) | G78: 0 | H78: =input_dollars -> 2023-12-31
C79: Minor failure (repair) | G79: 0 | H79: =input_dollars -> 2023-12-31
C81: Premium for failure | G81: 0.2
A87: Other benefits
B89: ENVIRONMENTAL | K89: 2026-27 | L89: 2027-28 | M89: 2028-29 | N89: 2029-30 | O89: 2030-31 | P89: 2031-32
C90: Value of CO2 reductions | H90: =G35 -> 2023-06-30 | I90: $/kWh | K90: 0.0247304868 | L90: 0.02234074009 | M90: 0.02019632912 | N90: 0.01806294208 | O90: 0.01591339762 | P90: 0.01371506943
B93: CUSTOMER VALUE | G93: Value
C94: =Data!B60 -> Reliability in worst-served areas | G94: =INDEX(Data!$D$60:$F$67,,MATCH(bus,Data!$D$59:$F$59,0)) -> 151432.8174 | H94: =custval_date -> 2023-12-31 | I94: per MWh
C95: =Data!B61 -> Network resilience | G95: 24590 | H95: 2023-12-31 | I95: per MWh
C96: =Data!B62 -> Enabling solar exports | G96: 88.35771951 | H96: 2023-12-31 | I96: per MWh
C97: =Data!B63 -> Aesthetics | G97: 0 | H97: 2023-12-31 | I97: per customer
C98: =Data!B64 -> Customer value of time - residential | G98: 0.3518133654 | H98: 2023-12-31 | I98: per customer minute
C99: =Data!B65 -> Customer value of time - business | G99: 0.3518133654 | H99: 2023-12-31 | I99: per customer minute
C100: =Data!B66 -> Communication | G100: 0 | H100: 2023-12-31 | I100: per customer
C101: =Data!B67 -> Information accessibility | G101: 0 | H101: 2023-12-31 | I101: per customer
A106: Sensitivities
G110: Capex | H110: Total benefits
B111: 1 | C111: =IF(G111=0, "", G$110&" "&ABS($G111)*100&"%"&IF($G111>0, " higher", " lower"))&IF(AND(G111<>0, H111<>0), " & ", "")&IF(H111=0, "", H$110&" "&ABS($H111)*100&"%"&IF($H111>0, " higher", " lower")) -> Capex 10% higher | G111: 0.1 | H111: 0
B112: 2 | C112: =IF(G112=0, "", G$110&" "&ABS($G112)*100&"%"&IF($G112>0, " higher", " lower"))&IF(AND(G112<>0, H112<>0), " & ", "")&IF(H112=0, "", H$110&" "&ABS($H112)*100&"%"&IF($H112>0, " higher", " lower")) -> Capex 10% lower | G112: -0.1 | H112: 0
B113: 3 | C113: =IF(G113=0, "", G$110&" "&ABS($G113)*100&"%"&IF($G113>0, " higher", " lower"))&IF(AND(G113<>0, H113<>0), " & ", "")&IF(H113=0, "", H$110&" "&ABS($H113)*100&"%"&IF($H113>0, " higher", " lower")) -> Total benefits 10% higher | G113: 0 | H113: 0.1
B114: 4 | C114: =IF(G114=0, "", G$110&" "&ABS($G114)*100&"%"&IF($G114>0, " higher", " lower"))&IF(AND(G114<>0, H114<>0), " & ", "")&IF(H114=0, "", H$110&" "&ABS($H114)*100&"%"&IF($H114>0, " higher", " lower")) -> Total benefits 10% lower | G114: 0 | H114: -0.1
B115: 5 | C115: =IF(G115=0, "", G$110&" "&ABS($G115)*100&"%"&IF($G115>0, " higher", " lower"))&IF(AND(G115<>0, H115<>0), " & ", "")&IF(H115=0, "", H$110&" "&ABS($H115)*100&"%"&IF($H115>0, " higher", " lower")) -> Capex 10% higher & Total benefits 10% lower | G115: 0.1 | H115: -0.1

Sheet Option1 (base case)
A1: =bus -> Powercor
A2: =proj -> Drysdale feeder: DDL023
A3: OPTION 1 (base case)
A6: Count | H6: 0 | I6: =H6+1 -> 1 | J6: 2 | K6: 3 | L6: 4 | M6: 5 | N6: 6 | O6: 7 | P6: 8 | Q6: 9 | R6: 10 | S6: 11 | T6: 12 | U6: 13 | V6: 14 | W6: 15 | X6: 16 | Y6: 17 | Z6: 18 | AA6: 19 | AB6: 20 | AC6: 21 | AD6: 22 | AE6: 23 | AF6: 24 | AG6: 25
A7: Value of CO2 reductions | G7: $/MWh | I7: =IF(ISBLANK(Assumptions!K90), H7,Assumptions!K90*thous_conv) -> 24.7304868 | J7: =IF(ISBLANK(Assumptions!L90), I7,Assumptions!L90*thous_conv) -> 22.34074009 | K7: =IF(ISBLANK(Assumptions!M90), J7,Assumptions!M90*thous_conv) -> 20.19632912 | L7: =IF(ISBLANK(Assumptions!N90), K7,Assumptions!N90*thous_conv) -> 18.06294208 | M7: =IF(ISBLANK(Assumptions!O90), L7,Assumptions!O90*thous_conv) -> 15.91339762 | N7: =IF(ISBLANK(Assumptions!P90), M7,Assumptions!P90*thous_conv) -> 13.71506943 | O7: =IF(ISBLANK(Assumptions!Q90), N7,Assumptions!Q90*thous_conv) -> 13.71506943 | P7: =IF(ISBLANK(Assumptions!R90), O7,Assumptions!R90*thous_conv) -> 13.71506943 | Q7: =IF(ISBLANK(Assumptions!S90), P7,Assumptions!S90*thous_conv) -> 13.71506943 | R7: =IF(ISBLANK(Assumptions!T90), Q7,Assumptions!T90*thous_conv) -> 13.71506943 | S7: =IF(ISBLANK(Assumptions!U90), R7,Assumptions!U90*thous_conv) -> 13.71506943 | T7: =IF(ISBLANK(Assumptions!V90), S7,Assumptions!V90*thous_conv) -> 13.71506943 | U7: =IF(ISBLANK(Assumptions!W90), T7,Assumptions!W90*thous_conv) -> 13.71506943 | V7: =IF(ISBLANK(Assumptions!X90), U7,Assumptions!X90*thous_conv) -> 13.71506943 | W7: =IF(ISBLANK(Assumptions!Y90), V7,Assumptions!Y90*thous_conv) -> 13.71506943 | X7: =IF(ISBLANK(Assumptions!Z90), W7,Assumptions!Z90*thous_conv) -> 13.71506943 | Y7: =IF(ISBLANK(Assumptions!AA90), X7,Assumptions!AA90*thous_conv) -> 13.71506943 | Z7: =IF(ISBLANK(Assumptions!AB90), Y7,Assumptions!AB90*thous_conv) -> 13.71506943 | AA7: =IF(ISBLANK(Assumptions!AC90), Z7,Assumptions!AC90*thous_conv) -> 13.71506943 | AB7: =IF(ISBLANK(Assumptions!AD90), AA7,Assumptions!AD90*thous_conv) -> 13.71506943 | AC7: =IF(ISBLANK(Assumptions!AE90), AB7,Assumptions!AE90*thous_conv) -> 13.71506943 | AD7: =IF(ISBLANK(Assumptions!AF90), AC7,Assumptions!AF90*thous_conv) -> 13.71506943 | AE7: =IF(ISBLANK(Assumptions!AG90), AD7,Assumptions!AG90*thous_conv) -> 13.71506943 | AF7: =IF(ISBLANK(Assumptions!AH90), AE7,Assumptions!AH90*thous_conv) -> 13.71506943 | AG7: =IF(ISBLANK(Assumptions!AI90), AF7,Assumptions!AI90*thous_conv) -> 13.71506943
G9: Units | H9: =DATE(LEFT(I9,4), 6,30) -> 2026-06-30 | I9: =start -> 2026-27 | J9: =LEFT(I9,4)+1&"-"&RIGHT(I9,2)+1 -> 2027-28 | K9: 2028-29 | L9: 2029-30 | M9: 2030-31 | N9: 2031-32 | O9: 2032-33 | P9: 2033-34 | Q9: 2034-35 | R9: 2035-36 | S9: 2036-37 | T9: 2037-38 | U9: 2038-39 | V9: 2039-40 | W9: 2040-41 | X9: 2041-42 | Y9: 2042-43 | Z9: 2043-44 | AA9: 2044-45 | AB9: 2045-46 | AC9: 2046-47 | AD9: 2047-48 | AE9: 2048-49 | AF9: 2049-50 | AG9: 2050-51
A11: INVESTMENT & OPERATING COST
C13: Capex | E13: Asset life (yrs)
C14: < Enter description > | E14: 0 | G14: =input_dollars -> 2023-12-31 | I14: 0 | J14: 0 | K14: 0 | L14: 0 | M14: 0 | N14: 0 | O14: 0 | P14: 0 | Q14: 0 | R14: 0 | S14: 0 | T14: 0 | U14: 0 | V14: 0 | W14: 0 | X14: 0 | Y14: 0 | Z14: 0 | AA14: 0 | AB14: 0 | AC14: 0 | AD14: 0 | AE14: 0 | AF14: 0 | AG14: 0
C15: < Enter description > | E15: 0 | G15: =input_dollars -> 2023-12-31 | I15: 0 | J15: 0 | K15: 0 | L15: 0 | M15: 0 | N15: 0 | O15: 0 | P15: 0 | Q15: 0 | R15: 0 | S15: 0 | T15: 0 | U15: 0 | V15: 0 | W15: 0 | X15: 0 | Y15: 0 | Z15: 0 | AA15: 0 | AB15: 0 | AC15: 0 | AD15: 0 | AE15: 0 | AF15: 0 | AG15: 0
C16: < Enter description > | E16: 0 | G16: =input_dollars -> 2023-12-31 | I16: 0 | J16: 0 | K16: 0 | L16: 0 | M16: 0 | N16: 0 | O16: 0 | P16: 0 | Q16: 0 | R16: 0 | S16: 0 | T16: 0 | U16: 0 | V16: 0 | W16: 0 | X16: 0 | Y16: 0 | Z16: 0 | AA16: 0 | AB16: 0 | AC16: 0 | AD16: 0 | AE16: 0 | AF16: 0 | AG16: 0
C17: Capital expenditure | G17: =input_dollars -> 2023-12-31 | I17: =SUM(I14:I16) -> 0 | J17: 0 | K17: 0 | L17: 0 | M17: 0 | N17: 0 | O17: 0 | P17: 0 | Q17: 0 | R17: 0 | S17: 0 | T17: 0 | U17: 0 | V17: 0 | W17: 0 | X17: 0 | Y17: 0 | Z17: 0 | AA17: 0 | AB17: 0 | AC17: =SUM(AC14:AC16) -> 0 | AD17: =SUM(AD14:AD16) -> 0 | AE17: =SUM(AE14:AE16) -> 0 | AF17: =SUM(AF14:AF16) -> 0 | AG17: =SUM(AG14:AG16) -> 0
C19: Operating expenditure | G19: =input_dollars -> 2023-12-31 | I19: 0 | J19: 0 | K19: 0 | L19: 0 | M19: 0 | N19: 0 | O19: 0 | P19: 0 | Q19: 0 | R19: 0 | S19: 0 | T19: 0 | U19: 0 | V19: 0 | W19: 0 | X19: 0 | Y19: 0 | Z19: 0 | AA19: 0 | AB19: 0 | AC19: 0 | AD19: 0 | AE19: 0 | AF19: 0 | AG19: 0
A22: RISK ASSUMPTIONS
C24: PoF (major) | I24: 0 | J24: 0 | K24: 0 | L24: 0 | M24: 0 | N24: 0 | O24: 0 | P24: 0 | Q24: 0 | R24: 0 | S24: 0 | T24: 0 | U24: 0 | V24: 0 | W24: 0 | X24: 0 | Y24: 0 | Z24: 0 | AA24: 0 | AB24: 0 | AC24: 0 | AD24: 0 | AE24: 0 | AF24: 0 | AG24: 0
C25: PoF (reparable) | I25: 0 | J25: 0 | K25: 0 | L25: 0 | M25: 0 | N25: 0 | O25: 0 | P25: 0 | Q25: 0 | R25: 0 | S25: 0 | T25: 0 | U25: 0 | V25: 0 | W25: 0 | X25: 0 | Y25: 0 | Z25: 0 | AA25: 0 | AB25: 0 | AC25: 0 | AD25: 0 | AE25: 0 | AF25: 0 | AG25: 0
C27: Energy at risk 10% PoE | E27: 0.3 | G27: MWh | I27: ='EaR DDL023'!I$10 -> 1.882346464 | J27: ='EaR DDL023'!J$10 -> 3.332970933 | K27: ='EaR DDL023'!K$10 -> 5.205154873 | L27: ='EaR DDL023'!L$10 -> 6.984555022 | M27: ='EaR DDL023'!M$10 -> 9.320524401 | N27: ='EaR DDL023'!N$10 -> 13.1245596 | O27: ='EaR DDL023'!O$10 -> 18.10050076 | P27: ='EaR DDL023'!P$10 -> 22.90201223 | Q27: ='EaR DDL023'!Q$10 -> 26.88546237 | R27: ='EaR DDL023'!R$10 -> 26.88546237 | S27: ='EaR DDL023'!S$10 -> 26.88546237 | T27: ='EaR DDL023'!T$10 -> 26.88546237 | U27: ='EaR DDL023'!U$10 -> 26.88546237 | V27: ='EaR DDL023'!V$10 -> 26.88546237 | W27: ='EaR DDL023'!W$10 -> 26.88546237 | X27: ='EaR DDL023'!X$10 -> 26.88546237 | Y27: ='EaR DDL023'!Y$10 -> 26.88546237 | Z27: ='EaR DDL023'!Z$10 -> 26.88546237 | AA27: ='EaR DDL023'!AA$10 -> 26.88546237 | AB27: ='EaR DDL023'!AB$10 -> 26.88546237 | AC27: ='EaR DDL023'!AC$10 -> 26.88546237 | AD27: ='EaR DDL023'!AD$10 -> 26.88546237 | AE27: ='EaR DDL023'!AE$10 -> 26.88546237 | AF27: ='EaR DDL023'!AF$10 -> 26.88546237 | AG27: =AF27 -> 26.88546237
C28: Energy at risk 50% PoE | E28: 0.7 | G28: MWh | I28: ='EaR DDL023'!I$9 -> 0.01953720068 | J28: ='EaR DDL023'!J$9 -> 0.1719086652 | K28: ='EaR DDL023'!K$9 -> 0.6515433201 | L28: ='EaR DDL023'!L$9 -> 1.268957205 | M28: ='EaR DDL023'!M$9 -> 2.157154541 | N28: ='EaR DDL023'!N$9 -> 3.743671991 | O28: ='EaR DDL023'!O$9 -> 5.805920008 | P28: ='EaR DDL023'!P$9 -> 7.917855213 | Q28: ='EaR DDL023'!Q$9 -> 9.827656964 | R28: ='EaR DDL023'!R$9 -> 9.827656964 | S28: ='EaR DDL023'!S$9 -> 9.827656964 | T28: ='EaR DDL023'!T$9 -> 9.827656964 | U28: ='EaR DDL023'!U$9 -> 9.827656964 | V28: ='EaR DDL023'!V$9 -> 9.827656964 | W28: ='EaR DDL023'!W$9 -> 9.827656964 | X28: ='EaR DDL023'!X$9 -> 9.827656964 | Y28: ='EaR DDL023'!Y$9 -> 9.827656964 | Z28: ='EaR DDL023'!Z$9 -> 9.827656964 | AA28: ='EaR DDL023'!AA$9 -> 9.827656964 | AB28: ='EaR DDL023'!AB$9 -> 9.827656964 | AC28: ='EaR DDL023'!AC$9 -> 9.827656964 | AD28: ='EaR DDL023'!AD$9 -> 9.827656964 | AE28: ='EaR DDL023'!AE$9 -> 9.827656964 | AF28: ='EaR DDL023'!AF$9 -> 9.827656964 | AG28: =AF28 -> 9.827656964
C30: Energy at risk (weighted) | G30: MWh | I30: =SUMPRODUCT(I$27:I$28, $E$27:$E$28) -> 0.5783799797 | J30: =SUMPRODUCT(J$27:J$28, $E$27:$E$28) -> 1.120227345 | K30: 2.017626786 | L30: 2.98363655 | M30: 4.306165499 | N30: 6.557938275 | O30: 9.494294233 | P30: 12.41310232 | Q30: 14.94499859 | R30: 14.94499859 | S30: 14.94499859 | T30: 14.94499859 | U30: 14.94499859 | V30: 14.94499859 | W30: 14.94499859 | X30: 14.94499859 | Y30: 14.94499859 | Z30: 14.94499859 | AA30: 14.94499859 | AB30: 14.94499859 | AC30: 14.94499859 | AD30: 14.94499859 | AE30: 14.94499859 | AF30: 14.94499859 | AG30: 14.94499859
C31: Energy at risk value | D31: $/MWh | E31: =Assumptions!H41*vcr_esc -> 35130.23528 | F31: =IF(AND(SUM(I30:AG30)<>0, E31=0), "!", "") ->  | G31: =input_dollars -> 2023-12-31 | I31: =I30*$E$31 -> 20318.62477 | J31: =J30*$E$31 -> 39353.85021 | K31: 70879.7037 | L31: 104815.854 | M31: 151276.6071 | N31: 230381.9146 | O31: 333536.7902 | P31: 436075.2049 | Q31: 525021.3166 | R31: 525021.3166 | S31: 525021.3166 | T31: 525021.3166 | U31: 525021.3166 | V31: 525021.3166 | W31: 525021.3166 | X31: 525021.3166 | Y31: 525021.3166 | Z31: 525021.3166 | AA31: 525021.3166 | AB31: 525021.3166 | AC31: 525021.3166 | AD31: 525021.3166 | AE31: 525021.3166 | AF31: 525021.3166 | AG31: 525021.3166
C33: Safety consequence | D33: (after DF) | G33: =input_dollars -> 2023-12-31 | I33: 0 | J33: 0 | K33: 0 | L33: 0 | M33: 0 | N33: 0 | O33: 0 | P33: 0 | Q33: 0 | R33: 0 | S33: 0 | T33: 0 | U33: 0 | V33: 0 | W33: 0 | X33: 0 | Y33: 0 | Z33: 0 | AA33: 0 | AB33: 0 | AC33: 0 | AD33: 0 | AE33: 0 | AF33: 0 | AG33: 0
C34: Unplanned replacements | G34: =input_dollars -> 2023-12-31 | I34: 0 | J34: 0 | K34: 0 | L34: 0 | M34: 0 | N34: 0 | O34: 0 | P34: 0 | Q34: 0 | R34: 0 | S34: 0 | T34: 0 | U34: 0 | V34: 0 | W34: 0 | X34: 0 | Y34: 0 | Z34: 0 | AA34: 0 | AB34: 0 | AC34: 0 | AD34: 0 | AE34: 0 | AF34: 0 | AG34: 0
C35: Environmental consequence | D35: (after DF) | G35: =input_dollars -> 2023-12-31 | I35: 0 | J35: 0 | K35: 0 | L35: 0 | M35: 0 | N35: 0 | O35: 0 | P35: 0 | Q35: 0 | R35: 0 | S35: 0 | T35: 0 | U35: 0 | V35: 0 | W35: 0 | X35: 0 | Y35: 0 | Z35: 0 | AA35: 0 | AB35: 0 | AC35: 0 | AD35: 0 | AE35: 0 | AF35: 0 | AG35: 0
C36: < Other risk - enter description > | G36: =input_dollars -> 2023-12-31 | I36: 0 | J36: 0 | K36: 0 | L36: 0 | M36: 0 | N36: 0 | O36: 0 | P36: 0 | Q36: 0 | R36: 0 | S36: 0 | T36: 0 | U36: 0 | V36: 0 | W36: 0 | X36: 0 | Y36: 0 | Z36: 0 | AA36: 0 | AB36: 0 | AC36: 0 | AD36: 0 | AE36: 0 | AF36: 0 | AG36: 0
C37: < Other risk - enter description > | G37: =input_dollars -> 2023-12-31 | I37: 0 | J37: 0 | K37: 0 | L37: 0 | M37: 0 | N37: 0 | O37: 0 | P37: 0 | Q37: 0 | R37: 0 | S37: 0 | T37: 0 | U37: 0 | V37: 0 | W37: 0 | X37: 0 | Y37: 0 | Z37: 0 | AA37: 0 | AB37: 0 | AC37: 0 | AD37: 0 | AE37: 0 | AF37: 0 | AG37: 0
C39: Total risk cost | I39: =SUM(I31:I37) -> 20318.62477 | J39: =SUM(J31:J37) -> 39353.85021 | K39: 70879.7037 | L39: 104815.854 | M39: 151276.6071 | N39: 230381.9146 | O39: 333536.7902 | P39: 436075.2049 | Q39: 525021.3166 | R39: 525021.3166 | S39: 525021.3166 | T39: 525021.3166 | U39: 525021.3166 | V39: 525021.3166 | W39: 525021.3166 | X39: 525021.3166 | Y39: 525021.3166 | Z39: 525021.3166 | AA39: 525021.3166 | AB39: 525021.3166 | AC39: =SUM(AC31:AC37) -> 525021.3166 | AD39: =SUM(AD31:AD37) -> 525021.3166 | AE39: =SUM(AE31:AE37) -> 525021.3166 | AF39: =SUM(AF31:AF37) -> 525021.3166 | AG39: =SUM(AG31:AG37) -> 525021.3166
A41: OTHER BENEFITS
C44: Reduction in CO2 emissions | G44: MWh | I44: 0 | J44: 0 | K44: 0 | L44: 0 | M44: 0 | N44: 0 | O44: 0 | P44: 0 | Q44: 0 | R44: 0 | S44: 0 | T44: 0 | U44: 0 | V44: 0 | W44: 0 | X44: 0 | Y44: 0 | Z44: 0 | AA44: 0 | AB44: 0 | AC44: 0 | AD44: 0 | AE44: 0 | AF44: 0 | AG44: 0
C45: Value of reduction in CO2 emissions | G45: $ | I45: =I44*I7 -> 0 | J45: 0 | K45: 0 | L45: 0 | M45: 0 | N45: 0 | O45: 0 | P45: 0 | Q45: 0 | R45: 0 | S45: 0 | T45: 0 | U45: 0 | V45: 0 | W45: 0 | X45: 0 | Y45: 0 | Z45: 0 | AA45: 0 | AB45: 0 | AC45: 0 | AD45: 0 | AE45: 0 | AF45: 0 | AG45: 0
C48: Reliability in worst-served areas | D48: $/MWh | E48: =Assumptions!G94 -> 151432.8174 | G48: MWh | I48: 0 | J48: 0 | K48: 0 | L48: 0 | M48: 0 | N48: 0 | O48: 0 | P48: 0 | Q48: 0 | R48: 0 | S48: 0 | T48: 0 | U48: 0 | V48: 0 | W48: 0 | X48: 0 | Y48: 0 | Z48: 0 | AA48: 0 | AB48: 0 | AC48: 0 | AD48: 0 | AE48: 0 | AF48: 0 | AG48: 0
C49: Network resilience | D49: $/MWh | E49: =Assumptions!G95 -> 24590 | G49: MWh | I49: 0 | J49: 0 | K49: 0 | L49: 0 | M49: 0 | N49: 0 | O49: 0 | P49: 0 | Q49: 0 | R49: 0 | S49: 0 | T49: 0 | U49: 0 | V49: 0 | W49: 0 | X49: 0 | Y49: 0 | Z49: 0 | AA49: 0 | AB49: 0 | AC49: 0 | AD49: 0 | AE49: 0 | AF49: 0 | AG49: 0
C50: Enabling solar exports | D50: $/MWh | E50: =Assumptions!G96 -> 88.35771951 | G50: MWh | I50: 0 | J50: 0 | K50: 0 | L50: 0 | M50: 0 | N50: 0 | O50: 0 | P50: 0 | Q50: 0 | R50: 0 | S50: 0 | T50: 0 | U50: 0 | V50: 0 | W50: 0 | X50: 0 | Y50: 0 | Z50: 0 | AA50: 0 | AB50: 0 | AC50: 0 | AD50: 0 | AE50: 0 | AF50: 0 | AG50: 0
C51: Aesthetics | D51: $/customer | E51: =Assumptions!G97 -> 0 | G51: customers | I51: 0 | J51: 0 | K51: 0 | L51: 0 | M51: 0 | N51: 0 | O51: 0 | P51: 0 | Q51: 0 | R51: 0 | S51: 0 | T51: 0 | U51: 0 | V51: 0 | W51: 0 | X51: 0 | Y51: 0 | Z51: 0 | AA51: 0 | AB51: 0 | AC51: 0 | AD51: 0 | AE51: 0 | AF51: 0 | AG51: 0
C52: Customer value of time (res) | D52: $/customer min | E52: =Assumptions!G98 -> 0.3518133654 | G52: mins | I52: 0 | J52: 0 | K52: 0 | L52: 0 | M52: 0 | N52: 0 | O52: 0 | P52: 0 | Q52: 0 | R52: 0 | S52: 0 | T52: 0 | U52: 0 | V52: 0 | W52: 0 | X52: 0 | Y52: 0 | Z52: 0 | AA52: 0 | AB52: 0 | AC52: 0 | AD52: 0 | AE52: 0 | AF52: 0 | AG52: 0
C53: Customer value of time (bus) | D53: $/customer min | E53: =Assumptions!G99 -> 0.3518133654 | G53: mins | I53: 0 | J53: 0 | K53: 0 | L53: 0 | M53: 0 | N53: 0 | O53: 0 | P53: 0 | Q53: 0 | R53: 0 | S53: 0 | T53: 0 | U53: 0 | V53: 0 | W53: 0 | X53: 0 | Y53: 0 | Z53: 0 | AA53: 0 | AB53: 0 | AC53: 0 | AD53: 0 | AE53: 0 | AF53: 0 | AG53: 0
C54: Communication | D54: $/customer | E54: =Assumptions!G100 -> 0 | G54: customers | I54: 0 | J54: 0 | K54: 0 | L54: 0 | M54: 0 | N54: 0 | O54: 0 | P54: 0 | Q54: 0 | R54: 0 | S54: 0 | T54: 0 | U54: 0 | V54: 0 | W54: 0 | X54: 0 | Y54: 0 | Z54: 0 | AA54: 0 | AB54: 0 | AC54: 0 | AD54: 0 | AE54: 0 | AF54: 0 | AG54: 0
C55: Information accessibility | D55: $/customer | E55: =Assumptions!G101 -> 0 | G55: customers | I55: 0 | J55: 0 | K55: 0 | L55: 0 | M55: 0 | N55: 0 | O55: 0 | P55: 0 | Q55: 0 | R55: 0 | S55: 0 | T55: 0 | U55: 0 | V55: 0 | W55: 0 | X55: 0 | Y55: 0 | Z55: 0 | AA55: 0 | AB55: 0 | AC55: 0 | AD55: 0 | AE55: 0 | AF55: 0 | AG55: 0
C57: Other benefits 1 | G57: =input_dollars -> 2023-12-31 | I57: 0 | J57: 0 | K57: 0 | L57: 0 | M57: 0 | N57: 0 | O57: 0 | P57: 0 | Q57: 0 | R57: 0 | S57: 0 | T57: 0 | U57: 0 | V57: 0 | W57: 0 | X57: 0 | Y57: 0 | Z57: 0 | AA57: 0 | AB57: 0 | AC57: 0 | AD57: 0 | AE57: 0 | AF57: 0 | AG57: 0
C58: Other benefits 2 | G58: =input_dollars -> 2023-12-31 | I58: 0 | J58: 0 | K58: 0 | L58: 0 | M58: 0 | N58: 0 | O58: 0 | P58: 0 | Q58: 0 | R58: 0 | S58: 0 | T58: 0 | U58: 0 | V58: 0 | W58: 0 | X58: 0 | Y58: 0 | Z58: 0 | AA58: 0 | AB58: 0 | AC58: 0 | AD58: 0 | AE58: 0 | AF58: 0 | AG58: 0
C60: Total other benefits | G60: =input_dollars -> 2023-12-31 | I60: =SUMPRODUCT((I$48:I$55)*($E$48:$E$55))+SUM(I57:I58)+I45 -> 0 | J60: =SUMPRODUCT((J$48:J$55)*($E$48:$E$55))+SUM(J57:J58)+J45 -> 0 | K60: =SUMPRODUCT((K$48:K$55)*($E$48:$E$55))+SUM(K57:K58)+K45 -> 0 | L60: =SUMPRODUCT((L$48:L$55)*($E$48:$E$55))+SUM(L57:L58)+L45 -> 0 | M60: =SUMPRODUCT((M$48:M$55)*($E$48:$E$55))+SUM(M57:M58)+M45 -> 0 | N60: =SUMPRODUCT((N$48:N$55)*($E$48:$E$55))+SUM(N57:N58)+N45 -> 0 | O60: =SUMPRODUCT((O$48:O$55)*($E$48:$E$55))+SUM(O57:O58)+O45 -> 0 | P60: =SUMPRODUCT((P$48:P$55)*($E$48:$E$55))+SUM(P57:P58)+P45 -> 0 | Q60: =SUMPRODUCT((Q$48:Q$55)*($E$48:$E$55))+SUM(Q57:Q58)+Q45 -> 0 | R60: =SUMPRODUCT((R$48:R$55)*($E$48:$E$55))+SUM(R57:R58)+R45 -> 0 | S60: =SUMPRODUCT((S$48:S$55)*($E$48:$E$55))+SUM(S57:S58)+S45 -> 0 | T60: =SUMPRODUCT((T$48:T$55)*($E$48:$E$55))+SUM(T57:T58)+T45 -> 0 | U60: =SUMPRODUCT((U$48:U$55)*($E$48:$E$55))+SUM(U57:U58)+U45 -> 0 | V60: =SUMPRODUCT((V$48:V$55)*($E$48:$E$55))+SUM(V57:V58)+V45 -> 0 | W60: =SUMPRODUCT((W$48:W$55)*($E$48:$E$55))+SUM(W57:W58)+W45 -> 0 | X60: =SUMPRODUCT((X$48:X$55)*($E$48:$E$55))+SUM(X57:X58)+X45 -> 0 | Y60: =SUMPRODUCT((Y$48:Y$55)*($E$48:$E$55))+SUM(Y57:Y58)+Y45 -> 0 | Z60: =SUMPRODUCT((Z$48:Z$55)*($E$48:$E$55))+SUM(Z57:Z58)+Z45 -> 0 | AA60: =SUMPRODUCT((AA$48:AA$55)*($E$48:$E$55))+SUM(AA57:AA58)+AA45 -> 0 | AB60: =SUMPRODUCT((AB$48:AB$55)*($E$48:$E$55))+SUM(AB57:AB58)+AB45 -> 0 | AC60: =SUMPRODUCT((AC$48:AC$55)*($E$48:$E$55))+SUM(AC57:AC58)+AC45 -> 0 | AD60: =SUMPRODUCT((AD$48:AD$55)*($E$48:$E$55))+SUM(AD57:AD58)+AD45 -> 0 | AE60: =SUMPRODUCT((AE$48:AE$55)*($E$48:$E$55))+SUM(AE57:AE58)+AE45 -> 0 | AF60: =SUMPRODUCT((AF$48:AF$55)*($E$48:$E$55))+SUM(AF57:AF58)+AF45 -> 0 | AG60: =SUMPRODUCT((AG$48:AG$55)*($E$48:$E$55))+SUM(AG57:AG58)+AG45 -> 0
A63: SUMMARY
C67: Risks mitigated vs base case | G67: =input_dollars -> 2023-12-31
C69: Capital expenditure
C70: =C14 -> < Enter description > | G70: =input_dollars -> 2023-12-31 | I70: =-I14 -> 0 | J70: 0 | K70: 0 | L70: 0 | M70: 0 | N70: 0 | O70: 0 | P70: 0 | Q70: 0 | R70: 0 | S70: 0 | T70: 0 | U70: 0 | V70: 0 | W70: 0 | X70: 0 | Y70: 0 | Z70: 0 | AA70: 0 | AB70: 0 | AC70: 0 | AD70: 0 | AE70: 0 | AF70: 0 | AG70: 0
C71: =C15 -> < Enter description > | G71: =input_dollars -> 2023-12-31 | I71: =-I15 -> 0 | J71: 0 | K71: 0 | L71: 0 | M71: 0 | N71: 0 | O71: 0 | P71: 0 | Q71: 0 | R71: 0 | S71: 0 | T71: 0 | U71: 0 | V71: 0 | W71: 0 | X71: 0 | Y71: 0 | Z71: 0 | AA71: 0 | AB71: 0 | AC71: 0 | AD71: 0 | AE71: 0 | AF71: 0 | AG71: 0
C72: =C16 -> < Enter description > | G72: =input_dollars -> 2023-12-31 | I72: =-I16 -> 0 | J72: 0 | K72: 0 | L72: 0 | M72: 0 | N72: 0 | O72: 0 | P72: 0 | Q72: 0 | R72: 0 | S72: 0 | T72: 0 | U72: 0 | V72: 0 | W72: 0 | X72: 0 | Y72: 0 | Z72: 0 | AA72: 0 | AB72: 0 | AC72: 0 | AD72: 0 | AE72: 0 | AF72: 0 | AG72: 0
C74: Cumulative capex
C75: =C14 -> < Enter description > | G75: =input_dollars -> 2023-12-31 | I75: =SUMPRODUCT(($I70:I70))-SUMPRODUCT(($I70:I70)*($I$6:I$6<=(I$6-$E14))) -> 0 | J75: =SUMPRODUCT(($I70:J70))-SUMPRODUCT(($I70:J70)*($I$6:J$6<=(J$6-$E14))) -> 0 | K75: =SUMPRODUCT(($I70:K70))-SUMPRODUCT(($I70:K70)*($I$6:K$6<=(K$6-$E14))) -> 0 | L75: =SUMPRODUCT(($I70:L70))-SUMPRODUCT(($I70:L70)*($I$6:L$6<=(L$6-$E14))) -> 0 | M75: =SUMPRODUCT(($I70:M70))-SUMPRODUCT(($I70:M70)*($I$6:M$6<=(M$6-$E14))) -> 0 | N75: =SUMPRODUCT(($I70:N70))-SUMPRODUCT(($I70:N70)*($I$6:N$6<=(N$6-$E14))) -> 0 | O75: =SUMPRODUCT(($I70:O70))-SUMPRODUCT(($I70:O70)*($I$6:O$6<=(O$6-$E14))) -> 0 | P75: =SUMPRODUCT(($I70:P70))-SUMPRODUCT(($I70:P70)*($I$6:P$6<=(P$6-$E14))) -> 0 | Q75: =SUMPRODUCT(($I70:Q70))-SUMPRODUCT(($I70:Q70)*($I$6:Q$6<=(Q$6-$E14))) -> 0 | R75: =SUMPRODUCT(($I70:R70))-SUMPRODUCT(($I70:R70)*($I$6:R$6<=(R$6-$E14))) -> 0 | S75: =SUMPRODUCT(($I70:S70))-SUMPRODUCT(($I70:S70)*($I$6:S$6<=(S$6-$E14))) -> 0 | T75: =SUMPRODUCT(($I70:T70))-SUMPRODUCT(($I70:T70)*($I$6:T$6<=(T$6-$E14))) -> 0 | U75: =SUMPRODUCT(($I70:U70))-SUMPRODUCT(($I70:U70)*($I$6:U$6<=(U$6-$E14))) -> 0 | V75: =SUMPRODUCT(($I70:V70))-SUMPRODUCT(($I70:V70)*($I$6:V$6<=(V$6-$E14))) -> 0 | W75: =SUMPRODUCT(($I70:W70))-SUMPRODUCT(($I70:W70)*($I$6:W$6<=(W$6-$E14))) -> 0 | X75: =SUMPRODUCT(($I70:X70))-SUMPRODUCT(($I70:X70)*($I$6:X$6<=(X$6-$E14))) -> 0 | Y75: =SUMPRODUCT(($I70:Y70))-SUMPRODUCT(($I70:Y70)*($I$6:Y$6<=(Y$6-$E14))) -> 0 | Z75: =SUMPRODUCT(($I70:Z70))-SUMPRODUCT(($I70:Z70)*($I$6:Z$6<=(Z$6-$E14))) -> 0 | AA75: =SUMPRODUCT(($I70:AA70))-SUMPRODUCT(($I70:AA70)*($I$6:AA$6<=(AA$6-$E14))) -> 0 | AB75: =SUMPRODUCT(($I70:AB70))-SUMPRODUCT(($I70:AB70)*($I$6:AB$6<=(AB$6-$E14))) -> 0 | AC75: =SUMPRODUCT(($I70:AC70))-SUMPRODUCT(($I70:AC70)*($I$6:AC$6<=(AC$6-$E14))) -> 0 | AD75: =SUMPRODUCT(($I70:AD70))-SUMPRODUCT(($I70:AD70)*($I$6:AD$6<=(AD$6-$E14))) -> 0 | AE75: =SUMPRODUCT(($I70:AE70))-SUMPRODUCT(($I70:AE70)*($I$6:AE$6<=(AE$6-$E14))) -> 0 | AF75: =SUMPRODUCT(($I70:AF70))-SUMPRODUCT(($I70:AF70)*($I$6:AF$6<=(AF$6-$E14))) -> 0 | AG75: =SUMPRODUCT(($I70:AG70))-SUMPRODUCT(($I70:AG70)*($I$6:AG$6<=(AG$6-$E14))) -> 0
C76: =C15 -> < Enter description > | G76: =input_dollars -> 2023-12-31 | I76: =SUMPRODUCT(($I71:I71))-SUMPRODUCT(($I71:I71)*($I$6:I$6<=(I$6-$E15))) -> 0 | J76: =SUMPRODUCT(($I71:J71))-SUMPRODUCT(($I71:J71)*($I$6:J$6<=(J$6-$E15))) -> 0 | K76: =SUMPRODUCT(($I71:K71))-SUMPRODUCT(($I71:K71)*($I$6:K$6<=(K$6-$E15))) -> 0 | L76: =SUMPRODUCT(($I71:L71))-SUMPRODUCT(($I71:L71)*($I$6:L$6<=(L$6-$E15))) -> 0 | M76: =SUMPRODUCT(($I71:M71))-SUMPRODUCT(($I71:M71)*($I$6:M$6<=(M$6-$E15))) -> 0 | N76: =SUMPRODUCT(($I71:N71))-SUMPRODUCT(($I71:N71)*($I$6:N$6<=(N$6-$E15))) -> 0 | O76: =SUMPRODUCT(($I71:O71))-SUMPRODUCT(($I71:O71)*($I$6:O$6<=(O$6-$E15))) -> 0 | P76: =SUMPRODUCT(($I71:P71))-SUMPRODUCT(($I71:P71)*($I$6:P$6<=(P$6-$E15))) -> 0 | Q76: =SUMPRODUCT(($I71:Q71))-SUMPRODUCT(($I71:Q71)*($I$6:Q$6<=(Q$6-$E15))) -> 0 | R76: =SUMPRODUCT(($I71:R71))-SUMPRODUCT(($I71:R71)*($I$6:R$6<=(R$6-$E15))) -> 0 | S76: =SUMPRODUCT(($I71:S71))-SUMPRODUCT(($I71:S71)*($I$6:S$6<=(S$6-$E15))) -> 0 | T76: =SUMPRODUCT(($I71:T71))-SUMPRODUCT(($I71:T71)*($I$6:T$6<=(T$6-$E15))) -> 0 | U76: =SUMPRODUCT(($I71:U71))-SUMPRODUCT(($I71:U71)*($I$6:U$6<=(U$6-$E15))) -> 0 | V76: =SUMPRODUCT(($I71:V71))-SUMPRODUCT(($I71:V71)*($I$6:V$6<=(V$6-$E15))) -> 0 | W76: =SUMPRODUCT(($I71:W71))-SUMPRODUCT(($I71:W71)*($I$6:W$6<=(W$6-$E15))) -> 0 | X76: =SUMPRODUCT(($I71:X71))-SUMPRODUCT(($I71:X71)*($I$6:X$6<=(X$6-$E15))) -> 0 | Y76: =SUMPRODUCT(($I71:Y71))-SUMPRODUCT(($I71:Y71)*($I$6:Y$6<=(Y$6-$E15))) -> 0 | Z76: =SUMPRODUCT(($I71:Z71))-SUMPRODUCT(($I71:Z71)*($I$6:Z$6<=(Z$6-$E15))) -> 0 | AA76: =SUMPRODUCT(($I71:AA71))-SUMPRODUCT(($I71:AA71)*($I$6:AA$6<=(AA$6-$E15))) -> 0 | AB76: =SUMPRODUCT(($I71:AB71))-SUMPRODUCT(($I71:AB71)*($I$6:AB$6<=(AB$6-$E15))) -> 0 | AC76: =SUMPRODUCT(($I71:AC71))-SUMPRODUCT(($I71:AC71)*($I$6:AC$6<=(AC$6-$E15))) -> 0 | AD76: =SUMPRODUCT(($I71:AD71))-SUMPRODUCT(($I71:AD71)*($I$6:AD$6<=(AD$6-$E15))) -> 0 | AE76: =SUMPRODUCT(($I71:AE71))-SUMPRODUCT(($I71:AE71)*($I$6:AE$6<=(AE$6-$E15))) -> 0 | AF76: =SUMPRODUCT(($I71:AF71))-SUMPRODUCT(($I71:AF71)*($I$6:AF$6<=(AF$6-$E15))) -> 0 | AG76: =SUMPRODUCT(($I71:AG71))-SUMPRODUCT(($I71:AG71)*($I$6:AG$6<=(AG$6-$E15))) -> 0
C77: =C16 -> < Enter description > | G77: =input_dollars -> 2023-12-31 | I77: =SUMPRODUCT(($I72:I72))-SUMPRODUCT(($I72:I72)*($I$6:I$6<=(I$6-$E16))) -> 0 | J77: =SUMPRODUCT(($I72:J72))-SUMPRODUCT(($I72:J72)*($I$6:J$6<=(J$6-$E16))) -> 0 | K77: =SUMPRODUCT(($I72:K72))-SUMPRODUCT(($I72:K72)*($I$6:K$6<=(K$6-$E16))) -> 0 | L77: =SUMPRODUCT(($I72:L72))-SUMPRODUCT(($I72:L72)*($I$6:L$6<=(L$6-$E16))) -> 0 | M77: =SUMPRODUCT(($I72:M72))-SUMPRODUCT(($I72:M72)*($I$6:M$6<=(M$6-$E16))) -> 0 | N77: =SUMPRODUCT(($I72:N72))-SUMPRODUCT(($I72:N72)*($I$6:N$6<=(N$6-$E16))) -> 0 | O77: =SUMPRODUCT(($I72:O72))-SUMPRODUCT(($I72:O72)*($I$6:O$6<=(O$6-$E16))) -> 0 | P77: =SUMPRODUCT(($I72:P72))-SUMPRODUCT(($I72:P72)*($I$6:P$6<=(P$6-$E16))) -> 0 | Q77: =SUMPRODUCT(($I72:Q72))-SUMPRODUCT(($I72:Q72)*($I$6:Q$6<=(Q$6-$E16))) -> 0 | R77: =SUMPRODUCT(($I72:R72))-SUMPRODUCT(($I72:R72)*($I$6:R$6<=(R$6-$E16))) -> 0 | S77: =SUMPRODUCT(($I72:S72))-SUMPRODUCT(($I72:S72)*($I$6:S$6<=(S$6-$E16))) -> 0 | T77: =SUMPRODUCT(($I72:T72))-SUMPRODUCT(($I72:T72)*($I$6:T$6<=(T$6-$E16))) -> 0 | U77: =SUMPRODUCT(($I72:U72))-SUMPRODUCT(($I72:U72)*($I$6:U$6<=(U$6-$E16))) -> 0 | V77: =SUMPRODUCT(($I72:V72))-SUMPRODUCT(($I72:V72)*($I$6:V$6<=(V$6-$E16))) -> 0 | W77: =SUMPRODUCT(($I72:W72))-SUMPRODUCT(($I72:W72)*($I$6:W$6<=(W$6-$E16))) -> 0 | X77: =SUMPRODUCT(($I72:X72))-SUMPRODUCT(($I72:X72)*($I$6:X$6<=(X$6-$E16))) -> 0 | Y77: =SUMPRODUCT(($I72:Y72))-SUMPRODUCT(($I72:Y72)*($I$6:Y$6<=(Y$6-$E16))) -> 0 | Z77: =SUMPRODUCT(($I72:Z72))-SUMPRODUCT(($I72:Z72)*($I$6:Z$6<=(Z$6-$E16))) -> 0 | AA77: =SUMPRODUCT(($I72:AA72))-SUMPRODUCT(($I72:AA72)*($I$6:AA$6<=(AA$6-$E16))) -> 0 | AB77: =SUMPRODUCT(($I72:AB72))-SUMPRODUCT(($I72:AB72)*($I$6:AB$6<=(AB$6-$E16))) -> 0 | AC77: =SUMPRODUCT(($I72:AC72))-SUMPRODUCT(($I72:AC72)*($I$6:AC$6<=(AC$6-$E16))) -> 0 | AD77: =SUMPRODUCT(($I72:AD72))-SUMPRODUCT(($I72:AD72)*($I$6:AD$6<=(AD$6-$E16))) -> 0 | AE77: =SUMPRODUCT(($I72:AE72))-SUMPRODUCT(($I72:AE72)*($I$6:AE$6<=(AE$6-$E16))) -> 0 | AF77: =SUMPRODUCT(($I72:AF72))-SUMPRODUCT(($I72:AF72)*($I$6:AF$6<=(AF$6-$E16))) -> 0 | AG77: =SUMPRODUCT(($I72:AG72))-SUMPRODUCT(($I72:AG72)*($I$6:AG$6<=(AG$6-$E16))) -> 0
C79: Annualised capex
C80: =$C$79&" - "&C14 -> Annualised capex - < Enter description > | G80: =input_dollars -> 2023-12-31 | I80: =IF($E14=0,0,-PMT(real_disc, $E14,H75,)) -> 0 | J80: 0 | K80: 0 | L80: 0 | M80: 0 | N80: 0 | O80: 0 | P80: 0 | Q80: 0 | R80: 0 | S80: 0 | T80: 0 | U80: 0 | V80: 0 | W80: 0 | X80: 0 | Y80: 0 | Z80: 0 | AA80: 0 | AB80: 0 | AC80: 0 | AD80: 0 | AE80: 0 | AF80: 0 | AG80: 0
C81: =$C$79&" - "&C15 -> Annualised capex - < Enter description > | G81: =input_dollars -> 2023-12-31 | I81: =IF($E15=0,0,-PMT(real_disc, $E15,H76,)) -> 0 | J81: 0 | K81: 0 | L81: 0 | M81: 0 | N81: 0 | O81: 0 | P81: 0 | Q81: 0 | R81: 0 | S81: 0 | T81: 0 | U81: 0 | V81: 0 | W81: 0 | X81: 0 | Y81: 0 | Z81: 0 | AA81: 0 | AB81: 0 | AC81: 0 | AD81: 0 | AE81: 0 | AF81: 0 | AG81: 0
C82: =$C$79&" - "&C16 -> Annualised capex - < Enter description > | G82: =input_dollars -> 2023-12-31 | I82: =IF($E16=0,0,-PMT(real_disc, $E16,H77,)) -> 0 | J82: 0 | K82: 0 | L82: 0 | M82: 0 | N82: 0 | O82: 0 | P82: 0 | Q82: 0 | R82: 0 | S82: 0 | T82: 0 | U82: 0 | V82: 0 | W82: 0 | X82: 0 | Y82: 0 | Z82: 0 | AA82: 0 | AB82: 0 | AC82: 0 | AD82: 0 | AE82: 0 | AF82: 0 | AG82: 0
C83: Total annualised capex | G83: =input_dollars -> 2023-12-31 | I83: =SUM(I80:I82) -> 0 | J83: =SUM(J80:J82) -> 0 | K83: 0 | L83: 0 | M83: 0 | N83: 0 | O83: 0 | P83: 0 | Q83: 0 | R83: 0 | S83: 0 | T83: 0 | U83: 0 | V83: 0 | W83: 0 | X83: 0 | Y83: 0 | Z83: 0 | AA83: 0 | AB83: 0 | AC83: =SUM(AC80:AC82) -> 0 | AD83: =SUM(AD80:AD82) -> 0 | AE83: =SUM(AE80:AE82) -> 0 | AF83: =SUM(AF80:AF82) -> 0 | AG83: =SUM(AG80:AG82) -> 0
C85: Annualised capex | G85: =input_dollars -> 2023-12-31 | I85: =I83 -> 0 | J85: =J83 -> 0 | K85: 0 | L85: 0 | M85: 0 | N85: 0 | O85: 0 | P85: 0 | Q85: 0 | R85: 0 | S85: 0 | T85: 0 | U85: 0 | V85: 0 | W85: 0 | X85: 0 | Y85: 0 | Z85: 0 | AA85: 0 | AB85: 0 | AC85: =AC83 -> 0 | AD85: =AD83 -> 0 | AE85: =AE83 -> 0 | AF85: =AF83 -> 0 | AG85: =AG83 -> 0
C86: Operating expenditure | G86: 2023-12-31 | I86: =-I19 -> 0 | J86: 0 | K86: 0 | L86: 0 | M86: 0 | N86: 0 | O86: 0 | P86: 0 | Q86: 0 | R86: 0 | S86: 0 | T86: 0 | U86: 0 | V86: 0 | W86: 0 | X86: 0 | Y86: 0 | Z86: 0 | AA86: 0 | AB86: 0 | AC86: 0 | AD86: 0 | AE86: 0 | AF86: 0 | AG86: 0
C87: Risk mitigated | G87: 2023-12-31 | I87: =I67 -> 0 | J87: =J67 -> 0 | K87: 0 | L87: 0 | M87: 0 | N87: 0 | O87: 0 | P87: 0 | Q87: 0 | R87: 0 | S87: 0 | T87: 0 | U87: 0 | V87: 0 | W87: 0 | X87: 0 | Y87: 0 | Z87: 0 | AA87: 0 | AB87: 0 | AC87: =AC67 -> 0 | AD87: =AD67 -> 0 | AE87: =AE67 -> 0 | AF87: =AF67 -> 0 | AG87: =AG67 -> 0
C88: Other benefits value | G88: 2023-12-31 | I88: =I60 -> 0 | J88: 0 | K88: 0 | L88: 0 | M88: 0 | N88: 0 | O88: 0 | P88: 0 | Q88: 0 | R88: 0 | S88: 0 | T88: 0 | U88: 0 | V88: 0 | W88: 0 | X88: 0 | Y88: 0 | Z88: 0 | AA88: 0 | AB88: 0 | AC88: 0 | AD88: 0 | AE88: 0 | AF88: 0 | AG88: 0
C90: Net benefits | G90: 2023-12-31 | I90: =SUM(I85:I89) -> 0 | J90: 0 | K90: 0 | L90: 0 | M90: 0 | N90: 0 | O90: 0 | P90: 0 | Q90: 0 | R90: 0 | S90: 0 | T90: 0 | U90: 0 | V90: 0 | W90: 0 | X90: 0 | Y90: 0 | Z90: 0 | AA90: 0 | AB90: 0 | AC90: =SUM(AC85:AC89) -> 0 | AD90: =SUM(AD85:AD89) -> 0 | AE90: =SUM(AE85:AE89) -> 0 | AF90: =SUM(AF85:AF89) -> 0 | AG90: =SUM(AG85:AG89) -> 0
A105: SENSITIVITIES
A109: NPV | C109: Net benefits | G109: =PROPER($A$3)&A109 -> Option 1 (Base Case)NPV | I109: =I90 -> 0 | J109: =J90 -> 0 | K109: 0 | L109: 0 | M109: 0 | N109: 0 | O109: 0 | P109: 0 | Q109: 0 | R109: 0 | S109: 0 | T109: 0 | U109: 0 | V109: 0 | W109: 0 | X109: 0 | Y109: 0 | Z109: 0 | AA109: 0 | AB109: 0 | AC109: 0 | AD109: 0 | AE109: 0 | AF109: 0 | AG109: 0
C110: Total annualised capex | I110: =I85 -> 0 | J110: =J85 -> 0 | K110: 0 | L110: 0 | M110: 0 | N110: 0 | O110: 0 | P110: 0 | Q110: 0 | R110: 0 | S110: 0 | T110: 0 | U110: 0 | V110: 0 | W110: 0 | X110: 0 | Y110: 0 | Z110: 0 | AA110: 0 | AB110: 0 | AC110: 0 | AD110: 0 | AE110: 0 | AF110: 0 | AG110: 0
C111: Total benefits | I111: =SUM(I87:I88) -> 0 | J111: =SUM(J87:J88) -> 0 | K111: 0 | L111: 0 | M111: 0 | N111: 0 | O111: 0 | P111: 0 | Q111: 0 | R111: 0 | S111: 0 | T111: 0 | U111: 0 | V111: 0 | W111: 0 | X111: 0 | Y111: 0 | Z111: 0 | AA111: 0 | AB111: 0 | AC111: 0 | AD111: 0 | AE111: 0 | AF111: 0 | AG111: 0
D112: =Assumptions!G110 -> Capex | E112: =Assumptions!H110 -> Total benefits
A113: ="sens"&Assumptions!B111 -> sens1 | C113: =Assumptions!C111 -> Capex 10% higher | D113: =Assumptions!G111 -> 0.1 | E113: =Assumptions!H111 -> 0 | G113: =PROPER($A$3)&A113 -> Option 1 (Base Case)sens1 | I113: =I$109+IF($C113<>0,SUMPRODUCT((I$110:I$111)*TRANSPOSE(($D113:$E113))),0) -> 0 | J113: =J$109+IF($C113<>0,SUMPRODUCT((J$110:J$111)*TRANSPOSE(($D113:$E113))),0) -> 0 | K113: =K$109+IF($C113<>0,SUMPRODUCT((K$110:K$111)*TRANSPOSE(($D113:$E113))),0) -> 0 | L113: =L$109+IF($C113<>0,SUMPRODUCT((L$110:L$111)*TRANSPOSE(($D113:$E113))),0) -> 0 | M113: =M$109+IF($C113<>0,SUMPRODUCT((M$110:M$111)*TRANSPOSE(($D113:$E113))),0) -> 0 | N113: =N$109+IF($C113<>0,SUMPRODUCT((N$110:N$111)*TRANSPOSE(($D113:$E113))),0) -> 0 | O113: =O$109+IF($C113<>0,SUMPRODUCT((O$110:O$111)*TRANSPOSE(($D113:$E113))),0) -> 0 | P113: =P$109+IF($C113<>0,SUMPRODUCT((P$110:P$111)*TRANSPOSE(($D113:$E113))),0) -> 0 | Q113: =Q$109+IF($C113<>0,SUMPRODUCT((Q$110:Q$111)*TRANSPOSE(($D113:$E113))),0) -> 0 | R113: =R$109+IF($C113<>0,SUMPRODUCT((R$110:R$111)*TRANSPOSE(($D113:$E113))),0) -> 0 | S113: =S$109+IF($C113<>0,SUMPRODUCT((S$110:S$111)*TRANSPOSE(($D113:$E113))),0) -> 0 | T113: =T$109+IF($C113<>0,SUMPRODUCT((T$110:T$111)*TRANSPOSE(($D113:$E113))),0) -> 0 | U113: =U$109+IF($C113<>0,SUMPRODUCT((U$110:U$111)*TRANSPOSE(($D113:$E113))),0) -> 0 | V113: =V$109+IF($C113<>0,SUMPRODUCT((V$110:V$111)*TRANSPOSE(($D113:$E113))),0) -> 0 | W113: =W$109+IF($C113<>0,SUMPRODUCT((W$110:W$111)*TRANSPOSE(($D113:$E113))),0) -> 0 | X113: =X$109+IF($C113<>0,SUMPRODUCT((X$110:X$111)*TRANSPOSE(($D113:$E113))),0) -> 0 | Y113: =Y$109+IF($C113<>0,SUMPRODUCT((Y$110:Y$111)*TRANSPOSE(($D113:$E113))),0) -> 0 | Z113: =Z$109+IF($C113<>0,SUMPRODUCT((Z$110:Z$111)*TRANSPOSE(($D113:$E113))),0) -> 0 | AA113: =AA$109+IF($C113<>0,SUMPRODUCT((AA$110:AA$111)*TRANSPOSE(($D113:$E113))),0) -> 0 | AB113: =AB$109+IF($C113<>0,SUMPRODUCT((AB$110:AB$111)*TRANSPOSE(($D113:$E113))),0) -> 0 | AC113: =AC$109+IF($C113<>0,SUMPRODUCT((AC$110:AC$111)*TRANSPOSE(($D113:$E113))),0) -> 0 | AD113: =AD$109+IF($C113<>0,SUMPRODUCT((AD$110:AD$111)*TRANSPOSE(($D113:$E113))),0) -> 0 | AE113: =AE$109+IF($C113<>0,SUMPRODUCT((AE$110:AE$111)*TRANSPOSE(($D113:$E113))),0) -> 0 | AF113: =AF$109+IF($C113<>0,SUMPRODUCT((AF$110:AF$111)*TRANSPOSE(($D113:$E113))),0) -> 0 | AG113: =AG$109+IF($C113<>0,SUMPRODUCT((AG$110:AG$111)*TRANSPOSE(($D113:$E113))),0) -> 0
A114: ="sens"&Assumptions!B112 -> sens2 | C114: =Assumptions!C112 -> Capex 10% lower | D114: =Assumptions!G112 -> -0.1 | E114: =Assumptions!H112 -> 0 | G114: =PROPER($A$3)&A114 -> Option 1 (Base Case)sens2 | I114: =I$109+IF($C114<>0,SUMPRODUCT((I$110:I$111)*TRANSPOSE(($D114:$E114))),0) -> 0 | J114: =J$109+IF($C114<>0,SUMPRODUCT((J$110:J$111)*TRANSPOSE(($D114:$E114))),0) -> 0 | K114: =K$109+IF($C114<>0,SUMPRODUCT((K$110:K$111)*TRANSPOSE(($D114:$E114))),0) -> 0 | L114: =L$109+IF($C114<>0,SUMPRODUCT((L$110:L$111)*TRANSPOSE(($D114:$E114))),0) -> 0 | M114: =M$109+IF($C114<>0,SUMPRODUCT((M$110:M$111)*TRANSPOSE(($D114:$E114))),0) -> 0 | N114: =N$109+IF($C114<>0,SUMPRODUCT((N$110:N$111)*TRANSPOSE(($D114:$E114))),0) -> 0 | O114: =O$109+IF($C114<>0,SUMPRODUCT((O$110:O$111)*TRANSPOSE(($D114:$E114))),0) -> 0 | P114: =P$109+IF($C114<>0,SUMPRODUCT((P$110:P$111)*TRANSPOSE(($D114:$E114))),0) -> 0 | Q114: =Q$109+IF($C114<>0,SUMPRODUCT((Q$110:Q$111)*TRANSPOSE(($D114:$E114))),0) -> 0 | R114: =R$109+IF($C114<>0,SUMPRODUCT((R$110:R$111)*TRANSPOSE(($D114:$E114))),0) -> 0 | S114: =S$109+IF($C114<>0,SUMPRODUCT((S$110:S$111)*TRANSPOSE(($D114:$E114))),0) -> 0 | T114: =T$109+IF($C114<>0,SUMPRODUCT((T$110:T$111)*TRANSPOSE(($D114:$E114))),0) -> 0 | U114: =U$109+IF($C114<>0,SUMPRODUCT((U$110:U$111)*TRANSPOSE(($D114:$E114))),0) -> 0 | V114: =V$109+IF($C114<>0,SUMPRODUCT((V$110:V$111)*TRANSPOSE(($D114:$E114))),0) -> 0 | W114: =W$109+IF($C114<>0,SUMPRODUCT((W$110:W$111)*TRANSPOSE(($D114:$E114))),0) -> 0 | X114: =X$109+IF($C114<>0,SUMPRODUCT((X$110:X$111)*TRANSPOSE(($D114:$E114))),0) -> 0 | Y114: =Y$109+IF($C114<>0,SUMPRODUCT((Y$110:Y$111)*TRANSPOSE(($D114:$E114))),0) -> 0 | Z114: =Z$109+IF($C114<>0,SUMPRODUCT((Z$110:Z$111)*TRANSPOSE(($D114:$E114))),0) -> 0 | AA114: =AA$109+IF($C114<>0,SUMPRODUCT((AA$110:AA$111)*TRANSPOSE(($D114:$E114))),0) -> 0 | AB114: =AB$109+IF($C114<>0,SUMPRODUCT((AB$110:AB$111)*TRANSPOSE(($D114:$E114))),0) -> 0 | AC114: =AC$109+IF($C114<>0,SUMPRODUCT((AC$110:AC$111)*TRANSPOSE(($D114:$E114))),0) -> 0 | AD114: =AD$109+IF($C114<>0,SUMPRODUCT((AD$110:AD$111)*TRANSPOSE(($D114:$E114))),0) -> 0 | AE114: =AE$109+IF($C114<>0,SUMPRODUCT((AE$110:AE$111)*TRANSPOSE(($D114:$E114))),0) -> 0 | AF114: =AF$109+IF($C114<>0,SUMPRODUCT((AF$110:AF$111)*TRANSPOSE(($D114:$E114))),0) -> 0 | AG114: =AG$109+IF($C114<>0,SUMPRODUCT((AG$110:AG$111)*TRANSPOSE(($D114:$E114))),0) -> 0
A115: ="sens"&Assumptions!B113 -> sens3 | C115: =Assumptions!C113 -> Total benefits 10% higher | D115: =Assumptions!G113 -> 0 | E115: =Assumptions!H113 -> 0.1 | G115: Option 1 (Base Case)sens3 | I115: =I$109+IF($C115<>0,SUMPRODUCT((I$110:I$111)*TRANSPOSE(($D115:$E115))),0) -> 0 | J115: =J$109+IF($C115<>0,SUMPRODUCT((J$110:J$111)*TRANSPOSE(($D115:$E115))),0) -> 0 | K115: =K$109+IF($C115<>0,SUMPRODUCT((K$110:K$111)*TRANSPOSE(($D115:$E115))),0) -> 0 | L115: =L$109+IF($C115<>0,SUMPRODUCT((L$110:L$111)*TRANSPOSE(($D115:$E115))),0) -> 0 | M115: =M$109+IF($C115<>0,SUMPRODUCT((M$110:M$111)*TRANSPOSE(($D115:$E115))),0) -> 0 | N115: =N$109+IF($C115<>0,SUMPRODUCT((N$110:N$111)*TRANSPOSE(($D115:$E115))),0) -> 0 | O115: =O$109+IF($C115<>0,SUMPRODUCT((O$110:O$111)*TRANSPOSE(($D115:$E115))),0) -> 0 | P115: =P$109+IF($C115<>0,SUMPRODUCT((P$110:P$111)*TRANSPOSE(($D115:$E115))),0) -> 0 | Q115: =Q$109+IF($C115<>0,SUMPRODUCT((Q$110:Q$111)*TRANSPOSE(($D115:$E115))),0) -> 0 | R115: =R$109+IF($C115<>0,SUMPRODUCT((R$110:R$111)*TRANSPOSE(($D115:$E115))),0) -> 0 | S115: =S$109+IF($C115<>0,SUMPRODUCT((S$110:S$111)*TRANSPOSE(($D115:$E115))),0) -> 0 | T115: =T$109+IF($C115<>0,SUMPRODUCT((T$110:T$111)*TRANSPOSE(($D115:$E115))),0) -> 0 | U115: =U$109+IF($C115<>0,SUMPRODUCT((U$110:U$111)*TRANSPOSE(($D115:$E115))),0) -> 0 | V115: =V$109+IF($C115<>0,SUMPRODUCT((V$110:V$111)*TRANSPOSE(($D115:$E115))),0) -> 0 | W115: =W$109+IF($C115<>0,SUMPRODUCT((W$110:W$111)*TRANSPOSE(($D115:$E115))),0) -> 0 | X115: =X$109+IF($C115<>0,SUMPRODUCT((X$110:X$111)*TRANSPOSE(($D115:$E115))),0) -> 0 | Y115: =Y$109+IF($C115<>0,SUMPRODUCT((Y$110:Y$111)*TRANSPOSE(($D115:$E115))),0) -> 0 | Z115: =Z$109+IF($C115<>0,SUMPRODUCT((Z$110:Z$111)*TRANSPOSE(($D115:$E115))),0) -> 0 | AA115: =AA$109+IF($C115<>0,SUMPRODUCT((AA$110:AA$111)*TRANSPOSE(($D115:$E115))),0) -> 0 | AB115: =AB$109+IF($C115<>0,SUMPRODUCT((AB$110:AB$111)*TRANSPOSE(($D115:$E115))),0) -> 0 | AC115: =AC$109+IF($C115<>0,SUMPRODUCT((AC$110:AC$111)*TRANSPOSE(($D115:$E115))),0) -> 0 | AD115: =AD$109+IF($C115<>0,SUMPRODUCT((AD$110:AD$111)*TRANSPOSE(($D115:$E115))),0) -> 0 | AE115: =AE$109+IF($C115<>0,SUMPRODUCT((AE$110:AE$111)*TRANSPOSE(($D115:$E115))),0) -> 0 | AF115: =AF$109+IF($C115<>0,SUMPRODUCT((AF$110:AF$111)*TRANSPOSE(($D115:$E115))),0) -> 0 | AG115: =AG$109+IF($C115<>0,SUMPRODUCT((AG$110:AG$111)*TRANSPOSE(($D115:$E115))),0) -> 0
A116: ="sens"&Assumptions!B114 -> sens4 | C116: =Assumptions!C114 -> Total benefits 10% lower | D116: =Assumptions!G114 -> 0 | E116: =Assumptions!H114 -> -0.1 | G116: Option 1 (Base Case)sens4 | I116: =I$109+IF($C116<>0,SUMPRODUCT((I$110:I$111)*TRANSPOSE(($D116:$E116))),0) -> 0 | J116: =J$109+IF($C116<>0,SUMPRODUCT((J$110:J$111)*TRANSPOSE(($D116:$E116))),0) -> 0 | K116: =K$109+IF($C116<>0,SUMPRODUCT((K$110:K$111)*TRANSPOSE(($D116:$E116))),0) -> 0 | L116: =L$109+IF($C116<>0,SUMPRODUCT((L$110:L$111)*TRANSPOSE(($D116:$E116))),0) -> 0 | M116: =M$109+IF($C116<>0,SUMPRODUCT((M$110:M$111)*TRANSPOSE(($D116:$E116))),0) -> 0 | N116: =N$109+IF($C116<>0,SUMPRODUCT((N$110:N$111)*TRANSPOSE(($D116:$E116))),0) -> 0 | O116: =O$109+IF($C116<>0,SUMPRODUCT((O$110:O$111)*TRANSPOSE(($D116:$E116))),0) -> 0 | P116: =P$109+IF($C116<>0,SUMPRODUCT((P$110:P$111)*TRANSPOSE(($D116:$E116))),0) -> 0 | Q116: =Q$109+IF($C116<>0,SUMPRODUCT((Q$110:Q$111)*TRANSPOSE(($D116:$E116))),0) -> 0 | R116: =R$109+IF($C116<>0,SUMPRODUCT((R$110:R$111)*TRANSPOSE(($D116:$E116))),0) -> 0 | S116: =S$109+IF($C116<>0,SUMPRODUCT((S$110:S$111)*TRANSPOSE(($D116:$E116))),0) -> 0 | T116: =T$109+IF($C116<>0,SUMPRODUCT((T$110:T$111)*TRANSPOSE(($D116:$E116))),0) -> 0 | U116: =U$109+IF($C116<>0,SUMPRODUCT((U$110:U$111)*TRANSPOSE(($D116:$E116))),0) -> 0 | V116: =V$109+IF($C116<>0,SUMPRODUCT((V$110:V$111)*TRANSPOSE(($D116:$E116))),0) -> 0 | W116: =W$109+IF($C116<>0,SUMPRODUCT((W$110:W$111)*TRANSPOSE(($D116:$E116))),0) -> 0 | X116: =X$109+IF($C116<>0,SUMPRODUCT((X$110:X$111)*TRANSPOSE(($D116:$E116))),0) -> 0 | Y116: =Y$109+IF($C116<>0,SUMPRODUCT((Y$110:Y$111)*TRANSPOSE(($D116:$E116))),0) -> 0 | Z116: =Z$109+IF($C116<>0,SUMPRODUCT((Z$110:Z$111)*TRANSPOSE(($D116:$E116))),0) -> 0 | AA116: =AA$109+IF($C116<>0,SUMPRODUCT((AA$110:AA$111)*TRANSPOSE(($D116:$E116))),0) -> 0 | AB116: =AB$109+IF($C116<>0,SUMPRODUCT((AB$110:AB$111)*TRANSPOSE(($D116:$E116))),0) -> 0 | AC116: =AC$109+IF($C116<>0,SUMPRODUCT((AC$110:AC$111)*TRANSPOSE(($D116:$E116))),0) -> 0 | AD116: =AD$109+IF($C116<>0,SUMPRODUCT((AD$110:AD$111)*TRANSPOSE(($D116:$E116))),0) -> 0 | AE116: =AE$109+IF($C116<>0,SUMPRODUCT((AE$110:AE$111)*TRANSPOSE(($D116:$E116))),0) -> 0 | AF116: =AF$109+IF($C116<>0,SUMPRODUCT((AF$110:AF$111)*TRANSPOSE(($D116:$E116))),0) -> 0 | AG116: =AG$109+IF($C116<>0,SUMPRODUCT((AG$110:AG$111)*TRANSPOSE(($D116:$E116))),0) -> 0
A117: ="sens"&Assumptions!B115 -> sens5 | C117: =Assumptions!C115 -> Capex 10% higher & Total benefits 10% lower | D117: =Assumptions!G115 -> 0.1 | E117: =Assumptions!H115 -> -0.1 | G117: Option 1 (Base Case)sens5 | I117: =I$109+IF($C117<>0,SUMPRODUCT((I$110:I$111)*TRANSPOSE(($D117:$E117))),0) -> 0 | J117: =J$109+IF($C117<>0,SUMPRODUCT((J$110:J$111)*TRANSPOSE(($D117:$E117))),0) -> 0 | K117: =K$109+IF($C117<>0,SUMPRODUCT((K$110:K$111)*TRANSPOSE(($D117:$E117))),0) -> 0 | L117: =L$109+IF($C117<>0,SUMPRODUCT((L$110:L$111)*TRANSPOSE(($D117:$E117))),0) -> 0 | M117: =M$109+IF($C117<>0,SUMPRODUCT((M$110:M$111)*TRANSPOSE(($D117:$E117))),0) -> 0 | N117: =N$109+IF($C117<>0,SUMPRODUCT((N$110:N$111)*TRANSPOSE(($D117:$E117))),0) -> 0 | O117: =O$109+IF($C117<>0,SUMPRODUCT((O$110:O$111)*TRANSPOSE(($D117:$E117))),0) -> 0 | P117: =P$109+IF($C117<>0,SUMPRODUCT((P$110:P$111)*TRANSPOSE(($D117:$E117))),0) -> 0 | Q117: =Q$109+IF($C117<>0,SUMPRODUCT((Q$110:Q$111)*TRANSPOSE(($D117:$E117))),0) -> 0 | R117: =R$109+IF($C117<>0,SUMPRODUCT((R$110:R$111)*TRANSPOSE(($D117:$E117))),0) -> 0 | S117: =S$109+IF($C117<>0,SUMPRODUCT((S$110:S$111)*TRANSPOSE(($D117:$E117))),0) -> 0 | T117: =T$109+IF($C117<>0,SUMPRODUCT((T$110:T$111)*TRANSPOSE(($D117:$E117))),0) -> 0 | U117: =U$109+IF($C117<>0,SUMPRODUCT((U$110:U$111)*TRANSPOSE(($D117:$E117))),0) -> 0 | V117: =V$109+IF($C117<>0,SUMPRODUCT((V$110:V$111)*TRANSPOSE(($D117:$E117))),0) -> 0 | W117: =W$109+IF($C117<>0,SUMPRODUCT((W$110:W$111)*TRANSPOSE(($D117:$E117))),0) -> 0 | X117: =X$109+IF($C117<>0,SUMPRODUCT((X$110:X$111)*TRANSPOSE(($D117:$E117))),0) -> 0 | Y117: =Y$109+IF($C117<>0,SUMPRODUCT((Y$110:Y$111)*TRANSPOSE(($D117:$E117))),0) -> 0 | Z117: =Z$109+IF($C117<>0,SUMPRODUCT((Z$110:Z$111)*TRANSPOSE(($D117:$E117))),0) -> 0 | AA117: =AA$109+IF($C117<>0,SUMPRODUCT((AA$110:AA$111)*TRANSPOSE(($D117:$E117))),0) -> 0 | AB117: =AB$109+IF($C117<>0,SUMPRODUCT((AB$110:AB$111)*TRANSPOSE(($D117:$E117))),0) -> 0 | AC117: =AC$109+IF($C117<>0,SUMPRODUCT((AC$110:AC$111)*TRANSPOSE(($D117:$E117))),0) -> 0 | AD117: =AD$109+IF($C117<>0,SUMPRODUCT((AD$110:AD$111)*TRANSPOSE(($D117:$E117))),0) -> 0 | AE117: =AE$109+IF($C117<>0,SUMPRODUCT((AE$110:AE$111)*TRANSPOSE(($D117:$E117))),0) -> 0 | AF117: =AF$109+IF($C117<>0,SUMPRODUCT((AF$110:AF$111)*TRANSPOSE(($D117:$E117))),0) -> 0 | AG117: =AG$109+IF($C117<>0,SUMPRODUCT((AG$110:AG$111)*TRANSPOSE(($D117:$E117))),0) -> 0
A118: ="sens"&Assumptions!B116 -> sens | C118: =Assumptions!C116 -> 0 | D118: =Assumptions!G116 -> 0 | E118: =Assumptions!H116 -> 0 | G118: Option 1 (Base Case)sens | I118: =I$109+IF($C118<>0,SUMPRODUCT((I$110:I$111)*TRANSPOSE(($D118:$E118))),0) -> 0 | J118: =J$109+IF($C118<>0,SUMPRODUCT((J$110:J$111)*TRANSPOSE(($D118:$E118))),0) -> 0 | K118: =K$109+IF($C118<>0,SUMPRODUCT((K$110:K$111)*TRANSPOSE(($D118:$E118))),0) -> 0 | L118: =L$109+IF($C118<>0,SUMPRODUCT((L$110:L$111)*TRANSPOSE(($D118:$E118))),0) -> 0 | M118: =M$109+IF($C118<>0,SUMPRODUCT((M$110:M$111)*TRANSPOSE(($D118:$E118))),0) -> 0 | N118: =N$109+IF($C118<>0,SUMPRODUCT((N$110:N$111)*TRANSPOSE(($D118:$E118))),0) -> 0 | O118: =O$109+IF($C118<>0,SUMPRODUCT((O$110:O$111)*TRANSPOSE(($D118:$E118))),0) -> 0 | P118: =P$109+IF($C118<>0,SUMPRODUCT((P$110:P$111)*TRANSPOSE(($D118:$E118))),0) -> 0 | Q118: =Q$109+IF($C118<>0,SUMPRODUCT((Q$110:Q$111)*TRANSPOSE(($D118:$E118))),0) -> 0 | R118: =R$109+IF($C118<>0,SUMPRODUCT((R$110:R$111)*TRANSPOSE(($D118:$E118))),0) -> 0 | S118: =S$109+IF($C118<>0,SUMPRODUCT((S$110:S$111)*TRANSPOSE(($D118:$E118))),0) -> 0 | T118: =T$109+IF($C118<>0,SUMPRODUCT((T$110:T$111)*TRANSPOSE(($D118:$E118))),0) -> 0 | U118: =U$109+IF($C118<>0,SUMPRODUCT((U$110:U$111)*TRANSPOSE(($D118:$E118))),0) -> 0 | V118: =V$109+IF($C118<>0,SUMPRODUCT((V$110:V$111)*TRANSPOSE(($D118:$E118))),0) -> 0 | W118: =W$109+IF($C118<>0,SUMPRODUCT((W$110:W$111)*TRANSPOSE(($D118:$E118))),0) -> 0 | X118: =X$109+IF($C118<>0,SUMPRODUCT((X$110:X$111)*TRANSPOSE(($D118:$E118))),0) -> 0 | Y118: =Y$109+IF($C118<>0,SUMPRODUCT((Y$110:Y$111)*TRANSPOSE(($D118:$E118))),0) -> 0 | Z118: =Z$109+IF($C118<>0,SUMPRODUCT((Z$110:Z$111)*TRANSPOSE(($D118:$E118))),0) -> 0 | AA118: =AA$109+IF($C118<>0,SUMPRODUCT((AA$110:AA$111)*TRANSPOSE(($D118:$E118))),0) -> 0 | AB118: =AB$109+IF($C118<>0,SUMPRODUCT((AB$110:AB$111)*TRANSPOSE(($D118:$E118))),0) -> 0 | AC118: =AC$109+IF($C118<>0,SUMPRODUCT((AC$110:AC$111)*TRANSPOSE(($D118:$E118))),0) -> 0 | AD118: =AD$109+IF($C118<>0,SUMPRODUCT((AD$110:AD$111)*TRANSPOSE(($D118:$E118))),0) -> 0 | AE118: =AE$109+IF($C118<>0,SUMPRODUCT((AE$110:AE$111)*TRANSPOSE(($D118:$E118))),0) -> 0 | AF118: =AF$109+IF($C118<>0,SUMPRODUCT((AF$110:AF$111)*TRANSPOSE(($D118:$E118))),0) -> 0 | AG118: =AG$109+IF($C118<>0,SUMPRODUCT((AG$110:AG$111)*TRANSPOSE(($D118:$E118))),0) -> 0
A119: ="sens"&Assumptions!B117 -> sens | C119: =Assumptions!C117 -> 0 | D119: =Assumptions!G117 -> 0 | E119: =Assumptions!H117 -> 0 | G119: Option 1 (Base Case)sens | I119: =I$109+IF($C119<>0,SUMPRODUCT((I$110:I$111)*TRANSPOSE(($D119:$E119))),0) -> 0 | J119: =J$109+IF($C119<>0,SUMPRODUCT((J$110:J$111)*TRANSPOSE(($D119:$E119))),0) -> 0 | K119: =K$109+IF($C119<>0,SUMPRODUCT((K$110:K$111)*TRANSPOSE(($D119:$E119))),0) -> 0 | L119: =L$109+IF($C119<>0,SUMPRODUCT((L$110:L$111)*TRANSPOSE(($D119:$E119))),0) -> 0 | M119: =M$109+IF($C119<>0,SUMPRODUCT((M$110:M$111)*TRANSPOSE(($D119:$E119))),0) -> 0 | N119: =N$109+IF($C119<>0,SUMPRODUCT((N$110:N$111)*TRANSPOSE(($D119:$E119))),0) -> 0 | O119: =O$109+IF($C119<>0,SUMPRODUCT((O$110:O$111)*TRANSPOSE(($D119:$E119))),0) -> 0 | P119: =P$109+IF($C119<>0,SUMPRODUCT((P$110:P$111)*TRANSPOSE(($D119:$E119))),0) -> 0 | Q119: =Q$109+IF($C119<>0,SUMPRODUCT((Q$110:Q$111)*TRANSPOSE(($D119:$E119))),0) -> 0 | R119: =R$109+IF($C119<>0,SUMPRODUCT((R$110:R$111)*TRANSPOSE(($D119:$E119))),0) -> 0 | S119: =S$109+IF($C119<>0,SUMPRODUCT((S$110:S$111)*TRANSPOSE(($D119:$E119))),0) -> 0 | T119: =T$109+IF($C119<>0,SUMPRODUCT((T$110:T$111)*TRANSPOSE(($D119:$E119))),0) -> 0 | U119: =U$109+IF($C119<>0,SUMPRODUCT((U$110:U$111)*TRANSPOSE(($D119:$E119))),0) -> 0 | V119: =V$109+IF($C119<>0,SUMPRODUCT((V$110:V$111)*TRANSPOSE(($D119:$E119))),0) -> 0 | W119: =W$109+IF($C119<>0,SUMPRODUCT((W$110:W$111)*TRANSPOSE(($D119:$E119))),0) -> 0 | X119: =X$109+IF($C119<>0,SUMPRODUCT((X$110:X$111)*TRANSPOSE(($D119:$E119))),0) -> 0 | Y119: =Y$109+IF($C119<>0,SUMPRODUCT((Y$110:Y$111)*TRANSPOSE(($D119:$E119))),0) -> 0 | Z119: =Z$109+IF($C119<>0,SUMPRODUCT((Z$110:Z$111)*TRANSPOSE(($D119:$E119))),0) -> 0 | AA119: =AA$109+IF($C119<>0,SUMPRODUCT((AA$110:AA$111)*TRANSPOSE(($D119:$E119))),0) -> 0 | AB119: =AB$109+IF($C119<>0,SUMPRODUCT((AB$110:AB$111)*TRANSPOSE(($D119:$E119))),0) -> 0 | AC119: =AC$109+IF($C119<>0,SUMPRODUCT((AC$110:AC$111)*TRANSPOSE(($D119:$E119))),0) -> 0 | AD119: =AD$109+IF($C119<>0,SUMPRODUCT((AD$110:AD$111)*TRANSPOSE(($D119:$E119))),0) -> 0 | AE119: =AE$109+IF($C119<>0,SUMPRODUCT((AE$110:AE$111)*TRANSPOSE(($D119:$E119))),0) -> 0 | AF119: =AF$109+IF($C119<>0,SUMPRODUCT((AF$110:AF$111)*TRANSPOSE(($D119:$E119))),0) -> 0 | AG119: =AG$109+IF($C119<>0,SUMPRODUCT((AG$110:AG$111)*TRANSPOSE(($D119:$E119))),0) -> 0
A120: ="sens"&Assumptions!B118 -> sens | C120: =Assumptions!C118 -> 0 | D120: =Assumptions!G118 -> 0 | E120: =Assumptions!H118 -> 0 | G120: Option 1 (Base Case)sens | I120: =I$109+IF($C120<>0,SUMPRODUCT((I$110:I$111)*TRANSPOSE(($D120:$E120))),0) -> 0 | J120: =J$109+IF($C120<>0,SUMPRODUCT((J$110:J$111)*TRANSPOSE(($D120:$E120))),0) -> 0 | K120: =K$109+IF($C120<>0,SUMPRODUCT((K$110:K$111)*TRANSPOSE(($D120:$E120))),0) -> 0 | L120: =L$109+IF($C120<>0,SUMPRODUCT((L$110:L$111)*TRANSPOSE(($D120:$E120))),0) -> 0 | M120: =M$109+IF($C120<>0,SUMPRODUCT((M$110:M$111)*TRANSPOSE(($D120:$E120))),0) -> 0 | N120: =N$109+IF($C120<>0,SUMPRODUCT((N$110:N$111)*TRANSPOSE(($D120:$E120))),0) -> 0 | O120: =O$109+IF($C120<>0,SUMPRODUCT((O$110:O$111)*TRANSPOSE(($D120:$E120))),0) -> 0 | P120: =P$109+IF($C120<>0,SUMPRODUCT((P$110:P$111)*TRANSPOSE(($D120:$E120))),0) -> 0 | Q120: =Q$109+IF($C120<>0,SUMPRODUCT((Q$110:Q$111)*TRANSPOSE(($D120:$E120))),0) -> 0 | R120: =R$109+IF($C120<>0,SUMPRODUCT((R$110:R$111)*TRANSPOSE(($D120:$E120))),0) -> 0 | S120: =S$109+IF($C120<>0,SUMPRODUCT((S$110:S$111)*TRANSPOSE(($D120:$E120))),0) -> 0 | T120: =T$109+IF($C120<>0,SUMPRODUCT((T$110:T$111)*TRANSPOSE(($D120:$E120))),0) -> 0 | U120: =U$109+IF($C120<>0,SUMPRODUCT((U$110:U$111)*TRANSPOSE(($D120:$E120))),0) -> 0 | V120: =V$109+IF($C120<>0,SUMPRODUCT((V$110:V$111)*TRANSPOSE(($D120:$E120))),0) -> 0 | W120: =W$109+IF($C120<>0,SUMPRODUCT((W$110:W$111)*TRANSPOSE(($D120:$E120))),0) -> 0 | X120: =X$109+IF($C120<>0,SUMPRODUCT((X$110:X$111)*TRANSPOSE(($D120:$E120))),0) -> 0 | Y120: =Y$109+IF($C120<>0,SUMPRODUCT((Y$110:Y$111)*TRANSPOSE(($D120:$E120))),0) -> 0 | Z120: =Z$109+IF($C120<>0,SUMPRODUCT((Z$110:Z$111)*TRANSPOSE(($D120:$E120))),0) -> 0 | AA120: =AA$109+IF($C120<>0,SUMPRODUCT((AA$110:AA$111)*TRANSPOSE(($D120:$E120))),0) -> 0 | AB120: =AB$109+IF($C120<>0,SUMPRODUCT((AB$110:AB$111)*TRANSPOSE(($D120:$E120))),0) -> 0 | AC120: =AC$109+IF($C120<>0,SUMPRODUCT((AC$110:AC$111)*TRANSPOSE(($D120:$E120))),0) -> 0 | AD120: =AD$109+IF($C120<>0,SUMPRODUCT((AD$110:AD$111)*TRANSPOSE(($D120:$E120))),0) -> 0 | AE120: =AE$109+IF($C120<>0,SUMPRODUCT((AE$110:AE$111)*TRANSPOSE(($D120:$E120))),0) -> 0 | AF120: =AF$109+IF($C120<>0,SUMPRODUCT((AF$110:AF$111)*TRANSPOSE(($D120:$E120))),0) -> 0 | AG120: =AG$109+IF($C120<>0,SUMPRODUCT((AG$110:AG$111)*TRANSPOSE(($D120:$E120))),0) -> 0

Sheet Option2
A1: =bus -> Powercor
A2: =proj -> Drysdale feeder: DDL023
A3: OPTION 2 | C3: =INDEX(Assumptions!$E$14:$E$18, MATCH(A3,_xlfn.ANCHORARRAY( Assumptions!$C$14),0)) -> DDL023 feeder exit cable upgrade
A4: =(INDEX(Data!$D$9:$D$13, MATCH(A3, options,0))) -> 
A6: ='Option1 (base case)'!A6 -> Count | I6: ='Option1 (base case)'!I6 -> 1 | J6: ='Option1 (base case)'!J6 -> 2 | K6: ='Option1 (base case)'!K6 -> 3 | L6: ='Option1 (base case)'!L6 -> 4 | M6: ='Option1 (base case)'!M6 -> 5 | N6: ='Option1 (base case)'!N6 -> 6 | O6: ='Option1 (base case)'!O6 -> 7 | P6: ='Option1 (base case)'!P6 -> 8 | Q6: ='Option1 (base case)'!Q6 -> 9 | R6: ='Option1 (base case)'!R6 -> 10 | S6: ='Option1 (base case)'!S6 -> 11 | T6: ='Option1 (base case)'!T6 -> 12 | U6: ='Option1 (base case)'!U6 -> 13 | V6: ='Option1 (base case)'!V6 -> 14 | W6: ='Option1 (base case)'!W6 -> 15 | X6: ='Option1 (base case)'!X6 -> 16 | Y6: ='Option1 (base case)'!Y6 -> 17 | Z6: ='Option1 (base case)'!Z6 -> 18 | AA6: ='Option1 (base case)'!AA6 -> 19 | AB6: ='Option1 (base case)'!AB6 -> 20 | AC6: ='Option1 (base case)'!AC6 -> 21 | AD6: ='Option1 (base case)'!AD6 -> 22 | AE6: ='Option1 (base case)'!AE6 -> 23 | AF6: ='Option1 (base case)'!AF6 -> 24 | AG6: ='Option1 (base case)'!AG6 -> 25
A7: ='Option1 (base case)'!A7 -> Value of CO2 reductions | G7: $/MWh | I7: ='Option1 (base case)'!I7 -> 24.7304868 | J7: ='Option1 (base case)'!J7 -> 22.34074009 | K7: ='Option1 (base case)'!K7 -> 20.19632912 | L7: ='Option1 (base case)'!L7 -> 18.06294208 | M7: ='Option1 (base case)'!M7 -> 15.91339762 | N7: ='Option1 (base case)'!N7 -> 13.71506943 | O7: ='Option1 (base case)'!O7 -> 13.71506943 | P7: ='Option1 (base case)'!P7 -> 13.71506943 | Q7: ='Option1 (base case)'!Q7 -> 13.71506943 | R7: ='Option1 (base case)'!R7 -> 13.71506943 | S7: ='Option1 (base case)'!S7 -> 13.71506943 | T7: ='Option1 (base case)'!T7 -> 13.71506943 | U7: ='Option1 (base case)'!U7 -> 13.71506943 | V7: ='Option1 (base case)'!V7 -> 13.71506943 | W7: ='Option1 (base case)'!W7 -> 13.71506943 | X7: ='Option1 (base case)'!X7 -> 13.71506943 | Y7: ='Option1 (base case)'!Y7 -> 13.71506943 | Z7: ='Option1 (base case)'!Z7 -> 13.71506943 | AA7: ='Option1 (base case)'!AA7 -> 13.71506943 | AB7: ='Option1 (base case)'!AB7 -> 13.71506943 | AC7: ='Option1 (base case)'!AC7 -> 13.71506943 | AD7: ='Option1 (base case)'!AD7 -> 13.71506943 | AE7: ='Option1 (base case)'!AE7 -> 13.71506943 | AF7: ='Option1 (base case)'!AF7 -> 13.71506943 | AG7: ='Option1 (base case)'!AG7 -> 13.71506943
I8: =_xlfn.NUMBERVALUE(LEFT(I$9,4))+1 -> 2027 | J8: =_xlfn.NUMBERVALUE(LEFT(J$9,4))+1 -> 2028 | K8: 2029 | L8: 2030 | M8: 2031 | N8: 2032 | O8: 2033 | P8: 2034 | Q8: 2035 | R8: 2036 | S8: 2037 | T8: 2038 | U8: 2039 | V8: 2040 | W8: 2041 | X8: 2042 | Y8: 2043 | Z8: 2044 | AA8: 2045 | AB8: 2046 | AC8: 2047 | AD8: 2048 | AE8: 2049 | AF8: 2050 | AG8: 2051
G9: Units | I9: ='Option1 (base case)'!I9 -> 2026-27 | J9: ='Option1 (base case)'!J9 -> 2027-28 | K9: ='Option1 (base case)'!K9 -> 2028-29 | L9: ='Option1 (base case)'!L9 -> 2029-30 | M9: ='Option1 (base case)'!M9 -> 2030-31 | N9: ='Option1 (base case)'!N9 -> 2031-32 | O9: ='Option1 (base case)'!O9 -> 2032-33 | P9: ='Option1 (base case)'!P9 -> 2033-34 | Q9: ='Option1 (base case)'!Q9 -> 2034-35 | R9: ='Option1 (base case)'!R9 -> 2035-36 | S9: ='Option1 (base case)'!S9 -> 2036-37 | T9: ='Option1 (base case)'!T9 -> 2037-38 | U9: ='Option1 (base case)'!U9 -> 2038-39 | V9: ='Option1 (base case)'!V9 -> 2039-40 | W9: ='Option1 (base case)'!W9 -> 2040-41 | X9: ='Option1 (base case)'!X9 -> 2041-42 | Y9: ='Option1 (base case)'!Y9 -> 2042-43 | Z9: ='Option1 (base case)'!Z9 -> 2043-44 | AA9: ='Option1 (base case)'!AA9 -> 2044-45 | AB9: ='Option1 (base case)'!AB9 -> 2045-46 | AC9: ='Option1 (base case)'!AC9 -> 2046-47 | AD9: ='Option1 (base case)'!AD9 -> 2047-48 | AE9: ='Option1 (base case)'!AE9 -> 2048-49 | AF9: ='Option1 (base case)'!AF9 -> 2049-50 | AG9: ='Option1 (base case)'!AG9 -> 2050-51
A11: INVESTMENT & OPERATING COST
C13: Capex | E13: Asset life (yrs)
C14: =Summary!D10 -> DDL023 feeder exit cable upgrade | E14: 50 | G14: =input_dollars -> 2023-12-31 | I14: 0 | J14: 1469220.4 | K14: 0 | L14: 0 | M14: 0 | N14: 0 | O14: 0 | P14: 0 | Q14: 0 | R14: 0 | S14: 0 | T14: 0 | U14: 0 | V14: 0 | W14: 0 | X14: 0 | Y14: 0 | Z14: 0 | AA14: 0 | AB14: 0 | AC14: 0 | AD14: 0 | AE14: 0 | AF14: 0 | AG14: 0
E15: 0 | G15: =input_dollars -> 2023-12-31 | I15: 0 | J15: 0 | K15: 0 | L15: 0 | M15: 0 | N15: 0 | O15: 0 | P15: 0 | Q15: 0 | R15: 0 | S15: 0 | T15: 0 | U15: 0 | V15: 0 | W15: 0 | X15: 0 | Y15: 0 | Z15: 0 | AA15: 0 | AB15: 0 | AC15: 0 | AD15: 0 | AE15: 0 | AF15: 0 | AG15: 0
E16: 0 | G16: =input_dollars -> 2023-12-31 | I16: 0 | J16: 0 | K16: 0 | L16: 0 | M16: 0 | N16: 0 | O16: 0 | P16: 0 | Q16: 0 | R16: 0 | S16: 0 | T16: 0 | U16: 0 | V16: 0 | W16: 0 | X16: 0 | Y16: 0 | Z16: 0 | AA16: 0 | AB16: 0 | AC16: 0 | AD16: 0 | AE16: 0 | AF16: 0 | AG16: 0
C17: Capital expenditure | G17: =input_dollars -> 2023-12-31 | I17: =SUM(I14:I16) -> 0 | J17: 1469220.4 | K17: 0 | L17: 0 | M17: 0 | N17: 0 | O17: 0 | P17: 0 | Q17: 0 | R17: =SUM(R14:R16) -> 0 | S17: 0 | T17: 0 | U17: 0 | V17: 0 | W17: 0 | X17: 0 | Y17: 0 | Z17: 0 | AA17: 0 | AB17: 0 | AC17: 0 | AD17: 0 | AE17: 0 | AF17: 0 | AG17: 0
C19: Operating expenditure | G19: =input_dollars -> 2023-12-31 | I19: 0 | J19: 0 | K19: 0 | L19: 0 | M19: 0 | N19: 0 | O19: 0 | P19: 0 | Q19: 0 | R19: 0 | S19: 0 | T19: 0 | U19: 0 | V19: 0 | W19: 0 | X19: 0 | Y19: 0 | Z19: 0 | AA19: 0 | AB19: 0 | AC19: 0 | AD19: 0 | AE19: 0 | AF19: 0 | AG19: 0
A22: RISK ASSUMPTIONS
C24: PoF (major) | I24: 0 | J24: 0 | K24: 0 | L24: 0 | M24: 0 | N24: 0 | O24: 0 | P24: 0 | Q24: 0 | R24: 0 | S24: 0 | T24: 0 | U24: 0 | V24: 0 | W24: 0 | X24: 0 | Y24: 0 | Z24: 0 | AA24: 0 | AB24: 0 | AC24: 0 | AD24: 0 | AE24: 0 | AF24: 0 | AG24: 0
C25: PoF (reparable) | I25: 0 | J25: 0 | K25: 0 | L25: 0 | M25: 0 | N25: 0 | O25: 0 | P25: 0 | Q25: 0 | R25: 0 | S25: 0 | T25: 0 | U25: 0 | V25: 0 | W25: 0 | X25: 0 | Y25: 0 | Z25: 0 | AA25: 0 | AB25: 0 | AC25: 0 | AD25: 0 | AE25: 0 | AF25: 0 | AG25: 0
C27: Const end date | E27: 2028
C28: Energy at risk 10% PoE | E28: 0.3 | G28: MWh | I28: 1.882346464 | J28: 3.332970933 | K28: 0 | L28: 0 | M28: 0 | N28: 0 | O28: 0 | P28: 0 | Q28: 0 | R28: 0 | S28: 0 | T28: 0 | U28: 0 | V28: 0 | W28: 0 | X28: 0 | Y28: 0 | Z28: 0 | AA28: 0 | AB28: 0 | AC28: 0 | AD28: 0 | AE28: 0 | AF28: 0 | AG28: 0
C29: Energy at risk 50% PoE | E29: 0.7 | G29: MWh | I29: 0.01953720068 | J29: 0.1719086652 | K29: 0 | L29: 0 | M29: 0 | N29: 0 | O29: 0 | P29: 0 | Q29: 0 | R29: 0 | S29: 0 | T29: 0 | U29: 0 | V29: 0 | W29: 0 | X29: 0 | Y29: 0 | Z29: 0 | AA29: 0 | AB29: 0 | AC29: 0 | AD29: 0 | AE29: 0 | AF29: 0 | AG29: 0
C31: Energy at risk (weighted) | G31: MWh | I31: =SUMPRODUCT(I$28:I$29, $E$28:$E$29) -> 0.5783799797 | J31: =SUMPRODUCT(J$28:J$29, $E$28:$E$29) -> 1.120227345 | K31: 0 | L31: 0 | M31: 0 | N31: 0 | O31: 0 | P31: 0 | Q31: 0 | R31: 0 | S31: 0 | T31: 0 | U31: 0 | V31: 0 | W31: 0 | X31: 0 | Y31: 0 | Z31: 0 | AA31: 0 | AB31: 0 | AC31: 0 | AD31: 0 | AE31: 0 | AF31: 0 | AG31: 0
C32: Energy at risk value | D32: $/MWh | E32: =Assumptions!H41*vcr_esc -> 35130.23528 | F32: =IF(AND(SUM(I31:AG31)<>0, E32=0), "!", "") ->  | G32: =input_dollars -> 2023-12-31 | I32: =I31*$E$32 -> 20318.62477 | J32: =J31*$E$32 -> 39353.85021 | K32: 0 | L32: 0 | M32: 0 | N32: 0 | O32: 0 | P32: 0 | Q32: 0 | R32: 0 | S32: 0 | T32: 0 | U32: 0 | V32: 0 | W32: 0 | X32: 0 | Y32: 0 | Z32: 0 | AA32: 0 | AB32: 0 | AC32: 0 | AD32: 0 | AE32: 0 | AF32: 0 | AG32: 0
C34: Safety consequence | D34: (after DF) | G34: =input_dollars -> 2023-12-31 | I34: 0 | J34: 0 | K34: 0 | L34: 0 | M34: 0 | N34: 0 | O34: 0 | P34: 0 | Q34: 0 | R34: 0 | S34: 0 | T34: 0 | U34: 0 | V34: 0 | W34: 0 | X34: 0 | Y34: 0 | Z34: 0 | AA34: 0 | AB34: 0 | AC34: 0 | AD34: 0 | AE34: 0 | AF34: 0 | AG34: 0
C35: Unplanned replacements | G35: =input_dollars -> 2023-12-31 | I35: 0 | J35: 0 | K35: 0 | L35: 0 | M35: 0 | N35: 0 | O35: 0 | P35: 0 | Q35: 0 | R35: 0 | S35: 0 | T35: 0 | U35: 0 | V35: 0 | W35: 0 | X35: 0 | Y35: 0 | Z35: 0 | AA35: 0 | AB35: 0 | AC35: 0 | AD35: 0 | AE35: 0 | AF35: 0 | AG35: 0
C36: Environmental consequence | D36: (after DF) | G36: =input_dollars -> 2023-12-31 | I36: 0 | J36: 0 | K36: 0 | L36: 0 | M36: 0 | N36: 0 | O36: 0 | P36: 0 | Q36: 0 | R36: 0 | S36: 0 | T36: 0 | U36: 0 | V36: 0 | W36: 0 | X36: 0 | Y36: 0 | Z36: 0 | AA36: 0 | AB36: 0 | AC36: 0 | AD36: 0 | AE36: 0 | AF36: 0 | AG36: 0
C37: < Other risk - enter description > | G37: =input_dollars -> 2023-12-31 | I37: 0 | J37: 0 | K37: 0 | L37: 0 | M37: 0 | N37: 0 | O37: 0 | P37: 0 | Q37: 0 | R37: 0 | S37: 0 | T37: 0 | U37: 0 | V37: 0 | W37: 0 | X37: 0 | Y37: 0 | Z37: 0 | AA37: 0 | AB37: 0 | AC37: 0 | AD37: 0 | AE37: 0 | AF37: 0 | AG37: 0
C38: < Other risk - enter description > | G38: =input_dollars -> 2023-12-31 | I38: 0 | J38: 0 | K38: 0 | L38: 0 | M38: 0 | N38: 0 | O38: 0 | P38: 0 | Q38: 0 | R38: 0 | S38: 0 | T38: 0 | U38: 0 | V38: 0 | W38: 0 | X38: 0 | Y38: 0 | Z38: 0 | AA38: 0 | AB38: 0 | AC38: 0 | AD38: 0 | AE38: 0 | AF38: 0 | AG38: 0
C40: Total risk cost | I40: =SUM(I32:I38) -> 20318.62477 | J40: =SUM(J32:J38) -> 39353.85021 | K40: 0 | L40: 0 | M40: 0 | N40: 0 | O40: 0 | P40: 0 | Q40: 0 | R40: 0 | S40: 0 | T40: 0 | U40: 0 | V40: 0 | W40: 0 | X40: 0 | Y40: 0 | Z40: 0 | AA40: 0 | AB40: 0 | AC40: 0 | AD40: 0 | AE40: 0 | AF40: 0 | AG40: 0
A42: OTHER BENEFITS
C45: Reduction in CO2 emissions | G45: MWh | I45: 0 | J45: 0 | K45: 0 | L45: 0 | M45: 0 | N45: 0 | O45: 0 | P45: 0 | Q45: 0 | R45: 0 | S45: 0 | T45: 0 | U45: 0 | V45: 0 | W45: 0 | X45: 0 | Y45: 0 | Z45: 0 | AA45: 0 | AB45: 0 | AC45: 0 | AD45: 0 | AE45: 0 | AF45: 0 | AG45: 0
C46: Value of reduction in CO2 emissions | G46: $ | I46: =I45*I7 -> 0 | J46: 0 | K46: 0 | L46: 0 | M46: 0 | N46: 0 | O46: 0 | P46: 0 | Q46: 0 | R46: 0 | S46: 0 | T46: 0 | U46: 0 | V46: 0 | W46: 0 | X46: 0 | Y46: 0 | Z46: 0 | AA46: 0 | AB46: 0 | AC46: 0 | AD46: 0 | AE46: 0 | AF46: 0 | AG46: 0
C49: Reliability in worst-served areas | D49: $/MWh | E49: =Assumptions!G94 -> 151432.8174 | G49: MWh | I49: 0 | J49: 0 | K49: 0 | L49: 0 | M49: 0 | N49: 0 | O49: 0 | P49: 0 | Q49: 0 | R49: 0 | S49: 0 | T49: 0 | U49: 0 | V49: 0 | W49: 0 | X49: 0 | Y49: 0 | Z49: 0 | AA49: 0 | AB49: 0 | AC49: 0 | AD49: 0 | AE49: 0 | AF49: 0 | AG49: 0
C50: Network resilience | D50: $/MWh | E50: =Assumptions!G95 -> 24590 | G50: MWh | I50: 0 | J50: 0 | K50: 0 | L50: 0 | M50: 0 | N50: 0 | O50: 0 | P50: 0 | Q50: 0 | R50: 0 | S50: 0 | T50: 0 | U50: 0 | V50: 0 | W50: 0 | X50: 0 | Y50: 0 | Z50: 0 | AA50: 0 | AB50: 0 | AC50: 0 | AD50: 0 | AE50: 0 | AF50: 0 | AG50: 0
C51: Enabling solar exports | D51: $/MWh | E51: =Assumptions!G96 -> 88.35771951 | G51: MWh | I51: 0 | J51: 0 | K51: 0 | L51: 0 | M51: 0 | N51: 0 | O51: 0 | P51: 0 | Q51: 0 | R51: 0 | S51: 0 | T51: 0 | U51: 0 | V51: 0 | W51: 0 | X51: 0 | Y51: 0 | Z51: 0 | AA51: 0 | AB51: 0 | AC51: 0 | AD51: 0 | AE51: 0 | AF51: 0 | AG51: 0
C52: Aesthetics | D52: $/customer | E52: =Assumptions!G97 -> 0 | G52: customers | I52: 0 | J52: 0 | K52: 0 | L52: 0 | M52: 0 | N52: 0 | O52: 0 | P52: 0 | Q52: 0 | R52: 0 | S52: 0 | T52: 0 | U52: 0 | V52: 0 | W52: 0 | X52: 0 | Y52: 0 | Z52: 0 | AA52: 0 | AB52: 0 | AC52: 0 | AD52: 0 | AE52: 0 | AF52: 0 | AG52: 0
C53: Customer value of time - residential | D53: $/customer min | E53: =Assumptions!G98 -> 0.3518133654 | G53: mins | I53: 0 | J53: 0 | K53: 0 | L53: 0 | M53: 0 | N53: 0 | O53: 0 | P53: 0 | Q53: 0 | R53: 0 | S53: 0 | T53: 0 | U53: 0 | V53: 0 | W53: 0 | X53: 0 | Y53: 0 | Z53: 0 | AA53: 0 | AB53: 0 | AC53: 0 | AD53: 0 | AE53: 0 | AF53: 0 | AG53: 0
C54: Customer value of time - business | D54: $/customer min | E54: =Assumptions!G99 -> 0.3518133654 | G54: mins | I54: 0 | J54: 0 | K54: 0 | L54: 0 | M54: 0 | N54: 0 | O54: 0 | P54: 0 | Q54: 0 | R54: 0 | S54: 0 | T54: 0 | U54: 0 | V54: 0 | W54: 0 | X54: 0 | Y54: 0 | Z54: 0 | AA54: 0 | AB54: 0 | AC54: 0 | AD54: 0 | AE54: 0 | AF54: 0 | AG54: 0
C55: Communication | D55: $/customer | E55: =Assumptions!G100 -> 0 | G55: customers | I55: 0 | J55: 0 | K55: 0 | L55: 0 | M55: 0 | N55: 0 | O55: 0 | P55: 0 | Q55: 0 | R55: 0 | S55: 0 | T55: 0 | U55: 0 | V55: 0 | W55: 0 | X55: 0 | Y55: 0 | Z55: 0 | AA55: 0 | AB55: 0 | AC55: 0 | AD55: 0 | AE55: 0 | AF55: 0 | AG55: 0
C56: Information accessibility | D56: $/customer | E56: =Assumptions!G101 -> 0 | G56: customers | I56: 0 | J56: 0 | K56: 0 | L56: 0 | M56: 0 | N56: 0 | O56: 0 | P56: 0 | Q56: 0 | R56: 0 | S56: 0 | T56: 0 | U56: 0 | V56: 0 | W56: 0 | X56: 0 | Y56: 0 | Z56: 0 | AA56: 0 | AB56: 0 | AC56: 0 | AD56: 0 | AE56: 0 | AF56: 0 | AG56: 0
C58: Other benefits 1 | G58: =input_dollars -> 2023-12-31 | I58: 0 | J58: 0 | K58: 0 | L58: 0 | M58: 0 | N58: 0 | O58: 0 | P58: 0 | Q58: 0 | R58: 0 | S58: 0 | T58: 0 | U58: 0 | V58: 0 | W58: 0 | X58: 0 | Y58: 0 | Z58: 0 | AA58: 0 | AB58: 0 | AC58: 0 | AD58: 0 | AE58: 0 | AF58: 0 | AG58: 0
C59: Other benefits 2 | G59: =input_dollars -> 2023-12-31 | I59: 0 | J59: 0 | K59: 0 | L59: 0 | M59: 0 | N59: 0 | O59: 0 | P59: 0 | Q59: 0 | R59: 0 | S59: 0 | T59: 0 | U59: 0 | V59: 0 | W59: 0 | X59: 0 | Y59: 0 | Z59: 0 | AA59: 0 | AB59: 0 | AC59: 0 | AD59: 0 | AE59: 0 | AF59: 0 | AG59: 0
C61: Total other benefits | G61: =input_dollars -> 2023-12-31 | I61: =SUMPRODUCT((I$49:I$56)*($E$49:$E$56))+SUM(I58:I59)+I46 -> 0 | J61: =SUMPRODUCT((J$49:J$56)*($E$49:$E$56))+SUM(J58:J59)+J46 -> 0 | K61: =SUMPRODUCT((K$49:K$56)*($E$49:$E$56))+SUM(K58:K59)+K46 -> 0 | L61: =SUMPRODUCT((L$49:L$56)*($E$49:$E$56))+SUM(L58:L59)+L46 -> 0 | M61: =SUMPRODUCT((M$49:M$56)*($E$49:$E$56))+SUM(M58:M59)+M46 -> 0 | N61: =SUMPRODUCT((N$49:N$56)*($E$49:$E$56))+SUM(N58:N59)+N46 -> 0 | O61: =SUMPRODUCT((O$49:O$56)*($E$49:$E$56))+SUM(O58:O59)+O46 -> 0 | P61: =SUMPRODUCT((P$49:P$56)*($E$49:$E$56))+SUM(P58:P59)+P46 -> 0 | Q61: =SUMPRODUCT((Q$49:Q$56)*($E$49:$E$56))+SUM(Q58:Q59)+Q46 -> 0 | R61: =SUMPRODUCT((R$49:R$56)*($E$49:$E$56))+SUM(R58:R59)+R46 -> 0 | S61: =SUMPRODUCT((S$49:S$56)*($E$49:$E$56))+SUM(S58:S59)+S46 -> 0 | T61: =SUMPRODUCT((T$49:T$56)*($E$49:$E$56))+SUM(T58:T59)+T46 -> 0 | U61: =SUMPRODUCT((U$49:U$56)*($E$49:$E$56))+SUM(U58:U59)+U46 -> 0 | V61: =SUMPRODUCT((V$49:V$56)*($E$49:$E$56))+SUM(V58:V59)+V46 -> 0 | W61: =SUMPRODUCT((W$49:W$56)*($E$49:$E$56))+SUM(W58:W59)+W46 -> 0 | X61: =SUMPRODUCT((X$49:X$56)*($E$49:$E$56))+SUM(X58:X59)+X46 -> 0 | Y61: =SUMPRODUCT((Y$49:Y$56)*($E$49:$E$56))+SUM(Y58:Y59)+Y46 -> 0 | Z61: =SUMPRODUCT((Z$49:Z$56)*($E$49:$E$56))+SUM(Z58:Z59)+Z46 -> 0 | AA61: =SUMPRODUCT((AA$49:AA$56)*($E$49:$E$56))+SUM(AA58:AA59)+AA46 -> 0 | AB61: =SUMPRODUCT((AB$49:AB$56)*($E$49:$E$56))+SUM(AB58:AB59)+AB46 -> 0 | AC61: =SUMPRODUCT((AC$49:AC$56)*($E$49:$E$56))+SUM(AC58:AC59)+AC46 -> 0 | AD61: =SUMPRODUCT((AD$49:AD$56)*($E$49:$E$56))+SUM(AD58:AD59)+AD46 -> 0 | AE61: =SUMPRODUCT((AE$49:AE$56)*($E$49:$E$56))+SUM(AE58:AE59)+AE46 -> 0 | AF61: =SUMPRODUCT((AF$49:AF$56)*($E$49:$E$56))+SUM(AF58:AF59)+AF46 -> 0 | AG61: =SUMPRODUCT((AG$49:AG$56)*($E$49:$E$56))+SUM(AG58:AG59)+AG46 -> 0
A64: SUMMARY
C68: ='Option1 (base case)'!C67 -> Risks mitigated vs base case | G68: =input_dollars -> 2023-12-31 | I68: =(1-INDEX(Data!$C$9:$C$13, MATCH($A$3, options,0)))*('Option1 (base case)'!I39-I40) -> 0 | J68: =(1-INDEX(Data!$C$9:$C$13, MATCH($A$3, options,0)))*('Option1 (base case)'!J39-J40) -> 0 | K68: =(1-INDEX(Data!$C$9:$C$13, MATCH($A$3, options,0)))*('Option1 (base case)'!K39-K40) -> 70879.7037 | L68: =(1-INDEX(Data!$C$9:$C$13, MATCH($A$3, options,0)))*('Option1 (base case)'!L39-L40) -> 104815.854 | M68: =(1-INDEX(Data!$C$9:$C$13, MATCH($A$3, options,0)))*('Option1 (base case)'!M39-M40) -> 151276.6071 | N68: =(1-INDEX(Data!$C$9:$C$13, MATCH($A$3, options,0)))*('Option1 (base case)'!N39-N40) -> 230381.9146 | O68: =(1-INDEX(Data!$C$9:$C$13, MATCH($A$3, options,0)))*('Option1 (base case)'!O39-O40) -> 333536.7902 | P68: =(1-INDEX(Data!$C$9:$C$13, MATCH($A$3, options,0)))*('Option1 (base case)'!P39-P40) -> 436075.2049 | Q68: =(1-INDEX(Data!$C$9:$C$13, MATCH($A$3, options,0)))*('Option1 (base case)'!Q39-Q40) -> 525021.3166 | R68: =(1-INDEX(Data!$C$9:$C$13, MATCH($A$3, options,0)))*('Option1 (base case)'!R39-R40) -> 525021.3166 | S68: =(1-INDEX(Data!$C$9:$C$13, MATCH($A$3, options,0)))*('Option1 (base case)'!S39-S40) -> 525021.3166 | T68: =(1-INDEX(Data!$C$9:$C$13, MATCH($A$3, options,0)))*('Option1 (base case)'!T39-T40) -> 525021.3166 | U68: =(1-INDEX(Data!$C$9:$C$13, MATCH($A$3, options,0)))*('Option1 (base case)'!U39-U40) -> 525021.3166 | V68: =(1-INDEX(Data!$C$9:$C$13, MATCH($A$3, options,0)))*('Option1 (base case)'!V39-V40) -> 525021.3166 | W68: =(1-INDEX(Data!$C$9:$C$13, MATCH($A$3, options,0)))*('Option1 (base case)'!W39-W40) -> 525021.3166 | X68: =(1-INDEX(Data!$C$9:$C$13, MATCH($A$3, options,0)))*('Option1 (base case)'!X39-X40) -> 525021.3166 | Y68: =(1-INDEX(Data!$C$9:$C$13, MATCH($A$3, options,0)))*('Option1 (base case)'!Y39-Y40) -> 525021.3166 | Z68: =(1-INDEX(Data!$C$9:$C$13, MATCH($A$3, options,0)))*('Option1 (base case)'!Z39-Z40) -> 525021.3166 | AA68: =(1-INDEX(Data!$C$9:$C$13, MATCH($A$3, options,0)))*('Option1 (base case)'!AA39-AA40) -> 525021.3166 | AB68: =(1-INDEX(Data!$C$9:$C$13, MATCH($A$3, options,0)))*('Option1 (base case)'!AB39-AB40) -> 525021.3166 | AC68: =(1-INDEX(Data!$C$9:$C$13, MATCH($A$3, options,0)))*('Option1 (base case)'!AC39-AC40) -> 525021.3166 | AD68: =(1-INDEX(Data!$C$9:$C$13, MATCH($A$3, options,0)))*('Option1 (base case)'!AD39-AD40) -> 525021.3166 | AE68: =(1-INDEX(Data!$C$9:$C$13, MATCH($A$3, options,0)))*('Option1 (base case)'!AE39-AE40) -> 525021.3166 | AF68: =(1-INDEX(Data!$C$9:$C$13, MATCH($A$3, options,0)))*('Option1 (base case)'!AF39-AF40) -> 525021.3166 | AG68: =(1-INDEX(Data!$C$9:$C$13, MATCH($A$3, options,0)))*('Option1 (base case)'!AG39-AG40) -> 525021.3166
C70: Capital expenditure
C71: =C14 -> DDL023 feeder exit cable upgrade | G71: =input_dollars -> 2023-12-31 | I71: =-I14 -> 0 | J71: -1469220.4 | K71: 0 | L71: 0 | M71: 0 | N71: 0 | O71: 0 | P71: 0 | Q71: 0 | R71: 0 | S71: 0 | T71: 0 | U71: 0 | V71: 0 | W71: 0 | X71: 0 | Y71: 0 | Z71: 0 | AA71: 0 | AB71: 0 | AC71: 0 | AD71: 0 | AE71: 0 | AF71: 0 | AG71: 0
C72: =C15 -> 0 | G72: =input_dollars -> 2023-12-31 | I72: =-I15 -> 0 | J72: 0 | K72: 0 | L72: 0 | M72: 0 | N72: 0 | O72: 0 | P72: 0 | Q72: 0 | R72: 0 | S72: 0 | T72: 0 | U72: 0 | V72: 0 | W72: 0 | X72: 0 | Y72: 0 | Z72: 0 | AA72: 0 | AB72: 0 | AC72: 0 | AD72: 0 | AE72: 0 | AF72: 0 | AG72: 0
C73: =C16 -> 0 | G73: =input_dollars -> 2023-12-31 | I73: =-I16 -> 0 | J73: 0 | K73: 0 | L73: 0 | M73: 0 | N73: 0 | O73: 0 | P73: 0 | Q73: 0 | R73: 0 | S73: 0 | T73: 0 | U73: 0 | V73: 0 | W73: 0 | X73: 0 | Y73: 0 | Z73: 0 | AA73: 0 | AB73: 0 | AC73: 0 | AD73: 0 | AE73: 0 | AF73: 0 | AG73: 0
C75: Cumulative capex
C76: =C14 -> DDL023 feeder exit cable upgrade | G76: =input_dollars -> 2023-12-31 | I76: =SUMPRODUCT(($I71:I71))-SUMPRODUCT(($I71:I71)*($I$6:I$6<=(I$6-$E14))) -> 0 | J76: =SUMPRODUCT(($I71:J71))-SUMPRODUCT(($I71:J71)*($I$6:J$6<=(J$6-$E14))) -> -1469220.4 | K76: =SUMPRODUCT(($I71:K71))-SUMPRODUCT(($I71:K71)*($I$6:K$6<=(K$6-$E14))) -> -1469220.4 | L76: =SUMPRODUCT(($I71:L71))-SUMPRODUCT(($I71:L71)*($I$6:L$6<=(L$6-$E14))) -> -1469220.4 | M76: =SUMPRODUCT(($I71:M71))-SUMPRODUCT(($I71:M71)*($I$6:M$6<=(M$6-$E14))) -> -1469220.4 | N76: =SUMPRODUCT(($I71:N71))-SUMPRODUCT(($I71:N71)*($I$6:N$6<=(N$6-$E14))) -> -1469220.4 | O76: =SUMPRODUCT(($I71:O71))-SUMPRODUCT(($I71:O71)*($I$6:O$6<=(O$6-$E14))) -> -1469220.4 | P76: =SUMPRODUCT(($I71:P71))-SUMPRODUCT(($I71:P71)*($I$6:P$6<=(P$6-$E14))) -> -1469220.4 | Q76: =SUMPRODUCT(($I71:Q71))-SUMPRODUCT(($I71:Q71)*($I$6:Q$6<=(Q$6-$E14))) -> -1469220.4 | R76: =SUMPRODUCT(($I71:R71))-SUMPRODUCT(($I71:R71)*($I$6:R$6<=(R$6-$E14))) -> -1469220.4 | S76: =SUMPRODUCT(($I71:S71))-SUMPRODUCT(($I71:S71)*($I$6:S$6<=(S$6-$E14))) -> -1469220.4 | T76: =SUMPRODUCT(($I71:T71))-SUMPRODUCT(($I71:T71)*($I$6:T$6<=(T$6-$E14))) -> -1469220.4 | U76: =SUMPRODUCT(($I71:U71))-SUMPRODUCT(($I71:U71)*($I$6:U$6<=(U$6-$E14))) -> -1469220.4 | V76: =SUMPRODUCT(($I71:V71))-SUMPRODUCT(($I71:V71)*($I$6:V$6<=(V$6-$E14))) -> -1469220.4 | W76: =SUMPRODUCT(($I71:W71))-SUMPRODUCT(($I71:W71)*($I$6:W$6<=(W$6-$E14))) -> -1469220.4 | X76: =SUMPRODUCT(($I71:X71))-SUMPRODUCT(($I71:X71)*($I$6:X$6<=(X$6-$E14))) -> -1469220.4 | Y76: =SUMPRODUCT(($I71:Y71))-SUMPRODUCT(($I71:Y71)*($I$6:Y$6<=(Y$6-$E14))) -> -1469220.4 | Z76: =SUMPRODUCT(($I71:Z71))-SUMPRODUCT(($I71:Z71)*($I$6:Z$6<=(Z$6-$E14))) -> -1469220.4 | AA76: =SUMPRODUCT(($I71:AA71))-SUMPRODUCT(($I71:AA71)*($I$6:AA$6<=(AA$6-$E14))) -> -1469220.4 | AB76: =SUMPRODUCT(($I71:AB71))-SUMPRODUCT(($I71:AB71)*($I$6:AB$6<=(AB$6-$E14))) -> -1469220.4 | AC76: =SUMPRODUCT(($I71:AC71))-SUMPRODUCT(($I71:AC71)*($I$6:AC$6<=(AC$6-$E14))) -> -1469220.4 | AD76: =SUMPRODUCT(($I71:AD71))-SUMPRODUCT(($I71:AD71)*($I$6:AD$6<=(AD$6-$E14))) -> -1469220.4 | AE76: =SUMPRODUCT(($I71:AE71))-SUMPRODUCT(($I71:AE71)*($I$6:AE$6<=(AE$6-$E14))) -> -1469220.4 | AF76: =SUMPRODUCT(($I71:AF71))-SUMPRODUCT(($I71:AF71)*($I$6:AF$6<=(AF$6-$E14))) -> -1469220.4 | AG76: =SUMPRODUCT(($I71:AG71))-SUMPRODUCT(($I71:AG71)*($I$6:AG$6<=(AG$6-$E14))) -> -1469220.4
C77: =C15 -> 0 | G77: =input_dollars -> 2023-12-31 | I77: =SUMPRODUCT(($I72:I72))-SUMPRODUCT(($I72:I72)*($I$6:I$6<=(I$6-$E15))) -> 0 | J77: =SUMPRODUCT(($I72:J72))-SUMPRODUCT(($I72:J72)*($I$6:J$6<=(J$6-$E15))) -> 0 | K77: =SUMPRODUCT(($I72:K72))-SUMPRODUCT(($I72:K72)*($I$6:K$6<=(K$6-$E15))) -> 0 | L77: =SUMPRODUCT(($I72:L72))-SUMPRODUCT(($I72:L72)*($I$6:L$6<=(L$6-$E15))) -> 0 | M77: =SUMPRODUCT(($I72:M72))-SUMPRODUCT(($I72:M72)*($I$6:M$6<=(M$6-$E15))) -> 0 | N77: =SUMPRODUCT(($I72:N72))-SUMPRODUCT(($I72:N72)*($I$6:N$6<=(N$6-$E15))) -> 0 | O77: =SUMPRODUCT(($I72:O72))-SUMPRODUCT(($I72:O72)*($I$6:O$6<=(O$6-$E15))) -> 0 | P77: =SUMPRODUCT(($I72:P72))-SUMPRODUCT(($I72:P72)*($I$6:P$6<=(P$6-$E15))) -> 0 | Q77: =SUMPRODUCT(($I72:Q72))-SUMPRODUCT(($I72:Q72)*($I$6:Q$6<=(Q$6-$E15))) -> 0 | R77: =SUMPRODUCT(($I72:R72))-SUMPRODUCT(($I72:R72)*($I$6:R$6<=(R$6-$E15))) -> 0 | S77: =SUMPRODUCT(($I72:S72))-SUMPRODUCT(($I72:S72)*($I$6:S$6<=(S$6-$E15))) -> 0 | T77: =SUMPRODUCT(($I72:T72))-SUMPRODUCT(($I72:T72)*($I$6:T$6<=(T$6-$E15))) -> 0 | U77: =SUMPRODUCT(($I72:U72))-SUMPRODUCT(($I72:U72)*($I$6:U$6<=(U$6-$E15))) -> 0 | V77: =SUMPRODUCT(($I72:V72))-SUMPRODUCT(($I72:V72)*($I$6:V$6<=(V$6-$E15))) -> 0 | W77: =SUMPRODUCT(($I72:W72))-SUMPRODUCT(($I72:W72)*($I$6:W$6<=(W$6-$E15))) -> 0 | X77: =SUMPRODUCT(($I72:X72))-SUMPRODUCT(($I72:X72)*($I$6:X$6<=(X$6-$E15))) -> 0 | Y77: =SUMPRODUCT(($I72:Y72))-SUMPRODUCT(($I72:Y72)*($I$6:Y$6<=(Y$6-$E15))) -> 0 | Z77: =SUMPRODUCT(($I72:Z72))-SUMPRODUCT(($I72:Z72)*($I$6:Z$6<=(Z$6-$E15))) -> 0 | AA77: =SUMPRODUCT(($I72:AA72))-SUMPRODUCT(($I72:AA72)*($I$6:AA$6<=(AA$6-$E15))) -> 0 | AB77: =SUMPRODUCT(($I72:AB72))-SUMPRODUCT(($I72:AB72)*($I$6:AB$6<=(AB$6-$E15))) -> 0 | AC77: =SUMPRODUCT(($I72:AC72))-SUMPRODUCT(($I72:AC72)*($I$6:AC$6<=(AC$6-$E15))) -> 0 | AD77: =SUMPRODUCT(($I72:AD72))-SUMPRODUCT(($I72:AD72)*($I$6:AD$6<=(AD$6-$E15))) -> 0 | AE77: =SUMPRODUCT(($I72:AE72))-SUMPRODUCT(($I72:AE72)*($I$6:AE$6<=(AE$6-$E15))) -> 0 | AF77: =SUMPRODUCT(($I72:AF72))-SUMPRODUCT(($I72:AF72)*($I$6:AF$6<=(AF$6-$E15))) -> 0 | AG77: =SUMPRODUCT(($I72:AG72))-SUMPRODUCT(($I72:AG72)*($I$6:AG$6<=(AG$6-$E15))) -> 0
C78: =C16 -> 0 | G78: =input_dollars -> 2023-12-31 | I78: =SUMPRODUCT(($I73:I73))-SUMPRODUCT(($I73:I73)*($I$6:I$6<=(I$6-$E16))) -> 0 | J78: =SUMPRODUCT(($I73:J73))-SUMPRODUCT(($I73:J73)*($I$6:J$6<=(J$6-$E16))) -> 0 | K78: =SUMPRODUCT(($I73:K73))-SUMPRODUCT(($I73:K73)*($I$6:K$6<=(K$6-$E16))) -> 0 | L78: =SUMPRODUCT(($I73:L73))-SUMPRODUCT(($I73:L73)*($I$6:L$6<=(L$6-$E16))) -> 0 | M78: =SUMPRODUCT(($I73:M73))-SUMPRODUCT(($I73:M73)*($I$6:M$6<=(M$6-$E16))) -> 0 | N78: =SUMPRODUCT(($I73:N73))-SUMPRODUCT(($I73:N73)*($I$6:N$6<=(N$6-$E16))) -> 0 | O78: =SUMPRODUCT(($I73:O73))-SUMPRODUCT(($I73:O73)*($I$6:O$6<=(O$6-$E16))) -> 0 | P78: =SUMPRODUCT(($I73:P73))-SUMPRODUCT(($I73:P73)*($I$6:P$6<=(P$6-$E16))) -> 0 | Q78: =SUMPRODUCT(($I73:Q73))-SUMPRODUCT(($I73:Q73)*($I$6:Q$6<=(Q$6-$E16))) -> 0 | R78: =SUMPRODUCT(($I73:R73))-SUMPRODUCT(($I73:R73)*($I$6:R$6<=(R$6-$E16))) -> 0 | S78: =SUMPRODUCT(($I73:S73))-SUMPRODUCT(($I73:S73)*($I$6:S$6<=(S$6-$E16))) -> 0 | T78: =SUMPRODUCT(($I73:T73))-SUMPRODUCT(($I73:T73)*($I$6:T$6<=(T$6-$E16))) -> 0 | U78: =SUMPRODUCT(($I73:U73))-SUMPRODUCT(($I73:U73)*($I$6:U$6<=(U$6-$E16))) -> 0 | V78: =SUMPRODUCT(($I73:V73))-SUMPRODUCT(($I73:V73)*($I$6:V$6<=(V$6-$E16))) -> 0 | W78: =SUMPRODUCT(($I73:W73))-SUMPRODUCT(($I73:W73)*($I$6:W$6<=(W$6-$E16))) -> 0 | X78: =SUMPRODUCT(($I73:X73))-SUMPRODUCT(($I73:X73)*($I$6:X$6<=(X$6-$E16))) -> 0 | Y78: =SUMPRODUCT(($I73:Y73))-SUMPRODUCT(($I73:Y73)*($I$6:Y$6<=(Y$6-$E16))) -> 0 | Z78: =SUMPRODUCT(($I73:Z73))-SUMPRODUCT(($I73:Z73)*($I$6:Z$6<=(Z$6-$E16))) -> 0 | AA78: =SUMPRODUCT(($I73:AA73))-SUMPRODUCT(($I73:AA73)*($I$6:AA$6<=(AA$6-$E16))) -> 0 | AB78: =SUMPRODUCT(($I73:AB73))-SUMPRODUCT(($I73:AB73)*($I$6:AB$6<=(AB$6-$E16))) -> 0 | AC78: =SUMPRODUCT(($I73:AC73))-SUMPRODUCT(($I73:AC73)*($I$6:AC$6<=(AC$6-$E16))) -> 0 | AD78: =SUMPRODUCT(($I73:AD73))-SUMPRODUCT(($I73:AD73)*($I$6:AD$6<=(AD$6-$E16))) -> 0 | AE78: =SUMPRODUCT(($I73:AE73))-SUMPRODUCT(($I73:AE73)*($I$6:AE$6<=(AE$6-$E16))) -> 0 | AF78: =SUMPRODUCT(($I73:AF73))-SUMPRODUCT(($I73:AF73)*($I$6:AF$6<=(AF$6-$E16))) -> 0 | AG78: =SUMPRODUCT(($I73:AG73))-SUMPRODUCT(($I73:AG73)*($I$6:AG$6<=(AG$6-$E16))) -> 0
C80: Annualised capex
C81: =$C$80&" - "&C14 -> Annualised capex - DDL023 feeder exit cable upgrade | G81: =input_dollars -> 2023-12-31 | I81: =IF($E14=0,0,-PMT(real_disc, $E14,H76,)) -> 0 | J81: 0 | K81: -62638.31582 | L81: -62638.31582 | M81: -62638.31582 | N81: -62638.31582 | O81: -62638.31582 | P81: -62638.31582 | Q81: -62638.31582 | R81: -62638.31582 | S81: -62638.31582 | T81: -62638.31582 | U81: -62638.31582 | V81: -62638.31582 | W81: -62638.31582 | X81: -62638.31582 | Y81: -62638.31582 | Z81: -62638.31582 | AA81: -62638.31582 | AB81: -62638.31582 | AC81: -62638.31582 | AD81: -62638.31582 | AE81: -62638.31582 | AF81: -62638.31582 | AG81: -62638.31582
C82: =$C$80&" - "&C15 -> Annualised capex - | G82: =input_dollars -> 2023-12-31 | I82: =IF($E15=0,0,-PMT(real_disc, $E15,H77,)) -> 0 | J82: 0 | K82: 0 | L82: 0 | M82: 0 | N82: 0 | O82: 0 | P82: 0 | Q82: 0 | R82: 0 | S82: 0 | T82: 0 | U82: 0 | V82: 0 | W82: 0 | X82: 0 | Y82: 0 | Z82: 0 | AA82: 0 | AB82: 0 | AC82: 0 | AD82: 0 | AE82: 0 | AF82: 0 | AG82: 0
C83: =$C$80&" - "&C16 -> Annualised capex - | G83: =input_dollars -> 2023-12-31 | I83: =IF($E16=0,0,-PMT(real_disc, $E16,H78,)) -> 0 | J83: 0 | K83: 0 | L83: 0 | M83: 0 | N83: 0 | O83: 0 | P83: 0 | Q83: 0 | R83: 0 | S83: 0 | T83: 0 | U83: 0 | V83: 0 | W83: 0 | X83: 0 | Y83: 0 | Z83: 0 | AA83: 0 | AB83: 0 | AC83: 0 | AD83: 0 | AE83: 0 | AF83: 0 | AG83: 0
C84: Total annualised capex | G84: =input_dollars -> 2023-12-31 | I84: =SUM(I81:I83) -> 0 | J84: =SUM(J81:J83) -> 0 | K84: -62638.31582 | L84: -62638.31582 | M84: -62638.31582 | N84: -62638.31582 | O84: -62638.31582 | P84: -62638.31582 | Q84: -62638.31582 | R84: -62638.31582 | S84: -62638.31582 | T84: -62638.31582 | U84: -62638.31582 | V84: -62638.31582 | W84: -62638.31582 | X84: -62638.31582 | Y84: -62638.31582 | Z84: -62638.31582 | AA84: -62638.31582 | AB84: -62638.31582 | AC84: =SUM(AC81:AC83) -> -62638.31582 | AD84: =SUM(AD81:AD83) -> -62638.31582 | AE84: =SUM(AE81:AE83) -> -62638.31582 | AF84: =SUM(AF81:AF83) -> -62638.31582 | AG84: =SUM(AG81:AG83) -> -62638.31582
C86: Annualised capex | G86: =input_dollars -> 2023-12-31 | I86: =I84 -> 0 | J86: =J84 -> 0 | K86: -62638.31582 | L86: -62638.31582 | M86: -62638.31582 | N86: -62638.31582 | O86: -62638.31582 | P86: -62638.31582 | Q86: -62638.31582 | R86: -62638.31582 | S86: -62638.31582 | T86: -62638.31582 | U86: -62638.31582 | V86: -62638.31582 | W86: -62638.31582 | X86: -62638.31582 | Y86: -62638.31582 | Z86: -62638.31582 | AA86: -62638.31582 | AB86: -62638.31582 | AC86: =AC84 -> -62638.31582 | AD86: =AD84 -> -62638.31582 | AE86: =AE84 -> -62638.31582 | AF86: =AF84 -> -62638.31582 | AG86: =AG84 -> -62638.31582
C87: Operating expenditure | G87: 2023-12-31 | I87: =-I19 -> 0 | J87: 0 | K87: 0 | L87: 0 | M87: 0 | N87: 0 | O87: 0 | P87: 0 | Q87: 0 | R87: 0 | S87: 0 | T87: 0 | U87: 0 | V87: 0 | W87: 0 | X87: 0 | Y87: 0 | Z87: 0 | AA87: 0 | AB87: 0 | AC87: 0 | AD87: 0 | AE87: 0 | AF87: 0 | AG87: 0
C88: Risk mitigated | G88: 2023-12-31 | I88: =I68 -> 0 | J88: =J68 -> 0 | K88: 70879.7037 | L88: 104815.854 | M88: 151276.6071 | N88: 230381.9146 | O88: 333536.7902 | P88: 436075.2049 | Q88: 525021.3166 | R88: 525021.3166 | S88: 525021.3166 | T88: 525021.3166 | U88: 525021.3166 | V88: 525021.3166 | W88: 525021.3166 | X88: 525021.3166 | Y88: 525021.3166 | Z88: 525021.3166 | AA88: 525021.3166 | AB88: 525021.3166 | AC88: =AC68 -> 525021.3166 | AD88: =AD68 -> 525021.3166 | AE88: =AE68 -> 525021.3166 | AF88: =AF68 -> 525021.3166 | AG88: =AG68 -> 525021.3166
C89: Other benefits value | G89: 2023-12-31 | I89: =I61 -> 0 | J89: 0 | K89: 0 | L89: 0 | M89: 0 | N89: 0 | O89: 0 | P89: 0 | Q89: 0 | R89: 0 | S89: 0 | T89: 0 | U89: 0 | V89: 0 | W89: 0 | X89: 0 | Y89: 0 | Z89: 0 | AA89: 0 | AB89: 0 | AC89: 0 | AD89: 0 | AE89: 0 | AF89: 0 | AG89: 0
C91: Net benefits | G91: 2023-12-31 | I91: =SUM(I86:I90) -> 0 | J91: 0 | K91: 8241.387878 | L91: 42177.53817 | M91: 88638.29131 | N91: 167743.5987 | O91: 270898.4744 | P91: 373436.8891 | Q91: 462383.0008 | R91: 462383.0008 | S91: 462383.0008 | T91: 462383.0008 | U91: 462383.0008 | V91: 462383.0008 | W91: 462383.0008 | X91: 462383.0008 | Y91: 462383.0008 | Z91: 462383.0008 | AA91: 462383.0008 | AB91: 462383.0008 | AC91: =SUM(AC86:AC90) -> 462383.0008 | AD91: =SUM(AD86:AD90) -> 462383.0008 | AE91: =SUM(AE86:AE90) -> 462383.0008 | AF91: =SUM(AF86:AF90) -> 462383.0008 | AG91: =SUM(AG86:AG90) -> 462383.0008
C94: First capex year | G94: =IF(SUM($I17:$AG17)=0,0,(INDEX(I$6:AG$6,MATCH(TRUE,INDEX($I17:$AG17<>0,),0)))) -> 2
C96: First year | G96: =IF(_xlfn.MINIFS($G$94:$G$95, $G$94:$G$95, ">"&0)=0, $A$4, _xlfn.MINIFS($G$94:$G$95, $G$94:$G$95, ">"&0)) -> 2
A106: SENSITIVITIES
A110: NPV | C110: Net benefits | G110: =PROPER($A$3)&A110 -> Option 2NPV | I110: =I91 -> 0 | J110: =J91 -> 0 | K110: 8241.387878 | L110: 42177.53817 | M110: 88638.29131 | N110: 167743.5987 | O110: 270898.4744 | P110: 373436.8891 | Q110: 462383.0008 | R110: 462383.0008 | S110: 462383.0008 | T110: 462383.0008 | U110: 462383.0008 | V110: 462383.0008 | W110: 462383.0008 | X110: 462383.0008 | Y110: 462383.0008 | Z110: 462383.0008 | AA110: 462383.0008 | AB110: 462383.0008 | AC110: 462383.0008 | AD110: 462383.0008 | AE110: 462383.0008 | AF110: 462383.0008 | AG110: 462383.0008
C111: Total annualised capex | I111: =I86 -> 0 | J111: =J86 -> 0 | K111: -62638.31582 | L111: -62638.31582 | M111: -62638.31582 | N111: -62638.31582 | O111: -62638.31582 | P111: -62638.31582 | Q111: -62638.31582 | R111: -62638.31582 | S111: -62638.31582 | T111: -62638.31582 | U111: -62638.31582 | V111: -62638.31582 | W111: -62638.31582 | X111: -62638.31582 | Y111: -62638.31582 | Z111: -62638.31582 | AA111: -62638.31582 | AB111: -62638.31582 | AC111: -62638.31582 | AD111: -62638.31582 | AE111: -62638.31582 | AF111: -62638.31582 | AG111: -62638.31582
C112: Total benefits | I112: =SUM(I88:I89) -> 0 | J112: =SUM(J88:J89) -> 0 | K112: 70879.7037 | L112: 104815.854 | M112: 151276.6071 | N112: 230381.9146 | O112: 333536.7902 | P112: 436075.2049 | Q112: 525021.3166 | R112: 525021.3166 | S112: 525021.3166 | T112: 525021.3166 | U112: 525021.3166 | V112: 525021.3166 | W112: 525021.3166 | X112: 525021.3166 | Y112: 525021.3166 | Z112: 525021.3166 | AA112: 525021.3166 | AB112: 525021.3166 | AC112: 525021.3166 | AD112: 525021.3166 | AE112: 525021.3166 | AF112: 525021.3166 | AG112: 525021.3166
D113: =Assumptions!G110 -> Capex | E113: =Assumptions!H110 -> Total benefits
A114: ="sens"&Assumptions!B111 -> sens1 | C114: =Assumptions!C111 -> Capex 10% higher | D114: =Assumptions!G111 -> 0.1 | E114: =Assumptions!H111 -> 0 | G114: =PROPER($A$3)&A114 -> Option 2sens1 | I114: =I$110+IF($C114<>0,SUMPRODUCT((I$111:I$112)*TRANSPOSE(($D114:$E114))),0) -> 0 | J114: =J$110+IF($C114<>0,SUMPRODUCT((J$111:J$112)*TRANSPOSE(($D114:$E114))),0) -> 0 | K114: =K$110+IF($C114<>0,SUMPRODUCT((K$111:K$112)*TRANSPOSE(($D114:$E114))),0) -> 1977.556295 | L114: =L$110+IF($C114<>0,SUMPRODUCT((L$111:L$112)*TRANSPOSE(($D114:$E114))),0) -> 35913.70658 | M114: =M$110+IF($C114<>0,SUMPRODUCT((M$111:M$112)*TRANSPOSE(($D114:$E114))),0) -> 82374.45973 | N114: =N$110+IF($C114<>0,SUMPRODUCT((N$111:N$112)*TRANSPOSE(($D114:$E114))),0) -> 161479.7672 | O114: =O$110+IF($C114<>0,SUMPRODUCT((O$111:O$112)*TRANSPOSE(($D114:$E114))),0) -> 264634.6428 | P114: =P$110+IF($C114<>0,SUMPRODUCT((P$111:P$112)*TRANSPOSE(($D114:$E114))),0) -> 367173.0575 | Q114: =Q$110+IF($C114<>0,SUMPRODUCT((Q$111:Q$112)*TRANSPOSE(($D114:$E114))),0) -> 456119.1692 | R114: =R$110+IF($C114<>0,SUMPRODUCT((R$111:R$112)*TRANSPOSE(($D114:$E114))),0) -> 456119.1692 | S114: =S$110+IF($C114<>0,SUMPRODUCT((S$111:S$112)*TRANSPOSE(($D114:$E114))),0) -> 456119.1692 | T114: =T$110+IF($C114<>0,SUMPRODUCT((T$111:T$112)*TRANSPOSE(($D114:$E114))),0) -> 456119.1692 | U114: =U$110+IF($C114<>0,SUMPRODUCT((U$111:U$112)*TRANSPOSE(($D114:$E114))),0) -> 456119.1692 | V114: =V$110+IF($C114<>0,SUMPRODUCT((V$111:V$112)*TRANSPOSE(($D114:$E114))),0) -> 456119.1692 | W114: =W$110+IF($C114<>0,SUMPRODUCT((W$111:W$112)*TRANSPOSE(($D114:$E114))),0) -> 456119.1692 | X114: =X$110+IF($C114<>0,SUMPRODUCT((X$111:X$112)*TRANSPOSE(($D114:$E114))),0) -> 456119.1692 | Y114: =Y$110+IF($C114<>0,SUMPRODUCT((Y$111:Y$112)*TRANSPOSE(($D114:$E114))),0) -> 456119.1692 | Z114: =Z$110+IF($C114<>0,SUMPRODUCT((Z$111:Z$112)*TRANSPOSE(($D114:$E114))),0) -> 456119.1692 | AA114: =AA$110+IF($C114<>0,SUMPRODUCT((AA$111:AA$112)*TRANSPOSE(($D114:$E114))),0) -> 456119.1692 | AB114: =AB$110+IF($C114<>0,SUMPRODUCT((AB$111:AB$112)*TRANSPOSE(($D114:$E114))),0) -> 456119.1692 | AC114: =AC$110+IF($C114<>0,SUMPRODUCT((AC$111:AC$112)*TRANSPOSE(($D114:$E114))),0) -> 456119.1692 | AD114: =AD$110+IF($C114<>0,SUMPRODUCT((AD$111:AD$112)*TRANSPOSE(($D114:$E114))),0) -> 456119.1692 | AE114: =AE$110+IF($C114<>0,SUMPRODUCT((AE$111:AE$112)*TRANSPOSE(($D114:$E114))),0) -> 456119.1692 | AF114: =AF$110+IF($C114<>0,SUMPRODUCT((AF$111:AF$112)*TRANSPOSE(($D114:$E114))),0) -> 456119.1692 | AG114: =AG$110+IF($C114<>0,SUMPRODUCT((AG$111:AG$112)*TRANSPOSE(($D114:$E114))),0) -> 456119.1692
A115: ="sens"&Assumptions!B112 -> sens2 | C115: =Assumptions!C112 -> Capex 10% lower | D115: =Assumptions!G112 -> -0.1 | E115: =Assumptions!H112 -> 0 | G115: =PROPER($A$3)&A115 -> Option 2sens2 | I115: =I$110+IF($C115<>0,SUMPRODUCT((I$111:I$112)*TRANSPOSE(($D115:$E115))),0) -> 0 | J115: =J$110+IF($C115<>0,SUMPRODUCT((J$111:J$112)*TRANSPOSE(($D115:$E115))),0) -> 0 | K115: =K$110+IF($C115<>0,SUMPRODUCT((K$111:K$112)*TRANSPOSE(($D115:$E115))),0) -> 14505.21946 | L115: =L$110+IF($C115<>0,SUMPRODUCT((L$111:L$112)*TRANSPOSE(($D115:$E115))),0) -> 48441.36975 | M115: =M$110+IF($C115<>0,SUMPRODUCT((M$111:M$112)*TRANSPOSE(($D115:$E115))),0) -> 94902.12289 | N115: =N$110+IF($C115<>0,SUMPRODUCT((N$111:N$112)*TRANSPOSE(($D115:$E115))),0) -> 174007.4303 | O115: =O$110+IF($C115<>0,SUMPRODUCT((O$111:O$112)*TRANSPOSE(($D115:$E115))),0) -> 277162.306 | P115: =P$110+IF($C115<>0,SUMPRODUCT((P$111:P$112)*TRANSPOSE(($D115:$E115))),0) -> 379700.7207 | Q115: =Q$110+IF($C115<>0,SUMPRODUCT((Q$111:Q$112)*TRANSPOSE(($D115:$E115))),0) -> 468646.8323 | R115: =R$110+IF($C115<>0,SUMPRODUCT((R$111:R$112)*TRANSPOSE(($D115:$E115))),0) -> 468646.8323 | S115: =S$110+IF($C115<>0,SUMPRODUCT((S$111:S$112)*TRANSPOSE(($D115:$E115))),0) -> 468646.8323 | T115: =T$110+IF($C115<>0,SUMPRODUCT((T$111:T$112)*TRANSPOSE(($D115:$E115))),0) -> 468646.8323 | U115: =U$110+IF($C115<>0,SUMPRODUCT((U$111:U$112)*TRANSPOSE(($D115:$E115))),0) -> 468646.8323 | V115: =V$110+IF($C115<>0,SUMPRODUCT((V$111:V$112)*TRANSPOSE(($D115:$E115))),0) -> 468646.8323 | W115: =W$110+IF($C115<>0,SUMPRODUCT((W$111:W$112)*TRANSPOSE(($D115:$E115))),0) -> 468646.8323 | X115: =X$110+IF($C115<>0,SUMPRODUCT((X$111:X$112)*TRANSPOSE(($D115:$E115))),0) -> 468646.8323 | Y115: =Y$110+IF($C115<>0,SUMPRODUCT((Y$111:Y$112)*TRANSPOSE(($D115:$E115))),0) -> 468646.8323 | Z115: =Z$110+IF($C115<>0,SUMPRODUCT((Z$111:Z$112)*TRANSPOSE(($D115:$E115))),0) -> 468646.8323 | AA115: =AA$110+IF($C115<>0,SUMPRODUCT((AA$111:AA$112)*TRANSPOSE(($D115:$E115))),0) -> 468646.8323 | AB115: =AB$110+IF($C115<>0,SUMPRODUCT((AB$111:AB$112)*TRANSPOSE(($D115:$E115))),0) -> 468646.8323 | AC115: =AC$110+IF($C115<>0,SUMPRODUCT((AC$111:AC$112)*TRANSPOSE(($D115:$E115))),0) -> 468646.8323 | AD115: =AD$110+IF($C115<>0,SUMPRODUCT((AD$111:AD$112)*TRANSPOSE(($D115:$E115))),0) -> 468646.8323 | AE115: =AE$110+IF($C115<>0,SUMPRODUCT((AE$111:AE$112)*TRANSPOSE(($D115:$E115))),0) -> 468646.8323 | AF115: =AF$110+IF($C115<>0,SUMPRODUCT((AF$111:AF$112)*TRANSPOSE(($D115:$E115))),0) -> 468646.8323 | AG115: =AG$110+IF($C115<>0,SUMPRODUCT((AG$111:AG$112)*TRANSPOSE(($D115:$E115))),0) -> 468646.8323
A116: ="sens"&Assumptions!B113 -> sens3 | C116: =Assumptions!C113 -> Total benefits 10% higher | D116: =Assumptions!G113 -> 0 | E116: =Assumptions!H113 -> 0.1 | G116: Option 2sens3 | I116: =I$110+IF($C116<>0,SUMPRODUCT((I$111:I$112)*TRANSPOSE(($D116:$E116))),0) -> 0 | J116: =J$110+IF($C116<>0,SUMPRODUCT((J$111:J$112)*TRANSPOSE(($D116:$E116))),0) -> 0 | K116: =K$110+IF($C116<>0,SUMPRODUCT((K$111:K$112)*TRANSPOSE(($D116:$E116))),0) -> 15329.35825 | L116: =L$110+IF($C116<>0,SUMPRODUCT((L$111:L$112)*TRANSPOSE(($D116:$E116))),0) -> 52659.12356 | M116: =M$110+IF($C116<>0,SUMPRODUCT((M$111:M$112)*TRANSPOSE(($D116:$E116))),0) -> 103765.952 | N116: =N$110+IF($C116<>0,SUMPRODUCT((N$111:N$112)*TRANSPOSE(($D116:$E116))),0) -> 190781.7902 | O116: =O$110+IF($C116<>0,SUMPRODUCT((O$111:O$112)*TRANSPOSE(($D116:$E116))),0) -> 304252.1534 | P116: =P$110+IF($C116<>0,SUMPRODUCT((P$111:P$112)*TRANSPOSE(($D116:$E116))),0) -> 417044.4096 | Q116: =Q$110+IF($C116<>0,SUMPRODUCT((Q$111:Q$112)*TRANSPOSE(($D116:$E116))),0) -> 514885.1324 | R116: =R$110+IF($C116<>0,SUMPRODUCT((R$111:R$112)*TRANSPOSE(($D116:$E116))),0) -> 514885.1324 | S116: =S$110+IF($C116<>0,SUMPRODUCT((S$111:S$112)*TRANSPOSE(($D116:$E116))),0) -> 514885.1324 | T116: =T$110+IF($C116<>0,SUMPRODUCT((T$111:T$112)*TRANSPOSE(($D116:$E116))),0) -> 514885.1324 | U116: =U$110+IF($C116<>0,SUMPRODUCT((U$111:U$112)*TRANSPOSE(($D116:$E116))),0) -> 514885.1324 | V116: =V$110+IF($C116<>0,SUMPRODUCT((V$111:V$112)*TRANSPOSE(($D116:$E116))),0) -> 514885.1324 | W116: =W$110+IF($C116<>0,SUMPRODUCT((W$111:W$112)*TRANSPOSE(($D116:$E116))),0) -> 514885.1324 | X116: =X$110+IF($C116<>0,SUMPRODUCT((X$111:X$112)*TRANSPOSE(($D116:$E116))),0) -> 514885.1324 | Y116: =Y$110+IF($C116<>0,SUMPRODUCT((Y$111:Y$112)*TRANSPOSE(($D116:$E116))),0) -> 514885.1324 | Z116: =Z$110+IF($C116<>0,SUMPRODUCT((Z$111:Z$112)*TRANSPOSE(($D116:$E116))),0) -> 514885.1324 | AA116: =AA$110+IF($C116<>0,SUMPRODUCT((AA$111:AA$112)*TRANSPOSE(($D116:$E116))),0) -> 514885.1324 | AB116: =AB$110+IF($C116<>0,SUMPRODUCT((AB$111:AB$112)*TRANSPOSE(($D116:$E116))),0) -> 514885.1324 | AC116: =AC$110+IF($C116<>0,SUMPRODUCT((AC$111:AC$112)*TRANSPOSE(($D116:$E116))),0) -> 514885.1324 | AD116: =AD$110+IF($C116<>0,SUMPRODUCT((AD$111:AD$112)*TRANSPOSE(($D116:$E116))),0) -> 514885.1324 | AE116: =AE$110+IF($C116<>0,SUMPRODUCT((AE$111:AE$112)*TRANSPOSE(($D116:$E116))),0) -> 514885.1324 | AF116: =AF$110+IF($C116<>0,SUMPRODUCT((AF$111:AF$112)*TRANSPOSE(($D116:$E116))),0) -> 514885.1324 | AG116: =AG$110+IF($C116<>0,SUMPRODUCT((AG$111:AG$112)*TRANSPOSE(($D116:$E116))),0) -> 514885.1324
A117: ="sens"&Assumptions!B114 -> sens4 | C117: =Assumptions!C114 -> Total benefits 10% lower | D117: =Assumptions!G114 -> 0 | E117: =Assumptions!H114 -> -0.1 | G117: Option 2sens4 | I117: =I$110+IF($C117<>0,SUMPRODUCT((I$111:I$112)*TRANSPOSE(($D117:$E117))),0) -> 0 | J117: =J$110+IF($C117<>0,SUMPRODUCT((J$111:J$112)*TRANSPOSE(($D117:$E117))),0) -> 0 | K117: =K$110+IF($C117<>0,SUMPRODUCT((K$111:K$112)*TRANSPOSE(($D117:$E117))),0) -> 1153.417508 | L117: =L$110+IF($C117<>0,SUMPRODUCT((L$111:L$112)*TRANSPOSE(($D117:$E117))),0) -> 31695.95277 | M117: =M$110+IF($C117<>0,SUMPRODUCT((M$111:M$112)*TRANSPOSE(($D117:$E117))),0) -> 73510.63059 | N117: =N$110+IF($C117<>0,SUMPRODUCT((N$111:N$112)*TRANSPOSE(($D117:$E117))),0) -> 144705.4073 | O117: =O$110+IF($C117<>0,SUMPRODUCT((O$111:O$112)*TRANSPOSE(($D117:$E117))),0) -> 237544.7954 | P117: =P$110+IF($C117<>0,SUMPRODUCT((P$111:P$112)*TRANSPOSE(($D117:$E117))),0) -> 329829.3686 | Q117: =Q$110+IF($C117<>0,SUMPRODUCT((Q$111:Q$112)*TRANSPOSE(($D117:$E117))),0) -> 409880.8691 | R117: =R$110+IF($C117<>0,SUMPRODUCT((R$111:R$112)*TRANSPOSE(($D117:$E117))),0) -> 409880.8691 | S117: =S$110+IF($C117<>0,SUMPRODUCT((S$111:S$112)*TRANSPOSE(($D117:$E117))),0) -> 409880.8691 | T117: =T$110+IF($C117<>0,SUMPRODUCT((T$111:T$112)*TRANSPOSE(($D117:$E117))),0) -> 409880.8691 | U117: =U$110+IF($C117<>0,SUMPRODUCT((U$111:U$112)*TRANSPOSE(($D117:$E117))),0) -> 409880.8691 | V117: =V$110+IF($C117<>0,SUMPRODUCT((V$111:V$112)*TRANSPOSE(($D117:$E117))),0) -> 409880.8691 | W117: =W$110+IF($C117<>0,SUMPRODUCT((W$111:W$112)*TRANSPOSE(($D117:$E117))),0) -> 409880.8691 | X117: =X$110+IF($C117<>0,SUMPRODUCT((X$111:X$112)*TRANSPOSE(($D117:$E117))),0) -> 409880.8691 | Y117: =Y$110+IF($C117<>0,SUMPRODUCT((Y$111:Y$112)*TRANSPOSE(($D117:$E117))),0) -> 409880.8691 | Z117: =Z$110+IF($C117<>0,SUMPRODUCT((Z$111:Z$112)*TRANSPOSE(($D117:$E117))),0) -> 409880.8691 | AA117: =AA$110+IF($C117<>0,SUMPRODUCT((AA$111:AA$112)*TRANSPOSE(($D117:$E117))),0) -> 409880.8691 | AB117: =AB$110+IF($C117<>0,SUMPRODUCT((AB$111:AB$112)*TRANSPOSE(($D117:$E117))),0) -> 409880.8691 | AC117: =AC$110+IF($C117<>0,SUMPRODUCT((AC$111:AC$112)*TRANSPOSE(($D117:$E117))),0) -> 409880.8691 | AD117: =AD$110+IF($C117<>0,SUMPRODUCT((AD$111:AD$112)*TRANSPOSE(($D117:$E117))),0) -> 409880.8691 | AE117: =AE$110+IF($C117<>0,SUMPRODUCT((AE$111:AE$112)*TRANSPOSE(($D117:$E117))),0) -> 409880.8691 | AF117: =AF$110+IF($C117<>0,SUMPRODUCT((AF$111:AF$112)*TRANSPOSE(($D117:$E117))),0) -> 409880.8691 | AG117: =AG$110+IF($C117<>0,SUMPRODUCT((AG$111:AG$112)*TRANSPOSE(($D117:$E117))),0) -> 409880.8691
A118: ="sens"&Assumptions!B115 -> sens5 | C118: =Assumptions!C115 -> Capex 10% higher & Total benefits 10% lower | D118: =Assumptions!G115 -> 0.1 | E118: =Assumptions!H115 -> -0.1 | G118: Option 2sens5 | I118: =I$110+IF($C118<>0,SUMPRODUCT((I$111:I$112)*TRANSPOSE(($D118:$E118))),0) -> 0 | J118: =J$110+IF($C118<>0,SUMPRODUCT((J$111:J$112)*TRANSPOSE(($D118:$E118))),0) -> 0 | K118: =K$110+IF($C118<>0,SUMPRODUCT((K$111:K$112)*TRANSPOSE(($D118:$E118))),0) -> -5110.414075 | L118: =L$110+IF($C118<>0,SUMPRODUCT((L$111:L$112)*TRANSPOSE(($D118:$E118))),0) -> 25432.12118 | M118: =M$110+IF($C118<>0,SUMPRODUCT((M$111:M$112)*TRANSPOSE(($D118:$E118))),0) -> 67246.79901 | N118: =N$110+IF($C118<>0,SUMPRODUCT((N$111:N$112)*TRANSPOSE(($D118:$E118))),0) -> 138441.5757 | O118: =O$110+IF($C118<>0,SUMPRODUCT((O$111:O$112)*TRANSPOSE(($D118:$E118))),0) -> 231280.9638 | P118: =P$110+IF($C118<>0,SUMPRODUCT((P$111:P$112)*TRANSPOSE(($D118:$E118))),0) -> 323565.537 | Q118: =Q$110+IF($C118<>0,SUMPRODUCT((Q$111:Q$112)*TRANSPOSE(($D118:$E118))),0) -> 403617.0375 | R118: =R$110+IF($C118<>0,SUMPRODUCT((R$111:R$112)*TRANSPOSE(($D118:$E118))),0) -> 403617.0375 | S118: =S$110+IF($C118<>0,SUMPRODUCT((S$111:S$112)*TRANSPOSE(($D118:$E118))),0) -> 403617.0375 | T118: =T$110+IF($C118<>0,SUMPRODUCT((T$111:T$112)*TRANSPOSE(($D118:$E118))),0) -> 403617.0375 | U118: =U$110+IF($C118<>0,SUMPRODUCT((U$111:U$112)*TRANSPOSE(($D118:$E118))),0) -> 403617.0375 | V118: =V$110+IF($C118<>0,SUMPRODUCT((V$111:V$112)*TRANSPOSE(($D118:$E118))),0) -> 403617.0375 | W118: =W$110+IF($C118<>0,SUMPRODUCT((W$111:W$112)*TRANSPOSE(($D118:$E118))),0) -> 403617.0375 | X118: =X$110+IF($C118<>0,SUMPRODUCT((X$111:X$112)*TRANSPOSE(($D118:$E118))),0) -> 403617.0375 | Y118: =Y$110+IF($C118<>0,SUMPRODUCT((Y$111:Y$112)*TRANSPOSE(($D118:$E118))),0) -> 403617.0375 | Z118: =Z$110+IF($C118<>0,SUMPRODUCT((Z$111:Z$112)*TRANSPOSE(($D118:$E118))),0) -> 403617.0375 | AA118: =AA$110+IF($C118<>0,SUMPRODUCT((AA$111:AA$112)*TRANSPOSE(($D118:$E118))),0) -> 403617.0375 | AB118: =AB$110+IF($C118<>0,SUMPRODUCT((AB$111:AB$112)*TRANSPOSE(($D118:$E118))),0) -> 403617.0375 | AC118: =AC$110+IF($C118<>0,SUMPRODUCT((AC$111:AC$112)*TRANSPOSE(($D118:$E118))),0) -> 403617.0375 | AD118: =AD$110+IF($C118<>0,SUMPRODUCT((AD$111:AD$112)*TRANSPOSE(($D118:$E118))),0) -> 403617.0375 | AE118: =AE$110+IF($C118<>0,SUMPRODUCT((AE$111:AE$112)*TRANSPOSE(($D118:$E118))),0) -> 403617.0375 | AF118: =AF$110+IF($C118<>0,SUMPRODUCT((AF$111:AF$112)*TRANSPOSE(($D118:$E118))),0) -> 403617.0375 | AG118: =AG$110+IF($C118<>0,SUMPRODUCT((AG$111:AG$112)*TRANSPOSE(($D118:$E118))),0) -> 403617.0375
A119: ="sens"&Assumptions!B116 -> sens | C119: =Assumptions!C116 -> 0 | D119: =Assumptions!G116 -> 0 | E119: =Assumptions!H116 -> 0 | G119: Option 2sens | I119: =I$110+IF($C119<>0,SUMPRODUCT((I$111:I$112)*TRANSPOSE(($D119:$E119))),0) -> 0 | J119: =J$110+IF($C119<>0,SUMPRODUCT((J$111:J$112)*TRANSPOSE(($D119:$E119))),0) -> 0 | K119: =K$110+IF($C119<>0,SUMPRODUCT((K$111:K$112)*TRANSPOSE(($D119:$E119))),0) -> 8241.387878 | L119: =L$110+IF($C119<>0,SUMPRODUCT((L$111:L$112)*TRANSPOSE(($D119:$E119))),0) -> 42177.53817 | M119: =M$110+IF($C119<>0,SUMPRODUCT((M$111:M$112)*TRANSPOSE(($D119:$E119))),0) -> 88638.29131 | N119: =N$110+IF($C119<>0,SUMPRODUCT((N$111:N$112)*TRANSPOSE(($D119:$E119))),0) -> 167743.5987 | O119: =O$110+IF($C119<>0,SUMPRODUCT((O$111:O$112)*TRANSPOSE(($D119:$E119))),0) -> 270898.4744 | P119: =P$110+IF($C119<>0,SUMPRODUCT((P$111:P$112)*TRANSPOSE(($D119:$E119))),0) -> 373436.8891 | Q119: =Q$110+IF($C119<>0,SUMPRODUCT((Q$111:Q$112)*TRANSPOSE(($D119:$E119))),0) -> 462383.0008 | R119: =R$110+IF($C119<>0,SUMPRODUCT((R$111:R$112)*TRANSPOSE(($D119:$E119))),0) -> 462383.0008 | S119: =S$110+IF($C119<>0,SUMPRODUCT((S$111:S$112)*TRANSPOSE(($D119:$E119))),0) -> 462383.0008 | T119: =T$110+IF($C119<>0,SUMPRODUCT((T$111:T$112)*TRANSPOSE(($D119:$E119))),0) -> 462383.0008 | U119: =U$110+IF($C119<>0,SUMPRODUCT((U$111:U$112)*TRANSPOSE(($D119:$E119))),0) -> 462383.0008 | V119: =V$110+IF($C119<>0,SUMPRODUCT((V$111:V$112)*TRANSPOSE(($D119:$E119))),0) -> 462383.0008 | W119: =W$110+IF($C119<>0,SUMPRODUCT((W$111:W$112)*TRANSPOSE(($D119:$E119))),0) -> 462383.0008 | X119: =X$110+IF($C119<>0,SUMPRODUCT((X$111:X$112)*TRANSPOSE(($D119:$E119))),0) -> 462383.0008 | Y119: =Y$110+IF($C119<>0,SUMPRODUCT((Y$111:Y$112)*TRANSPOSE(($D119:$E119))),0) -> 462383.0008 | Z119: =Z$110+IF($C119<>0,SUMPRODUCT((Z$111:Z$112)*TRANSPOSE(($D119:$E119))),0) -> 462383.0008 | AA119: =AA$110+IF($C119<>0,SUMPRODUCT((AA$111:AA$112)*TRANSPOSE(($D119:$E119))),0) -> 462383.0008 | AB119: =AB$110+IF($C119<>0,SUMPRODUCT((AB$111:AB$112)*TRANSPOSE(($D119:$E119))),0) -> 462383.0008 | AC119: =AC$110+IF($C119<>0,SUMPRODUCT((AC$111:AC$112)*TRANSPOSE(($D119:$E119))),0) -> 462383.0008 | AD119: =AD$110+IF($C119<>0,SUMPRODUCT((AD$111:AD$112)*TRANSPOSE(($D119:$E119))),0) -> 462383.0008 | AE119: =AE$110+IF($C119<>0,SUMPRODUCT((AE$111:AE$112)*TRANSPOSE(($D119:$E119))),0) -> 462383.0008 | AF119: =AF$110+IF($C119<>0,SUMPRODUCT((AF$111:AF$112)*TRANSPOSE(($D119:$E119))),0) -> 462383.0008 | AG119: =AG$110+IF($C119<>0,SUMPRODUCT((AG$111:AG$112)*TRANSPOSE(($D119:$E119))),0) -> 462383.0008
A120: ="sens"&Assumptions!B117 -> sens | C120: =Assumptions!C117 -> 0 | D120: =Assumptions!G117 -> 0 | E120: =Assumptions!H117 -> 0 | G120: Option 2sens | I120: =I$110+IF($C120<>0,SUMPRODUCT((I$111:I$112)*TRANSPOSE(($D120:$E120))),0) -> 0 | J120: =J$110+IF($C120<>0,SUMPRODUCT((J$111:J$112)*TRANSPOSE(($D120:$E120))),0) -> 0 | K120: =K$110+IF($C120<>0,SUMPRODUCT((K$111:K$112)*TRANSPOSE(($D120:$E120))),0) -> 8241.387878 | L120: =L$110+IF($C120<>0,SUMPRODUCT((L$111:L$112)*TRANSPOSE(($D120:$E120))),0) -> 42177.53817 | M120: =M$110+IF($C120<>0,SUMPRODUCT((M$111:M$112)*TRANSPOSE(($D120:$E120))),0) -> 88638.29131 | N120: =N$110+IF($C120<>0,SUMPRODUCT((N$111:N$112)*TRANSPOSE(($D120:$E120))),0) -> 167743.5987 | O120: =O$110+IF($C120<>0,SUMPRODUCT((O$111:O$112)*TRANSPOSE(($D120:$E120))),0) -> 270898.4744 | P120: =P$110+IF($C120<>0,SUMPRODUCT((P$111:P$112)*TRANSPOSE(($D120:$E120))),0) -> 373436.8891 | Q120: =Q$110+IF($C120<>0,SUMPRODUCT((Q$111:Q$112)*TRANSPOSE(($D120:$E120))),0) -> 462383.0008 | R120: =R$110+IF($C120<>0,SUMPRODUCT((R$111:R$112)*TRANSPOSE(($D120:$E120))),0) -> 462383.0008 | S120: =S$110+IF($C120<>0,SUMPRODUCT((S$111:S$112)*TRANSPOSE(($D120:$E120))),0) -> 462383.0008 | T120: =T$110+IF($C120<>0,SUMPRODUCT((T$111:T$112)*TRANSPOSE(($D120:$E120))),0) -> 462383.0008 | U120: =U$110+IF($C120<>0,SUMPRODUCT((U$111:U$112)*TRANSPOSE(($D120:$E120))),0) -> 462383.0008 | V120: =V$110+IF($C120<>0,SUMPRODUCT((V$111:V$112)*TRANSPOSE(($D120:$E120))),0) -> 462383.0008 | W120: =W$110+IF($C120<>0,SUMPRODUCT((W$111:W$112)*TRANSPOSE(($D120:$E120))),0) -> 462383.0008 | X120: =X$110+IF($C120<>0,SUMPRODUCT((X$111:X$112)*TRANSPOSE(($D120:$E120))),0) -> 462383.0008 | Y120: =Y$110+IF($C120<>0,SUMPRODUCT((Y$111:Y$112)*TRANSPOSE(($D120:$E120))),0) -> 462383.0008 | Z120: =Z$110+IF($C120<>0,SUMPRODUCT((Z$111:Z$112)*TRANSPOSE(($D120:$E120))),0) -> 462383.0008 | AA120: =AA$110+IF($C120<>0,SUMPRODUCT((AA$111:AA$112)*TRANSPOSE(($D120:$E120))),0) -> 462383.0008 | AB120: =AB$110+IF($C120<>0,SUMPRODUCT((AB$111:AB$112)*TRANSPOSE(($D120:$E120))),0) -> 462383.0008 | AC120: =AC$110+IF($C120<>0,SUMPRODUCT((AC$111:AC$112)*TRANSPOSE(($D120:$E120))),0) -> 462383.0008 | AD120: =AD$110+IF($C120<>0,SUMPRODUCT((AD$111:AD$112)*TRANSPOSE(($D120:$E120))),0) -> 462383.0008 | AE120: =AE$110+IF($C120<>0,SUMPRODUCT((AE$111:AE$112)*TRANSPOSE(($D120:$E120))),0) -> 462383.0008 | AF120: =AF$110+IF($C120<>0,SUMPRODUCT((AF$111:AF$112)*TRANSPOSE(($D120:$E120))),0) -> 462383.0008 | AG120: =AG$110+IF($C120<>0,SUMPRODUCT((AG$111:AG$112)*TRANSPOSE(($D120:$E120))),0) -> 462383.0008
A121: ="sens"&Assumptions!B118 -> sens | C121: =Assumptions!C118 -> 0 | D121: =Assumptions!G118 -> 0 | E121: =Assumptions!H118 -> 0 | G121: Option 2sens | I121: =I$110+IF($C121<>0,SUMPRODUCT((I$111:I$112)*TRANSPOSE(($D121:$E121))),0) -> 0 | J121: =J$110+IF($C121<>0,SUMPRODUCT((J$111:J$112)*TRANSPOSE(($D121:$E121))),0) -> 0 | K121: =K$110+IF($C121<>0,SUMPRODUCT((K$111:K$112)*TRANSPOSE(($D121:$E121))),0) -> 8241.387878 | L121: =L$110+IF($C121<>0,SUMPRODUCT((L$111:L$112)*TRANSPOSE(($D121:$E121))),0) -> 42177.53817 | M121: =M$110+IF($C121<>0,SUMPRODUCT((M$111:M$112)*TRANSPOSE(($D121:$E121))),0) -> 88638.29131 | N121: =N$110+IF($C121<>0,SUMPRODUCT((N$111:N$112)*TRANSPOSE(($D121:$E121))),0) -> 167743.5987 | O121: =O$110+IF($C121<>0,SUMPRODUCT((O$111:O$112)*TRANSPOSE(($D121:$E121))),0) -> 270898.4744 | P121: =P$110+IF($C121<>0,SUMPRODUCT((P$111:P$112)*TRANSPOSE(($D121:$E121))),0) -> 373436.8891 | Q121: =Q$110+IF($C121<>0,SUMPRODUCT((Q$111:Q$112)*TRANSPOSE(($D121:$E121))),0) -> 462383.0008 | R121: =R$110+IF($C121<>0,SUMPRODUCT((R$111:R$112)*TRANSPOSE(($D121:$E121))),0) -> 462383.0008 | S121: =S$110+IF($C121<>0,SUMPRODUCT((S$111:S$112)*TRANSPOSE(($D121:$E121))),0) -> 462383.0008 | T121: =T$110+IF($C121<>0,SUMPRODUCT((T$111:T$112)*TRANSPOSE(($D121:$E121))),0) -> 462383.0008 | U121: =U$110+IF($C121<>0,SUMPRODUCT((U$111:U$112)*TRANSPOSE(($D121:$E121))),0) -> 462383.0008 | V121: =V$110+IF($C121<>0,SUMPRODUCT((V$111:V$112)*TRANSPOSE(($D121:$E121))),0) -> 462383.0008 | W121: =W$110+IF($C121<>0,SUMPRODUCT((W$111:W$112)*TRANSPOSE(($D121:$E121))),0) -> 462383.0008 | X121: =X$110+IF($C121<>0,SUMPRODUCT((X$111:X$112)*TRANSPOSE(($D121:$E121))),0) -> 462383.0008 | Y121: =Y$110+IF($C121<>0,SUMPRODUCT((Y$111:Y$112)*TRANSPOSE(($D121:$E121))),0) -> 462383.0008 | Z121: =Z$110+IF($C121<>0,SUMPRODUCT((Z$111:Z$112)*TRANSPOSE(($D121:$E121))),0) -> 462383.0008 | AA121: =AA$110+IF($C121<>0,SUMPRODUCT((AA$111:AA$112)*TRANSPOSE(($D121:$E121))),0) -> 462383.0008 | AB121: =AB$110+IF($C121<>0,SUMPRODUCT((AB$111:AB$112)*TRANSPOSE(($D121:$E121))),0) -> 462383.0008 | AC121: =AC$110+IF($C121<>0,SUMPRODUCT((AC$111:AC$112)*TRANSPOSE(($D121:$E121))),0) -> 462383.0008 | AD121: =AD$110+IF($C121<>0,SUMPRODUCT((AD$111:AD$112)*TRANSPOSE(($D121:$E121))),0) -> 462383.0008 | AE121: =AE$110+IF($C121<>0,SUMPRODUCT((AE$111:AE$112)*TRANSPOSE(($D121:$E121))),0) -> 462383.0008 | AF121: =AF$110+IF($C121<>0,SUMPRODUCT((AF$111:AF$112)*TRANSPOSE(($D121:$E121))),0) -> 462383.0008 | AG121: =AG$110+IF($C121<>0,SUMPRODUCT((AG$111:AG$112)*TRANSPOSE(($D121:$E121))),0) -> 462383.0008

Sheet Option3
A1: =bus -> Powercor
A2: =proj -> Drysdale feeder: DDL023
A3: OPTION 3 | C3: =INDEX(Assumptions!$E$14:$E$18, MATCH(A3,_xlfn.ANCHORARRAY( Assumptions!$C$14),0)) -> WPD032 construct a new feeder
A4: =(INDEX(Data!$D$9:$D$13, MATCH(A3, options,0))) -> 
A6: ='Option1 (base case)'!A6 -> Count | I6: ='Option1 (base case)'!I6 -> 1 | J6: ='Option1 (base case)'!J6 -> 2 | K6: ='Option1 (base case)'!K6 -> 3 | L6: ='Option1 (base case)'!L6 -> 4 | M6: ='Option1 (base case)'!M6 -> 5 | N6: ='Option1 (base case)'!N6 -> 6 | O6: ='Option1 (base case)'!O6 -> 7 | P6: ='Option1 (base case)'!P6 -> 8 | Q6: ='Option1 (base case)'!Q6 -> 9 | R6: ='Option1 (base case)'!R6 -> 10 | S6: ='Option1 (base case)'!S6 -> 11 | T6: ='Option1 (base case)'!T6 -> 12 | U6: ='Option1 (base case)'!U6 -> 13 | V6: ='Option1 (base case)'!V6 -> 14 | W6: ='Option1 (base case)'!W6 -> 15 | X6: ='Option1 (base case)'!X6 -> 16 | Y6: ='Option1 (base case)'!Y6 -> 17 | Z6: ='Option1 (base case)'!Z6 -> 18 | AA6: ='Option1 (base case)'!AA6 -> 19 | AB6: ='Option1 (base case)'!AB6 -> 20 | AC6: ='Option1 (base case)'!AC6 -> 21 | AD6: ='Option1 (base case)'!AD6 -> 22 | AE6: ='Option1 (base case)'!AE6 -> 23 | AF6: ='Option1 (base case)'!AF6 -> 24 | AG6: ='Option1 (base case)'!AG6 -> 25
A7: ='Option1 (base case)'!A7 -> Value of CO2 reductions | G7: $/MWh | I7: ='Option1 (base case)'!I7 -> 24.7304868 | J7: ='Option1 (base case)'!J7 -> 22.34074009 | K7: ='Option1 (base case)'!K7 -> 20.19632912 | L7: ='Option1 (base case)'!L7 -> 18.06294208 | M7: ='Option1 (base case)'!M7 -> 15.91339762 | N7: ='Option1 (base case)'!N7 -> 13.71506943 | O7: ='Option1 (base case)'!O7 -> 13.71506943 | P7: ='Option1 (base case)'!P7 -> 13.71506943 | Q7: ='Option1 (base case)'!Q7 -> 13.71506943 | R7: ='Option1 (base case)'!R7 -> 13.71506943 | S7: ='Option1 (base case)'!S7 -> 13.71506943 | T7: ='Option1 (base case)'!T7 -> 13.71506943 | U7: ='Option1 (base case)'!U7 -> 13.71506943 | V7: ='Option1 (base case)'!V7 -> 13.71506943 | W7: ='Option1 (base case)'!W7 -> 13.71506943 | X7: ='Option1 (base case)'!X7 -> 13.71506943 | Y7: ='Option1 (base case)'!Y7 -> 13.71506943 | Z7: ='Option1 (base case)'!Z7 -> 13.71506943 | AA7: ='Option1 (base case)'!AA7 -> 13.71506943 | AB7: ='Option1 (base case)'!AB7 -> 13.71506943 | AC7: ='Option1 (base case)'!AC7 -> 13.71506943 | AD7: ='Option1 (base case)'!AD7 -> 13.71506943 | AE7: ='Option1 (base case)'!AE7 -> 13.71506943 | AF7: ='Option1 (base case)'!AF7 -> 13.71506943 | AG7: ='Option1 (base case)'!AG7 -> 13.71506943
I8: =_xlfn.NUMBERVALUE(LEFT(I$9,4))+1 -> 2027 | J8: =_xlfn.NUMBERVALUE(LEFT(J$9,4))+1 -> 2028 | K8: 2029 | L8: 2030 | M8: 2031 | N8: 2032 | O8: 2033 | P8: 2034 | Q8: 2035 | R8: 2036 | S8: 2037 | T8: 2038 | U8: 2039 | V8: 2040 | W8: 2041 | X8: 2042 | Y8: 2043 | Z8: 2044 | AA8: 2045 | AB8: 2046 | AC8: 2047 | AD8: 2048 | AE8: 2049 | AF8: 2050 | AG8: 2051
G9: Units | I9: ='Option1 (base case)'!I9 -> 2026-27 | J9: ='Option1 (base case)'!J9 -> 2027-28 | K9: ='Option1 (base case)'!K9 -> 2028-29 | L9: ='Option1 (base case)'!L9 -> 2029-30 | M9: ='Option1 (base case)'!M9 -> 2030-31 | N9: ='Option1 (base case)'!N9 -> 2031-32 | O9: ='Option1 (base case)'!O9 -> 2032-33 | P9: ='Option1 (base case)'!P9 -> 2033-34 | Q9: ='Option1 (base case)'!Q9 -> 2034-35 | R9: ='Option1 (base case)'!R9 -> 2035-36 | S9: ='Option1 (base case)'!S9 -> 2036-37 | T9: ='Option1 (base case)'!T9 -> 2037-38 | U9: ='Option1 (base case)'!U9 -> 2038-39 | V9: ='Option1 (base case)'!V9 -> 2039-40 | W9: ='Option1 (base case)'!W9 -> 2040-41 | X9: ='Option1 (base case)'!X9 -> 2041-42 | Y9: ='Option1 (base case)'!Y9 -> 2042-43 | Z9: ='Option1 (base case)'!Z9 -> 2043-44 | AA9: ='Option1 (base case)'!AA9 -> 2044-45 | AB9: ='Option1 (base case)'!AB9 -> 2045-46 | AC9: ='Option1 (base case)'!AC9 -> 2046-47 | AD9: ='Option1 (base case)'!AD9 -> 2047-48 | AE9: ='Option1 (base case)'!AE9 -> 2048-49 | AF9: ='Option1 (base case)'!AF9 -> 2049-50 | AG9: ='Option1 (base case)'!AG9 -> 2050-51
A11: INVESTMENT & OPERATING COST
C13: Capex | E13: Asset life (yrs)
C14: =C3 -> WPD032 construct a new feeder | E14: 50 | G14: =input_dollars -> 2023-12-31 | I14: 0 | J14: 0 | K14: 0 | L14: 0 | M14: 4100000 | N14: 0 | O14: 0 | P14: 0 | Q14: 0 | R14: 0 | S14: 0 | T14: 0 | U14: 0 | V14: 0 | W14: 0 | X14: 0 | Y14: 0 | Z14: 0 | AA14: 0 | AB14: 0 | AC14: 0 | AD14: 0 | AE14: 0 | AF14: 0 | AG14: 0
E15: 0 | G15: =input_dollars -> 2023-12-31 | I15: 0 | J15: 0 | K15: 0 | L15: 0 | M15: 0 | N15: 0 | O15: 0 | P15: 0 | Q15: 0 | R15: 0 | S15: 0 | T15: 0 | U15: 0 | V15: 0 | W15: 0 | X15: 0 | Y15: 0 | Z15: 0 | AA15: 0 | AB15: 0 | AC15: 0 | AD15: 0 | AE15: 0 | AF15: 0 | AG15: 0
E16: 0 | G16: =input_dollars -> 2023-12-31 | I16: 0 | J16: 0 | K16: 0 | L16: 0 | M16: 0 | N16: 0 | O16: 0 | P16: 0 | Q16: 0 | R16: 0 | S16: 0 | T16: 0 | U16: 0 | V16: 0 | W16: 0 | X16: 0 | Y16: 0 | Z16: 0 | AA16: 0 | AB16: 0 | AC16: 0 | AD16: 0 | AE16: 0 | AF16: 0 | AG16: 0
C17: Capital expenditure | G17: =input_dollars -> 2023-12-31 | I17: =SUM(I14:I16) -> 0 | J17: 0 | K17: 0 | L17: 0 | M17: 4100000 | N17: 0 | O17: 0 | P17: 0 | Q17: 0 | R17: =SUM(R14:R16) -> 0 | S17: 0 | T17: 0 | U17: 0 | V17: 0 | W17: 0 | X17: 0 | Y17: 0 | Z17: 0 | AA17: 0 | AB17: 0 | AC17: =SUM(AC14:AC16) -> 0 | AD17: =SUM(AD14:AD16) -> 0 | AE17: =SUM(AE14:AE16) -> 0 | AF17: =SUM(AF14:AF16) -> 0 | AG17: =SUM(AG14:AG16) -> 0
C19: Operating expenditure | G19: =input_dollars -> 2023-12-31 | I19: 0 | J19: 0 | K19: 0 | L19: 0 | M19: 0 | N19: 0 | O19: 0 | P19: 0 | Q19: 0 | R19: 0 | S19: 0 | T19: 0 | U19: 0 | V19: 0 | W19: 0 | X19: 0 | Y19: 0 | Z19: 0 | AA19: 0 | AB19: 0 | AC19: 0 | AD19: 0 | AE19: 0 | AF19: 0 | AG19: 0
A22: RISK ASSUMPTIONS
C24: PoF (major) | I24: 0 | J24: 0 | K24: 0 | L24: 0 | M24: 0 | N24: 0 | O24: 0 | P24: 0 | Q24: 0 | R24: 0 | S24: 0 | T24: 0 | U24: 0 | V24: 0 | W24: 0 | X24: 0 | Y24: 0 | Z24: 0 | AA24: 0 | AB24: 0 | AC24: 0 | AD24: 0 | AE24: 0 | AF24: 0 | AG24: 0
C25: PoF (reparable) | I25: 0 | J25: 0 | K25: 0 | L25: 0 | M25: 0 | N25: 0 | O25: 0 | P25: 0 | Q25: 0 | R25: 0 | S25: 0 | T25: 0 | U25: 0 | V25: 0 | W25: 0 | X25: 0 | Y25: 0 | Z25: 0 | AA25: 0 | AB25: 0 | AC25: 0 | AD25: 0 | AE25: 0 | AF25: 0 | AG25: 0
C27: Const end date | E27: 2031
C28: Energy at risk 10% PoE | E28: 0.3 | G28: MWh | I28: 1.882346464 | J28: 3.332970933 | K28: 5.205154873 | L28: 6.984555022 | M28: 9.320524401 | N28: 0 | O28: 0 | P28: 0 | Q28: 0 | R28: 0 | S28: 0 | T28: 0 | U28: 0 | V28: 0 | W28: 0 | X28: 0 | Y28: 0 | Z28: 0 | AA28: 0 | AB28: 0 | AC28: 0 | AD28: 0 | AE28: 0 | AF28: 0 | AG28: 0
C29: Energy at risk 50% PoE | E29: 0.7 | G29: MWh | I29: 0.01953720068 | J29: 0.1719086652 | K29: 0.6515433201 | L29: 1.268957205 | M29: 2.157154541 | N29: 0 | O29: 0 | P29: 0 | Q29: 0 | R29: 0 | S29: 0 | T29: 0 | U29: 0 | V29: 0 | W29: 0 | X29: 0 | Y29: 0 | Z29: 0 | AA29: 0 | AB29: 0 | AC29: 0 | AD29: 0 | AE29: 0 | AF29: 0 | AG29: 0
C31: Energy at risk (weighted) | G31: MWh | I31: =SUMPRODUCT(I$28:I$29, $E$28:$E$29) -> 0.5783799797 | J31: =SUMPRODUCT(J$28:J$29, $E$28:$E$29) -> 1.120227345 | K31: 2.017626786 | L31: 2.98363655 | M31: 4.306165499 | N31: 0 | O31: 0 | P31: 0 | Q31: 0 | R31: 0 | S31: 0 | T31: 0 | U31: 0 | V31: 0 | W31: 0 | X31: 0 | Y31: 0 | Z31: 0 | AA31: 0 | AB31: 0 | AC31: 0 | AD31: 0 | AE31: 0 | AF31: 0 | AG31: 0
C32: Energy at risk value | D32: $/MWh | E32: =Assumptions!H41*vcr_esc -> 35130.23528 | F32: =IF(AND(SUM(I31:AG31)<>0, E32=0), "!", "") ->  | G32: =input_dollars -> 2023-12-31 | I32: =I31*$E$32 -> 20318.62477 | J32: =J31*$E$32 -> 39353.85021 | K32: 70879.7037 | L32: 104815.854 | M32: 151276.6071 | N32: 0 | O32: 0 | P32: 0 | Q32: 0 | R32: 0 | S32: 0 | T32: 0 | U32: 0 | V32: 0 | W32: 0 | X32: 0 | Y32: 0 | Z32: 0 | AA32: 0 | AB32: 0 | AC32: 0 | AD32: 0 | AE32: 0 | AF32: 0 | AG32: 0
C34: Safety consequence | D34: (after DF) | G34: =input_dollars -> 2023-12-31 | I34: 0 | J34: 0 | K34: 0 | L34: 0 | M34: 0 | N34: 0 | O34: 0 | P34: 0 | Q34: 0 | R34: 0 | S34: 0 | T34: 0 | U34: 0 | V34: 0 | W34: 0 | X34: 0 | Y34: 0 | Z34: 0 | AA34: 0 | AB34: 0 | AC34: 0 | AD34: 0 | AE34: 0 | AF34: 0 | AG34: 0
C35: Unplanned replacements | G35: =input_dollars -> 2023-12-31 | I35: 0 | J35: 0 | K35: 0 | L35: 0 | M35: 0 | N35: 0 | O35: 0 | P35: 0 | Q35: 0 | R35: 0 | S35: 0 | T35: 0 | U35: 0 | V35: 0 | W35: 0 | X35: 0 | Y35: 0 | Z35: 0 | AA35: 0 | AB35: 0 | AC35: 0 | AD35: 0 | AE35: 0 | AF35: 0 | AG35: 0
C36: Environmental consequence | D36: (after DF) | G36: =input_dollars -> 2023-12-31 | I36: 0 | J36: 0 | K36: 0 | L36: 0 | M36: 0 | N36: 0 | O36: 0 | P36: 0 | Q36: 0 | R36: 0 | S36: 0 | T36: 0 | U36: 0 | V36: 0 | W36: 0 | X36: 0 | Y36: 0 | Z36: 0 | AA36: 0 | AB36: 0 | AC36: 0 | AD36: 0 | AE36: 0 | AF36: 0 | AG36: 0
C37: < Other risk - enter description > | G37: =input_dollars -> 2023-12-31 | I37: 0 | J37: 0 | K37: 0 | L37: 0 | M37: 0 | N37: 0 | O37: 0 | P37: 0 | Q37: 0 | R37: 0 | S37: 0 | T37: 0 | U37: 0 | V37: 0 | W37: 0 | X37: 0 | Y37: 0 | Z37: 0 | AA37: 0 | AB37: 0 | AC37: 0 | AD37: 0 | AE37: 0 | AF37: 0 | AG37: 0
C38: < Other risk - enter description > | G38: =input_dollars -> 2023-12-31 | I38: 0 | J38: 0 | K38: 0 | L38: 0 | M38: 0 | N38: 0 | O38: 0 | P38: 0 | Q38: 0 | R38: 0 | S38: 0 | T38: 0 | U38: 0 | V38: 0 | W38: 0 | X38: 0 | Y38: 0 | Z38: 0 | AA38: 0 | AB38: 0 | AC38: 0 | AD38: 0 | AE38: 0 | AF38: 0 | AG38: 0
C40: Total risk cost | I40: =SUM(I32:I38) -> 20318.62477 | J40: =SUM(J32:J38) -> 39353.85021 | K40: 70879.7037 | L40: 104815.854 | M40: 151276.6071 | N40: 0 | O40: 0 | P40: 0 | Q40: 0 | R40: 0 | S40: 0 | T40: 0 | U40: 0 | V40: 0 | W40: 0 | X40: 0 | Y40: 0 | Z40: 0 | AA40: 0 | AB40: 0 | AC40: =SUM(AC32:AC38) -> 0 | AD40: =SUM(AD32:AD38) -> 0 | AE40: =SUM(AE32:AE38) -> 0 | AF40: =SUM(AF32:AF38) -> 0 | AG40: =SUM(AG32:AG38) -> 0
A42: OTHER BENEFITS
C45: Reduction in CO2 emissions | G45: MWh | I45: 0 | J45: 0 | K45: 0 | L45: 0 | M45: 0 | N45: 0 | O45: 0 | P45: 0 | Q45: 0 | R45: 0 | S45: 0 | T45: 0 | U45: 0 | V45: 0 | W45: 0 | X45: 0 | Y45: 0 | Z45: 0 | AA45: 0 | AB45: 0 | AC45: 0 | AD45: 0 | AE45: 0 | AF45: 0 | AG45: 0
C46: Value of reduction in CO2 emissions | G46: $ | I46: =I45*I7 -> 0 | J46: 0 | K46: 0 | L46: 0 | M46: 0 | N46: 0 | O46: 0 | P46: 0 | Q46: 0 | R46: 0 | S46: 0 | T46: 0 | U46: 0 | V46: 0 | W46: 0 | X46: 0 | Y46: 0 | Z46: 0 | AA46: 0 | AB46: 0 | AC46: 0 | AD46: 0 | AE46: 0 | AF46: 0 | AG46: 0
C49: Reliability in worst-served areas | D49: $/MWh | E49: =Assumptions!G94 -> 151432.8174 | G49: MWh | I49: 0 | J49: 0 | K49: 0 | L49: 0 | M49: 0 | N49: 0 | O49: 0 | P49: 0 | Q49: 0 | R49: 0 | S49: 0 | T49: 0 | U49: 0 | V49: 0 | W49: 0 | X49: 0 | Y49: 0 | Z49: 0 | AA49: 0 | AB49: 0 | AC49: 0 | AD49: 0 | AE49: 0 | AF49: 0 | AG49: 0
C50: Network resilience | D50: $/MWh | E50: =Assumptions!G95 -> 24590 | G50: MWh | I50: 0 | J50: 0 | K50: 0 | L50: 0 | M50: 0 | N50: 0 | O50: 0 | P50: 0 | Q50: 0 | R50: 0 | S50: 0 | T50: 0 | U50: 0 | V50: 0 | W50: 0 | X50: 0 | Y50: 0 | Z50: 0 | AA50: 0 | AB50: 0 | AC50: 0 | AD50: 0 | AE50: 0 | AF50: 0 | AG50: 0
C51: Enabling solar exports | D51: $/MWh | E51: =Assumptions!G96 -> 88.35771951 | G51: MWh | I51: 0 | J51: 0 | K51: 0 | L51: 0 | M51: 0 | N51: 0 | O51: 0 | P51: 0 | Q51: 0 | R51: 0 | S51: 0 | T51: 0 | U51: 0 | V51: 0 | W51: 0 | X51: 0 | Y51: 0 | Z51: 0 | AA51: 0 | AB51: 0 | AC51: 0 | AD51: 0 | AE51: 0 | AF51: 0 | AG51: 0
C52: Aesthetics | D52: $/customer | E52: =Assumptions!G97 -> 0 | G52: customers | I52: 0 | J52: 0 | K52: 0 | L52: 0 | M52: 0 | N52: 0 | O52: 0 | P52: 0 | Q52: 0 | R52: 0 | S52: 0 | T52: 0 | U52: 0 | V52: 0 | W52: 0 | X52: 0 | Y52: 0 | Z52: 0 | AA52: 0 | AB52: 0 | AC52: 0 | AD52: 0 | AE52: 0 | AF52: 0 | AG52: 0
C53: Customer value of time (res) | D53: $/customer min | E53: =Assumptions!G98 -> 0.3518133654 | G53: mins | I53: 0 | J53: 0 | K53: 0 | L53: 0 | M53: 0 | N53: 0 | O53: 0 | P53: 0 | Q53: 0 | R53: 0 | S53: 0 | T53: 0 | U53: 0 | V53: 0 | W53: 0 | X53: 0 | Y53: 0 | Z53: 0 | AA53: 0 | AB53: 0 | AC53: 0 | AD53: 0 | AE53: 0 | AF53: 0 | AG53: 0
C54: Customer value of time (bus) | D54: $/customer min | E54: =Assumptions!G99 -> 0.3518133654 | G54: mins | I54: 0 | J54: 0 | K54: 0 | L54: 0 | M54: 0 | N54: 0 | O54: 0 | P54: 0 | Q54: 0 | R54: 0 | S54: 0 | T54: 0 | U54: 0 | V54: 0 | W54: 0 | X54: 0 | Y54: 0 | Z54: 0 | AA54: 0 | AB54: 0 | AC54: 0 | AD54: 0 | AE54: 0 | AF54: 0 | AG54: 0
C55: Communication | D55: $/customer | E55: =Assumptions!G100 -> 0 | G55: customers | I55: 0 | J55: 0 | K55: 0 | L55: 0 | M55: 0 | N55: 0 | O55: 0 | P55: 0 | Q55: 0 | R55: 0 | S55: 0 | T55: 0 | U55: 0 | V55: 0 | W55: 0 | X55: 0 | Y55: 0 | Z55: 0 | AA55: 0 | AB55: 0 | AC55: 0 | AD55: 0 | AE55: 0 | AF55: 0 | AG55: 0
C56: Information accessibility | D56: $/customer | E56: =Assumptions!G101 -> 0 | G56: customers | I56: 0 | J56: 0 | K56: 0 | L56: 0 | M56: 0 | N56: 0 | O56: 0 | P56: 0 | Q56: 0 | R56: 0 | S56: 0 | T56: 0 | U56: 0 | V56: 0 | W56: 0 | X56: 0 | Y56: 0 | Z56: 0 | AA56: 0 | AB56: 0 | AC56: 0 | AD56: 0 | AE56: 0 | AF56: 0 | AG56: 0
C58: Other benefits 1 | G58: =input_dollars -> 2023-12-31 | I58: 0 | J58: 0 | K58: 0 | L58: 0 | M58: 0 | N58: 0 | O58: 0 | P58: 0 | Q58: 0 | R58: 0 | S58: 0 | T58: 0 | U58: 0 | V58: 0 | W58: 0 | X58: 0 | Y58: 0 | Z58: 0 | AA58: 0 | AB58: 0 | AC58: 0 | AD58: 0 | AE58: 0 | AF58: 0 | AG58: 0
C59: Other benefits 2 | G59: =input_dollars -> 2023-12-31 | I59: 0 | J59: 0 | K59: 0 | L59: 0 | M59: 0 | N59: 0 | O59: 0 | P59: 0 | Q59: 0 | R59: 0 | S59: 0 | T59: 0 | U59: 0 | V59: 0 | W59: 0 | X59: 0 | Y59: 0 | Z59: 0 | AA59: 0 | AB59: 0 | AC59: 0 | AD59: 0 | AE59: 0 | AF59: 0 | AG59: 0
C61: Total other benefits | G61: =input_dollars -> 2023-12-31 | I61: =SUMPRODUCT((I$49:I$56)*($E$49:$E$56))+SUM(I58:I59)+I46 -> 0 | J61: =SUMPRODUCT((J$49:J$56)*($E$49:$E$56))+SUM(J58:J59)+J46 -> 0 | K61: =SUMPRODUCT((K$49:K$56)*($E$49:$E$56))+SUM(K58:K59)+K46 -> 0 | L61: =SUMPRODUCT((L$49:L$56)*($E$49:$E$56))+SUM(L58:L59)+L46 -> 0 | M61: =SUMPRODUCT((M$49:M$56)*($E$49:$E$56))+SUM(M58:M59)+M46 -> 0 | N61: =SUMPRODUCT((N$49:N$56)*($E$49:$E$56))+SUM(N58:N59)+N46 -> 0 | O61: =SUMPRODUCT((O$49:O$56)*($E$49:$E$56))+SUM(O58:O59)+O46 -> 0 | P61: =SUMPRODUCT((P$49:P$56)*($E$49:$E$56))+SUM(P58:P59)+P46 -> 0 | Q61: =SUMPRODUCT((Q$49:Q$56)*($E$49:$E$56))+SUM(Q58:Q59)+Q46 -> 0 | R61: =SUMPRODUCT((R$49:R$56)*($E$49:$E$56))+SUM(R58:R59)+R46 -> 0 | S61: =SUMPRODUCT((S$49:S$56)*($E$49:$E$56))+SUM(S58:S59)+S46 -> 0 | T61: =SUMPRODUCT((T$49:T$56)*($E$49:$E$56))+SUM(T58:T59)+T46 -> 0 | U61: =SUMPRODUCT((U$49:U$56)*($E$49:$E$56))+SUM(U58:U59)+U46 -> 0 | V61: =SUMPRODUCT((V$49:V$56)*($E$49:$E$56))+SUM(V58:V59)+V46 -> 0 | W61: =SUMPRODUCT((W$49:W$56)*($E$49:$E$56))+SUM(W58:W59)+W46 -> 0 | X61: =SUMPRODUCT((X$49:X$56)*($E$49:$E$56))+SUM(X58:X59)+X46 -> 0 | Y61: =SUMPRODUCT((Y$49:Y$56)*($E$49:$E$56))+SUM(Y58:Y59)+Y46 -> 0 | Z61: =SUMPRODUCT((Z$49:Z$56)*($E$49:$E$56))+SUM(Z58:Z59)+Z46 -> 0 | AA61: =SUMPRODUCT((AA$49:AA$56)*($E$49:$E$56))+SUM(AA58:AA59)+AA46 -> 0 | AB61: =SUMPRODUCT((AB$49:AB$56)*($E$49:$E$56))+SUM(AB58:AB59)+AB46 -> 0 | AC61: =SUMPRODUCT((AC$49:AC$56)*($E$49:$E$56))+SUM(AC58:AC59)+AC46 -> 0 | AD61: =SUMPRODUCT((AD$49:AD$56)*($E$49:$E$56))+SUM(AD58:AD59)+AD46 -> 0 | AE61: =SUMPRODUCT((AE$49:AE$56)*($E$49:$E$56))+SUM(AE58:AE59)+AE46 -> 0 | AF61: =SUMPRODUCT((AF$49:AF$56)*($E$49:$E$56))+SUM(AF58:AF59)+AF46 -> 0 | AG61: =SUMPRODUCT((AG$49:AG$56)*($E$49:$E$56))+SUM(AG58:AG59)+AG46 -> 0
A64: SUMMARY
C68: ='Option1 (base case)'!C67 -> Risks mitigated vs base case | G68: =input_dollars -> 2023-12-31 | I68: =(1-INDEX(Data!$C$9:$C$13, MATCH($A$3, options,0)))*('Option1 (base case)'!I39-I40) -> 0 | J68: =(1-INDEX(Data!$C$9:$C$13, MATCH($A$3, options,0)))*('Option1 (base case)'!J39-J40) -> 0 | K68: =(1-INDEX(Data!$C$9:$C$13, MATCH($A$3, options,0)))*('Option1 (base case)'!K39-K40) -> 0 | L68: =(1-INDEX(Data!$C$9:$C$13, MATCH($A$3, options,0)))*('Option1 (base case)'!L39-L40) -> 0 | M68: =(1-INDEX(Data!$C$9:$C$13, MATCH($A$3, options,0)))*('Option1 (base case)'!M39-M40) -> 0 | N68: =(1-INDEX(Data!$C$9:$C$13, MATCH($A$3, options,0)))*('Option1 (base case)'!N39-N40) -> 230381.9146 | O68: =(1-INDEX(Data!$C$9:$C$13, MATCH($A$3, options,0)))*('Option1 (base case)'!O39-O40) -> 333536.7902 | P68: =(1-INDEX(Data!$C$9:$C$13, MATCH($A$3, options,0)))*('Option1 (base case)'!P39-P40) -> 436075.2049 | Q68: =(1-INDEX(Data!$C$9:$C$13, MATCH($A$3, options,0)))*('Option1 (base case)'!Q39-Q40) -> 525021.3166 | R68: =(1-INDEX(Data!$C$9:$C$13, MATCH($A$3, options,0)))*('Option1 (base case)'!R39-R40) -> 525021.3166 | S68: =(1-INDEX(Data!$C$9:$C$13, MATCH($A$3, options,0)))*('Option1 (base case)'!S39-S40) -> 525021.3166 | T68: =(1-INDEX(Data!$C$9:$C$13, MATCH($A$3, options,0)))*('Option1 (base case)'!T39-T40) -> 525021.3166 | U68: =(1-INDEX(Data!$C$9:$C$13, MATCH($A$3, options,0)))*('Option1 (base case)'!U39-U40) -> 525021.3166 | V68: =(1-INDEX(Data!$C$9:$C$13, MATCH($A$3, options,0)))*('Option1 (base case)'!V39-V40) -> 525021.3166 | W68: =(1-INDEX(Data!$C$9:$C$13, MATCH($A$3, options,0)))*('Option1 (base case)'!W39-W40) -> 525021.3166 | X68: =(1-INDEX(Data!$C$9:$C$13, MATCH($A$3, options,0)))*('Option1 (base case)'!X39-X40) -> 525021.3166 | Y68: =(1-INDEX(Data!$C$9:$C$13, MATCH($A$3, options,0)))*('Option1 (base case)'!Y39-Y40) -> 525021.3166 | Z68: =(1-INDEX(Data!$C$9:$C$13, MATCH($A$3, options,0)))*('Option1 (base case)'!Z39-Z40) -> 525021.3166 | AA68: =(1-INDEX(Data!$C$9:$C$13, MATCH($A$3, options,0)))*('Option1 (base case)'!AA39-AA40) -> 525021.3166 | AB68: =(1-INDEX(Data!$C$9:$C$13, MATCH($A$3, options,0)))*('Option1 (base case)'!AB39-AB40) -> 525021.3166 | AC68: =(1-INDEX(Data!$C$9:$C$13, MATCH($A$3, options,0)))*('Option1 (base case)'!AC39-AC40) -> 525021.3166 | AD68: =(1-INDEX(Data!$C$9:$C$13, MATCH($A$3, options,0)))*('Option1 (base case)'!AD39-AD40) -> 525021.3166 | AE68: =(1-INDEX(Data!$C$9:$C$13, MATCH($A$3, options,0)))*('Option1 (base case)'!AE39-AE40) -> 525021.3166 | AF68: =(1-INDEX(Data!$C$9:$C$13, MATCH($A$3, options,0)))*('Option1 (base case)'!AF39-AF40) -> 525021.3166 | AG68: =(1-INDEX(Data!$C$9:$C$13, MATCH($A$3, options,0)))*('Option1 (base case)'!AG39-AG40) -> 525021.3166
C70: Capital expenditure
C71: =C14 -> WPD032 construct a new feeder | G71: =input_dollars -> 2023-12-31 | I71: =-I14 -> 0 | J71: 0 | K71: 0 | L71: 0 | M71: -4100000 | N71: 0 | O71: 0 | P71: 0 | Q71: 0 | R71: 0 | S71: 0 | T71: 0 | U71: 0 | V71: 0 | W71: 0 | X71: 0 | Y71: 0 | Z71: 0 | AA71: 0 | AB71: 0 | AC71: 0 | AD71: 0 | AE71: 0 | AF71: 0 | AG71: 0
C72: =C15 -> 0 | G72: =input_dollars -> 2023-12-31 | I72: =-I15 -> 0 | J72: 0 | K72: 0 | L72: 0 | M72: 0 | N72: 0 | O72: 0 | P72: 0 | Q72: 0 | R72: 0 | S72: 0 | T72: 0 | U72: 0 | V72: 0 | W72: 0 | X72: 0 | Y72: 0 | Z72: 0 | AA72: 0 | AB72: 0 | AC72: 0 | AD72: 0 | AE72: 0 | AF72: 0 | AG72: 0
C73: =C16 -> 0 | G73: =input_dollars -> 2023-12-31 | I73: =-I16 -> 0 | J73: 0 | K73: 0 | L73: 0 | M73: 0 | N73: 0 | O73: 0 | P73: 0 | Q73: 0 | R73: 0 | S73: 0 | T73: 0 | U73: 0 | V73: 0 | W73: 0 | X73: 0 | Y73: 0 | Z73: 0 | AA73: 0 | AB73: 0 | AC73: 0 | AD73: 0 | AE73: 0 | AF73: 0 | AG73: 0
C75: Cumulative capex
C76: =C14 -> WPD032 construct a new feeder | G76: =input_dollars -> 2023-12-31 | I76: =SUMPRODUCT(($I71:I71))-SUMPRODUCT(($I71:I71)*($I$6:I$6<=(I$6-$E14))) -> 0 | J76: =SUMPRODUCT(($I71:J71))-SUMPRODUCT(($I71:J71)*($I$6:J$6<=(J$6-$E14))) -> 0 | K76: =SUMPRODUCT(($I71:K71))-SUMPRODUCT(($I71:K71)*($I$6:K$6<=(K$6-$E14))) -> 0 | L76: =SUMPRODUCT(($I71:L71))-SUMPRODUCT(($I71:L71)*($I$6:L$6<=(L$6-$E14))) -> 0 | M76: =SUMPRODUCT(($I71:M71))-SUMPRODUCT(($I71:M71)*($I$6:M$6<=(M$6-$E14))) -> -4100000 | N76: =SUMPRODUCT(($I71:N71))-SUMPRODUCT(($I71:N71)*($I$6:N$6<=(N$6-$E14))) -> -4100000 | O76: =SUMPRODUCT(($I71:O71))-SUMPRODUCT(($I71:O71)*($I$6:O$6<=(O$6-$E14))) -> -4100000 | P76: =SUMPRODUCT(($I71:P71))-SUMPRODUCT(($I71:P71)*($I$6:P$6<=(P$6-$E14))) -> -4100000 | Q76: =SUMPRODUCT(($I71:Q71))-SUMPRODUCT(($I71:Q71)*($I$6:Q$6<=(Q$6-$E14))) -> -4100000 | R76: =SUMPRODUCT(($I71:R71))-SUMPRODUCT(($I71:R71)*($I$6:R$6<=(R$6-$E14))) -> -4100000 | S76: =SUMPRODUCT(($I71:S71))-SUMPRODUCT(($I71:S71)*($I$6:S$6<=(S$6-$E14))) -> -4100000 | T76: =SUMPRODUCT(($I71:T71))-SUMPRODUCT(($I71:T71)*($I$6:T$6<=(T$6-$E14))) -> -4100000 | U76: =SUMPRODUCT(($I71:U71))-SUMPRODUCT(($I71:U71)*($I$6:U$6<=(U$6-$E14))) -> -4100000 | V76: =SUMPRODUCT(($I71:V71))-SUMPRODUCT(($I71:V71)*($I$6:V$6<=(V$6-$E14))) -> -4100000 | W76: =SUMPRODUCT(($I71:W71))-SUMPRODUCT(($I71:W71)*($I$6:W$6<=(W$6-$E14))) -> -4100000 | X76: =SUMPRODUCT(($I71:X71))-SUMPRODUCT(($I71:X71)*($I$6:X$6<=(X$6-$E14))) -> -4100000 | Y76: =SUMPRODUCT(($I71:Y71))-SUMPRODUCT(($I71:Y71)*($I$6:Y$6<=(Y$6-$E14))) -> -4100000 | Z76: =SUMPRODUCT(($I71:Z71))-SUMPRODUCT(($I71:Z71)*($I$6:Z$6<=(Z$6-$E14))) -> -4100000 | AA76: =SUMPRODUCT(($I71:AA71))-SUMPRODUCT(($I71:AA71)*($I$6:AA$6<=(AA$6-$E14))) -> -4100000 | AB76: =SUMPRODUCT(($I71:AB71))-SUMPRODUCT(($I71:AB71)*($I$6:AB$6<=(AB$6-$E14))) -> -4100000 | AC76: =SUMPRODUCT(($I71:AC71))-SUMPRODUCT(($I71:AC71)*($I$6:AC$6<=(AC$6-$E14))) -> -4100000 | AD76: =SUMPRODUCT(($I71:AD71))-SUMPRODUCT(($I71:AD71)*($I$6:AD$6<=(AD$6-$E14))) -> -4100000 | AE76: =SUMPRODUCT(($I71:AE71))-SUMPRODUCT(($I71:AE71)*($I$6:AE$6<=(AE$6-$E14))) -> -4100000 | AF76: =SUMPRODUCT(($I71:AF71))-SUMPRODUCT(($I71:AF71)*($I$6:AF$6<=(AF$6-$E14))) -> -4100000 | AG76: =SUMPRODUCT(($I71:AG71))-SUMPRODUCT(($I71:AG71)*($I$6:AG$6<=(AG$6-$E14))) -> -4100000
C77: =C15 -> 0 | G77: =input_dollars -> 2023-12-31 | I77: =SUMPRODUCT(($I72:I72))-SUMPRODUCT(($I72:I72)*($I$6:I$6<=(I$6-$E15))) -> 0 | J77: =SUMPRODUCT(($I72:J72))-SUMPRODUCT(($I72:J72)*($I$6:J$6<=(J$6-$E15))) -> 0 | K77: =SUMPRODUCT(($I72:K72))-SUMPRODUCT(($I72:K72)*($I$6:K$6<=(K$6-$E15))) -> 0 | L77: =SUMPRODUCT(($I72:L72))-SUMPRODUCT(($I72:L72)*($I$6:L$6<=(L$6-$E15))) -> 0 | M77: =SUMPRODUCT(($I72:M72))-SUMPRODUCT(($I72:M72)*($I$6:M$6<=(M$6-$E15))) -> 0 | N77: =SUMPRODUCT(($I72:N72))-SUMPRODUCT(($I72:N72)*($I$6:N$6<=(N$6-$E15))) -> 0 | O77: =SUMPRODUCT(($I72:O72))-SUMPRODUCT(($I72:O72)*($I$6:O$6<=(O$6-$E15))) -> 0 | P77: =SUMPRODUCT(($I72:P72))-SUMPRODUCT(($I72:P72)*($I$6:P$6<=(P$6-$E15))) -> 0 | Q77: =SUMPRODUCT(($I72:Q72))-SUMPRODUCT(($I72:Q72)*($I$6:Q$6<=(Q$6-$E15))) -> 0 | R77: =SUMPRODUCT(($I72:R72))-SUMPRODUCT(($I72:R72)*($I$6:R$6<=(R$6-$E15))) -> 0 | S77: =SUMPRODUCT(($I72:S72))-SUMPRODUCT(($I72:S72)*($I$6:S$6<=(S$6-$E15))) -> 0 | T77: =SUMPRODUCT(($I72:T72))-SUMPRODUCT(($I72:T72)*($I$6:T$6<=(T$6-$E15))) -> 0 | U77: =SUMPRODUCT(($I72:U72))-SUMPRODUCT(($I72:U72)*($I$6:U$6<=(U$6-$E15))) -> 0 | V77: =SUMPRODUCT(($I72:V72))-SUMPRODUCT(($I72:V72)*($I$6:V$6<=(V$6-$E15))) -> 0 | W77: =SUMPRODUCT(($I72:W72))-SUMPRODUCT(($I72:W72)*($I$6:W$6<=(W$6-$E15))) -> 0 | X77: =SUMPRODUCT(($I72:X72))-SUMPRODUCT(($I72:X72)*($I$6:X$6<=(X$6-$E15))) -> 0 | Y77: =SUMPRODUCT(($I72:Y72))-SUMPRODUCT(($I72:Y72)*($I$6:Y$6<=(Y$6-$E15))) -> 0 | Z77: =SUMPRODUCT(($I72:Z72))-SUMPRODUCT(($I72:Z72)*($I$6:Z$6<=(Z$6-$E15))) -> 0 | AA77: =SUMPRODUCT(($I72:AA72))-SUMPRODUCT(($I72:AA72)*($I$6:AA$6<=(AA$6-$E15))) -> 0 | AB77: =SUMPRODUCT(($I72:AB72))-SUMPRODUCT(($I72:AB72)*($I$6:AB$6<=(AB$6-$E15))) -> 0 | AC77: =SUMPRODUCT(($I72:AC72))-SUMPRODUCT(($I72:AC72)*($I$6:AC$6<=(AC$6-$E15))) -> 0 | AD77: =SUMPRODUCT(($I72:AD72))-SUMPRODUCT(($I72:AD72)*($I$6:AD$6<=(AD$6-$E15))) -> 0 | AE77: =SUMPRODUCT(($I72:AE72))-SUMPRODUCT(($I72:AE72)*($I$6:AE$6<=(AE$6-$E15))) -> 0 | AF77: =SUMPRODUCT(($I72:AF72))-SUMPRODUCT(($I72:AF72)*($I$6:AF$6<=(AF$6-$E15))) -> 0 | AG77: =SUMPRODUCT(($I72:AG72))-SUMPRODUCT(($I72:AG72)*($I$6:AG$6<=(AG$6-$E15))) -> 0
C78: =C16 -> 0 | G78: =input_dollars -> 2023-12-31 | I78: =SUMPRODUCT(($I73:I73))-SUMPRODUCT(($I73:I73)*($I$6:I$6<=(I$6-$E16))) -> 0 | J78: =SUMPRODUCT(($I73:J73))-SUMPRODUCT(($I73:J73)*($I$6:J$6<=(J$6-$E16))) -> 0 | K78: =SUMPRODUCT(($I73:K73))-SUMPRODUCT(($I73:K73)*($I$6:K$6<=(K$6-$E16))) -> 0 | L78: =SUMPRODUCT(($I73:L73))-SUMPRODUCT(($I73:L73)*($I$6:L$6<=(L$6-$E16))) -> 0 | M78: =SUMPRODUCT(($I73:M73))-SUMPRODUCT(($I73:M73)*($I$6:M$6<=(M$6-$E16))) -> 0 | N78: =SUMPRODUCT(($I73:N73))-SUMPRODUCT(($I73:N73)*($I$6:N$6<=(N$6-$E16))) -> 0 | O78: =SUMPRODUCT(($I73:O73))-SUMPRODUCT(($I73:O73)*($I$6:O$6<=(O$6-$E16))) -> 0 | P78: =SUMPRODUCT(($I73:P73))-SUMPRODUCT(($I73:P73)*($I$6:P$6<=(P$6-$E16))) -> 0 | Q78: =SUMPRODUCT(($I73:Q73))-SUMPRODUCT(($I73:Q73)*($I$6:Q$6<=(Q$6-$E16))) -> 0 | R78: =SUMPRODUCT(($I73:R73))-SUMPRODUCT(($I73:R73)*($I$6:R$6<=(R$6-$E16))) -> 0 | S78: =SUMPRODUCT(($I73:S73))-SUMPRODUCT(($I73:S73)*($I$6:S$6<=(S$6-$E16))) -> 0 | T78: =SUMPRODUCT(($I73:T73))-SUMPRODUCT(($I73:T73)*($I$6:T$6<=(T$6-$E16))) -> 0 | U78: =SUMPRODUCT(($I73:U73))-SUMPRODUCT(($I73:U73)*($I$6:U$6<=(U$6-$E16))) -> 0 | V78: =SUMPRODUCT(($I73:V73))-SUMPRODUCT(($I73:V73)*($I$6:V$6<=(V$6-$E16))) -> 0 | W78: =SUMPRODUCT(($I73:W73))-SUMPRODUCT(($I73:W73)*($I$6:W$6<=(W$6-$E16))) -> 0 | X78: =SUMPRODUCT(($I73:X73))-SUMPRODUCT(($I73:X73)*($I$6:X$6<=(X$6-$E16))) -> 0 | Y78: =SUMPRODUCT(($I73:Y73))-SUMPRODUCT(($I73:Y73)*($I$6:Y$6<=(Y$6-$E16))) -> 0 | Z78: =SUMPRODUCT(($I73:Z73))-SUMPRODUCT(($I73:Z73)*($I$6:Z$6<=(Z$6-$E16))) -> 0 | AA78: =SUMPRODUCT(($I73:AA73))-SUMPRODUCT(($I73:AA73)*($I$6:AA$6<=(AA$6-$E16))) -> 0 | AB78: =SUMPRODUCT(($I73:AB73))-SUMPRODUCT(($I73:AB73)*($I$6:AB$6<=(AB$6-$E16))) -> 0 | AC78: =SUMPRODUCT(($I73:AC73))-SUMPRODUCT(($I73:AC73)*($I$6:AC$6<=(AC$6-$E16))) -> 0 | AD78: =SUMPRODUCT(($I73:AD73))-SUMPRODUCT(($I73:AD73)*($I$6:AD$6<=(AD$6-$E16))) -> 0 | AE78: =SUMPRODUCT(($I73:AE73))-SUMPRODUCT(($I73:AE73)*($I$6:AE$6<=(AE$6-$E16))) -> 0 | AF78: =SUMPRODUCT(($I73:AF73))-SUMPRODUCT(($I73:AF73)*($I$6:AF$6<=(AF$6-$E16))) -> 0 | AG78: =SUMPRODUCT(($I73:AG73))-SUMPRODUCT(($I73:AG73)*($I$6:AG$6<=(AG$6-$E16))) -> 0
C80: Annualised capex
C81: =$C$80&" - "&C14 -> Annualised capex - WPD032 construct a new feeder | G81: =input_dollars -> 2023-12-31 | I81: =IF($E14=0,0,-PMT(real_disc, $E14,H76,)) -> 0 | J81: 0 | K81: 0 | L81: 0 | M81: 0 | N81: -174798.2092 | O81: -174798.2092 | P81: -174798.2092 | Q81: -174798.2092 | R81: -174798.2092 | S81: -174798.2092 | T81: -174798.2092 | U81: -174798.2092 | V81: -174798.2092 | W81: -174798.2092 | X81: -174798.2092 | Y81: -174798.2092 | Z81: -174798.2092 | AA81: -174798.2092 | AB81: -174798.2092 | AC81: -174798.2092 | AD81: -174798.2092 | AE81: -174798.2092 | AF81: -174798.2092 | AG81: -174798.2092
C82: =$C$80&" - "&C15 -> Annualised capex - | G82: =input_dollars -> 2023-12-31 | I82: =IF($E15=0,0,-PMT(real_disc, $E15,H77,)) -> 0 | J82: 0 | K82: 0 | L82: 0 | M82: 0 | N82: 0 | O82: 0 | P82: 0 | Q82: 0 | R82: 0 | S82: 0 | T82: 0 | U82: 0 | V82: 0 | W82: 0 | X82: 0 | Y82: 0 | Z82: 0 | AA82: 0 | AB82: 0 | AC82: 0 | AD82: 0 | AE82: 0 | AF82: 0 | AG82: 0
C83: =$C$80&" - "&C16 -> Annualised capex - | G83: =input_dollars -> 2023-12-31 | I83: =IF($E16=0,0,-PMT(real_disc, $E16,H78,)) -> 0 | J83: 0 | K83: 0 | L83: 0 | M83: 0 | N83: 0 | O83: 0 | P83: 0 | Q83: 0 | R83: 0 | S83: 0 | T83: 0 | U83: 0 | V83: 0 | W83: 0 | X83: 0 | Y83: 0 | Z83: 0 | AA83: 0 | AB83: 0 | AC83: 0 | AD83: 0 | AE83: 0 | AF83: 0 | AG83: 0
C84: Total annualised capex | G84: =input_dollars -> 2023-12-31 | I84: =SUM(I81:I83) -> 0 | J84: =SUM(J81:J83) -> 0 | K84: 0 | L84: 0 | M84: 0 | N84: -174798.2092 | O84: -174798.2092 | P84: -174798.2092 | Q84: -174798.2092 | R84: -174798.2092 | S84: -174798.2092 | T84: -174798.2092 | U84: -174798.2092 | V84: -174798.2092 | W84: -174798.2092 | X84: -174798.2092 | Y84: -174798.2092 | Z84: -174798.2092 | AA84: -174798.2092 | AB84: -174798.2092 | AC84: =SUM(AC81:AC83) -> -174798.2092 | AD84: =SUM(AD81:AD83) -> -174798.2092 | AE84: =SUM(AE81:AE83) -> -174798.2092 | AF84: =SUM(AF81:AF83) -> -174798.2092 | AG84: =SUM(AG81:AG83) -> -174798.2092
C86: Annualised capex | G86: =input_dollars -> 2023-12-31 | I86: =I84 -> 0 | J86: =J84 -> 0 | K86: 0 | L86: 0 | M86: 0 | N86: -174798.2092 | O86: -174798.2092 | P86: -174798.2092 | Q86: -174798.2092 | R86: -174798.2092 | S86: -174798.2092 | T86: -174798.2092 | U86: -174798.2092 | V86: -174798.2092 | W86: -174798.2092 | X86: -174798.2092 | Y86: -174798.2092 | Z86: -174798.2092 | AA86: -174798.2092 | AB86: -174798.2092 | AC86: =AC84 -> -174798.2092 | AD86: =AD84 -> -174798.2092 | AE86: =AE84 -> -174798.2092 | AF86: =AF84 -> -174798.2092 | AG86: =AG84 -> -174798.2092
C87: Operating expenditure | G87: 2023-12-31 | I87: =-I19 -> 0 | J87: 0 | K87: 0 | L87: 0 | M87: 0 | N87: 0 | O87: 0 | P87: 0 | Q87: 0 | R87: 0 | S87: 0 | T87: 0 | U87: 0 | V87: 0 | W87: 0 | X87: 0 | Y87: 0 | Z87: 0 | AA87: 0 | AB87: 0 | AC87: 0 | AD87: 0 | AE87: 0 | AF87: 0 | AG87: 0
C88: Risk mitigated | G88: 2023-12-31 | I88: =I68 -> 0 | J88: 0 | K88: 0 | L88: 0 | M88: 0 | N88: 230381.9146 | O88: 333536.7902 | P88: 436075.2049 | Q88: 525021.3166 | R88: 525021.3166 | S88: 525021.3166 | T88: 525021.3166 | U88: 525021.3166 | V88: 525021.3166 | W88: 525021.3166 | X88: 525021.3166 | Y88: 525021.3166 | Z88: 525021.3166 | AA88: 525021.3166 | AB88: 525021.3166 | AC88: 525021.3166 | AD88: 525021.3166 | AE88: 525021.3166 | AF88: 525021.3166 | AG88: 525021.3166
C89: Other benefits value | G89: 2023-12-31 | I89: =I61 -> 0 | J89: 0 | K89: 0 | L89: 0 | M89: 0 | N89: 0 | O89: 0 | P89: 0 | Q89: 0 | R89: 0 | S89: 0 | T89: 0 | U89: 0 | V89: 0 | W89: 0 | X89: 0 | Y89: 0 | Z89: 0 | AA89: 0 | AB89: 0 | AC89: 0 | AD89: 0 | AE89: 0 | AF89: 0 | AG89: 0
C91: Net benefits | G91: 2023-12-31 | I91: =SUM(I86:I90) -> 0 | J91: 0 | K91: 0 | L91: 0 | M91: 0 | N91: 55583.70533 | O91: 158738.581 | P91: 261276.9957 | Q91: 350223.1074 | R91: 350223.1074 | S91: 350223.1074 | T91: 350223.1074 | U91: 350223.1074 | V91: 350223.1074 | W91: 350223.1074 | X91: 350223.1074 | Y91: 350223.1074 | Z91: 350223.1074 | AA91: 350223.1074 | AB91: 350223.1074 | AC91: =SUM(AC86:AC90) -> 350223.1074 | AD91: =SUM(AD86:AD90) -> 350223.1074 | AE91: =SUM(AE86:AE90) -> 350223.1074 | AF91: =SUM(AF86:AF90) -> 350223.1074 | AG91: =SUM(AG86:AG90) -> 350223.1074
C94: First capex year | G94: =IF(SUM($I17:$AG17)=0,0,(INDEX(I$6:AG$6,MATCH(TRUE,INDEX($I17:$AG17<>0,),0)))) -> 5
C96: First year | G96: =IF(_xlfn.MINIFS($G$94:$G$95, $G$94:$G$95, ">"&0)=0, $A$4, _xlfn.MINIFS($G$94:$G$95, $G$94:$G$95, ">"&0)) -> 5
A106: SENSITIVITIES
A110: NPV | C110: Net benefits | G110: =PROPER($A$3)&A110 -> Option 3NPV | I110: =I91 -> 0 | J110: =J91 -> 0 | K110: 0 | L110: 0 | M110: 0 | N110: 55583.70533 | O110: 158738.581 | P110: 261276.9957 | Q110: 350223.1074 | R110: 350223.1074 | S110: 350223.1074 | T110: 350223.1074 | U110: 350223.1074 | V110: 350223.1074 | W110: 350223.1074 | X110: 350223.1074 | Y110: 350223.1074 | Z110: 350223.1074 | AA110: 350223.1074 | AB110: 350223.1074 | AC110: 350223.1074 | AD110: 350223.1074 | AE110: 350223.1074 | AF110: 350223.1074 | AG110: 350223.1074
C111: Total annualised capex | I111: =I86 -> 0 | J111: =J86 -> 0 | K111: 0 | L111: 0 | M111: 0 | N111: -174798.2092 | O111: -174798.2092 | P111: -174798.2092 | Q111: -174798.2092 | R111: -174798.2092 | S111: -174798.2092 | T111: -174798.2092 | U111: -174798.2092 | V111: -174798.2092 | W111: -174798.2092 | X111: -174798.2092 | Y111: -174798.2092 | Z111: -174798.2092 | AA111: -174798.2092 | AB111: -174798.2092 | AC111: -174798.2092 | AD111: -174798.2092 | AE111: -174798.2092 | AF111: -174798.2092 | AG111: -174798.2092
C112: Total benefits | I112: =SUM(I88:I89) -> 0 | J112: =SUM(J88:J89) -> 0 | K112: 0 | L112: 0 | M112: 0 | N112: 230381.9146 | O112: 333536.7902 | P112: 436075.2049 | Q112: 525021.3166 | R112: 525021.3166 | S112: 525021.3166 | T112: 525021.3166 | U112: 525021.3166 | V112: 525021.3166 | W112: 525021.3166 | X112: 525021.3166 | Y112: 525021.3166 | Z112: 525021.3166 | AA112: 525021.3166 | AB112: 525021.3166 | AC112: 525021.3166 | AD112: 525021.3166 | AE112: 525021.3166 | AF112: 525021.3166 | AG112: 525021.3166
D113: =Assumptions!G110 -> Capex | E113: =Assumptions!H110 -> Total benefits
A114: ="sens"&Assumptions!B111 -> sens1 | C114: =Assumptions!C111 -> Capex 10% higher | D114: =Assumptions!G111 -> 0.1 | E114: =Assumptions!H111 -> 0 | G114: =PROPER($A$3)&A114 -> Option 3sens1 | I114: =I$110+IF($C114<>0,SUMPRODUCT((I$111:I$112)*TRANSPOSE(($D114:$E114))),0) -> 0 | J114: =J$110+IF($C114<>0,SUMPRODUCT((J$111:J$112)*TRANSPOSE(($D114:$E114))),0) -> 0 | K114: =K$110+IF($C114<>0,SUMPRODUCT((K$111:K$112)*TRANSPOSE(($D114:$E114))),0) -> 0 | L114: =L$110+IF($C114<>0,SUMPRODUCT((L$111:L$112)*TRANSPOSE(($D114:$E114))),0) -> 0 | M114: =M$110+IF($C114<>0,SUMPRODUCT((M$111:M$112)*TRANSPOSE(($D114:$E114))),0) -> 0 | N114: =N$110+IF($C114<>0,SUMPRODUCT((N$111:N$112)*TRANSPOSE(($D114:$E114))),0) -> 38103.88441 | O114: =O$110+IF($C114<>0,SUMPRODUCT((O$111:O$112)*TRANSPOSE(($D114:$E114))),0) -> 141258.7601 | P114: =P$110+IF($C114<>0,SUMPRODUCT((P$111:P$112)*TRANSPOSE(($D114:$E114))),0) -> 243797.1748 | Q114: =Q$110+IF($C114<>0,SUMPRODUCT((Q$111:Q$112)*TRANSPOSE(($D114:$E114))),0) -> 332743.2864 | R114: =R$110+IF($C114<>0,SUMPRODUCT((R$111:R$112)*TRANSPOSE(($D114:$E114))),0) -> 332743.2864 | S114: =S$110+IF($C114<>0,SUMPRODUCT((S$111:S$112)*TRANSPOSE(($D114:$E114))),0) -> 332743.2864 | T114: =T$110+IF($C114<>0,SUMPRODUCT((T$111:T$112)*TRANSPOSE(($D114:$E114))),0) -> 332743.2864 | U114: =U$110+IF($C114<>0,SUMPRODUCT((U$111:U$112)*TRANSPOSE(($D114:$E114))),0) -> 332743.2864 | V114: =V$110+IF($C114<>0,SUMPRODUCT((V$111:V$112)*TRANSPOSE(($D114:$E114))),0) -> 332743.2864 | W114: =W$110+IF($C114<>0,SUMPRODUCT((W$111:W$112)*TRANSPOSE(($D114:$E114))),0) -> 332743.2864 | X114: =X$110+IF($C114<>0,SUMPRODUCT((X$111:X$112)*TRANSPOSE(($D114:$E114))),0) -> 332743.2864 | Y114: =Y$110+IF($C114<>0,SUMPRODUCT((Y$111:Y$112)*TRANSPOSE(($D114:$E114))),0) -> 332743.2864 | Z114: =Z$110+IF($C114<>0,SUMPRODUCT((Z$111:Z$112)*TRANSPOSE(($D114:$E114))),0) -> 332743.2864 | AA114: =AA$110+IF($C114<>0,SUMPRODUCT((AA$111:AA$112)*TRANSPOSE(($D114:$E114))),0) -> 332743.2864 | AB114: =AB$110+IF($C114<>0,SUMPRODUCT((AB$111:AB$112)*TRANSPOSE(($D114:$E114))),0) -> 332743.2864 | AC114: =AC$110+IF($C114<>0,SUMPRODUCT((AC$111:AC$112)*TRANSPOSE(($D114:$E114))),0) -> 332743.2864 | AD114: =AD$110+IF($C114<>0,SUMPRODUCT((AD$111:AD$112)*TRANSPOSE(($D114:$E114))),0) -> 332743.2864 | AE114: =AE$110+IF($C114<>0,SUMPRODUCT((AE$111:AE$112)*TRANSPOSE(($D114:$E114))),0) -> 332743.2864 | AF114: =AF$110+IF($C114<>0,SUMPRODUCT((AF$111:AF$112)*TRANSPOSE(($D114:$E114))),0) -> 332743.2864 | AG114: =AG$110+IF($C114<>0,SUMPRODUCT((AG$111:AG$112)*TRANSPOSE(($D114:$E114))),0) -> 332743.2864
A115: ="sens"&Assumptions!B112 -> sens2 | C115: =Assumptions!C112 -> Capex 10% lower | D115: =Assumptions!G112 -> -0.1 | E115: =Assumptions!H112 -> 0 | G115: =PROPER($A$3)&A115 -> Option 3sens2 | I115: =I$110+IF($C115<>0,SUMPRODUCT((I$111:I$112)*TRANSPOSE(($D115:$E115))),0) -> 0 | J115: =J$110+IF($C115<>0,SUMPRODUCT((J$111:J$112)*TRANSPOSE(($D115:$E115))),0) -> 0 | K115: =K$110+IF($C115<>0,SUMPRODUCT((K$111:K$112)*TRANSPOSE(($D115:$E115))),0) -> 0 | L115: =L$110+IF($C115<>0,SUMPRODUCT((L$111:L$112)*TRANSPOSE(($D115:$E115))),0) -> 0 | M115: =M$110+IF($C115<>0,SUMPRODUCT((M$111:M$112)*TRANSPOSE(($D115:$E115))),0) -> 0 | N115: =N$110+IF($C115<>0,SUMPRODUCT((N$111:N$112)*TRANSPOSE(($D115:$E115))),0) -> 73063.52626 | O115: =O$110+IF($C115<>0,SUMPRODUCT((O$111:O$112)*TRANSPOSE(($D115:$E115))),0) -> 176218.4019 | P115: =P$110+IF($C115<>0,SUMPRODUCT((P$111:P$112)*TRANSPOSE(($D115:$E115))),0) -> 278756.8166 | Q115: =Q$110+IF($C115<>0,SUMPRODUCT((Q$111:Q$112)*TRANSPOSE(($D115:$E115))),0) -> 367702.9283 | R115: =R$110+IF($C115<>0,SUMPRODUCT((R$111:R$112)*TRANSPOSE(($D115:$E115))),0) -> 367702.9283 | S115: =S$110+IF($C115<>0,SUMPRODUCT((S$111:S$112)*TRANSPOSE(($D115:$E115))),0) -> 367702.9283 | T115: =T$110+IF($C115<>0,SUMPRODUCT((T$111:T$112)*TRANSPOSE(($D115:$E115))),0) -> 367702.9283 | U115: =U$110+IF($C115<>0,SUMPRODUCT((U$111:U$112)*TRANSPOSE(($D115:$E115))),0) -> 367702.9283 | V115: =V$110+IF($C115<>0,SUMPRODUCT((V$111:V$112)*TRANSPOSE(($D115:$E115))),0) -> 367702.9283 | W115: =W$110+IF($C115<>0,SUMPRODUCT((W$111:W$112)*TRANSPOSE(($D115:$E115))),0) -> 367702.9283 | X115: =X$110+IF($C115<>0,SUMPRODUCT((X$111:X$112)*TRANSPOSE(($D115:$E115))),0) -> 367702.9283 | Y115: =Y$110+IF($C115<>0,SUMPRODUCT((Y$111:Y$112)*TRANSPOSE(($D115:$E115))),0) -> 367702.9283 | Z115: =Z$110+IF($C115<>0,SUMPRODUCT((Z$111:Z$112)*TRANSPOSE(($D115:$E115))),0) -> 367702.9283 | AA115: =AA$110+IF($C115<>0,SUMPRODUCT((AA$111:AA$112)*TRANSPOSE(($D115:$E115))),0) -> 367702.9283 | AB115: =AB$110+IF($C115<>0,SUMPRODUCT((AB$111:AB$112)*TRANSPOSE(($D115:$E115))),0) -> 367702.9283 | AC115: =AC$110+IF($C115<>0,SUMPRODUCT((AC$111:AC$112)*TRANSPOSE(($D115:$E115))),0) -> 367702.9283 | AD115: =AD$110+IF($C115<>0,SUMPRODUCT((AD$111:AD$112)*TRANSPOSE(($D115:$E115))),0) -> 367702.9283 | AE115: =AE$110+IF($C115<>0,SUMPRODUCT((AE$111:AE$112)*TRANSPOSE(($D115:$E115))),0) -> 367702.9283 | AF115: =AF$110+IF($C115<>0,SUMPRODUCT((AF$111:AF$112)*TRANSPOSE(($D115:$E115))),0) -> 367702.9283 | AG115: =AG$110+IF($C115<>0,SUMPRODUCT((AG$111:AG$112)*TRANSPOSE(($D115:$E115))),0) -> 367702.9283
A116: ="sens"&Assumptions!B113 -> sens3 | C116: =Assumptions!C113 -> Total benefits 10% higher | D116: =Assumptions!G113 -> 0 | E116: =Assumptions!H113 -> 0.1 | G116: Option 3sens3 | I116: =I$110+IF($C116<>0,SUMPRODUCT((I$111:I$112)*TRANSPOSE(($D116:$E116))),0) -> 0 | J116: =J$110+IF($C116<>0,SUMPRODUCT((J$111:J$112)*TRANSPOSE(($D116:$E116))),0) -> 0 | K116: =K$110+IF($C116<>0,SUMPRODUCT((K$111:K$112)*TRANSPOSE(($D116:$E116))),0) -> 0 | L116: =L$110+IF($C116<>0,SUMPRODUCT((L$111:L$112)*TRANSPOSE(($D116:$E116))),0) -> 0 | M116: =M$110+IF($C116<>0,SUMPRODUCT((M$111:M$112)*TRANSPOSE(($D116:$E116))),0) -> 0 | N116: =N$110+IF($C116<>0,SUMPRODUCT((N$111:N$112)*TRANSPOSE(($D116:$E116))),0) -> 78621.89679 | O116: =O$110+IF($C116<>0,SUMPRODUCT((O$111:O$112)*TRANSPOSE(($D116:$E116))),0) -> 192092.26 | P116: =P$110+IF($C116<>0,SUMPRODUCT((P$111:P$112)*TRANSPOSE(($D116:$E116))),0) -> 304884.5162 | Q116: =Q$110+IF($C116<>0,SUMPRODUCT((Q$111:Q$112)*TRANSPOSE(($D116:$E116))),0) -> 402725.239 | R116: =R$110+IF($C116<>0,SUMPRODUCT((R$111:R$112)*TRANSPOSE(($D116:$E116))),0) -> 402725.239 | S116: =S$110+IF($C116<>0,SUMPRODUCT((S$111:S$112)*TRANSPOSE(($D116:$E116))),0) -> 402725.239 | T116: =T$110+IF($C116<>0,SUMPRODUCT((T$111:T$112)*TRANSPOSE(($D116:$E116))),0) -> 402725.239 | U116: =U$110+IF($C116<>0,SUMPRODUCT((U$111:U$112)*TRANSPOSE(($D116:$E116))),0) -> 402725.239 | V116: =V$110+IF($C116<>0,SUMPRODUCT((V$111:V$112)*TRANSPOSE(($D116:$E116))),0) -> 402725.239 | W116: =W$110+IF($C116<>0,SUMPRODUCT((W$111:W$112)*TRANSPOSE(($D116:$E116))),0) -> 402725.239 | X116: =X$110+IF($C116<>0,SUMPRODUCT((X$111:X$112)*TRANSPOSE(($D116:$E116))),0) -> 402725.239 | Y116: =Y$110+IF($C116<>0,SUMPRODUCT((Y$111:Y$112)*TRANSPOSE(($D116:$E116))),0) -> 402725.239 | Z116: =Z$110+IF($C116<>0,SUMPRODUCT((Z$111:Z$112)*TRANSPOSE(($D116:$E116))),0) -> 402725.239 | AA116: =AA$110+IF($C116<>0,SUMPRODUCT((AA$111:AA$112)*TRANSPOSE(($D116:$E116))),0) -> 402725.239 | AB116: =AB$110+IF($C116<>0,SUMPRODUCT((AB$111:AB$112)*TRANSPOSE(($D116:$E116))),0) -> 402725.239 | AC116: =AC$110+IF($C116<>0,SUMPRODUCT((AC$111:AC$112)*TRANSPOSE(($D116:$E116))),0) -> 402725.239 | AD116: =AD$110+IF($C116<>0,SUMPRODUCT((AD$111:AD$112)*TRANSPOSE(($D116:$E116))),0) -> 402725.239 | AE116: =AE$110+IF($C116<>0,SUMPRODUCT((AE$111:AE$112)*TRANSPOSE(($D116:$E116))),0) -> 402725.239 | AF116: =AF$110+IF($C116<>0,SUMPRODUCT((AF$111:AF$112)*TRANSPOSE(($D116:$E116))),0) -> 402725.239 | AG116: =AG$110+IF($C116<>0,SUMPRODUCT((AG$111:AG$112)*TRANSPOSE(($D116:$E116))),0) -> 402725.239
A117: ="sens"&Assumptions!B114 -> sens4 | C117: =Assumptions!C114 -> Total benefits 10% lower | D117: =Assumptions!G114 -> 0 | E117: =Assumptions!H114 -> -0.1 | G117: Option 3sens4 | I117: =I$110+IF($C117<>0,SUMPRODUCT((I$111:I$112)*TRANSPOSE(($D117:$E117))),0) -> 0 | J117: =J$110+IF($C117<>0,SUMPRODUCT((J$111:J$112)*TRANSPOSE(($D117:$E117))),0) -> 0 | K117: =K$110+IF($C117<>0,SUMPRODUCT((K$111:K$112)*TRANSPOSE(($D117:$E117))),0) -> 0 | L117: =L$110+IF($C117<>0,SUMPRODUCT((L$111:L$112)*TRANSPOSE(($D117:$E117))),0) -> 0 | M117: =M$110+IF($C117<>0,SUMPRODUCT((M$111:M$112)*TRANSPOSE(($D117:$E117))),0) -> 0 | N117: =N$110+IF($C117<>0,SUMPRODUCT((N$111:N$112)*TRANSPOSE(($D117:$E117))),0) -> 32545.51388 | O117: =O$110+IF($C117<>0,SUMPRODUCT((O$111:O$112)*TRANSPOSE(($D117:$E117))),0) -> 125384.902 | P117: =P$110+IF($C117<>0,SUMPRODUCT((P$111:P$112)*TRANSPOSE(($D117:$E117))),0) -> 217669.4752 | Q117: =Q$110+IF($C117<>0,SUMPRODUCT((Q$111:Q$112)*TRANSPOSE(($D117:$E117))),0) -> 297720.9757 | R117: =R$110+IF($C117<>0,SUMPRODUCT((R$111:R$112)*TRANSPOSE(($D117:$E117))),0) -> 297720.9757 | S117: =S$110+IF($C117<>0,SUMPRODUCT((S$111:S$112)*TRANSPOSE(($D117:$E117))),0) -> 297720.9757 | T117: =T$110+IF($C117<>0,SUMPRODUCT((T$111:T$112)*TRANSPOSE(($D117:$E117))),0) -> 297720.9757 | U117: =U$110+IF($C117<>0,SUMPRODUCT((U$111:U$112)*TRANSPOSE(($D117:$E117))),0) -> 297720.9757 | V117: =V$110+IF($C117<>0,SUMPRODUCT((V$111:V$112)*TRANSPOSE(($D117:$E117))),0) -> 297720.9757 | W117: =W$110+IF($C117<>0,SUMPRODUCT((W$111:W$112)*TRANSPOSE(($D117:$E117))),0) -> 297720.9757 | X117: =X$110+IF($C117<>0,SUMPRODUCT((X$111:X$112)*TRANSPOSE(($D117:$E117))),0) -> 297720.9757 | Y117: =Y$110+IF($C117<>0,SUMPRODUCT((Y$111:Y$112)*TRANSPOSE(($D117:$E117))),0) -> 297720.9757 | Z117: =Z$110+IF($C117<>0,SUMPRODUCT((Z$111:Z$112)*TRANSPOSE(($D117:$E117))),0) -> 297720.9757 | AA117: =AA$110+IF($C117<>0,SUMPRODUCT((AA$111:AA$112)*TRANSPOSE(($D117:$E117))),0) -> 297720.9757 | AB117: =AB$110+IF($C117<>0,SUMPRODUCT((AB$111:AB$112)*TRANSPOSE(($D117:$E117))),0) -> 297720.9757 | AC117: =AC$110+IF($C117<>0,SUMPRODUCT((AC$111:AC$112)*TRANSPOSE(($D117:$E117))),0) -> 297720.9757 | AD117: =AD$110+IF($C117<>0,SUMPRODUCT((AD$111:AD$112)*TRANSPOSE(($D117:$E117))),0) -> 297720.9757 | AE117: =AE$110+IF($C117<>0,SUMPRODUCT((AE$111:AE$112)*TRANSPOSE(($D117:$E117))),0) -> 297720.9757 | AF117: =AF$110+IF($C117<>0,SUMPRODUCT((AF$111:AF$112)*TRANSPOSE(($D117:$E117))),0) -> 297720.9757 | AG117: =AG$110+IF($C117<>0,SUMPRODUCT((AG$111:AG$112)*TRANSPOSE(($D117:$E117))),0) -> 297720.9757
A118: ="sens"&Assumptions!B115 -> sens5 | C118: =Assumptions!C115 -> Capex 10% higher & Total benefits 10% lower | D118: =Assumptions!G115 -> 0.1 | E118: =Assumptions!H115 -> -0.1 | G118: Option 3sens5 | I118: =I$110+IF($C118<>0,SUMPRODUCT((I$111:I$112)*TRANSPOSE(($D118:$E118))),0) -> 0 | J118: =J$110+IF($C118<>0,SUMPRODUCT((J$111:J$112)*TRANSPOSE(($D118:$E118))),0) -> 0 | K118: =K$110+IF($C118<>0,SUMPRODUCT((K$111:K$112)*TRANSPOSE(($D118:$E118))),0) -> 0 | L118: =L$110+IF($C118<>0,SUMPRODUCT((L$111:L$112)*TRANSPOSE(($D118:$E118))),0) -> 0 | M118: =M$110+IF($C118<>0,SUMPRODUCT((M$111:M$112)*TRANSPOSE(($D118:$E118))),0) -> 0 | N118: =N$110+IF($C118<>0,SUMPRODUCT((N$111:N$112)*TRANSPOSE(($D118:$E118))),0) -> 15065.69296 | O118: =O$110+IF($C118<>0,SUMPRODUCT((O$111:O$112)*TRANSPOSE(($D118:$E118))),0) -> 107905.0811 | P118: =P$110+IF($C118<>0,SUMPRODUCT((P$111:P$112)*TRANSPOSE(($D118:$E118))),0) -> 200189.6543 | Q118: =Q$110+IF($C118<>0,SUMPRODUCT((Q$111:Q$112)*TRANSPOSE(($D118:$E118))),0) -> 280241.1548 | R118: =R$110+IF($C118<>0,SUMPRODUCT((R$111:R$112)*TRANSPOSE(($D118:$E118))),0) -> 280241.1548 | S118: =S$110+IF($C118<>0,SUMPRODUCT((S$111:S$112)*TRANSPOSE(($D118:$E118))),0) -> 280241.1548 | T118: =T$110+IF($C118<>0,SUMPRODUCT((T$111:T$112)*TRANSPOSE(($D118:$E118))),0) -> 280241.1548 | U118: =U$110+IF($C118<>0,SUMPRODUCT((U$111:U$112)*TRANSPOSE(($D118:$E118))),0) -> 280241.1548 | V118: =V$110+IF($C118<>0,SUMPRODUCT((V$111:V$112)*TRANSPOSE(($D118:$E118))),0) -> 280241.1548 | W118: =W$110+IF($C118<>0,SUMPRODUCT((W$111:W$112)*TRANSPOSE(($D118:$E118))),0) -> 280241.1548 | X118: =X$110+IF($C118<>0,SUMPRODUCT((X$111:X$112)*TRANSPOSE(($D118:$E118))),0) -> 280241.1548 | Y118: =Y$110+IF($C118<>0,SUMPRODUCT((Y$111:Y$112)*TRANSPOSE(($D118:$E118))),0) -> 280241.1548 | Z118: =Z$110+IF($C118<>0,SUMPRODUCT((Z$111:Z$112)*TRANSPOSE(($D118:$E118))),0) -> 280241.1548 | AA118: =AA$110+IF($C118<>0,SUMPRODUCT((AA$111:AA$112)*TRANSPOSE(($D118:$E118))),0) -> 280241.1548 | AB118: =AB$110+IF($C118<>0,SUMPRODUCT((AB$111:AB$112)*TRANSPOSE(($D118:$E118))),0) -> 280241.1548 | AC118: =AC$110+IF($C118<>0,SUMPRODUCT((AC$111:AC$112)*TRANSPOSE(($D118:$E118))),0) -> 280241.1548 | AD118: =AD$110+IF($C118<>0,SUMPRODUCT((AD$111:AD$112)*TRANSPOSE(($D118:$E118))),0) -> 280241.1548 | AE118: =AE$110+IF($C118<>0,SUMPRODUCT((AE$111:AE$112)*TRANSPOSE(($D118:$E118))),0) -> 280241.1548 | AF118: =AF$110+IF($C118<>0,SUMPRODUCT((AF$111:AF$112)*TRANSPOSE(($D118:$E118))),0) -> 280241.1548 | AG118: =AG$110+IF($C118<>0,SUMPRODUCT((AG$111:AG$112)*TRANSPOSE(($D118:$E118))),0) -> 280241.1548
A119: ="sens"&Assumptions!B116 -> sens | C119: =Assumptions!C116 -> 0 | D119: =Assumptions!G116 -> 0 | E119: =Assumptions!H116 -> 0 | G119: Option 3sens | I119: =I$110+IF($C119<>0,SUMPRODUCT((I$111:I$112)*TRANSPOSE(($D119:$E119))),0) -> 0 | J119: =J$110+IF($C119<>0,SUMPRODUCT((J$111:J$112)*TRANSPOSE(($D119:$E119))),0) -> 0 | K119: =K$110+IF($C119<>0,SUMPRODUCT((K$111:K$112)*TRANSPOSE(($D119:$E119))),0) -> 0 | L119: =L$110+IF($C119<>0,SUMPRODUCT((L$111:L$112)*TRANSPOSE(($D119:$E119))),0) -> 0 | M119: =M$110+IF($C119<>0,SUMPRODUCT((M$111:M$112)*TRANSPOSE(($D119:$E119))),0) -> 0 | N119: =N$110+IF($C119<>0,SUMPRODUCT((N$111:N$112)*TRANSPOSE(($D119:$E119))),0) -> 55583.70533 | O119: =O$110+IF($C119<>0,SUMPRODUCT((O$111:O$112)*TRANSPOSE(($D119:$E119))),0) -> 158738.581 | P119: =P$110+IF($C119<>0,SUMPRODUCT((P$111:P$112)*TRANSPOSE(($D119:$E119))),0) -> 261276.9957 | Q119: =Q$110+IF($C119<>0,SUMPRODUCT((Q$111:Q$112)*TRANSPOSE(($D119:$E119))),0) -> 350223.1074 | R119: =R$110+IF($C119<>0,SUMPRODUCT((R$111:R$112)*TRANSPOSE(($D119:$E119))),0) -> 350223.1074 | S119: =S$110+IF($C119<>0,SUMPRODUCT((S$111:S$112)*TRANSPOSE(($D119:$E119))),0) -> 350223.1074 | T119: =T$110+IF($C119<>0,SUMPRODUCT((T$111:T$112)*TRANSPOSE(($D119:$E119))),0) -> 350223.1074 | U119: =U$110+IF($C119<>0,SUMPRODUCT((U$111:U$112)*TRANSPOSE(($D119:$E119))),0) -> 350223.1074 | V119: =V$110+IF($C119<>0,SUMPRODUCT((V$111:V$112)*TRANSPOSE(($D119:$E119))),0) -> 350223.1074 | W119: =W$110+IF($C119<>0,SUMPRODUCT((W$111:W$112)*TRANSPOSE(($D119:$E119))),0) -> 350223.1074 | X119: =X$110+IF($C119<>0,SUMPRODUCT((X$111:X$112)*TRANSPOSE(($D119:$E119))),0) -> 350223.1074 | Y119: =Y$110+IF($C119<>0,SUMPRODUCT((Y$111:Y$112)*TRANSPOSE(($D119:$E119))),0) -> 350223.1074 | Z119: =Z$110+IF($C119<>0,SUMPRODUCT((Z$111:Z$112)*TRANSPOSE(($D119:$E119))),0) -> 350223.1074 | AA119: =AA$110+IF($C119<>0,SUMPRODUCT((AA$111:AA$112)*TRANSPOSE(($D119:$E119))),0) -> 350223.1074 | AB119: =AB$110+IF($C119<>0,SUMPRODUCT((AB$111:AB$112)*TRANSPOSE(($D119:$E119))),0) -> 350223.1074 | AC119: =AC$110+IF($C119<>0,SUMPRODUCT((AC$111:AC$112)*TRANSPOSE(($D119:$E119))),0) -> 350223.1074 | AD119: =AD$110+IF($C119<>0,SUMPRODUCT((AD$111:AD$112)*TRANSPOSE(($D119:$E119))),0) -> 350223.1074 | AE119: =AE$110+IF($C119<>0,SUMPRODUCT((AE$111:AE$112)*TRANSPOSE(($D119:$E119))),0) -> 350223.1074 | AF119: =AF$110+IF($C119<>0,SUMPRODUCT((AF$111:AF$112)*TRANSPOSE(($D119:$E119))),0) -> 350223.1074 | AG119: =AG$110+IF($C119<>0,SUMPRODUCT((AG$111:AG$112)*TRANSPOSE(($D119:$E119))),0) -> 350223.1074
A120: ="sens"&Assumptions!B117 -> sens | C120: =Assumptions!C117 -> 0 | D120: =Assumptions!G117 -> 0 | E120: =Assumptions!H117 -> 0 | G120: Option 3sens | I120: =I$110+IF($C120<>0,SUMPRODUCT((I$111:I$112)*TRANSPOSE(($D120:$E120))),0) -> 0 | J120: =J$110+IF($C120<>0,SUMPRODUCT((J$111:J$112)*TRANSPOSE(($D120:$E120))),0) -> 0 | K120: =K$110+IF($C120<>0,SUMPRODUCT((K$111:K$112)*TRANSPOSE(($D120:$E120))),0) -> 0 | L120: =L$110+IF($C120<>0,SUMPRODUCT((L$111:L$112)*TRANSPOSE(($D120:$E120))),0) -> 0 | M120: =M$110+IF($C120<>0,SUMPRODUCT((M$111:M$112)*TRANSPOSE(($D120:$E120))),0) -> 0 | N120: =N$110+IF($C120<>0,SUMPRODUCT((N$111:N$112)*TRANSPOSE(($D120:$E120))),0) -> 55583.70533 | O120: =O$110+IF($C120<>0,SUMPRODUCT((O$111:O$112)*TRANSPOSE(($D120:$E120))),0) -> 158738.581 | P120: =P$110+IF($C120<>0,SUMPRODUCT((P$111:P$112)*TRANSPOSE(($D120:$E120))),0) -> 261276.9957 | Q120: =Q$110+IF($C120<>0,SUMPRODUCT((Q$111:Q$112)*TRANSPOSE(($D120:$E120))),0) -> 350223.1074 | R120: =R$110+IF($C120<>0,SUMPRODUCT((R$111:R$112)*TRANSPOSE(($D120:$E120))),0) -> 350223.1074 | S120: =S$110+IF($C120<>0,SUMPRODUCT((S$111:S$112)*TRANSPOSE(($D120:$E120))),0) -> 350223.1074 | T120: =T$110+IF($C120<>0,SUMPRODUCT((T$111:T$112)*TRANSPOSE(($D120:$E120))),0) -> 350223.1074 | U120: =U$110+IF($C120<>0,SUMPRODUCT((U$111:U$112)*TRANSPOSE(($D120:$E120))),0) -> 350223.1074 | V120: =V$110+IF($C120<>0,SUMPRODUCT((V$111:V$112)*TRANSPOSE(($D120:$E120))),0) -> 350223.1074 | W120: =W$110+IF($C120<>0,SUMPRODUCT((W$111:W$112)*TRANSPOSE(($D120:$E120))),0) -> 350223.1074 | X120: =X$110+IF($C120<>0,SUMPRODUCT((X$111:X$112)*TRANSPOSE(($D120:$E120))),0) -> 350223.1074 | Y120: =Y$110+IF($C120<>0,SUMPRODUCT((Y$111:Y$112)*TRANSPOSE(($D120:$E120))),0) -> 350223.1074 | Z120: =Z$110+IF($C120<>0,SUMPRODUCT((Z$111:Z$112)*TRANSPOSE(($D120:$E120))),0) -> 350223.1074 | AA120: =AA$110+IF($C120<>0,SUMPRODUCT((AA$111:AA$112)*TRANSPOSE(($D120:$E120))),0) -> 350223.1074 | AB120: =AB$110+IF($C120<>0,SUMPRODUCT((AB$111:AB$112)*TRANSPOSE(($D120:$E120))),0) -> 350223.1074 | AC120: =AC$110+IF($C120<>0,SUMPRODUCT((AC$111:AC$112)*TRANSPOSE(($D120:$E120))),0) -> 350223.1074 | AD120: =AD$110+IF($C120<>0,SUMPRODUCT((AD$111:AD$112)*TRANSPOSE(($D120:$E120))),0) -> 350223.1074 | AE120: =AE$110+IF($C120<>0,SUMPRODUCT((AE$111:AE$112)*TRANSPOSE(($D120:$E120))),0) -> 350223.1074 | AF120: =AF$110+IF($C120<>0,SUMPRODUCT((AF$111:AF$112)*TRANSPOSE(($D120:$E120))),0) -> 350223.1074 | AG120: =AG$110+IF($C120<>0,SUMPRODUCT((AG$111:AG$112)*TRANSPOSE(($D120:$E120))),0) -> 350223.1074
A121: ="sens"&Assumptions!B118 -> sens | C121: =Assumptions!C118 -> 0 | D121: =Assumptions!G118 -> 0 | E121: =Assumptions!H118 -> 0 | G121: Option 3sens | I121: =I$110+IF($C121<>0,SUMPRODUCT((I$111:I$112)*TRANSPOSE(($D121:$E121))),0) -> 0 | J121: =J$110+IF($C121<>0,SUMPRODUCT((J$111:J$112)*TRANSPOSE(($D121:$E121))),0) -> 0 | K121: =K$110+IF($C121<>0,SUMPRODUCT((K$111:K$112)*TRANSPOSE(($D121:$E121))),0) -> 0 | L121: =L$110+IF($C121<>0,SUMPRODUCT((L$111:L$112)*TRANSPOSE(($D121:$E121))),0) -> 0 | M121: =M$110+IF($C121<>0,SUMPRODUCT((M$111:M$112)*TRANSPOSE(($D121:$E121))),0) -> 0 | N121: =N$110+IF($C121<>0,SUMPRODUCT((N$111:N$112)*TRANSPOSE(($D121:$E121))),0) -> 55583.70533 | O121: =O$110+IF($C121<>0,SUMPRODUCT((O$111:O$112)*TRANSPOSE(($D121:$E121))),0) -> 158738.581 | P121: =P$110+IF($C121<>0,SUMPRODUCT((P$111:P$112)*TRANSPOSE(($D121:$E121))),0) -> 261276.9957 | Q121: =Q$110+IF($C121<>0,SUMPRODUCT((Q$111:Q$112)*TRANSPOSE(($D121:$E121))),0) -> 350223.1074 | R121: =R$110+IF($C121<>0,SUMPRODUCT((R$111:R$112)*TRANSPOSE(($D121:$E121))),0) -> 350223.1074 | S121: =S$110+IF($C121<>0,SUMPRODUCT((S$111:S$112)*TRANSPOSE(($D121:$E121))),0) -> 350223.1074 | T121: =T$110+IF($C121<>0,SUMPRODUCT((T$111:T$112)*TRANSPOSE(($D121:$E121))),0) -> 350223.1074 | U121: =U$110+IF($C121<>0,SUMPRODUCT((U$111:U$112)*TRANSPOSE(($D121:$E121))),0) -> 350223.1074 | V121: =V$110+IF($C121<>0,SUMPRODUCT((V$111:V$112)*TRANSPOSE(($D121:$E121))),0) -> 350223.1074 | W121: =W$110+IF($C121<>0,SUMPRODUCT((W$111:W$112)*TRANSPOSE(($D121:$E121))),0) -> 350223.1074 | X121: =X$110+IF($C121<>0,SUMPRODUCT((X$111:X$112)*TRANSPOSE(($D121:$E121))),0) -> 350223.1074 | Y121: =Y$110+IF($C121<>0,SUMPRODUCT((Y$111:Y$112)*TRANSPOSE(($D121:$E121))),0) -> 350223.1074 | Z121: =Z$110+IF($C121<>0,SUMPRODUCT((Z$111:Z$112)*TRANSPOSE(($D121:$E121))),0) -> 350223.1074 | AA121: =AA$110+IF($C121<>0,SUMPRODUCT((AA$111:AA$112)*TRANSPOSE(($D121:$E121))),0) -> 350223.1074 | AB121: =AB$110+IF($C121<>0,SUMPRODUCT((AB$111:AB$112)*TRANSPOSE(($D121:$E121))),0) -> 350223.1074 | AC121: =AC$110+IF($C121<>0,SUMPRODUCT((AC$111:AC$112)*TRANSPOSE(($D121:$E121))),0) -> 350223.1074 | AD121: =AD$110+IF($C121<>0,SUMPRODUCT((AD$111:AD$112)*TRANSPOSE(($D121:$E121))),0) -> 350223.1074 | AE121: =AE$110+IF($C121<>0,SUMPRODUCT((AE$111:AE$112)*TRANSPOSE(($D121:$E121))),0) -> 350223.1074 | AF121: =AF$110+IF($C121<>0,SUMPRODUCT((AF$111:AF$112)*TRANSPOSE(($D121:$E121))),0) -> 350223.1074 | AG121: =AG$110+IF($C121<>0,SUMPRODUCT((AG$111:AG$112)*TRANSPOSE(($D121:$E121))),0) -> 350223.1074

Sheet Option4
A1: =bus -> Powercor
A2: =proj -> Drysdale feeder: DDL023
A3: OPTION 4 | C3: =INDEX(Assumptions!$E$14:$E$18, MATCH(A3,_xlfn.ANCHORARRAY( Assumptions!$C$14),0)) -> 0
A4: =(INDEX(Data!$D$9:$D$13, MATCH(A3, options,0))) -> Not used
A6: ='Option1 (base case)'!A6 -> Count | I6: ='Option1 (base case)'!I6 -> 1 | J6: ='Option1 (base case)'!J6 -> 2 | K6: ='Option1 (base case)'!K6 -> 3 | L6: ='Option1 (base case)'!L6 -> 4 | M6: ='Option1 (base case)'!M6 -> 5 | N6: ='Option1 (base case)'!N6 -> 6 | O6: ='Option1 (base case)'!O6 -> 7 | P6: ='Option1 (base case)'!P6 -> 8 | Q6: ='Option1 (base case)'!Q6 -> 9 | R6: ='Option1 (base case)'!R6 -> 10 | S6: ='Option1 (base case)'!S6 -> 11 | T6: ='Option1 (base case)'!T6 -> 12 | U6: ='Option1 (base case)'!U6 -> 13 | V6: ='Option1 (base case)'!V6 -> 14 | W6: ='Option1 (base case)'!W6 -> 15 | X6: ='Option1 (base case)'!X6 -> 16 | Y6: ='Option1 (base case)'!Y6 -> 17 | Z6: ='Option1 (base case)'!Z6 -> 18 | AA6: ='Option1 (base case)'!AA6 -> 19 | AB6: ='Option1 (base case)'!AB6 -> 20 | AC6: ='Option1 (base case)'!AC6 -> 21 | AD6: ='Option1 (base case)'!AD6 -> 22 | AE6: ='Option1 (base case)'!AE6 -> 23 | AF6: ='Option1 (base case)'!AF6 -> 24 | AG6: ='Option1 (base case)'!AG6 -> 25
A7: ='Option1 (base case)'!A7 -> Value of CO2 reductions | G7: $/MWh | I7: ='Option1 (base case)'!I7 -> 24.7304868 | J7: ='Option1 (base case)'!J7 -> 22.34074009 | K7: ='Option1 (base case)'!K7 -> 20.19632912 | L7: ='Option1 (base case)'!L7 -> 18.06294208 | M7: ='Option1 (base case)'!M7 -> 15.91339762 | N7: ='Option1 (base case)'!N7 -> 13.71506943 | O7: ='Option1 (base case)'!O7 -> 13.71506943 | P7: ='Option1 (base case)'!P7 -> 13.71506943 | Q7: ='Option1 (base case)'!Q7 -> 13.71506943 | R7: ='Option1 (base case)'!R7 -> 13.71506943 | S7: ='Option1 (base case)'!S7 -> 13.71506943 | T7: ='Option1 (base case)'!T7 -> 13.71506943 | U7: ='Option1 (base case)'!U7 -> 13.71506943 | V7: ='Option1 (base case)'!V7 -> 13.71506943 | W7: ='Option1 (base case)'!W7 -> 13.71506943 | X7: ='Option1 (base case)'!X7 -> 13.71506943 | Y7: ='Option1 (base case)'!Y7 -> 13.71506943 | Z7: ='Option1 (base case)'!Z7 -> 13.71506943 | AA7: ='Option1 (base case)'!AA7 -> 13.71506943 | AB7: ='Option1 (base case)'!AB7 -> 13.71506943 | AC7: ='Option1 (base case)'!AC7 -> 13.71506943 | AD7: ='Option1 (base case)'!AD7 -> 13.71506943 | AE7: ='Option1 (base case)'!AE7 -> 13.71506943 | AF7: ='Option1 (base case)'!AF7 -> 13.71506943 | AG7: ='Option1 (base case)'!AG7 -> 13.71506943
I8: =_xlfn.NUMBERVALUE(LEFT(I$9,4))+1 -> 2027 | J8: =_xlfn.NUMBERVALUE(LEFT(J$9,4))+1 -> 2028 | K8: 2029 | L8: 2030 | M8: 2031 | N8: 2032 | O8: 2033 | P8: 2034 | Q8: 2035 | R8: 2036 | S8: 2037 | T8: 2038 | U8: 2039 | V8: 2040 | W8: 2041 | X8: 2042 | Y8: 2043 | Z8: 2044 | AA8: 2045 | AB8: 2046 | AC8: 2047 | AD8: 2048 | AE8: 2049 | AF8: 2050 | AG8: 2051
G9: Units | I9: ='Option1 (base case)'!I9 -> 2026-27 | J9: ='Option1 (base case)'!J9 -> 2027-28 | K9: ='Option1 (base case)'!K9 -> 2028-29 | L9: ='Option1 (base case)'!L9 -> 2029-30 | M9: ='Option1 (base case)'!M9 -> 2030-31 | N9: ='Option1 (base case)'!N9 -> 2031-32 | O9: ='Option1 (base case)'!O9 -> 2032-33 | P9: ='Option1 (base case)'!P9 -> 2033-34 | Q9: ='Option1 (base case)'!Q9 -> 2034-35 | R9: ='Option1 (base case)'!R9 -> 2035-36 | S9: ='Option1 (base case)'!S9 -> 2036-37 | T9: ='Option1 (base case)'!T9 -> 2037-38 | U9: ='Option1 (base case)'!U9 -> 2038-39 | V9: ='Option1 (base case)'!V9 -> 2039-40 | W9: ='Option1 (base case)'!W9 -> 2040-41 | X9: ='Option1 (base case)'!X9 -> 2041-42 | Y9: ='Option1 (base case)'!Y9 -> 2042-43 | Z9: ='Option1 (base case)'!Z9 -> 2043-44 | AA9: ='Option1 (base case)'!AA9 -> 2044-45 | AB9: ='Option1 (base case)'!AB9 -> 2045-46 | AC9: ='Option1 (base case)'!AC9 -> 2046-47 | AD9: ='Option1 (base case)'!AD9 -> 2047-48 | AE9: ='Option1 (base case)'!AE9 -> 2048-49 | AF9: ='Option1 (base case)'!AF9 -> 2049-50 | AG9: ='Option1 (base case)'!AG9 -> 2050-51
A11: INVESTMENT & OPERATING COST
C13: Capex | E13: Asset life (yrs)
C14: < Enter description > | E14: 0 | G14: =input_dollars -> 2023-12-31 | I14: 0 | J14: 0 | K14: 0 | L14: 0 | M14: 0 | N14: 0 | O14: 0 | P14: 0 | Q14: 0 | R14: 0 | S14: 0 | T14: 0 | U14: 0 | V14: 0 | W14: 0 | X14: 0 | Y14: 0 | Z14: 0 | AA14: 0 | AB14: 0 | AC14: 0 | AD14: 0 | AE14: 0 | AF14: 0 | AG14: 0
C15: < Enter description > | E15: 0 | G15: =input_dollars -> 2023-12-31 | I15: 0 | J15: 0 | K15: 0 | L15: 0 | M15: 0 | N15: 0 | O15: 0 | P15: 0 | Q15: 0 | R15: 0 | S15: 0 | T15: 0 | U15: 0 | V15: 0 | W15: 0 | X15: 0 | Y15: 0 | Z15: 0 | AA15: 0 | AB15: 0 | AC15: 0 | AD15: 0 | AE15: 0 | AF15: 0 | AG15: 0
C16: < Enter description > | E16: 0 | G16: =input_dollars -> 2023-12-31 | I16: 0 | J16: 0 | K16: 0 | L16: 0 | M16: 0 | N16: 0 | O16: 0 | P16: 0 | Q16: 0 | R16: 0 | S16: 0 | T16: 0 | U16: 0 | V16: 0 | W16: 0 | X16: 0 | Y16: 0 | Z16: 0 | AA16: 0 | AB16: 0 | AC16: 0 | AD16: 0 | AE16: 0 | AF16: 0 | AG16: 0
C17: Capital expenditure | G17: =input_dollars -> 2023-12-31 | I17: =SUM(I14:I16) -> 0 | J17: 0 | K17: 0 | L17: 0 | M17: 0 | N17: 0 | O17: 0 | P17: 0 | Q17: 0 | R17: =SUM(R14:R16) -> 0 | S17: 0 | T17: 0 | U17: 0 | V17: 0 | W17: 0 | X17: 0 | Y17: 0 | Z17: 0 | AA17: 0 | AB17: 0 | AC17: 0 | AD17: 0 | AE17: 0 | AF17: 0 | AG17: 0
C19: Operating expenditure | G19: =input_dollars -> 2023-12-31 | I19: 0 | J19: 0 | K19: 0 | L19: 0 | M19: 0 | N19: 0 | O19: 0 | P19: 0 | Q19: 0 | R19: 0 | S19: 0 | T19: 0 | U19: 0 | V19: 0 | W19: 0 | X19: 0 | Y19: 0 | Z19: 0 | AA19: 0 | AB19: 0 | AC19: 0 | AD19: 0 | AE19: 0 | AF19: 0 | AG19: 0
A22: RISK ASSUMPTIONS
C24: PoF (major) | I24: 0 | J24: 0 | K24: 0 | L24: 0 | M24: 0 | N24: 0 | O24: 0 | P24: 0 | Q24: 0 | R24: 0 | S24: 0 | T24: 0 | U24: 0 | V24: 0 | W24: 0 | X24: 0 | Y24: 0 | Z24: 0 | AA24: 0 | AB24: 0 | AC24: 0 | AD24: 0 | AE24: 0 | AF24: 0 | AG24: 0
C25: PoF (reparable) | I25: 0 | J25: 0 | K25: 0 | L25: 0 | M25: 0 | N25: 0 | O25: 0 | P25: 0 | Q25: 0 | R25: 0 | S25: 0 | T25: 0 | U25: 0 | V25: 0 | W25: 0 | X25: 0 | Y25: 0 | Z25: 0 | AA25: 0 | AB25: 0 | AC25: 0 | AD25: 0 | AE25: 0 | AF25: 0 | AG25: 0
C27: Const end date
C28: Energy at risk 10% PoE | E28: 0.3 | G28: MWh | I28: 0 | J28: 0 | K28: 0 | L28: 0 | M28: 0 | N28: 0 | O28: 0 | P28: 0 | Q28: 0 | R28: 0 | S28: 0 | T28: 0 | U28: 0 | V28: 0 | W28: 0 | X28: 0 | Y28: 0 | Z28: 0 | AA28: 0 | AB28: 0 | AC28: 0 | AD28: 0 | AE28: 0 | AF28: 0 | AG28: 0
C29: Energy at risk 50% PoE | E29: 0.7 | G29: MWh | I29: 0 | J29: 0 | K29: 0 | L29: 0 | M29: 0 | N29: 0 | O29: 0 | P29: 0 | Q29: 0 | R29: 0 | S29: 0 | T29: 0 | U29: 0 | V29: 0 | W29: 0 | X29: 0 | Y29: 0 | Z29: 0 | AA29: 0 | AB29: 0 | AC29: 0 | AD29: 0 | AE29: 0 | AF29: 0 | AG29: 0
C31: Energy at risk (weighted) | G31: MWh | I31: =SUMPRODUCT(I$28:I$29, $E$28:$E$29) -> 0 | J31: =SUMPRODUCT(J$28:J$29, $E$28:$E$29) -> 0 | K31: 0 | L31: 0 | M31: 0 | N31: 0 | O31: 0 | P31: 0 | Q31: 0 | R31: 0 | S31: 0 | T31: 0 | U31: 0 | V31: 0 | W31: 0 | X31: 0 | Y31: 0 | Z31: 0 | AA31: 0 | AB31: 0 | AC31: 0 | AD31: 0 | AE31: 0 | AF31: 0 | AG31: 0
C32: Energy at risk value | D32: $/MWh | E32: =Assumptions!H41*vcr_esc -> 35130.23528 | F32: =IF(AND(SUM(I31:AG31)<>0, E32=0), "!", "") ->  | G32: =input_dollars -> 2023-12-31 | I32: =I31*$E$32 -> 0 | J32: =J31*$E$32 -> 0 | K32: 0 | L32: 0 | M32: 0 | N32: 0 | O32: 0 | P32: 0 | Q32: 0 | R32: 0 | S32: 0 | T32: 0 | U32: 0 | V32: 0 | W32: 0 | X32: 0 | Y32: 0 | Z32: 0 | AA32: 0 | AB32: 0 | AC32: 0 | AD32: 0 | AE32: 0 | AF32: 0 | AG32: 0
C34: Safety consequence | D34: (after DF) | G34: =input_dollars -> 2023-12-31 | I34: =SUMPRODUCT((Assumptions!$H$70:$H$71)*(Assumptions!$G$70:$G$71)*(Assumptions!$I$70:$I$71)*(I$24:I$25)) -> 0 | J34: =SUMPRODUCT((Assumptions!$H$70:$H$71)*(Assumptions!$G$70:$G$71)*(Assumptions!$I$70:$I$71)*(J$24:J$25)) -> 0 | K34: =SUMPRODUCT((Assumptions!$H$70:$H$71)*(Assumptions!$G$70:$G$71)*(Assumptions!$I$70:$I$71)*(K$24:K$25)) -> 0 | L34: =SUMPRODUCT((Assumptions!$H$70:$H$71)*(Assumptions!$G$70:$G$71)*(Assumptions!$I$70:$I$71)*(L$24:L$25)) -> 0 | M34: =SUMPRODUCT((Assumptions!$H$70:$H$71)*(Assumptions!$G$70:$G$71)*(Assumptions!$I$70:$I$71)*(M$24:M$25)) -> 0 | N34: =SUMPRODUCT((Assumptions!$H$70:$H$71)*(Assumptions!$G$70:$G$71)*(Assumptions!$I$70:$I$71)*(N$24:N$25)) -> 0 | O34: =SUMPRODUCT((Assumptions!$H$70:$H$71)*(Assumptions!$G$70:$G$71)*(Assumptions!$I$70:$I$71)*(O$24:O$25)) -> 0 | P34: =SUMPRODUCT((Assumptions!$H$70:$H$71)*(Assumptions!$G$70:$G$71)*(Assumptions!$I$70:$I$71)*(P$24:P$25)) -> 0 | Q34: =SUMPRODUCT((Assumptions!$H$70:$H$71)*(Assumptions!$G$70:$G$71)*(Assumptions!$I$70:$I$71)*(Q$24:Q$25)) -> 0 | R34: =SUMPRODUCT((Assumptions!$H$70:$H$71)*(Assumptions!$G$70:$G$71)*(Assumptions!$I$70:$I$71)*(R$24:R$25)) -> 0 | S34: =SUMPRODUCT((Assumptions!$H$70:$H$71)*(Assumptions!$G$70:$G$71)*(Assumptions!$I$70:$I$71)*(S$24:S$25)) -> 0 | T34: =SUMPRODUCT((Assumptions!$H$70:$H$71)*(Assumptions!$G$70:$G$71)*(Assumptions!$I$70:$I$71)*(T$24:T$25)) -> 0 | U34: =SUMPRODUCT((Assumptions!$H$70:$H$71)*(Assumptions!$G$70:$G$71)*(Assumptions!$I$70:$I$71)*(U$24:U$25)) -> 0 | V34: =SUMPRODUCT((Assumptions!$H$70:$H$71)*(Assumptions!$G$70:$G$71)*(Assumptions!$I$70:$I$71)*(V$24:V$25)) -> 0 | W34: =SUMPRODUCT((Assumptions!$H$70:$H$71)*(Assumptions!$G$70:$G$71)*(Assumptions!$I$70:$I$71)*(W$24:W$25)) -> 0 | X34: =SUMPRODUCT((Assumptions!$H$70:$H$71)*(Assumptions!$G$70:$G$71)*(Assumptions!$I$70:$I$71)*(X$24:X$25)) -> 0 | Y34: =SUMPRODUCT((Assumptions!$H$70:$H$71)*(Assumptions!$G$70:$G$71)*(Assumptions!$I$70:$I$71)*(Y$24:Y$25)) -> 0 | Z34: =SUMPRODUCT((Assumptions!$H$70:$H$71)*(Assumptions!$G$70:$G$71)*(Assumptions!$I$70:$I$71)*(Z$24:Z$25)) -> 0 | AA34: =SUMPRODUCT((Assumptions!$H$70:$H$71)*(Assumptions!$G$70:$G$71)*(Assumptions!$I$70:$I$71)*(AA$24:AA$25)) -> 0 | AB34: =SUMPRODUCT((Assumptions!$H$70:$H$71)*(Assumptions!$G$70:$G$71)*(Assumptions!$I$70:$I$71)*(AB$24:AB$25)) -> 0 | AC34: =SUMPRODUCT((Assumptions!$H$70:$H$71)*(Assumptions!$G$70:$G$71)*(Assumptions!$I$70:$I$71)*(AC$24:AC$25)) -> 0 | AD34: =SUMPRODUCT((Assumptions!$H$70:$H$71)*(Assumptions!$G$70:$G$71)*(Assumptions!$I$70:$I$71)*(AD$24:AD$25)) -> 0 | AE34: =SUMPRODUCT((Assumptions!$H$70:$H$71)*(Assumptions!$G$70:$G$71)*(Assumptions!$I$70:$I$71)*(AE$24:AE$25)) -> 0 | AF34: =SUMPRODUCT((Assumptions!$H$70:$H$71)*(Assumptions!$G$70:$G$71)*(Assumptions!$I$70:$I$71)*(AF$24:AF$25)) -> 0 | AG34: =SUMPRODUCT((Assumptions!$H$70:$H$71)*(Assumptions!$G$70:$G$71)*(Assumptions!$I$70:$I$71)*(AG$24:AG$25)) -> 0
C35: Unplanned replacements | G35: =input_dollars -> 2023-12-31 | I35: =(1+Assumptions!$G$81)*SUMPRODUCT((Assumptions!$G$78:$G$79)*(I$24:I$25)) -> 0 | J35: =(1+Assumptions!$G$81)*SUMPRODUCT((Assumptions!$G$78:$G$79)*(J$24:J$25)) -> 0 | K35: =(1+Assumptions!$G$81)*SUMPRODUCT((Assumptions!$G$78:$G$79)*(K$24:K$25)) -> 0 | L35: =(1+Assumptions!$G$81)*SUMPRODUCT((Assumptions!$G$78:$G$79)*(L$24:L$25)) -> 0 | M35: =(1+Assumptions!$G$81)*SUMPRODUCT((Assumptions!$G$78:$G$79)*(M$24:M$25)) -> 0 | N35: =(1+Assumptions!$G$81)*SUMPRODUCT((Assumptions!$G$78:$G$79)*(N$24:N$25)) -> 0 | O35: =(1+Assumptions!$G$81)*SUMPRODUCT((Assumptions!$G$78:$G$79)*(O$24:O$25)) -> 0 | P35: =(1+Assumptions!$G$81)*SUMPRODUCT((Assumptions!$G$78:$G$79)*(P$24:P$25)) -> 0 | Q35: =(1+Assumptions!$G$81)*SUMPRODUCT((Assumptions!$G$78:$G$79)*(Q$24:Q$25)) -> 0 | R35: =(1+Assumptions!$G$81)*SUMPRODUCT((Assumptions!$G$78:$G$79)*(R$24:R$25)) -> 0 | S35: =(1+Assumptions!$G$81)*SUMPRODUCT((Assumptions!$G$78:$G$79)*(S$24:S$25)) -> 0 | T35: =(1+Assumptions!$G$81)*SUMPRODUCT((Assumptions!$G$78:$G$79)*(T$24:T$25)) -> 0 | U35: =(1+Assumptions!$G$81)*SUMPRODUCT((Assumptions!$G$78:$G$79)*(U$24:U$25)) -> 0 | V35: =(1+Assumptions!$G$81)*SUMPRODUCT((Assumptions!$G$78:$G$79)*(V$24:V$25)) -> 0 | W35: =(1+Assumptions!$G$81)*SUMPRODUCT((Assumptions!$G$78:$G$79)*(W$24:W$25)) -> 0 | X35: =(1+Assumptions!$G$81)*SUMPRODUCT((Assumptions!$G$78:$G$79)*(X$24:X$25)) -> 0 | Y35: =(1+Assumptions!$G$81)*SUMPRODUCT((Assumptions!$G$78:$G$79)*(Y$24:Y$25)) -> 0 | Z35: =(1+Assumptions!$G$81)*SUMPRODUCT((Assumptions!$G$78:$G$79)*(Z$24:Z$25)) -> 0 | AA35: =(1+Assumptions!$G$81)*SUMPRODUCT((Assumptions!$G$78:$G$79)*(AA$24:AA$25)) -> 0 | AB35: =(1+Assumptions!$G$81)*SUMPRODUCT((Assumptions!$G$78:$G$79)*(AB$24:AB$25)) -> 0 | AC35: =(1+Assumptions!$G$81)*SUMPRODUCT((Assumptions!$G$78:$G$79)*(AC$24:AC$25)) -> 0 | AD35: =(1+Assumptions!$G$81)*SUMPRODUCT((Assumptions!$G$78:$G$79)*(AD$24:AD$25)) -> 0 | AE35: =(1+Assumptions!$G$81)*SUMPRODUCT((Assumptions!$G$78:$G$79)*(AE$24:AE$25)) -> 0 | AF35: =(1+Assumptions!$G$81)*SUMPRODUCT((Assumptions!$G$78:$G$79)*(AF$24:AF$25)) -> 0 | AG35: =(1+Assumptions!$G$81)*SUMPRODUCT((Assumptions!$G$78:$G$79)*(AG$24:AG$25)) -> 0
C36: Environmental consequence | D36: (after DF) | G36: =input_dollars -> 2023-12-31 | I36: 0 | J36: 0 | K36: 0 | L36: 0 | M36: 0 | N36: 0 | O36: 0 | P36: 0 | Q36: 0 | R36: 0 | S36: 0 | T36: 0 | U36: 0 | V36: 0 | W36: 0 | X36: 0 | Y36: 0 | Z36: 0 | AA36: 0 | AB36: 0 | AC36: 0 | AD36: 0 | AE36: 0 | AF36: 0 | AG36: 0
C37: < Other risk - enter description > | G37: =input_dollars -> 2023-12-31 | I37: 0 | J37: 0 | K37: 0 | L37: 0 | M37: 0 | N37: 0 | O37: 0 | P37: 0 | Q37: 0 | R37: 0 | S37: 0 | T37: 0 | U37: 0 | V37: 0 | W37: 0 | X37: 0 | Y37: 0 | Z37: 0 | AA37: 0 | AB37: 0 | AC37: 0 | AD37: 0 | AE37: 0 | AF37: 0 | AG37: 0
C38: < Other risk - enter description > | G38: =input_dollars -> 2023-12-31 | I38: 0 | J38: 0 | K38: 0 | L38: 0 | M38: 0 | N38: 0 | O38: 0 | P38: 0 | Q38: 0 | R38: 0 | S38: 0 | T38: 0 | U38: 0 | V38: 0 | W38: 0 | X38: 0 | Y38: 0 | Z38: 0 | AA38: 0 | AB38: 0 | AC38: 0 | AD38: 0 | AE38: 0 | AF38: 0 | AG38: 0
C40: Total risk cost | I40: =SUM(I32:I38) -> 0 | J40: =SUM(J32:J38) -> 0 | K40: 0 | L40: 0 | M40: 0 | N40: 0 | O40: 0 | P40: 0 | Q40: 0 | R40: 0 | S40: 0 | T40: 0 | U40: 0 | V40: 0 | W40: 0 | X40: 0 | Y40: 0 | Z40: 0 | AA40: 0 | AB40: 0 | AC40: 0 | AD40: 0 | AE40: 0 | AF40: 0 | AG40: 0
A42: OTHER BENEFITS
C45: Reduction in CO2 emissions | G45: MWh | I45: 0 | J45: 0 | K45: 0 | L45: 0 | M45: 0 | N45: 0 | O45: 0 | P45: 0 | Q45: 0 | R45: 0 | S45: 0 | T45: 0 | U45: 0 | V45: 0 | W45: 0 | X45: 0 | Y45: 0 | Z45: 0 | AA45: 0 | AB45: 0 | AC45: 0 | AD45: 0 | AE45: 0 | AF45: 0 | AG45: 0
C46: Value of reduction in CO2 emissions | G46: $ | I46: =I45*I7 -> 0 | J46: 0 | K46: 0 | L46: 0 | M46: 0 | N46: 0 | O46: 0 | P46: 0 | Q46: 0 | R46: 0 | S46: 0 | T46: 0 | U46: 0 | V46: 0 | W46: 0 | X46: 0 | Y46: 0 | Z46: 0 | AA46: 0 | AB46: 0 | AC46: 0 | AD46: 0 | AE46: 0 | AF46: 0 | AG46: 0
C49: Reliability in worst-served areas | D49: $/MWh | E49: =Assumptions!G94 -> 151432.8174 | G49: MWh | I49: 0 | J49: 0 | K49: 0 | L49: 0 | M49: 0 | N49: 0 | O49: 0 | P49: 0 | Q49: 0 | R49: 0 | S49: 0 | T49: 0 | U49: 0 | V49: 0 | W49: 0 | X49: 0 | Y49: 0 | Z49: 0 | AA49: 0 | AB49: 0 | AC49: 0 | AD49: 0 | AE49: 0 | AF49: 0 | AG49: 0
C50: Network resilience | D50: $/MWh | E50: =Assumptions!G95 -> 24590 | G50: MWh | I50: 0 | J50: 0 | K50: 0 | L50: 0 | M50: 0 | N50: 0 | O50: 0 | P50: 0 | Q50: 0 | R50: 0 | S50: 0 | T50: 0 | U50: 0 | V50: 0 | W50: 0 | X50: 0 | Y50: 0 | Z50: 0 | AA50: 0 | AB50: 0 | AC50: 0 | AD50: 0 | AE50: 0 | AF50: 0 | AG50: 0
C51: Enabling solar exports | D51: $/MWh | E51: =Assumptions!G96 -> 88.35771951 | G51: MWh | I51: 0 | J51: 0 | K51: 0 | L51: 0 | M51: 0 | N51: 0 | O51: 0 | P51: 0 | Q51: 0 | R51: 0 | S51: 0 | T51: 0 | U51: 0 | V51: 0 | W51: 0 | X51: 0 | Y51: 0 | Z51: 0 | AA51: 0 | AB51: 0 | AC51: 0 | AD51: 0 | AE51: 0 | AF51: 0 | AG51: 0
C52: Aesthetics | D52: $/customer | E52: =Assumptions!G97 -> 0 | G52: customers | I52: 0 | J52: 0 | K52: 0 | L52: 0 | M52: 0 | N52: 0 | O52: 0 | P52: 0 | Q52: 0 | R52: 0 | S52: 0 | T52: 0 | U52: 0 | V52: 0 | W52: 0 | X52: 0 | Y52: 0 | Z52: 0 | AA52: 0 | AB52: 0 | AC52: 0 | AD52: 0 | AE52: 0 | AF52: 0 | AG52: 0
C53: Customer value of time (res) | D53: $/customer min | E53: =Assumptions!G98 -> 0.3518133654 | G53: mins | I53: 0 | J53: 0 | K53: 0 | L53: 0 | M53: 0 | N53: 0 | O53: 0 | P53: 0 | Q53: 0 | R53: 0 | S53: 0 | T53: 0 | U53: 0 | V53: 0 | W53: 0 | X53: 0 | Y53: 0 | Z53: 0 | AA53: 0 | AB53: 0 | AC53: 0 | AD53: 0 | AE53: 0 | AF53: 0 | AG53: 0
C54: Customer value of time (bus) | D54: $/customer min | E54: =Assumptions!G99 -> 0.3518133654 | G54: mins | I54: 0 | J54: 0 | K54: 0 | L54: 0 | M54: 0 | N54: 0 | O54: 0 | P54: 0 | Q54: 0 | R54: 0 | S54: 0 | T54: 0 | U54: 0 | V54: 0 | W54: 0 | X54: 0 | Y54: 0 | Z54: 0 | AA54: 0 | AB54: 0 | AC54: 0 | AD54: 0 | AE54: 0 | AF54: 0 | AG54: 0
C55: Communication | D55: $/customer | E55: =Assumptions!G100 -> 0 | G55: customers | I55: 0 | J55: 0 | K55: 0 | L55: 0 | M55: 0 | N55: 0 | O55: 0 | P55: 0 | Q55: 0 | R55: 0 | S55: 0 | T55: 0 | U55: 0 | V55: 0 | W55: 0 | X55: 0 | Y55: 0 | Z55: 0 | AA55: 0 | AB55: 0 | AC55: 0 | AD55: 0 | AE55: 0 | AF55: 0 | AG55: 0
C56: Information accessibility | D56: $/customer | E56: =Assumptions!G101 -> 0 | G56: customers | I56: 0 | J56: 0 | K56: 0 | L56: 0 | M56: 0 | N56: 0 | O56: 0 | P56: 0 | Q56: 0 | R56: 0 | S56: 0 | T56: 0 | U56: 0 | V56: 0 | W56: 0 | X56: 0 | Y56: 0 | Z56: 0 | AA56: 0 | AB56: 0 | AC56: 0 | AD56: 0 | AE56: 0 | AF56: 0 | AG56: 0
C58: Other benefits 1 | G58: =input_dollars -> 2023-12-31 | I58: 0 | J58: 0 | K58: 0 | L58: 0 | M58: 0 | N58: 0 | O58: 0 | P58: 0 | Q58: 0 | R58: 0 | S58: 0 | T58: 0 | U58: 0 | V58: 0 | W58: 0 | X58: 0 | Y58: 0 | Z58: 0 | AA58: 0 | AB58: 0 | AC58: 0 | AD58: 0 | AE58: 0 | AF58: 0 | AG58: 0
C59: Other benefits 2 | G59: =input_dollars -> 2023-12-31 | I59: 0 | J59: 0 | K59: 0 | L59: 0 | M59: 0 | N59: 0 | O59: 0 | P59: 0 | Q59: 0 | R59: 0 | S59: 0 | T59: 0 | U59: 0 | V59: 0 | W59: 0 | X59: 0 | Y59: 0 | Z59: 0 | AA59: 0 | AB59: 0 | AC59: 0 | AD59: 0 | AE59: 0 | AF59: 0 | AG59: 0
C61: Total other benefits | G61: =input_dollars -> 2023-12-31 | I61: =SUMPRODUCT((I$49:I$56)*($E$49:$E$56))+SUM(I58:I59)+I46 -> 0 | J61: =SUMPRODUCT((J$49:J$56)*($E$49:$E$56))+SUM(J58:J59)+J46 -> 0 | K61: =SUMPRODUCT((K$49:K$56)*($E$49:$E$56))+SUM(K58:K59)+K46 -> 0 | L61: =SUMPRODUCT((L$49:L$56)*($E$49:$E$56))+SUM(L58:L59)+L46 -> 0 | M61: =SUMPRODUCT((M$49:M$56)*($E$49:$E$56))+SUM(M58:M59)+M46 -> 0 | N61: =SUMPRODUCT((N$49:N$56)*($E$49:$E$56))+SUM(N58:N59)+N46 -> 0 | O61: =SUMPRODUCT((O$49:O$56)*($E$49:$E$56))+SUM(O58:O59)+O46 -> 0 | P61: =SUMPRODUCT((P$49:P$56)*($E$49:$E$56))+SUM(P58:P59)+P46 -> 0 | Q61: =SUMPRODUCT((Q$49:Q$56)*($E$49:$E$56))+SUM(Q58:Q59)+Q46 -> 0 | R61: =SUMPRODUCT((R$49:R$56)*($E$49:$E$56))+SUM(R58:R59)+R46 -> 0 | S61: =SUMPRODUCT((S$49:S$56)*($E$49:$E$56))+SUM(S58:S59)+S46 -> 0 | T61: =SUMPRODUCT((T$49:T$56)*($E$49:$E$56))+SUM(T58:T59)+T46 -> 0 | U61: =SUMPRODUCT((U$49:U$56)*($E$49:$E$56))+SUM(U58:U59)+U46 -> 0 | V61: =SUMPRODUCT((V$49:V$56)*($E$49:$E$56))+SUM(V58:V59)+V46 -> 0 | W61: =SUMPRODUCT((W$49:W$56)*($E$49:$E$56))+SUM(W58:W59)+W46 -> 0 | X61: =SUMPRODUCT((X$49:X$56)*($E$49:$E$56))+SUM(X58:X59)+X46 -> 0 | Y61: =SUMPRODUCT((Y$49:Y$56)*($E$49:$E$56))+SUM(Y58:Y59)+Y46 -> 0 | Z61: =SUMPRODUCT((Z$49:Z$56)*($E$49:$E$56))+SUM(Z58:Z59)+Z46 -> 0 | AA61: =SUMPRODUCT((AA$49:AA$56)*($E$49:$E$56))+SUM(AA58:AA59)+AA46 -> 0 | AB61: =SUMPRODUCT((AB$49:AB$56)*($E$49:$E$56))+SUM(AB58:AB59)+AB46 -> 0 | AC61: =SUMPRODUCT((AC$49:AC$56)*($E$49:$E$56))+SUM(AC58:AC59)+AC46 -> 0 | AD61: =SUMPRODUCT((AD$49:AD$56)*($E$49:$E$56))+SUM(AD58:AD59)+AD46 -> 0 | AE61: =SUMPRODUCT((AE$49:AE$56)*($E$49:$E$56))+SUM(AE58:AE59)+AE46 -> 0 | AF61: =SUMPRODUCT((AF$49:AF$56)*($E$49:$E$56))+SUM(AF58:AF59)+AF46 -> 0 | AG61: =SUMPRODUCT((AG$49:AG$56)*($E$49:$E$56))+SUM(AG58:AG59)+AG46 -> 0
A64: SUMMARY
C68: ='Option1 (base case)'!C67 -> Risks mitigated vs base case | G68: =input_dollars -> 2023-12-31 | I68: =(1-INDEX(Data!$C$9:$C$13, MATCH($A$3, options,0)))*('Option1 (base case)'!I39-I40) -> 0 | J68: =(1-INDEX(Data!$C$9:$C$13, MATCH($A$3, options,0)))*('Option1 (base case)'!J39-J40) -> 0 | K68: =(1-INDEX(Data!$C$9:$C$13, MATCH($A$3, options,0)))*('Option1 (base case)'!K39-K40) -> 0 | L68: =(1-INDEX(Data!$C$9:$C$13, MATCH($A$3, options,0)))*('Option1 (base case)'!L39-L40) -> 0 | M68: =(1-INDEX(Data!$C$9:$C$13, MATCH($A$3, options,0)))*('Option1 (base case)'!M39-M40) -> 0 | N68: =(1-INDEX(Data!$C$9:$C$13, MATCH($A$3, options,0)))*('Option1 (base case)'!N39-N40) -> 0 | O68: =(1-INDEX(Data!$C$9:$C$13, MATCH($A$3, options,0)))*('Option1 (base case)'!O39-O40) -> 0 | P68: =(1-INDEX(Data!$C$9:$C$13, MATCH($A$3, options,0)))*('Option1 (base case)'!P39-P40) -> 0 | Q68: =(1-INDEX(Data!$C$9:$C$13, MATCH($A$3, options,0)))*('Option1 (base case)'!Q39-Q40) -> 0 | R68: =(1-INDEX(Data!$C$9:$C$13, MATCH($A$3, options,0)))*('Option1 (base case)'!R39-R40) -> 0 | S68: =(1-INDEX(Data!$C$9:$C$13, MATCH($A$3, options,0)))*('Option1 (base case)'!S39-S40) -> 0 | T68: =(1-INDEX(Data!$C$9:$C$13, MATCH($A$3, options,0)))*('Option1 (base case)'!T39-T40) -> 0 | U68: =(1-INDEX(Data!$C$9:$C$13, MATCH($A$3, options,0)))*('Option1 (base case)'!U39-U40) -> 0 | V68: =(1-INDEX(Data!$C$9:$C$13, MATCH($A$3, options,0)))*('Option1 (base case)'!V39-V40) -> 0 | W68: =(1-INDEX(Data!$C$9:$C$13, MATCH($A$3, options,0)))*('Option1 (base case)'!W39-W40) -> 0 | X68: =(1-INDEX(Data!$C$9:$C$13, MATCH($A$3, options,0)))*('Option1 (base case)'!X39-X40) -> 0 | Y68: =(1-INDEX(Data!$C$9:$C$13, MATCH($A$3, options,0)))*('Option1 (base case)'!Y39-Y40) -> 0 | Z68: =(1-INDEX(Data!$C$9:$C$13, MATCH($A$3, options,0)))*('Option1 (base case)'!Z39-Z40) -> 0 | AA68: =(1-INDEX(Data!$C$9:$C$13, MATCH($A$3, options,0)))*('Option1 (base case)'!AA39-AA40) -> 0 | AB68: =(1-INDEX(Data!$C$9:$C$13, MATCH($A$3, options,0)))*('Option1 (base case)'!AB39-AB40) -> 0 | AC68: =(1-INDEX(Data!$C$9:$C$13, MATCH($A$3, options,0)))*('Option1 (base case)'!AC39-AC40) -> 0 | AD68: =(1-INDEX(Data!$C$9:$C$13, MATCH($A$3, options,0)))*('Option1 (base case)'!AD39-AD40) -> 0 | AE68: =(1-INDEX(Data!$C$9:$C$13, MATCH($A$3, options,0)))*('Option1 (base case)'!AE39-AE40) -> 0 | AF68: =(1-INDEX(Data!$C$9:$C$13, MATCH($A$3, options,0)))*('Option1 (base case)'!AF39-AF40) -> 0 | AG68: =(1-INDEX(Data!$C$9:$C$13, MATCH($A$3, options,0)))*('Option1 (base case)'!AG39-AG40) -> 0
C70: Capital expenditure
C71: =C14 -> < Enter description > | G71: =input_dollars -> 2023-12-31 | I71: =-I14 -> 0 | J71: 0 | K71: 0 | L71: 0 | M71: 0 | N71: 0 | O71: 0 | P71: 0 | Q71: 0 | R71: 0 | S71: 0 | T71: 0 | U71: 0 | V71: 0 | W71: 0 | X71: 0 | Y71: 0 | Z71: 0 | AA71: 0 | AB71: 0 | AC71: 0 | AD71: 0 | AE71: 0 | AF71: 0 | AG71: 0
C72: =C15 -> < Enter description > | G72: =input_dollars -> 2023-12-31 | I72: =-I15 -> 0 | J72: 0 | K72: 0 | L72: 0 | M72: 0 | N72: 0 | O72: 0 | P72: 0 | Q72: 0 | R72: 0 | S72: 0 | T72: 0 | U72: 0 | V72: 0 | W72: 0 | X72: 0 | Y72: 0 | Z72: 0 | AA72: 0 | AB72: 0 | AC72: 0 | AD72: 0 | AE72: 0 | AF72: 0 | AG72: 0
C73: =C16 -> < Enter description > | G73: =input_dollars -> 2023-12-31 | I73: =-I16 -> 0 | J73: 0 | K73: 0 | L73: 0 | M73: 0 | N73: 0 | O73: 0 | P73: 0 | Q73: 0 | R73: 0 | S73: 0 | T73: 0 | U73: 0 | V73: 0 | W73: 0 | X73: 0 | Y73: 0 | Z73: 0 | AA73: 0 | AB73: 0 | AC73: 0 | AD73: 0 | AE73: 0 | AF73: 0 | AG73: 0
C75: Cumulative capex
C76: =C14 -> < Enter description > | G76: =input_dollars -> 2023-12-31 | I76: =SUMPRODUCT(($I71:I71))-SUMPRODUCT(($I71:I71)*($I$6:I$6<=(I$6-$E14))) -> 0 | J76: =SUMPRODUCT(($I71:J71))-SUMPRODUCT(($I71:J71)*($I$6:J$6<=(J$6-$E14))) -> 0 | K76: =SUMPRODUCT(($I71:K71))-SUMPRODUCT(($I71:K71)*($I$6:K$6<=(K$6-$E14))) -> 0 | L76: =SUMPRODUCT(($I71:L71))-SUMPRODUCT(($I71:L71)*($I$6:L$6<=(L$6-$E14))) -> 0 | M76: =SUMPRODUCT(($I71:M71))-SUMPRODUCT(($I71:M71)*($I$6:M$6<=(M$6-$E14))) -> 0 | N76: =SUMPRODUCT(($I71:N71))-SUMPRODUCT(($I71:N71)*($I$6:N$6<=(N$6-$E14))) -> 0 | O76: =SUMPRODUCT(($I71:O71))-SUMPRODUCT(($I71:O71)*($I$6:O$6<=(O$6-$E14))) -> 0 | P76: =SUMPRODUCT(($I71:P71))-SUMPRODUCT(($I71:P71)*($I$6:P$6<=(P$6-$E14))) -> 0 | Q76: =SUMPRODUCT(($I71:Q71))-SUMPRODUCT(($I71:Q71)*($I$6:Q$6<=(Q$6-$E14))) -> 0 | R76: =SUMPRODUCT(($I71:R71))-SUMPRODUCT(($I71:R71)*($I$6:R$6<=(R$6-$E14))) -> 0 | S76: =SUMPRODUCT(($I71:S71))-SUMPRODUCT(($I71:S71)*($I$6:S$6<=(S$6-$E14))) -> 0 | T76: =SUMPRODUCT(($I71:T71))-SUMPRODUCT(($I71:T71)*($I$6:T$6<=(T$6-$E14))) -> 0 | U76: =SUMPRODUCT(($I71:U71))-SUMPRODUCT(($I71:U71)*($I$6:U$6<=(U$6-$E14))) -> 0 | V76: =SUMPRODUCT(($I71:V71))-SUMPRODUCT(($I71:V71)*($I$6:V$6<=(V$6-$E14))) -> 0 | W76: =SUMPRODUCT(($I71:W71))-SUMPRODUCT(($I71:W71)*($I$6:W$6<=(W$6-$E14))) -> 0 | X76: =SUMPRODUCT(($I71:X71))-SUMPRODUCT(($I71:X71)*($I$6:X$6<=(X$6-$E14))) -> 0 | Y76: =SUMPRODUCT(($I71:Y71))-SUMPRODUCT(($I71:Y71)*($I$6:Y$6<=(Y$6-$E14))) -> 0 | Z76: =SUMPRODUCT(($I71:Z71))-SUMPRODUCT(($I71:Z71)*($I$6:Z$6<=(Z$6-$E14))) -> 0 | AA76: =SUMPRODUCT(($I71:AA71))-SUMPRODUCT(($I71:AA71)*($I$6:AA$6<=(AA$6-$E14))) -> 0 | AB76: =SUMPRODUCT(($I71:AB71))-SUMPRODUCT(($I71:AB71)*($I$6:AB$6<=(AB$6-$E14))) -> 0 | AC76: =SUMPRODUCT(($I71:AC71))-SUMPRODUCT(($I71:AC71)*($I$6:AC$6<=(AC$6-$E14))) -> 0 | AD76: =SUMPRODUCT(($I71:AD71))-SUMPRODUCT(($I71:AD71)*($I$6:AD$6<=(AD$6-$E14))) -> 0 | AE76: =SUMPRODUCT(($I71:AE71))-SUMPRODUCT(($I71:AE71)*($I$6:AE$6<=(AE$6-$E14))) -> 0 | AF76: =SUMPRODUCT(($I71:AF71))-SUMPRODUCT(($I71:AF71)*($I$6:AF$6<=(AF$6-$E14))) -> 0 | AG76: =SUMPRODUCT(($I71:AG71))-SUMPRODUCT(($I71:AG71)*($I$6:AG$6<=(AG$6-$E14))) -> 0
C77: =C15 -> < Enter description > | G77: =input_dollars -> 2023-12-31 | I77: =SUMPRODUCT(($I72:I72))-SUMPRODUCT(($I72:I72)*($I$6:I$6<=(I$6-$E15))) -> 0 | J77: =SUMPRODUCT(($I72:J72))-SUMPRODUCT(($I72:J72)*($I$6:J$6<=(J$6-$E15))) -> 0 | K77: =SUMPRODUCT(($I72:K72))-SUMPRODUCT(($I72:K72)*($I$6:K$6<=(K$6-$E15))) -> 0 | L77: =SUMPRODUCT(($I72:L72))-SUMPRODUCT(($I72:L72)*($I$6:L$6<=(L$6-$E15))) -> 0 | M77: =SUMPRODUCT(($I72:M72))-SUMPRODUCT(($I72:M72)*($I$6:M$6<=(M$6-$E15))) -> 0 | N77: =SUMPRODUCT(($I72:N72))-SUMPRODUCT(($I72:N72)*($I$6:N$6<=(N$6-$E15))) -> 0 | O77: =SUMPRODUCT(($I72:O72))-SUMPRODUCT(($I72:O72)*($I$6:O$6<=(O$6-$E15))) -> 0 | P77: =SUMPRODUCT(($I72:P72))-SUMPRODUCT(($I72:P72)*($I$6:P$6<=(P$6-$E15))) -> 0 | Q77: =SUMPRODUCT(($I72:Q72))-SUMPRODUCT(($I72:Q72)*($I$6:Q$6<=(Q$6-$E15))) -> 0 | R77: =SUMPRODUCT(($I72:R72))-SUMPRODUCT(($I72:R72)*($I$6:R$6<=(R$6-$E15))) -> 0 | S77: =SUMPRODUCT(($I72:S72))-SUMPRODUCT(($I72:S72)*($I$6:S$6<=(S$6-$E15))) -> 0 | T77: =SUMPRODUCT(($I72:T72))-SUMPRODUCT(($I72:T72)*($I$6:T$6<=(T$6-$E15))) -> 0 | U77: =SUMPRODUCT(($I72:U72))-SUMPRODUCT(($I72:U72)*($I$6:U$6<=(U$6-$E15))) -> 0 | V77: =SUMPRODUCT(($I72:V72))-SUMPRODUCT(($I72:V72)*($I$6:V$6<=(V$6-$E15))) -> 0 | W77: =SUMPRODUCT(($I72:W72))-SUMPRODUCT(($I72:W72)*($I$6:W$6<=(W$6-$E15))) -> 0 | X77: =SUMPRODUCT(($I72:X72))-SUMPRODUCT(($I72:X72)*($I$6:X$6<=(X$6-$E15))) -> 0 | Y77: =SUMPRODUCT(($I72:Y72))-SUMPRODUCT(($I72:Y72)*($I$6:Y$6<=(Y$6-$E15))) -> 0 | Z77: =SUMPRODUCT(($I72:Z72))-SUMPRODUCT(($I72:Z72)*($I$6:Z$6<=(Z$6-$E15))) -> 0 | AA77: =SUMPRODUCT(($I72:AA72))-SUMPRODUCT(($I72:AA72)*($I$6:AA$6<=(AA$6-$E15))) -> 0 | AB77: =SUMPRODUCT(($I72:AB72))-SUMPRODUCT(($I72:AB72)*($I$6:AB$6<=(AB$6-$E15))) -> 0 | AC77: =SUMPRODUCT(($I72:AC72))-SUMPRODUCT(($I72:AC72)*($I$6:AC$6<=(AC$6-$E15))) -> 0 | AD77: =SUMPRODUCT(($I72:AD72))-SUMPRODUCT(($I72:AD72)*($I$6:AD$6<=(AD$6-$E15))) -> 0 | AE77: =SUMPRODUCT(($I72:AE72))-SUMPRODUCT(($I72:AE72)*($I$6:AE$6<=(AE$6-$E15))) -> 0 | AF77: =SUMPRODUCT(($I72:AF72))-SUMPRODUCT(($I72:AF72)*($I$6:AF$6<=(AF$6-$E15))) -> 0 | AG77: =SUMPRODUCT(($I72:AG72))-SUMPRODUCT(($I72:AG72)*($I$6:AG$6<=(AG$6-$E15))) -> 0
C78: =C16 -> < Enter description > | G78: =input_dollars -> 2023-12-31 | I78: =SUMPRODUCT(($I73:I73))-SUMPRODUCT(($I73:I73)*($I$6:I$6<=(I$6-$E16))) -> 0 | J78: =SUMPRODUCT(($I73:J73))-SUMPRODUCT(($I73:J73)*($I$6:J$6<=(J$6-$E16))) -> 0 | K78: =SUMPRODUCT(($I73:K73))-SUMPRODUCT(($I73:K73)*($I$6:K$6<=(K$6-$E16))) -> 0 | L78: =SUMPRODUCT(($I73:L73))-SUMPRODUCT(($I73:L73)*($I$6:L$6<=(L$6-$E16))) -> 0 | M78: =SUMPRODUCT(($I73:M73))-SUMPRODUCT(($I73:M73)*($I$6:M$6<=(M$6-$E16))) -> 0 | N78: =SUMPRODUCT(($I73:N73))-SUMPRODUCT(($I73:N73)*($I$6:N$6<=(N$6-$E16))) -> 0 | O78: =SUMPRODUCT(($I73:O73))-SUMPRODUCT(($I73:O73)*($I$6:O$6<=(O$6-$E16))) -> 0 | P78: =SUMPRODUCT(($I73:P73))-SUMPRODUCT(($I73:P73)*($I$6:P$6<=(P$6-$E16))) -> 0 | Q78: =SUMPRODUCT(($I73:Q73))-SUMPRODUCT(($I73:Q73)*($I$6:Q$6<=(Q$6-$E16))) -> 0 | R78: =SUMPRODUCT(($I73:R73))-SUMPRODUCT(($I73:R73)*($I$6:R$6<=(R$6-$E16))) -> 0 | S78: =SUMPRODUCT(($I73:S73))-SUMPRODUCT(($I73:S73)*($I$6:S$6<=(S$6-$E16))) -> 0 | T78: =SUMPRODUCT(($I73:T73))-SUMPRODUCT(($I73:T73)*($I$6:T$6<=(T$6-$E16))) -> 0 | U78: =SUMPRODUCT(($I73:U73))-SUMPRODUCT(($I73:U73)*($I$6:U$6<=(U$6-$E16))) -> 0 | V78: =SUMPRODUCT(($I73:V73))-SUMPRODUCT(($I73:V73)*($I$6:V$6<=(V$6-$E16))) -> 0 | W78: =SUMPRODUCT(($I73:W73))-SUMPRODUCT(($I73:W73)*($I$6:W$6<=(W$6-$E16))) -> 0 | X78: =SUMPRODUCT(($I73:X73))-SUMPRODUCT(($I73:X73)*($I$6:X$6<=(X$6-$E16))) -> 0 | Y78: =SUMPRODUCT(($I73:Y73))-SUMPRODUCT(($I73:Y73)*($I$6:Y$6<=(Y$6-$E16))) -> 0 | Z78: =SUMPRODUCT(($I73:Z73))-SUMPRODUCT(($I73:Z73)*($I$6:Z$6<=(Z$6-$E16))) -> 0 | AA78: =SUMPRODUCT(($I73:AA73))-SUMPRODUCT(($I73:AA73)*($I$6:AA$6<=(AA$6-$E16))) -> 0 | AB78: =SUMPRODUCT(($I73:AB73))-SUMPRODUCT(($I73:AB73)*($I$6:AB$6<=(AB$6-$E16))) -> 0 | AC78: =SUMPRODUCT(($I73:AC73))-SUMPRODUCT(($I73:AC73)*($I$6:AC$6<=(AC$6-$E16))) -> 0 | AD78: =SUMPRODUCT(($I73:AD73))-SUMPRODUCT(($I73:AD73)*($I$6:AD$6<=(AD$6-$E16))) -> 0 | AE78: =SUMPRODUCT(($I73:AE73))-SUMPRODUCT(($I73:AE73)*($I$6:AE$6<=(AE$6-$E16))) -> 0 | AF78: =SUMPRODUCT(($I73:AF73))-SUMPRODUCT(($I73:AF73)*($I$6:AF$6<=(AF$6-$E16))) -> 0 | AG78: =SUMPRODUCT(($I73:AG73))-SUMPRODUCT(($I73:AG73)*($I$6:AG$6<=(AG$6-$E16))) -> 0
C80: Annualised capex
C81: =$C$80&" - "&C14 -> Annualised capex - < Enter description > | G81: =input_dollars -> 2023-12-31 | I81: =IF($E14=0,0,-PMT(real_disc, $E14,H76,)) -> 0 | J81: 0 | K81: 0 | L81: 0 | M81: 0 | N81: 0 | O81: 0 | P81: 0 | Q81: 0 | R81: 0 | S81: 0 | T81: 0 | U81: 0 | V81: 0 | W81: 0 | X81: 0 | Y81: 0 | Z81: 0 | AA81: 0 | AB81: 0 | AC81: 0 | AD81: 0 | AE81: 0 | AF81: 0 | AG81: 0
C82: =$C$80&" - "&C15 -> Annualised capex - < Enter description > | G82: =input_dollars -> 2023-12-31 | I82: =IF($E15=0,0,-PMT(real_disc, $E15,H77,)) -> 0 | J82: 0 | K82: 0 | L82: 0 | M82: 0 | N82: 0 | O82: 0 | P82: 0 | Q82: 0 | R82: 0 | S82: 0 | T82: 0 | U82: 0 | V82: 0 | W82: 0 | X82: 0 | Y82: 0 | Z82: 0 | AA82: 0 | AB82: 0 | AC82: 0 | AD82: 0 | AE82: 0 | AF82: 0 | AG82: 0
C83: =$C$80&" - "&C16 -> Annualised capex - < Enter description > | G83: =input_dollars -> 2023-12-31 | I83: =IF($E16=0,0,-PMT(real_disc, $E16,H78,)) -> 0 | J83: 0 | K83: 0 | L83: 0 | M83: 0 | N83: 0 | O83: 0 | P83: 0 | Q83: 0 | R83: 0 | S83: 0 | T83: 0 | U83: 0 | V83: 0 | W83: 0 | X83: 0 | Y83: 0 | Z83: 0 | AA83: 0 | AB83: 0 | AC83: 0 | AD83: 0 | AE83: 0 | AF83: 0 | AG83: 0
C84: Total annualised capex | G84: =input_dollars -> 2023-12-31 | I84: =SUM(I81:I83) -> 0 | J84: =SUM(J81:J83) -> 0 | K84: 0 | L84: 0 | M84: 0 | N84: 0 | O84: 0 | P84: 0 | Q84: 0 | R84: 0 | S84: 0 | T84: 0 | U84: 0 | V84: 0 | W84: 0 | X84: 0 | Y84: 0 | Z84: 0 | AA84: 0 | AB84: 0 | AC84: =SUM(AC81:AC83) -> 0 | AD84: =SUM(AD81:AD83) -> 0 | AE84: =SUM(AE81:AE83) -> 0 | AF84: =SUM(AF81:AF83) -> 0 | AG84: =SUM(AG81:AG83) -> 0
C86: Annualised capex | G86: =input_dollars -> 2023-12-31 | I86: =I84 -> 0 | J86: =J84 -> 0 | K86: 0 | L86: 0 | M86: 0 | N86: 0 | O86: 0 | P86: 0 | Q86: 0 | R86: 0 | S86: 0 | T86: 0 | U86: 0 | V86: 0 | W86: 0 | X86: 0 | Y86: 0 | Z86: 0 | AA86: 0 | AB86: 0 | AC86: =AC84 -> 0 | AD86: =AD84 -> 0 | AE86: =AE84 -> 0 | AF86: =AF84 -> 0 | AG86: =AG84 -> 0
C87: Operating expenditure | G87: 2023-12-31 | I87: =-I19 -> 0 | J87: 0 | K87: 0 | L87: 0 | M87: 0 | N87: 0 | O87: 0 | P87: 0 | Q87: 0 | R87: 0 | S87: 0 | T87: 0 | U87: 0 | V87: 0 | W87: 0 | X87: 0 | Y87: 0 | Z87: 0 | AA87: 0 | AB87: 0 | AC87: 0 | AD87: 0 | AE87: 0 | AF87: 0 | AG87: 0
C88: Risk mitigated | G88: 2023-12-31 | I88: =I68 -> 0 | J88: =J68 -> 0 | K88: 0 | L88: 0 | M88: 0 | N88: 0 | O88: 0 | P88: 0 | Q88: 0 | R88: 0 | S88: 0 | T88: 0 | U88: 0 | V88: 0 | W88: 0 | X88: 0 | Y88: 0 | Z88: 0 | AA88: 0 | AB88: 0 | AC88: =AC68 -> 0 | AD88: =AD68 -> 0 | AE88: =AE68 -> 0 | AF88: =AF68 -> 0 | AG88: =AG68 -> 0
C89: Other benefits value | G89: 2023-12-31 | I89: =I61 -> 0 | J89: 0 | K89: 0 | L89: 0 | M89: 0 | N89: 0 | O89: 0 | P89: 0 | Q89: 0 | R89: 0 | S89: 0 | T89: 0 | U89: 0 | V89: 0 | W89: 0 | X89: 0 | Y89: 0 | Z89: 0 | AA89: 0 | AB89: 0 | AC89: 0 | AD89: 0 | AE89: 0 | AF89: 0 | AG89: 0
C91: Net benefits | G91: 2023-12-31 | I91: =SUM(I86:I90) -> 0 | J91: 0 | K91: 0 | L91: 0 | M91: 0 | N91: 0 | O91: 0 | P91: 0 | Q91: 0 | R91: 0 | S91: 0 | T91: 0 | U91: 0 | V91: 0 | W91: 0 | X91: 0 | Y91: 0 | Z91: 0 | AA91: 0 | AB91: 0 | AC91: =SUM(AC86:AC90) -> 0 | AD91: =SUM(AD86:AD90) -> 0 | AE91: =SUM(AE86:AE90) -> 0 | AF91: =SUM(AF86:AF90) -> 0 | AG91: =SUM(AG86:AG90) -> 0
C94: First capex year | G94: =IF(SUM($I17:$AG17)=0,0,(INDEX(I$6:AG$6,MATCH(TRUE,INDEX($I17:$AG17<>0,),0)))) -> 0
C96: First year | G96: =IF(_xlfn.MINIFS($G$94:$G$95, $G$94:$G$95, ">"&0)=0, $A$4, _xlfn.MINIFS($G$94:$G$95, $G$94:$G$95, ">"&0)) -> Not used
A106: SENSITIVITIES
A110: NPV | C110: Net benefits | G110: =PROPER($A$3)&A110 -> Option 4NPV | I110: =I91 -> 0 | J110: =J91 -> 0 | K110: 0 | L110: 0 | M110: 0 | N110: 0 | O110: 0 | P110: 0 | Q110: 0 | R110: 0 | S110: 0 | T110: 0 | U110: 0 | V110: 0 | W110: 0 | X110: 0 | Y110: 0 | Z110: 0 | AA110: 0 | AB110: 0 | AC110: 0 | AD110: 0 | AE110: 0 | AF110: 0 | AG110: 0
C111: Total annualised capex | I111: =I86 -> 0 | J111: =J86 -> 0 | K111: 0 | L111: 0 | M111: 0 | N111: 0 | O111: 0 | P111: 0 | Q111: 0 | R111: 0 | S111: 0 | T111: 0 | U111: 0 | V111: 0 | W111: 0 | X111: 0 | Y111: 0 | Z111: 0 | AA111: 0 | AB111: 0 | AC111: 0 | AD111: 0 | AE111: 0 | AF111: 0 | AG111: 0
C112: Total benefits | I112: =SUM(I88:I89) -> 0 | J112: =SUM(J88:J89) -> 0 | K112: 0 | L112: 0 | M112: 0 | N112: 0 | O112: 0 | P112: 0 | Q112: 0 | R112: 0 | S112: 0 | T112: 0 | U112: 0 | V112: 0 | W112: 0 | X112: 0 | Y112: 0 | Z112: 0 | AA112: 0 | AB112: 0 | AC112: 0 | AD112: 0 | AE112: 0 | AF112: 0 | AG112: 0
D113: =Assumptions!G110 -> Capex | E113: =Assumptions!H110 -> Total benefits
A114: ="sens"&Assumptions!B111 -> sens1 | C114: =Assumptions!C111 -> Capex 10% higher | D114: =Assumptions!G111 -> 0.1 | E114: =Assumptions!H111 -> 0 | G114: =PROPER($A$3)&A114 -> Option 4sens1 | I114: =I$110+IF($C114<>0,SUMPRODUCT((I$111:I$112)*TRANSPOSE(($D114:$E114))),0) -> 0 | J114: =J$110+IF($C114<>0,SUMPRODUCT((J$111:J$112)*TRANSPOSE(($D114:$E114))),0) -> 0 | K114: =K$110+IF($C114<>0,SUMPRODUCT((K$111:K$112)*TRANSPOSE(($D114:$E114))),0) -> 0 | L114: =L$110+IF($C114<>0,SUMPRODUCT((L$111:L$112)*TRANSPOSE(($D114:$E114))),0) -> 0 | M114: =M$110+IF($C114<>0,SUMPRODUCT((M$111:M$112)*TRANSPOSE(($D114:$E114))),0) -> 0 | N114: =N$110+IF($C114<>0,SUMPRODUCT((N$111:N$112)*TRANSPOSE(($D114:$E114))),0) -> 0 | O114: =O$110+IF($C114<>0,SUMPRODUCT((O$111:O$112)*TRANSPOSE(($D114:$E114))),0) -> 0 | P114: =P$110+IF($C114<>0,SUMPRODUCT((P$111:P$112)*TRANSPOSE(($D114:$E114))),0) -> 0 | Q114: =Q$110+IF($C114<>0,SUMPRODUCT((Q$111:Q$112)*TRANSPOSE(($D114:$E114))),0) -> 0 | R114: =R$110+IF($C114<>0,SUMPRODUCT((R$111:R$112)*TRANSPOSE(($D114:$E114))),0) -> 0 | S114: =S$110+IF($C114<>0,SUMPRODUCT((S$111:S$112)*TRANSPOSE(($D114:$E114))),0) -> 0 | T114: =T$110+IF($C114<>0,SUMPRODUCT((T$111:T$112)*TRANSPOSE(($D114:$E114))),0) -> 0 | U114: =U$110+IF($C114<>0,SUMPRODUCT((U$111:U$112)*TRANSPOSE(($D114:$E114))),0) -> 0 | V114: =V$110+IF($C114<>0,SUMPRODUCT((V$111:V$112)*TRANSPOSE(($D114:$E114))),0) -> 0 | W114: =W$110+IF($C114<>0,SUMPRODUCT((W$111:W$112)*TRANSPOSE(($D114:$E114))),0) -> 0 | X114: =X$110+IF($C114<>0,SUMPRODUCT((X$111:X$112)*TRANSPOSE(($D114:$E114))),0) -> 0 | Y114: =Y$110+IF($C114<>0,SUMPRODUCT((Y$111:Y$112)*TRANSPOSE(($D114:$E114))),0) -> 0 | Z114: =Z$110+IF($C114<>0,SUMPRODUCT((Z$111:Z$112)*TRANSPOSE(($D114:$E114))),0) -> 0 | AA114: =AA$110+IF($C114<>0,SUMPRODUCT((AA$111:AA$112)*TRANSPOSE(($D114:$E114))),0) -> 0 | AB114: =AB$110+IF($C114<>0,SUMPRODUCT((AB$111:AB$112)*TRANSPOSE(($D114:$E114))),0) -> 0 | AC114: =AC$110+IF($C114<>0,SUMPRODUCT((AC$111:AC$112)*TRANSPOSE(($D114:$E114))),0) -> 0 | AD114: =AD$110+IF($C114<>0,SUMPRODUCT((AD$111:AD$112)*TRANSPOSE(($D114:$E114))),0) -> 0 | AE114: =AE$110+IF($C114<>0,SUMPRODUCT((AE$111:AE$112)*TRANSPOSE(($D114:$E114))),0) -> 0 | AF114: =AF$110+IF($C114<>0,SUMPRODUCT((AF$111:AF$112)*TRANSPOSE(($D114:$E114))),0) -> 0 | AG114: =AG$110+IF($C114<>0,SUMPRODUCT((AG$111:AG$112)*TRANSPOSE(($D114:$E114))),0) -> 0
A115: ="sens"&Assumptions!B112 -> sens2 | C115: =Assumptions!C112 -> Capex 10% lower | D115: =Assumptions!G112 -> -0.1 | E115: =Assumptions!H112 -> 0 | G115: =PROPER($A$3)&A115 -> Option 4sens2 | I115: =I$110+IF($C115<>0,SUMPRODUCT((I$111:I$112)*TRANSPOSE(($D115:$E115))),0) -> 0 | J115: =J$110+IF($C115<>0,SUMPRODUCT((J$111:J$112)*TRANSPOSE(($D115:$E115))),0) -> 0 | K115: =K$110+IF($C115<>0,SUMPRODUCT((K$111:K$112)*TRANSPOSE(($D115:$E115))),0) -> 0 | L115: =L$110+IF($C115<>0,SUMPRODUCT((L$111:L$112)*TRANSPOSE(($D115:$E115))),0) -> 0 | M115: =M$110+IF($C115<>0,SUMPRODUCT((M$111:M$112)*TRANSPOSE(($D115:$E115))),0) -> 0 | N115: =N$110+IF($C115<>0,SUMPRODUCT((N$111:N$112)*TRANSPOSE(($D115:$E115))),0) -> 0 | O115: =O$110+IF($C115<>0,SUMPRODUCT((O$111:O$112)*TRANSPOSE(($D115:$E115))),0) -> 0 | P115: =P$110+IF($C115<>0,SUMPRODUCT((P$111:P$112)*TRANSPOSE(($D115:$E115))),0) -> 0 | Q115: =Q$110+IF($C115<>0,SUMPRODUCT((Q$111:Q$112)*TRANSPOSE(($D115:$E115))),0) -> 0 | R115: =R$110+IF($C115<>0,SUMPRODUCT((R$111:R$112)*TRANSPOSE(($D115:$E115))),0) -> 0 | S115: =S$110+IF($C115<>0,SUMPRODUCT((S$111:S$112)*TRANSPOSE(($D115:$E115))),0) -> 0 | T115: =T$110+IF($C115<>0,SUMPRODUCT((T$111:T$112)*TRANSPOSE(($D115:$E115))),0) -> 0 | U115: =U$110+IF($C115<>0,SUMPRODUCT((U$111:U$112)*TRANSPOSE(($D115:$E115))),0) -> 0 | V115: =V$110+IF($C115<>0,SUMPRODUCT((V$111:V$112)*TRANSPOSE(($D115:$E115))),0) -> 0 | W115: =W$110+IF($C115<>0,SUMPRODUCT((W$111:W$112)*TRANSPOSE(($D115:$E115))),0) -> 0 | X115: =X$110+IF($C115<>0,SUMPRODUCT((X$111:X$112)*TRANSPOSE(($D115:$E115))),0) -> 0 | Y115: =Y$110+IF($C115<>0,SUMPRODUCT((Y$111:Y$112)*TRANSPOSE(($D115:$E115))),0) -> 0 | Z115: =Z$110+IF($C115<>0,SUMPRODUCT((Z$111:Z$112)*TRANSPOSE(($D115:$E115))),0) -> 0 | AA115: =AA$110+IF($C115<>0,SUMPRODUCT((AA$111:AA$112)*TRANSPOSE(($D115:$E115))),0) -> 0 | AB115: =AB$110+IF($C115<>0,SUMPRODUCT((AB$111:AB$112)*TRANSPOSE(($D115:$E115))),0) -> 0 | AC115: =AC$110+IF($C115<>0,SUMPRODUCT((AC$111:AC$112)*TRANSPOSE(($D115:$E115))),0) -> 0 | AD115: =AD$110+IF($C115<>0,SUMPRODUCT((AD$111:AD$112)*TRANSPOSE(($D115:$E115))),0) -> 0 | AE115: =AE$110+IF($C115<>0,SUMPRODUCT((AE$111:AE$112)*TRANSPOSE(($D115:$E115))),0) -> 0 | AF115: =AF$110+IF($C115<>0,SUMPRODUCT((AF$111:AF$112)*TRANSPOSE(($D115:$E115))),0) -> 0 | AG115: =AG$110+IF($C115<>0,SUMPRODUCT((AG$111:AG$112)*TRANSPOSE(($D115:$E115))),0) -> 0
A116: ="sens"&Assumptions!B113 -> sens3 | C116: =Assumptions!C113 -> Total benefits 10% higher | D116: =Assumptions!G113 -> 0 | E116: =Assumptions!H113 -> 0.1 | G116: Option 4sens3 | I116: =I$110+IF($C116<>0,SUMPRODUCT((I$111:I$112)*TRANSPOSE(($D116:$E116))),0) -> 0 | J116: =J$110+IF($C116<>0,SUMPRODUCT((J$111:J$112)*TRANSPOSE(($D116:$E116))),0) -> 0 | K116: =K$110+IF($C116<>0,SUMPRODUCT((K$111:K$112)*TRANSPOSE(($D116:$E116))),0) -> 0 | L116: =L$110+IF($C116<>0,SUMPRODUCT((L$111:L$112)*TRANSPOSE(($D116:$E116))),0) -> 0 | M116: =M$110+IF($C116<>0,SUMPRODUCT((M$111:M$112)*TRANSPOSE(($D116:$E116))),0) -> 0 | N116: =N$110+IF($C116<>0,SUMPRODUCT((N$111:N$112)*TRANSPOSE(($D116:$E116))),0) -> 0 | O116: =O$110+IF($C116<>0,SUMPRODUCT((O$111:O$112)*TRANSPOSE(($D116:$E116))),0) -> 0 | P116: =P$110+IF($C116<>0,SUMPRODUCT((P$111:P$112)*TRANSPOSE(($D116:$E116))),0) -> 0 | Q116: =Q$110+IF($C116<>0,SUMPRODUCT((Q$111:Q$112)*TRANSPOSE(($D116:$E116))),0) -> 0 | R116: =R$110+IF($C116<>0,SUMPRODUCT((R$111:R$112)*TRANSPOSE(($D116:$E116))),0) -> 0 | S116: =S$110+IF($C116<>0,SUMPRODUCT((S$111:S$112)*TRANSPOSE(($D116:$E116))),0) -> 0 | T116: =T$110+IF($C116<>0,SUMPRODUCT((T$111:T$112)*TRANSPOSE(($D116:$E116))),0) -> 0 | U116: =U$110+IF($C116<>0,SUMPRODUCT((U$111:U$112)*TRANSPOSE(($D116:$E116))),0) -> 0 | V116: =V$110+IF($C116<>0,SUMPRODUCT((V$111:V$112)*TRANSPOSE(($D116:$E116))),0) -> 0 | W116: =W$110+IF($C116<>0,SUMPRODUCT((W$111:W$112)*TRANSPOSE(($D116:$E116))),0) -> 0 | X116: =X$110+IF($C116<>0,SUMPRODUCT((X$111:X$112)*TRANSPOSE(($D116:$E116))),0) -> 0 | Y116: =Y$110+IF($C116<>0,SUMPRODUCT((Y$111:Y$112)*TRANSPOSE(($D116:$E116))),0) -> 0 | Z116: =Z$110+IF($C116<>0,SUMPRODUCT((Z$111:Z$112)*TRANSPOSE(($D116:$E116))),0) -> 0 | AA116: =AA$110+IF($C116<>0,SUMPRODUCT((AA$111:AA$112)*TRANSPOSE(($D116:$E116))),0) -> 0 | AB116: =AB$110+IF($C116<>0,SUMPRODUCT((AB$111:AB$112)*TRANSPOSE(($D116:$E116))),0) -> 0 | AC116: =AC$110+IF($C116<>0,SUMPRODUCT((AC$111:AC$112)*TRANSPOSE(($D116:$E116))),0) -> 0 | AD116: =AD$110+IF($C116<>0,SUMPRODUCT((AD$111:AD$112)*TRANSPOSE(($D116:$E116))),0) -> 0 | AE116: =AE$110+IF($C116<>0,SUMPRODUCT((AE$111:AE$112)*TRANSPOSE(($D116:$E116))),0) -> 0 | AF116: =AF$110+IF($C116<>0,SUMPRODUCT((AF$111:AF$112)*TRANSPOSE(($D116:$E116))),0) -> 0 | AG116: =AG$110+IF($C116<>0,SUMPRODUCT((AG$111:AG$112)*TRANSPOSE(($D116:$E116))),0) -> 0
A117: ="sens"&Assumptions!B114 -> sens4 | C117: =Assumptions!C114 -> Total benefits 10% lower | D117: =Assumptions!G114 -> 0 | E117: =Assumptions!H114 -> -0.1 | G117: Option 4sens4 | I117: =I$110+IF($C117<>0,SUMPRODUCT((I$111:I$112)*TRANSPOSE(($D117:$E117))),0) -> 0 | J117: =J$110+IF($C117<>0,SUMPRODUCT((J$111:J$112)*TRANSPOSE(($D117:$E117))),0) -> 0 | K117: =K$110+IF($C117<>0,SUMPRODUCT((K$111:K$112)*TRANSPOSE(($D117:$E117))),0) -> 0 | L117: =L$110+IF($C117<>0,SUMPRODUCT((L$111:L$112)*TRANSPOSE(($D117:$E117))),0) -> 0 | M117: =M$110+IF($C117<>0,SUMPRODUCT((M$111:M$112)*TRANSPOSE(($D117:$E117))),0) -> 0 | N117: =N$110+IF($C117<>0,SUMPRODUCT((N$111:N$112)*TRANSPOSE(($D117:$E117))),0) -> 0 | O117: =O$110+IF($C117<>0,SUMPRODUCT((O$111:O$112)*TRANSPOSE(($D117:$E117))),0) -> 0 | P117: =P$110+IF($C117<>0,SUMPRODUCT((P$111:P$112)*TRANSPOSE(($D117:$E117))),0) -> 0 | Q117: =Q$110+IF($C117<>0,SUMPRODUCT((Q$111:Q$112)*TRANSPOSE(($D117:$E117))),0) -> 0 | R117: =R$110+IF($C117<>0,SUMPRODUCT((R$111:R$112)*TRANSPOSE(($D117:$E117))),0) -> 0 | S117: =S$110+IF($C117<>0,SUMPRODUCT((S$111:S$112)*TRANSPOSE(($D117:$E117))),0) -> 0 | T117: =T$110+IF($C117<>0,SUMPRODUCT((T$111:T$112)*TRANSPOSE(($D117:$E117))),0) -> 0 | U117: =U$110+IF($C117<>0,SUMPRODUCT((U$111:U$112)*TRANSPOSE(($D117:$E117))),0) -> 0 | V117: =V$110+IF($C117<>0,SUMPRODUCT((V$111:V$112)*TRANSPOSE(($D117:$E117))),0) -> 0 | W117: =W$110+IF($C117<>0,SUMPRODUCT((W$111:W$112)*TRANSPOSE(($D117:$E117))),0) -> 0 | X117: =X$110+IF($C117<>0,SUMPRODUCT((X$111:X$112)*TRANSPOSE(($D117:$E117))),0) -> 0 | Y117: =Y$110+IF($C117<>0,SUMPRODUCT((Y$111:Y$112)*TRANSPOSE(($D117:$E117))),0) -> 0 | Z117: =Z$110+IF($C117<>0,SUMPRODUCT((Z$111:Z$112)*TRANSPOSE(($D117:$E117))),0) -> 0 | AA117: =AA$110+IF($C117<>0,SUMPRODUCT((AA$111:AA$112)*TRANSPOSE(($D117:$E117))),0) -> 0 | AB117: =AB$110+IF($C117<>0,SUMPRODUCT((AB$111:AB$112)*TRANSPOSE(($D117:$E117))),0) -> 0 | AC117: =AC$110+IF($C117<>0,SUMPRODUCT((AC$111:AC$112)*TRANSPOSE(($D117:$E117))),0) -> 0 | AD117: =AD$110+IF($C117<>0,SUMPRODUCT((AD$111:AD$112)*TRANSPOSE(($D117:$E117))),0) -> 0 | AE117: =AE$110+IF($C117<>0,SUMPRODUCT((AE$111:AE$112)*TRANSPOSE(($D117:$E117))),0) -> 0 | AF117: =AF$110+IF($C117<>0,SUMPRODUCT((AF$111:AF$112)*TRANSPOSE(($D117:$E117))),0) -> 0 | AG117: =AG$110+IF($C117<>0,SUMPRODUCT((AG$111:AG$112)*TRANSPOSE(($D117:$E117))),0) -> 0
A118: ="sens"&Assumptions!B115 -> sens5 | C118: =Assumptions!C115 -> Capex 10% higher & Total benefits 10% lower | D118: =Assumptions!G115 -> 0.1 | E118: =Assumptions!H115 -> -0.1 | G118: Option 4sens5 | I118: =I$110+IF($C118<>0,SUMPRODUCT((I$111:I$112)*TRANSPOSE(($D118:$E118))),0) -> 0 | J118: =J$110+IF($C118<>0,SUMPRODUCT((J$111:J$112)*TRANSPOSE(($D118:$E118))),0) -> 0 | K118: =K$110+IF($C118<>0,SUMPRODUCT((K$111:K$112)*TRANSPOSE(($D118:$E118))),0) -> 0 | L118: =L$110+IF($C118<>0,SUMPRODUCT((L$111:L$112)*TRANSPOSE(($D118:$E118))),0) -> 0 | M118: =M$110+IF($C118<>0,SUMPRODUCT((M$111:M$112)*TRANSPOSE(($D118:$E118))),0) -> 0 | N118: =N$110+IF($C118<>0,SUMPRODUCT((N$111:N$112)*TRANSPOSE(($D118:$E118))),0) -> 0 | O118: =O$110+IF($C118<>0,SUMPRODUCT((O$111:O$112)*TRANSPOSE(($D118:$E118))),0) -> 0 | P118: =P$110+IF($C118<>0,SUMPRODUCT((P$111:P$112)*TRANSPOSE(($D118:$E118))),0) -> 0 | Q118: =Q$110+IF($C118<>0,SUMPRODUCT((Q$111:Q$112)*TRANSPOSE(($D118:$E118))),0) -> 0 | R118: =R$110+IF($C118<>0,SUMPRODUCT((R$111:R$112)*TRANSPOSE(($D118:$E118))),0) -> 0 | S118: =S$110+IF($C118<>0,SUMPRODUCT((S$111:S$112)*TRANSPOSE(($D118:$E118))),0) -> 0 | T118: =T$110+IF($C118<>0,SUMPRODUCT((T$111:T$112)*TRANSPOSE(($D118:$E118))),0) -> 0 | U118: =U$110+IF($C118<>0,SUMPRODUCT((U$111:U$112)*TRANSPOSE(($D118:$E118))),0) -> 0 | V118: =V$110+IF($C118<>0,SUMPRODUCT((V$111:V$112)*TRANSPOSE(($D118:$E118))),0) -> 0 | W118: =W$110+IF($C118<>0,SUMPRODUCT((W$111:W$112)*TRANSPOSE(($D118:$E118))),0) -> 0 | X118: =X$110+IF($C118<>0,SUMPRODUCT((X$111:X$112)*TRANSPOSE(($D118:$E118))),0) -> 0 | Y118: =Y$110+IF($C118<>0,SUMPRODUCT((Y$111:Y$112)*TRANSPOSE(($D118:$E118))),0) -> 0 | Z118: =Z$110+IF($C118<>0,SUMPRODUCT((Z$111:Z$112)*TRANSPOSE(($D118:$E118))),0) -> 0 | AA118: =AA$110+IF($C118<>0,SUMPRODUCT((AA$111:AA$112)*TRANSPOSE(($D118:$E118))),0) -> 0 | AB118: =AB$110+IF($C118<>0,SUMPRODUCT((AB$111:AB$112)*TRANSPOSE(($D118:$E118))),0) -> 0 | AC118: =AC$110+IF($C118<>0,SUMPRODUCT((AC$111:AC$112)*TRANSPOSE(($D118:$E118))),0) -> 0 | AD118: =AD$110+IF($C118<>0,SUMPRODUCT((AD$111:AD$112)*TRANSPOSE(($D118:$E118))),0) -> 0 | AE118: =AE$110+IF($C118<>0,SUMPRODUCT((AE$111:AE$112)*TRANSPOSE(($D118:$E118))),0) -> 0 | AF118: =AF$110+IF($C118<>0,SUMPRODUCT((AF$111:AF$112)*TRANSPOSE(($D118:$E118))),0) -> 0 | AG118: =AG$110+IF($C118<>0,SUMPRODUCT((AG$111:AG$112)*TRANSPOSE(($D118:$E118))),0) -> 0
A119: ="sens"&Assumptions!B116 -> sens | C119: =Assumptions!C116 -> 0 | D119: =Assumptions!G116 -> 0 | E119: =Assumptions!H116 -> 0 | G119: Option 4sens | I119: =I$110+IF($C119<>0,SUMPRODUCT((I$111:I$112)*TRANSPOSE(($D119:$E119))),0) -> 0 | J119: =J$110+IF($C119<>0,SUMPRODUCT((J$111:J$112)*TRANSPOSE(($D119:$E119))),0) -> 0 | K119: =K$110+IF($C119<>0,SUMPRODUCT((K$111:K$112)*TRANSPOSE(($D119:$E119))),0) -> 0 | L119: =L$110+IF($C119<>0,SUMPRODUCT((L$111:L$112)*TRANSPOSE(($D119:$E119))),0) -> 0 | M119: =M$110+IF($C119<>0,SUMPRODUCT((M$111:M$112)*TRANSPOSE(($D119:$E119))),0) -> 0 | N119: =N$110+IF($C119<>0,SUMPRODUCT((N$111:N$112)*TRANSPOSE(($D119:$E119))),0) -> 0 | O119: =O$110+IF($C119<>0,SUMPRODUCT((O$111:O$112)*TRANSPOSE(($D119:$E119))),0) -> 0 | P119: =P$110+IF($C119<>0,SUMPRODUCT((P$111:P$112)*TRANSPOSE(($D119:$E119))),0) -> 0 | Q119: =Q$110+IF($C119<>0,SUMPRODUCT((Q$111:Q$112)*TRANSPOSE(($D119:$E119))),0) -> 0 | R119: =R$110+IF($C119<>0,SUMPRODUCT((R$111:R$112)*TRANSPOSE(($D119:$E119))),0) -> 0 | S119: =S$110+IF($C119<>0,SUMPRODUCT((S$111:S$112)*TRANSPOSE(($D119:$E119))),0) -> 0 | T119: =T$110+IF($C119<>0,SUMPRODUCT((T$111:T$112)*TRANSPOSE(($D119:$E119))),0) -> 0 | U119: =U$110+IF($C119<>0,SUMPRODUCT((U$111:U$112)*TRANSPOSE(($D119:$E119))),0) -> 0 | V119: =V$110+IF($C119<>0,SUMPRODUCT((V$111:V$112)*TRANSPOSE(($D119:$E119))),0) -> 0 | W119: =W$110+IF($C119<>0,SUMPRODUCT((W$111:W$112)*TRANSPOSE(($D119:$E119))),0) -> 0 | X119: =X$110+IF($C119<>0,SUMPRODUCT((X$111:X$112)*TRANSPOSE(($D119:$E119))),0) -> 0 | Y119: =Y$110+IF($C119<>0,SUMPRODUCT((Y$111:Y$112)*TRANSPOSE(($D119:$E119))),0) -> 0 | Z119: =Z$110+IF($C119<>0,SUMPRODUCT((Z$111:Z$112)*TRANSPOSE(($D119:$E119))),0) -> 0 | AA119: =AA$110+IF($C119<>0,SUMPRODUCT((AA$111:AA$112)*TRANSPOSE(($D119:$E119))),0) -> 0 | AB119: =AB$110+IF($C119<>0,SUMPRODUCT((AB$111:AB$112)*TRANSPOSE(($D119:$E119))),0) -> 0 | AC119: =AC$110+IF($C119<>0,SUMPRODUCT((AC$111:AC$112)*TRANSPOSE(($D119:$E119))),0) -> 0 | AD119: =AD$110+IF($C119<>0,SUMPRODUCT((AD$111:AD$112)*TRANSPOSE(($D119:$E119))),0) -> 0 | AE119: =AE$110+IF($C119<>0,SUMPRODUCT((AE$111:AE$112)*TRANSPOSE(($D119:$E119))),0) -> 0 | AF119: =AF$110+IF($C119<>0,SUMPRODUCT((AF$111:AF$112)*TRANSPOSE(($D119:$E119))),0) -> 0 | AG119: =AG$110+IF($C119<>0,SUMPRODUCT((AG$111:AG$112)*TRANSPOSE(($D119:$E119))),0) -> 0
A120: ="sens"&Assumptions!B117 -> sens | C120: =Assumptions!C117 -> 0 | D120: =Assumptions!G117 -> 0 | E120: =Assumptions!H117 -> 0 | G120: Option 4sens | I120: =I$110+IF($C120<>0,SUMPRODUCT((I$111:I$112)*TRANSPOSE(($D120:$E120))),0) -> 0 | J120: =J$110+IF($C120<>0,SUMPRODUCT((J$111:J$112)*TRANSPOSE(($D120:$E120))),0) -> 0 | K120: =K$110+IF($C120<>0,SUMPRODUCT((K$111:K$112)*TRANSPOSE(($D120:$E120))),0) -> 0 | L120: =L$110+IF($C120<>0,SUMPRODUCT((L$111:L$112)*TRANSPOSE(($D120:$E120))),0) -> 0 | M120: =M$110+IF($C120<>0,SUMPRODUCT((M$111:M$112)*TRANSPOSE(($D120:$E120))),0) -> 0 | N120: =N$110+IF($C120<>0,SUMPRODUCT((N$111:N$112)*TRANSPOSE(($D120:$E120))),0) -> 0 | O120: =O$110+IF($C120<>0,SUMPRODUCT((O$111:O$112)*TRANSPOSE(($D120:$E120))),0) -> 0 | P120: =P$110+IF($C120<>0,SUMPRODUCT((P$111:P$112)*TRANSPOSE(($D120:$E120))),0) -> 0 | Q120: =Q$110+IF($C120<>0,SUMPRODUCT((Q$111:Q$112)*TRANSPOSE(($D120:$E120))),0) -> 0 | R120: =R$110+IF($C120<>0,SUMPRODUCT((R$111:R$112)*TRANSPOSE(($D120:$E120))),0) -> 0 | S120: =S$110+IF($C120<>0,SUMPRODUCT((S$111:S$112)*TRANSPOSE(($D120:$E120))),0) -> 0 | T120: =T$110+IF($C120<>0,SUMPRODUCT((T$111:T$112)*TRANSPOSE(($D120:$E120))),0) -> 0 | U120: =U$110+IF($C120<>0,SUMPRODUCT((U$111:U$112)*TRANSPOSE(($D120:$E120))),0) -> 0 | V120: =V$110+IF($C120<>0,SUMPRODUCT((V$111:V$112)*TRANSPOSE(($D120:$E120))),0) -> 0 | W120: =W$110+IF($C120<>0,SUMPRODUCT((W$111:W$112)*TRANSPOSE(($D120:$E120))),0) -> 0 | X120: =X$110+IF($C120<>0,SUMPRODUCT((X$111:X$112)*TRANSPOSE(($D120:$E120))),0) -> 0 | Y120: =Y$110+IF($C120<>0,SUMPRODUCT((Y$111:Y$112)*TRANSPOSE(($D120:$E120))),0) -> 0 | Z120: =Z$110+IF($C120<>0,SUMPRODUCT((Z$111:Z$112)*TRANSPOSE(($D120:$E120))),0) -> 0 | AA120: =AA$110+IF($C120<>0,SUMPRODUCT((AA$111:AA$112)*TRANSPOSE(($D120:$E120))),0) -> 0 | AB120: =AB$110+IF($C120<>0,SUMPRODUCT((AB$111:AB$112)*TRANSPOSE(($D120:$E120))),0) -> 0 | AC120: =AC$110+IF($C120<>0,SUMPRODUCT((AC$111:AC$112)*TRANSPOSE(($D120:$E120))),0) -> 0 | AD120: =AD$110+IF($C120<>0,SUMPRODUCT((AD$111:AD$112)*TRANSPOSE(($D120:$E120))),0) -> 0 | AE120: =AE$110+IF($C120<>0,SUMPRODUCT((AE$111:AE$112)*TRANSPOSE(($D120:$E120))),0) -> 0 | AF120: =AF$110+IF($C120<>0,SUMPRODUCT((AF$111:AF$112)*TRANSPOSE(($D120:$E120))),0) -> 0 | AG120: =AG$110+IF($C120<>0,SUMPRODUCT((AG$111:AG$112)*TRANSPOSE(($D120:$E120))),0) -> 0
A121: ="sens"&Assumptions!B118 -> sens | C121: =Assumptions!C118 -> 0 | D121: =Assumptions!G118 -> 0 | E121: =Assumptions!H118 -> 0 | G121: Option 4sens | I121: =I$110+IF($C121<>0,SUMPRODUCT((I$111:I$112)*TRANSPOSE(($D121:$E121))),0) -> 0 | J121: =J$110+IF($C121<>0,SUMPRODUCT((J$111:J$112)*TRANSPOSE(($D121:$E121))),0) -> 0 | K121: =K$110+IF($C121<>0,SUMPRODUCT((K$111:K$112)*TRANSPOSE(($D121:$E121))),0) -> 0 | L121: =L$110+IF($C121<>0,SUMPRODUCT((L$111:L$112)*TRANSPOSE(($D121:$E121))),0) -> 0 | M121: =M$110+IF($C121<>0,SUMPRODUCT((M$111:M$112)*TRANSPOSE(($D121:$E121))),0) -> 0 | N121: =N$110+IF($C121<>0,SUMPRODUCT((N$111:N$112)*TRANSPOSE(($D121:$E121))),0) -> 0 | O121: =O$110+IF($C121<>0,SUMPRODUCT((O$111:O$112)*TRANSPOSE(($D121:$E121))),0) -> 0 | P121: =P$110+IF($C121<>0,SUMPRODUCT((P$111:P$112)*TRANSPOSE(($D121:$E121))),0) -> 0 | Q121: =Q$110+IF($C121<>0,SUMPRODUCT((Q$111:Q$112)*TRANSPOSE(($D121:$E121))),0) -> 0 | R121: =R$110+IF($C121<>0,SUMPRODUCT((R$111:R$112)*TRANSPOSE(($D121:$E121))),0) -> 0 | S121: =S$110+IF($C121<>0,SUMPRODUCT((S$111:S$112)*TRANSPOSE(($D121:$E121))),0) -> 0 | T121: =T$110+IF($C121<>0,SUMPRODUCT((T$111:T$112)*TRANSPOSE(($D121:$E121))),0) -> 0 | U121: =U$110+IF($C121<>0,SUMPRODUCT((U$111:U$112)*TRANSPOSE(($D121:$E121))),0) -> 0 | V121: =V$110+IF($C121<>0,SUMPRODUCT((V$111:V$112)*TRANSPOSE(($D121:$E121))),0) -> 0 | W121: =W$110+IF($C121<>0,SUMPRODUCT((W$111:W$112)*TRANSPOSE(($D121:$E121))),0) -> 0 | X121: =X$110+IF($C121<>0,SUMPRODUCT((X$111:X$112)*TRANSPOSE(($D121:$E121))),0) -> 0 | Y121: =Y$110+IF($C121<>0,SUMPRODUCT((Y$111:Y$112)*TRANSPOSE(($D121:$E121))),0) -> 0 | Z121: =Z$110+IF($C121<>0,SUMPRODUCT((Z$111:Z$112)*TRANSPOSE(($D121:$E121))),0) -> 0 | AA121: =AA$110+IF($C121<>0,SUMPRODUCT((AA$111:AA$112)*TRANSPOSE(($D121:$E121))),0) -> 0 | AB121: =AB$110+IF($C121<>0,SUMPRODUCT((AB$111:AB$112)*TRANSPOSE(($D121:$E121))),0) -> 0 | AC121: =AC$110+IF($C121<>0,SUMPRODUCT((AC$111:AC$112)*TRANSPOSE(($D121:$E121))),0) -> 0 | AD121: =AD$110+IF($C121<>0,SUMPRODUCT((AD$111:AD$112)*TRANSPOSE(($D121:$E121))),0) -> 0 | AE121: =AE$110+IF($C121<>0,SUMPRODUCT((AE$111:AE$112)*TRANSPOSE(($D121:$E121))),0) -> 0 | AF121: =AF$110+IF($C121<>0,SUMPRODUCT((AF$111:AF$112)*TRANSPOSE(($D121:$E121))),0) -> 0 | AG121: =AG$110+IF($C121<>0,SUMPRODUCT((AG$111:AG$112)*TRANSPOSE(($D121:$E121))),0) -> 0

Sheet Option5
A1: =bus -> Powercor
A2: =proj -> Drysdale feeder: DDL023
A3: OPTION 5 | C3: =INDEX(Assumptions!$E$14:$E$18, MATCH(A3,_xlfn.ANCHORARRAY( Assumptions!$C$14),0)) -> 0
A4: =(INDEX(Data!$D$9:$D$13, MATCH(A3, options,0))) -> Not used
A6: ='Option1 (base case)'!A6 -> Count | I6: ='Option1 (base case)'!I6 -> 1 | J6: ='Option1 (base case)'!J6 -> 2 | K6: ='Option1 (base case)'!K6 -> 3 | L6: ='Option1 (base case)'!L6 -> 4 | M6: ='Option1 (base case)'!M6 -> 5 | N6: ='Option1 (base case)'!N6 -> 6 | O6: ='Option1 (base case)'!O6 -> 7 | P6: ='Option1 (base case)'!P6 -> 8 | Q6: ='Option1 (base case)'!Q6 -> 9 | R6: ='Option1 (base case)'!R6 -> 10 | S6: ='Option1 (base case)'!S6 -> 11 | T6: ='Option1 (base case)'!T6 -> 12 | U6: ='Option1 (base case)'!U6 -> 13 | V6: ='Option1 (base case)'!V6 -> 14 | W6: ='Option1 (base case)'!W6 -> 15 | X6: ='Option1 (base case)'!X6 -> 16 | Y6: ='Option1 (base case)'!Y6 -> 17 | Z6: ='Option1 (base case)'!Z6 -> 18 | AA6: ='Option1 (base case)'!AA6 -> 19 | AB6: ='Option1 (base case)'!AB6 -> 20 | AC6: ='Option1 (base case)'!AC6 -> 21 | AD6: ='Option1 (base case)'!AD6 -> 22 | AE6: ='Option1 (base case)'!AE6 -> 23 | AF6: ='Option1 (base case)'!AF6 -> 24 | AG6: ='Option1 (base case)'!AG6 -> 25
A7: ='Option1 (base case)'!A7 -> Value of CO2 reductions | G7: $/MWh | I7: ='Option1 (base case)'!I7 -> 24.7304868 | J7: ='Option1 (base case)'!J7 -> 22.34074009 | K7: ='Option1 (base case)'!K7 -> 20.19632912 | L7: ='Option1 (base case)'!L7 -> 18.06294208 | M7: ='Option1 (base case)'!M7 -> 15.91339762 | N7: ='Option1 (base case)'!N7 -> 13.71506943 | O7: ='Option1 (base case)'!O7 -> 13.71506943 | P7: ='Option1 (base case)'!P7 -> 13.71506943 | Q7: ='Option1 (base case)'!Q7 -> 13.71506943 | R7: ='Option1 (base case)'!R7 -> 13.71506943 | S7: ='Option1 (base case)'!S7 -> 13.71506943 | T7: ='Option1 (base case)'!T7 -> 13.71506943 | U7: ='Option1 (base case)'!U7 -> 13.71506943 | V7: ='Option1 (base case)'!V7 -> 13.71506943 | W7: ='Option1 (base case)'!W7 -> 13.71506943 | X7: ='Option1 (base case)'!X7 -> 13.71506943 | Y7: ='Option1 (base case)'!Y7 -> 13.71506943 | Z7: ='Option1 (base case)'!Z7 -> 13.71506943 | AA7: ='Option1 (base case)'!AA7 -> 13.71506943 | AB7: ='Option1 (base case)'!AB7 -> 13.71506943 | AC7: ='Option1 (base case)'!AC7 -> 13.71506943 | AD7: ='Option1 (base case)'!AD7 -> 13.71506943 | AE7: ='Option1 (base case)'!AE7 -> 13.71506943 | AF7: ='Option1 (base case)'!AF7 -> 13.71506943 | AG7: ='Option1 (base case)'!AG7 -> 13.71506943
I8: =_xlfn.NUMBERVALUE(LEFT(I$9,4))+1 -> 2027 | J8: =_xlfn.NUMBERVALUE(LEFT(J$9,4))+1 -> 2028 | K8: 2029 | L8: 2030 | M8: 2031 | N8: 2032 | O8: 2033 | P8: 2034 | Q8: 2035 | R8: 2036 | S8: 2037 | T8: 2038 | U8: 2039 | V8: 2040 | W8: 2041 | X8: 2042 | Y8: 2043 | Z8: 2044 | AA8: 2045 | AB8: 2046 | AC8: 2047 | AD8: 2048 | AE8: 2049 | AF8: 2050 | AG8: 2051
G9: Units | I9: ='Option1 (base case)'!I9 -> 2026-27 | J9: ='Option1 (base case)'!J9 -> 2027-28 | K9: ='Option1 (base case)'!K9 -> 2028-29 | L9: ='Option1 (base case)'!L9 -> 2029-30 | M9: ='Option1 (base case)'!M9 -> 2030-31 | N9: ='Option1 (base case)'!N9 -> 2031-32 | O9: ='Option1 (base case)'!O9 -> 2032-33 | P9: ='Option1 (base case)'!P9 -> 2033-34 | Q9: ='Option1 (base case)'!Q9 -> 2034-35 | R9: ='Option1 (base case)'!R9 -> 2035-36 | S9: ='Option1 (base case)'!S9 -> 2036-37 | T9: ='Option1 (base case)'!T9 -> 2037-38 | U9: ='Option1 (base case)'!U9 -> 2038-39 | V9: ='Option1 (base case)'!V9 -> 2039-40 | W9: ='Option1 (base case)'!W9 -> 2040-41 | X9: ='Option1 (base case)'!X9 -> 2041-42 | Y9: ='Option1 (base case)'!Y9 -> 2042-43 | Z9: ='Option1 (base case)'!Z9 -> 2043-44 | AA9: ='Option1 (base case)'!AA9 -> 2044-45 | AB9: ='Option1 (base case)'!AB9 -> 2045-46 | AC9: ='Option1 (base case)'!AC9 -> 2046-47 | AD9: ='Option1 (base case)'!AD9 -> 2047-48 | AE9: ='Option1 (base case)'!AE9 -> 2048-49 | AF9: ='Option1 (base case)'!AF9 -> 2049-50 | AG9: ='Option1 (base case)'!AG9 -> 2050-51
A11: INVESTMENT & OPERATING COST
C13: Capex | E13: Asset life (yrs)
C14: < Enter description > | E14: 0 | G14: =input_dollars -> 2023-12-31 | I14: 0 | J14: 0 | K14: 0 | L14: 0 | M14: 0 | N14: 0 | O14: 0 | P14: 0 | Q14: 0 | R14: 0 | S14: 0 | T14: 0 | U14: 0 | V14: 0 | W14: 0 | X14: 0 | Y14: 0 | Z14: 0 | AA14: 0 | AB14: 0 | AC14: 0 | AD14: 0 | AE14: 0 | AF14: 0 | AG14: 0
C15: < Enter description > | E15: 0 | G15: =input_dollars -> 2023-12-31 | I15: 0 | J15: 0 | K15: 0 | L15: 0 | M15: 0 | N15: 0 | O15: 0 | P15: 0 | Q15: 0 | R15: 0 | S15: 0 | T15: 0 | U15: 0 | V15: 0 | W15: 0 | X15: 0 | Y15: 0 | Z15: 0 | AA15: 0 | AB15: 0 | AC15: 0 | AD15: 0 | AE15: 0 | AF15: 0 | AG15: 0
C16: < Enter description > | E16: 0 | G16: =input_dollars -> 2023-12-31 | I16: 0 | J16: 0 | K16: 0 | L16: 0 | M16: 0 | N16: 0 | O16: 0 | P16: 0 | Q16: 0 | R16: 0 | S16: 0 | T16: 0 | U16: 0 | V16: 0 | W16: 0 | X16: 0 | Y16: 0 | Z16: 0 | AA16: 0 | AB16: 0 | AC16: 0 | AD16: 0 | AE16: 0 | AF16: 0 | AG16: 0
C17: Capital expenditure | G17: =input_dollars -> 2023-12-31 | I17: =SUM(I14:I16) -> 0 | J17: 0 | K17: =SUM(K14:K16) -> 0 | L17: 0 | M17: 0 | N17: 0 | O17: 0 | P17: 0 | Q17: 0 | R17: =SUM(R14:R16) -> 0 | S17: 0 | T17: 0 | U17: 0 | V17: 0 | W17: 0 | X17: 0 | Y17: 0 | Z17: 0 | AA17: 0 | AB17: 0 | AC17: 0 | AD17: 0 | AE17: 0 | AF17: 0 | AG17: 0
C19: Operating expenditure | G19: =input_dollars -> 2023-12-31 | I19: 0 | J19: 0 | K19: 0 | L19: 0 | M19: 0 | N19: 0 | O19: 0 | P19: 0 | Q19: 0 | R19: 0 | S19: 0 | T19: 0 | U19: 0 | V19: 0 | W19: 0 | X19: 0 | Y19: 0 | Z19: 0 | AA19: 0 | AB19: 0 | AC19: 0 | AD19: 0 | AE19: 0 | AF19: 0 | AG19: 0
A22: RISK ASSUMPTIONS
C24: PoF (major) | I24: 0 | J24: 0 | K24: 0 | L24: 0 | M24: 0 | N24: 0 | O24: 0 | P24: 0 | Q24: 0 | R24: 0 | S24: 0 | T24: 0 | U24: 0 | V24: 0 | W24: 0 | X24: 0 | Y24: 0 | Z24: 0 | AA24: 0 | AB24: 0 | AC24: 0 | AD24: 0 | AE24: 0 | AF24: 0 | AG24: 0
C25: PoF (reparable) | I25: 0 | J25: 0 | K25: 0 | L25: 0 | M25: 0 | N25: 0 | O25: 0 | P25: 0 | Q25: 0 | R25: 0 | S25: 0 | T25: 0 | U25: 0 | V25: 0 | W25: 0 | X25: 0 | Y25: 0 | Z25: 0 | AA25: 0 | AB25: 0 | AC25: 0 | AD25: 0 | AE25: 0 | AF25: 0 | AG25: 0
C27: Const end date
C28: Energy at risk 10% PoE | E28: 0.3 | G28: MWh | I28: 0 | J28: 0 | K28: 0 | L28: 0 | M28: 0 | N28: 0 | O28: 0 | P28: 0 | Q28: 0 | R28: 0 | S28: 0 | T28: 0 | U28: 0 | V28: 0 | W28: 0 | X28: 0 | Y28: 0 | Z28: 0 | AA28: 0 | AB28: 0 | AC28: 0 | AD28: 0 | AE28: 0 | AF28: 0 | AG28: 0
C29: Energy at risk 50% PoE | E29: 0.7 | G29: MWh | I29: 0 | J29: 0 | K29: 0 | L29: 0 | M29: 0 | N29: 0 | O29: 0 | P29: 0 | Q29: 0 | R29: 0 | S29: 0 | T29: 0 | U29: 0 | V29: 0 | W29: 0 | X29: 0 | Y29: 0 | Z29: 0 | AA29: 0 | AB29: 0 | AC29: 0 | AD29: 0 | AE29: 0 | AF29: 0 | AG29: 0
C31: Energy at risk (weighted) | G31: MWh | I31: =SUMPRODUCT(I$28:I$29, $E$28:$E$29) -> 0 | J31: =SUMPRODUCT(J$28:J$29, $E$28:$E$29) -> 0 | K31: 0 | L31: 0 | M31: 0 | N31: 0 | O31: 0 | P31: 0 | Q31: 0 | R31: 0 | S31: 0 | T31: 0 | U31: 0 | V31: 0 | W31: 0 | X31: 0 | Y31: 0 | Z31: 0 | AA31: 0 | AB31: 0 | AC31: 0 | AD31: 0 | AE31: 0 | AF31: 0 | AG31: 0
C32: Energy at risk value | D32: $/MWh | E32: =Assumptions!H41*vcr_esc -> 35130.23528 | F32: =IF(AND(SUM(I31:AG31)<>0, E32=0), "!", "") ->  | G32: =input_dollars -> 2023-12-31 | I32: =I31*$E$32 -> 0 | J32: =J31*$E$32 -> 0 | K32: 0 | L32: 0 | M32: 0 | N32: 0 | O32: 0 | P32: 0 | Q32: 0 | R32: 0 | S32: 0 | T32: 0 | U32: 0 | V32: 0 | W32: 0 | X32: 0 | Y32: 0 | Z32: 0 | AA32: 0 | AB32: 0 | AC32: 0 | AD32: 0 | AE32: 0 | AF32: 0 | AG32: 0
C34: Safety consequence | D34: (after DF) | G34: =input_dollars -> 2023-12-31 | I34: =SUMPRODUCT((Assumptions!$H$70:$H$71)*(Assumptions!$G$70:$G$71)*(Assumptions!$I$70:$I$71)*(I$24:I$25)) -> 0 | J34: =SUMPRODUCT((Assumptions!$H$70:$H$71)*(Assumptions!$G$70:$G$71)*(Assumptions!$I$70:$I$71)*(J$24:J$25)) -> 0 | K34: =SUMPRODUCT((Assumptions!$H$70:$H$71)*(Assumptions!$G$70:$G$71)*(Assumptions!$I$70:$I$71)*(K$24:K$25)) -> 0 | L34: =SUMPRODUCT((Assumptions!$H$70:$H$71)*(Assumptions!$G$70:$G$71)*(Assumptions!$I$70:$I$71)*(L$24:L$25)) -> 0 | M34: =SUMPRODUCT((Assumptions!$H$70:$H$71)*(Assumptions!$G$70:$G$71)*(Assumptions!$I$70:$I$71)*(M$24:M$25)) -> 0 | N34: =SUMPRODUCT((Assumptions!$H$70:$H$71)*(Assumptions!$G$70:$G$71)*(Assumptions!$I$70:$I$71)*(N$24:N$25)) -> 0 | O34: =SUMPRODUCT((Assumptions!$H$70:$H$71)*(Assumptions!$G$70:$G$71)*(Assumptions!$I$70:$I$71)*(O$24:O$25)) -> 0 | P34: =SUMPRODUCT((Assumptions!$H$70:$H$71)*(Assumptions!$G$70:$G$71)*(Assumptions!$I$70:$I$71)*(P$24:P$25)) -> 0 | Q34: =SUMPRODUCT((Assumptions!$H$70:$H$71)*(Assumptions!$G$70:$G$71)*(Assumptions!$I$70:$I$71)*(Q$24:Q$25)) -> 0 | R34: =SUMPRODUCT((Assumptions!$H$70:$H$71)*(Assumptions!$G$70:$G$71)*(Assumptions!$I$70:$I$71)*(R$24:R$25)) -> 0 | S34: =SUMPRODUCT((Assumptions!$H$70:$H$71)*(Assumptions!$G$70:$G$71)*(Assumptions!$I$70:$I$71)*(S$24:S$25)) -> 0 | T34: =SUMPRODUCT((Assumptions!$H$70:$H$71)*(Assumptions!$G$70:$G$71)*(Assumptions!$I$70:$I$71)*(T$24:T$25)) -> 0 | U34: =SUMPRODUCT((Assumptions!$H$70:$H$71)*(Assumptions!$G$70:$G$71)*(Assumptions!$I$70:$I$71)*(U$24:U$25)) -> 0 | V34: =SUMPRODUCT((Assumptions!$H$70:$H$71)*(Assumptions!$G$70:$G$71)*(Assumptions!$I$70:$I$71)*(V$24:V$25)) -> 0 | W34: =SUMPRODUCT((Assumptions!$H$70:$H$71)*(Assumptions!$G$70:$G$71)*(Assumptions!$I$70:$I$71)*(W$24:W$25)) -> 0 | X34: =SUMPRODUCT((Assumptions!$H$70:$H$71)*(Assumptions!$G$70:$G$71)*(Assumptions!$I$70:$I$71)*(X$24:X$25)) -> 0 | Y34: =SUMPRODUCT((Assumptions!$H$70:$H$71)*(Assumptions!$G$70:$G$71)*(Assumptions!$I$70:$I$71)*(Y$24:Y$25)) -> 0 | Z34: =SUMPRODUCT((Assumptions!$H$70:$H$71)*(Assumptions!$G$70:$G$71)*(Assumptions!$I$70:$I$71)*(Z$24:Z$25)) -> 0 | AA34: =SUMPRODUCT((Assumptions!$H$70:$H$71)*(Assumptions!$G$70:$G$71)*(Assumptions!$I$70:$I$71)*(AA$24:AA$25)) -> 0 | AB34: =SUMPRODUCT((Assumptions!$H$70:$H$71)*(Assumptions!$G$70:$G$71)*(Assumptions!$I$70:$I$71)*(AB$24:AB$25)) -> 0 | AC34: =SUMPRODUCT((Assumptions!$H$70:$H$71)*(Assumptions!$G$70:$G$71)*(Assumptions!$I$70:$I$71)*(AC$24:AC$25)) -> 0 | AD34: =SUMPRODUCT((Assumptions!$H$70:$H$71)*(Assumptions!$G$70:$G$71)*(Assumptions!$I$70:$I$71)*(AD$24:AD$25)) -> 0 | AE34: =SUMPRODUCT((Assumptions!$H$70:$H$71)*(Assumptions!$G$70:$G$71)*(Assumptions!$I$70:$I$71)*(AE$24:AE$25)) -> 0 | AF34: =SUMPRODUCT((Assumptions!$H$70:$H$71)*(Assumptions!$G$70:$G$71)*(Assumptions!$I$70:$I$71)*(AF$24:AF$25)) -> 0 | AG34: =SUMPRODUCT((Assumptions!$H$70:$H$71)*(Assumptions!$G$70:$G$71)*(Assumptions!$I$70:$I$71)*(AG$24:AG$25)) -> 0
C35: Unplanned replacements | G35: =input_dollars -> 2023-12-31 | I35: =(1+Assumptions!$G$81)*SUMPRODUCT((Assumptions!$G$78:$G$79)*(I$24:I$25)) -> 0 | J35: =(1+Assumptions!$G$81)*SUMPRODUCT((Assumptions!$G$78:$G$79)*(J$24:J$25)) -> 0 | K35: =(1+Assumptions!$G$81)*SUMPRODUCT((Assumptions!$G$78:$G$79)*(K$24:K$25)) -> 0 | L35: =(1+Assumptions!$G$81)*SUMPRODUCT((Assumptions!$G$78:$G$79)*(L$24:L$25)) -> 0 | M35: =(1+Assumptions!$G$81)*SUMPRODUCT((Assumptions!$G$78:$G$79)*(M$24:M$25)) -> 0 | N35: =(1+Assumptions!$G$81)*SUMPRODUCT((Assumptions!$G$78:$G$79)*(N$24:N$25)) -> 0 | O35: =(1+Assumptions!$G$81)*SUMPRODUCT((Assumptions!$G$78:$G$79)*(O$24:O$25)) -> 0 | P35: =(1+Assumptions!$G$81)*SUMPRODUCT((Assumptions!$G$78:$G$79)*(P$24:P$25)) -> 0 | Q35: =(1+Assumptions!$G$81)*SUMPRODUCT((Assumptions!$G$78:$G$79)*(Q$24:Q$25)) -> 0 | R35: =(1+Assumptions!$G$81)*SUMPRODUCT((Assumptions!$G$78:$G$79)*(R$24:R$25)) -> 0 | S35: =(1+Assumptions!$G$81)*SUMPRODUCT((Assumptions!$G$78:$G$79)*(S$24:S$25)) -> 0 | T35: =(1+Assumptions!$G$81)*SUMPRODUCT((Assumptions!$G$78:$G$79)*(T$24:T$25)) -> 0 | U35: =(1+Assumptions!$G$81)*SUMPRODUCT((Assumptions!$G$78:$G$79)*(U$24:U$25)) -> 0 | V35: =(1+Assumptions!$G$81)*SUMPRODUCT((Assumptions!$G$78:$G$79)*(V$24:V$25)) -> 0 | W35: =(1+Assumptions!$G$81)*SUMPRODUCT((Assumptions!$G$78:$G$79)*(W$24:W$25)) -> 0 | X35: =(1+Assumptions!$G$81)*SUMPRODUCT((Assumptions!$G$78:$G$79)*(X$24:X$25)) -> 0 | Y35: =(1+Assumptions!$G$81)*SUMPRODUCT((Assumptions!$G$78:$G$79)*(Y$24:Y$25)) -> 0 | Z35: =(1+Assumptions!$G$81)*SUMPRODUCT((Assumptions!$G$78:$G$79)*(Z$24:Z$25)) -> 0 | AA35: =(1+Assumptions!$G$81)*SUMPRODUCT((Assumptions!$G$78:$G$79)*(AA$24:AA$25)) -> 0 | AB35: =(1+Assumptions!$G$81)*SUMPRODUCT((Assumptions!$G$78:$G$79)*(AB$24:AB$25)) -> 0 | AC35: =(1+Assumptions!$G$81)*SUMPRODUCT((Assumptions!$G$78:$G$79)*(AC$24:AC$25)) -> 0 | AD35: =(1+Assumptions!$G$81)*SUMPRODUCT((Assumptions!$G$78:$G$79)*(AD$24:AD$25)) -> 0 | AE35: =(1+Assumptions!$G$81)*SUMPRODUCT((Assumptions!$G$78:$G$79)*(AE$24:AE$25)) -> 0 | AF35: =(1+Assumptions!$G$81)*SUMPRODUCT((Assumptions!$G$78:$G$79)*(AF$24:AF$25)) -> 0 | AG35: =(1+Assumptions!$G$81)*SUMPRODUCT((Assumptions!$G$78:$G$79)*(AG$24:AG$25)) -> 0
C36: Environmental consequence | D36: (after DF) | G36: =input_dollars -> 2023-12-31 | I36: 0 | J36: 0 | K36: 0 | L36: 0 | M36: 0 | N36: 0 | O36: 0 | P36: 0 | Q36: 0 | R36: 0 | S36: 0 | T36: 0 | U36: 0 | V36: 0 | W36: 0 | X36: 0 | Y36: 0 | Z36: 0 | AA36: 0 | AB36: 0 | AC36: 0 | AD36: 0 | AE36: 0 | AF36: 0 | AG36: 0
C37: < Other risk - enter description > | G37: =input_dollars -> 2023-12-31 | I37: 0 | J37: 0 | K37: 0 | L37: 0 | M37: 0 | N37: 0 | O37: 0 | P37: 0 | Q37: 0 | R37: 0 | S37: 0 | T37: 0 | U37: 0 | V37: 0 | W37: 0 | X37: 0 | Y37: 0 | Z37: 0 | AA37: 0 | AB37: 0 | AC37: 0 | AD37: 0 | AE37: 0 | AF37: 0 | AG37: 0
C38: < Other risk - enter description > | G38: =input_dollars -> 2023-12-31 | I38: 0 | J38: 0 | K38: 0 | L38: 0 | M38: 0 | N38: 0 | O38: 0 | P38: 0 | Q38: 0 | R38: 0 | S38: 0 | T38: 0 | U38: 0 | V38: 0 | W38: 0 | X38: 0 | Y38: 0 | Z38: 0 | AA38: 0 | AB38: 0 | AC38: 0 | AD38: 0 | AE38: 0 | AF38: 0 | AG38: 0
C40: Total risk cost | I40: =SUM(I32:I38) -> 0 | J40: =SUM(J32:J38) -> 0 | K40: 0 | L40: 0 | M40: 0 | N40: 0 | O40: 0 | P40: 0 | Q40: 0 | R40: 0 | S40: 0 | T40: 0 | U40: 0 | V40: 0 | W40: 0 | X40: 0 | Y40: 0 | Z40: 0 | AA40: 0 | AB40: 0 | AC40: 0 | AD40: 0 | AE40: 0 | AF40: 0 | AG40: 0
A42: OTHER BENEFITS
C45: Reduction in CO2 emissions | G45: MWh | I45: 0 | J45: 0 | K45: 0 | L45: 0 | M45: 0 | N45: 0 | O45: 0 | P45: 0 | Q45: 0 | R45: 0 | S45: 0 | T45: 0 | U45: 0 | V45: 0 | W45: 0 | X45: 0 | Y45: 0 | Z45: 0 | AA45: 0 | AB45: 0 | AC45: 0 | AD45: 0 | AE45: 0 | AF45: 0 | AG45: 0
C46: Value of reduction in CO2 emissions | G46: $ | I46: =I45*I7 -> 0 | J46: 0 | K46: 0 | L46: 0 | M46: 0 | N46: 0 | O46: 0 | P46: 0 | Q46: 0 | R46: 0 | S46: 0 | T46: 0 | U46: 0 | V46: 0 | W46: 0 | X46: 0 | Y46: 0 | Z46: 0 | AA46: 0 | AB46: 0 | AC46: 0 | AD46: 0 | AE46: 0 | AF46: 0 | AG46: 0
C49: Reliability in worst-served areas | D49: $/MWh | E49: =Assumptions!G94 -> 151432.8174 | G49: MWh | I49: 0 | J49: 0 | K49: 0 | L49: 0 | M49: 0 | N49: 0 | O49: 0 | P49: 0 | Q49: 0 | R49: 0 | S49: 0 | T49: 0 | U49: 0 | V49: 0 | W49: 0 | X49: 0 | Y49: 0 | Z49: 0 | AA49: 0 | AB49: 0 | AC49: 0 | AD49: 0 | AE49: 0 | AF49: 0 | AG49: 0
C50: Network resilience | D50: $/MWh | E50: =Assumptions!G95 -> 24590 | G50: MWh | I50: 0 | J50: 0 | K50: 0 | L50: 0 | M50: 0 | N50: 0 | O50: 0 | P50: 0 | Q50: 0 | R50: 0 | S50: 0 | T50: 0 | U50: 0 | V50: 0 | W50: 0 | X50: 0 | Y50: 0 | Z50: 0 | AA50: 0 | AB50: 0 | AC50: 0 | AD50: 0 | AE50: 0 | AF50: 0 | AG50: 0
C51: Enabling solar exports | D51: $/MWh | E51: =Assumptions!G96 -> 88.35771951 | G51: MWh | I51: 0 | J51: 0 | K51: 0 | L51: 0 | M51: 0 | N51: 0 | O51: 0 | P51: 0 | Q51: 0 | R51: 0 | S51: 0 | T51: 0 | U51: 0 | V51: 0 | W51: 0 | X51: 0 | Y51: 0 | Z51: 0 | AA51: 0 | AB51: 0 | AC51: 0 | AD51: 0 | AE51: 0 | AF51: 0 | AG51: 0
C52: Aesthetics | D52: $/customer | E52: =Assumptions!G97 -> 0 | G52: customers | I52: 0 | J52: 0 | K52: 0 | L52: 0 | M52: 0 | N52: 0 | O52: 0 | P52: 0 | Q52: 0 | R52: 0 | S52: 0 | T52: 0 | U52: 0 | V52: 0 | W52: 0 | X52: 0 | Y52: 0 | Z52: 0 | AA52: 0 | AB52: 0 | AC52: 0 | AD52: 0 | AE52: 0 | AF52: 0 | AG52: 0
C53: Customer value of time (res) | D53: $/customer min | E53: =Assumptions!G98 -> 0.3518133654 | G53: mins | I53: 0 | J53: 0 | K53: 0 | L53: 0 | M53: 0 | N53: 0 | O53: 0 | P53: 0 | Q53: 0 | R53: 0 | S53: 0 | T53: 0 | U53: 0 | V53: 0 | W53: 0 | X53: 0 | Y53: 0 | Z53: 0 | AA53: 0 | AB53: 0 | AC53: 0 | AD53: 0 | AE53: 0 | AF53: 0 | AG53: 0
C54: Customer value of time (bus) | D54: $/customer min | E54: =Assumptions!G99 -> 0.3518133654 | G54: mins | I54: 0 | J54: 0 | K54: 0 | L54: 0 | M54: 0 | N54: 0 | O54: 0 | P54: 0 | Q54: 0 | R54: 0 | S54: 0 | T54: 0 | U54: 0 | V54: 0 | W54: 0 | X54: 0 | Y54: 0 | Z54: 0 | AA54: 0 | AB54: 0 | AC54: 0 | AD54: 0 | AE54: 0 | AF54: 0 | AG54: 0
C55: Communication | D55: $/customer | E55: =Assumptions!G100 -> 0 | G55: customers | I55: 0 | J55: 0 | K55: 0 | L55: 0 | M55: 0 | N55: 0 | O55: 0 | P55: 0 | Q55: 0 | R55: 0 | S55: 0 | T55: 0 | U55: 0 | V55: 0 | W55: 0 | X55: 0 | Y55: 0 | Z55: 0 | AA55: 0 | AB55: 0 | AC55: 0 | AD55: 0 | AE55: 0 | AF55: 0 | AG55: 0
C56: Information accessibility | D56: $/customer | E56: =Assumptions!G101 -> 0 | G56: customers | I56: 0 | J56: 0 | K56: 0 | L56: 0 | M56: 0 | N56: 0 | O56: 0 | P56: 0 | Q56: 0 | R56: 0 | S56: 0 | T56: 0 | U56: 0 | V56: 0 | W56: 0 | X56: 0 | Y56: 0 | Z56: 0 | AA56: 0 | AB56: 0 | AC56: 0 | AD56: 0 | AE56: 0 | AF56: 0 | AG56: 0
C58: Other benefits 1 | G58: =input_dollars -> 2023-12-31 | I58: 0 | J58: 0 | K58: 0 | L58: 0 | M58: 0 | N58: 0 | O58: 0 | P58: 0 | Q58: 0 | R58: 0 | S58: 0 | T58: 0 | U58: 0 | V58: 0 | W58: 0 | X58: 0 | Y58: 0 | Z58: 0 | AA58: 0 | AB58: 0 | AC58: 0 | AD58: 0 | AE58: 0 | AF58: 0 | AG58: 0
C59: Other benefits 2 | G59: =input_dollars -> 2023-12-31 | I59: 0 | J59: 0 | K59: 0 | L59: 0 | M59: 0 | N59: 0 | O59: 0 | P59: 0 | Q59: 0 | R59: 0 | S59: 0 | T59: 0 | U59: 0 | V59: 0 | W59: 0 | X59: 0 | Y59: 0 | Z59: 0 | AA59: 0 | AB59: 0 | AC59: 0 | AD59: 0 | AE59: 0 | AF59: 0 | AG59: 0
C61: Total other benefits | G61: =input_dollars -> 2023-12-31 | I61: =SUMPRODUCT((I$49:I$56)*($E$49:$E$56))+SUM(I58:I59)+I46 -> 0 | J61: =SUMPRODUCT((J$49:J$56)*($E$49:$E$56))+SUM(J58:J59)+J46 -> 0 | K61: =SUMPRODUCT((K$49:K$56)*($E$49:$E$56))+SUM(K58:K59)+K46 -> 0 | L61: =SUMPRODUCT((L$49:L$56)*($E$49:$E$56))+SUM(L58:L59)+L46 -> 0 | M61: =SUMPRODUCT((M$49:M$56)*($E$49:$E$56))+SUM(M58:M59)+M46 -> 0 | N61: =SUMPRODUCT((N$49:N$56)*($E$49:$E$56))+SUM(N58:N59)+N46 -> 0 | O61: =SUMPRODUCT((O$49:O$56)*($E$49:$E$56))+SUM(O58:O59)+O46 -> 0 | P61: =SUMPRODUCT((P$49:P$56)*($E$49:$E$56))+SUM(P58:P59)+P46 -> 0 | Q61: =SUMPRODUCT((Q$49:Q$56)*($E$49:$E$56))+SUM(Q58:Q59)+Q46 -> 0 | R61: =SUMPRODUCT((R$49:R$56)*($E$49:$E$56))+SUM(R58:R59)+R46 -> 0 | S61: =SUMPRODUCT((S$49:S$56)*($E$49:$E$56))+SUM(S58:S59)+S46 -> 0 | T61: =SUMPRODUCT((T$49:T$56)*($E$49:$E$56))+SUM(T58:T59)+T46 -> 0 | U61: =SUMPRODUCT((U$49:U$56)*($E$49:$E$56))+SUM(U58:U59)+U46 -> 0 | V61: =SUMPRODUCT((V$49:V$56)*($E$49:$E$56))+SUM(V58:V59)+V46 -> 0 | W61: =SUMPRODUCT((W$49:W$56)*($E$49:$E$56))+SUM(W58:W59)+W46 -> 0 | X61: =SUMPRODUCT((X$49:X$56)*($E$49:$E$56))+SUM(X58:X59)+X46 -> 0 | Y61: =SUMPRODUCT((Y$49:Y$56)*($E$49:$E$56))+SUM(Y58:Y59)+Y46 -> 0 | Z61: =SUMPRODUCT((Z$49:Z$56)*($E$49:$E$56))+SUM(Z58:Z59)+Z46 -> 0 | AA61: =SUMPRODUCT((AA$49:AA$56)*($E$49:$E$56))+SUM(AA58:AA59)+AA46 -> 0 | AB61: =SUMPRODUCT((AB$49:AB$56)*($E$49:$E$56))+SUM(AB58:AB59)+AB46 -> 0 | AC61: =SUMPRODUCT((AC$49:AC$56)*($E$49:$E$56))+SUM(AC58:AC59)+AC46 -> 0 | AD61: =SUMPRODUCT((AD$49:AD$56)*($E$49:$E$56))+SUM(AD58:AD59)+AD46 -> 0 | AE61: =SUMPRODUCT((AE$49:AE$56)*($E$49:$E$56))+SUM(AE58:AE59)+AE46 -> 0 | AF61: =SUMPRODUCT((AF$49:AF$56)*($E$49:$E$56))+SUM(AF58:AF59)+AF46 -> 0 | AG61: =SUMPRODUCT((AG$49:AG$56)*($E$49:$E$56))+SUM(AG58:AG59)+AG46 -> 0
A64: SUMMARY
C68: ='Option1 (base case)'!C67 -> Risks mitigated vs base case | G68: =input_dollars -> 2023-12-31 | I68: =(1-INDEX(Data!$C$9:$C$13, MATCH($A$3, options,0)))*('Option1 (base case)'!I39-I40) -> 0 | J68: =(1-INDEX(Data!$C$9:$C$13, MATCH($A$3, options,0)))*('Option1 (base case)'!J39-J40) -> 0 | K68: =(1-INDEX(Data!$C$9:$C$13, MATCH($A$3, options,0)))*('Option1 (base case)'!K39-K40) -> 0 | L68: =(1-INDEX(Data!$C$9:$C$13, MATCH($A$3, options,0)))*('Option1 (base case)'!L39-L40) -> 0 | M68: =(1-INDEX(Data!$C$9:$C$13, MATCH($A$3, options,0)))*('Option1 (base case)'!M39-M40) -> 0 | N68: =(1-INDEX(Data!$C$9:$C$13, MATCH($A$3, options,0)))*('Option1 (base case)'!N39-N40) -> 0 | O68: =(1-INDEX(Data!$C$9:$C$13, MATCH($A$3, options,0)))*('Option1 (base case)'!O39-O40) -> 0 | P68: =(1-INDEX(Data!$C$9:$C$13, MATCH($A$3, options,0)))*('Option1 (base case)'!P39-P40) -> 0 | Q68: =(1-INDEX(Data!$C$9:$C$13, MATCH($A$3, options,0)))*('Option1 (base case)'!Q39-Q40) -> 0 | R68: =(1-INDEX(Data!$C$9:$C$13, MATCH($A$3, options,0)))*('Option1 (base case)'!R39-R40) -> 0 | S68: =(1-INDEX(Data!$C$9:$C$13, MATCH($A$3, options,0)))*('Option1 (base case)'!S39-S40) -> 0 | T68: =(1-INDEX(Data!$C$9:$C$13, MATCH($A$3, options,0)))*('Option1 (base case)'!T39-T40) -> 0 | U68: =(1-INDEX(Data!$C$9:$C$13, MATCH($A$3, options,0)))*('Option1 (base case)'!U39-U40) -> 0 | V68: =(1-INDEX(Data!$C$9:$C$13, MATCH($A$3, options,0)))*('Option1 (base case)'!V39-V40) -> 0 | W68: =(1-INDEX(Data!$C$9:$C$13, MATCH($A$3, options,0)))*('Option1 (base case)'!W39-W40) -> 0 | X68: =(1-INDEX(Data!$C$9:$C$13, MATCH($A$3, options,0)))*('Option1 (base case)'!X39-X40) -> 0 | Y68: =(1-INDEX(Data!$C$9:$C$13, MATCH($A$3, options,0)))*('Option1 (base case)'!Y39-Y40) -> 0 | Z68: =(1-INDEX(Data!$C$9:$C$13, MATCH($A$3, options,0)))*('Option1 (base case)'!Z39-Z40) -> 0 | AA68: =(1-INDEX(Data!$C$9:$C$13, MATCH($A$3, options,0)))*('Option1 (base case)'!AA39-AA40) -> 0 | AB68: =(1-INDEX(Data!$C$9:$C$13, MATCH($A$3, options,0)))*('Option1 (base case)'!AB39-AB40) -> 0 | AC68: =(1-INDEX(Data!$C$9:$C$13, MATCH($A$3, options,0)))*('Option1 (base case)'!AC39-AC40) -> 0 | AD68: =(1-INDEX(Data!$C$9:$C$13, MATCH($A$3, options,0)))*('Option1 (base case)'!AD39-AD40) -> 0 | AE68: =(1-INDEX(Data!$C$9:$C$13, MATCH($A$3, options,0)))*('Option1 (base case)'!AE39-AE40) -> 0 | AF68: =(1-INDEX(Data!$C$9:$C$13, MATCH($A$3, options,0)))*('Option1 (base case)'!AF39-AF40) -> 0 | AG68: =(1-INDEX(Data!$C$9:$C$13, MATCH($A$3, options,0)))*('Option1 (base case)'!AG39-AG40) -> 0
C70: Capital expenditure
C71: =C14 -> < Enter description > | G71: =input_dollars -> 2023-12-31 | I71: =-I14 -> 0 | J71: 0 | K71: 0 | L71: 0 | M71: 0 | N71: 0 | O71: 0 | P71: 0 | Q71: 0 | R71: 0 | S71: 0 | T71: 0 | U71: 0 | V71: 0 | W71: 0 | X71: 0 | Y71: 0 | Z71: 0 | AA71: 0 | AB71: 0 | AC71: 0 | AD71: 0 | AE71: 0 | AF71: 0 | AG71: 0
C72: =C15 -> < Enter description > | G72: =input_dollars -> 2023-12-31 | I72: =-I15 -> 0 | J72: 0 | K72: 0 | L72: 0 | M72: 0 | N72: 0 | O72: 0 | P72: 0 | Q72: 0 | R72: 0 | S72: 0 | T72: 0 | U72: 0 | V72: 0 | W72: 0 | X72: 0 | Y72: 0 | Z72: 0 | AA72: 0 | AB72: 0 | AC72: 0 | AD72: 0 | AE72: 0 | AF72: 0 | AG72: 0
C73: =C16 -> < Enter description > | G73: =input_dollars -> 2023-12-31 | I73: =-I16 -> 0 | J73: 0 | K73: 0 | L73: 0 | M73: 0 | N73: 0 | O73: 0 | P73: 0 | Q73: 0 | R73: 0 | S73: 0 | T73: 0 | U73: 0 | V73: 0 | W73: 0 | X73: 0 | Y73: 0 | Z73: 0 | AA73: 0 | AB73: 0 | AC73: 0 | AD73: 0 | AE73: 0 | AF73: 0 | AG73: 0
C75: Cumulative capex
C76: =C14 -> < Enter description > | G76: =input_dollars -> 2023-12-31 | I76: =SUMPRODUCT(($I71:I71))-SUMPRODUCT(($I71:I71)*($I$6:I$6<=(I$6-$E14))) -> 0 | J76: =SUMPRODUCT(($I71:J71))-SUMPRODUCT(($I71:J71)*($I$6:J$6<=(J$6-$E14))) -> 0 | K76: =SUMPRODUCT(($I71:K71))-SUMPRODUCT(($I71:K71)*($I$6:K$6<=(K$6-$E14))) -> 0 | L76: =SUMPRODUCT(($I71:L71))-SUMPRODUCT(($I71:L71)*($I$6:L$6<=(L$6-$E14))) -> 0 | M76: =SUMPRODUCT(($I71:M71))-SUMPRODUCT(($I71:M71)*($I$6:M$6<=(M$6-$E14))) -> 0 | N76: =SUMPRODUCT(($I71:N71))-SUMPRODUCT(($I71:N71)*($I$6:N$6<=(N$6-$E14))) -> 0 | O76: =SUMPRODUCT(($I71:O71))-SUMPRODUCT(($I71:O71)*($I$6:O$6<=(O$6-$E14))) -> 0 | P76: =SUMPRODUCT(($I71:P71))-SUMPRODUCT(($I71:P71)*($I$6:P$6<=(P$6-$E14))) -> 0 | Q76: =SUMPRODUCT(($I71:Q71))-SUMPRODUCT(($I71:Q71)*($I$6:Q$6<=(Q$6-$E14))) -> 0 | R76: =SUMPRODUCT(($I71:R71))-SUMPRODUCT(($I71:R71)*($I$6:R$6<=(R$6-$E14))) -> 0 | S76: =SUMPRODUCT(($I71:S71))-SUMPRODUCT(($I71:S71)*($I$6:S$6<=(S$6-$E14))) -> 0 | T76: =SUMPRODUCT(($I71:T71))-SUMPRODUCT(($I71:T71)*($I$6:T$6<=(T$6-$E14))) -> 0 | U76: =SUMPRODUCT(($I71:U71))-SUMPRODUCT(($I71:U71)*($I$6:U$6<=(U$6-$E14))) -> 0 | V76: =SUMPRODUCT(($I71:V71))-SUMPRODUCT(($I71:V71)*($I$6:V$6<=(V$6-$E14))) -> 0 | W76: =SUMPRODUCT(($I71:W71))-SUMPRODUCT(($I71:W71)*($I$6:W$6<=(W$6-$E14))) -> 0 | X76: =SUMPRODUCT(($I71:X71))-SUMPRODUCT(($I71:X71)*($I$6:X$6<=(X$6-$E14))) -> 0 | Y76: =SUMPRODUCT(($I71:Y71))-SUMPRODUCT(($I71:Y71)*($I$6:Y$6<=(Y$6-$E14))) -> 0 | Z76: =SUMPRODUCT(($I71:Z71))-SUMPRODUCT(($I71:Z71)*($I$6:Z$6<=(Z$6-$E14))) -> 0 | AA76: =SUMPRODUCT(($I71:AA71))-SUMPRODUCT(($I71:AA71)*($I$6:AA$6<=(AA$6-$E14))) -> 0 | AB76: =SUMPRODUCT(($I71:AB71))-SUMPRODUCT(($I71:AB71)*($I$6:AB$6<=(AB$6-$E14))) -> 0 | AC76: =SUMPRODUCT(($I71:AC71))-SUMPRODUCT(($I71:AC71)*($I$6:AC$6<=(AC$6-$E14))) -> 0 | AD76: =SUMPRODUCT(($I71:AD71))-SUMPRODUCT(($I71:AD71)*($I$6:AD$6<=(AD$6-$E14))) -> 0 | AE76: =SUMPRODUCT(($I71:AE71))-SUMPRODUCT(($I71:AE71)*($I$6:AE$6<=(AE$6-$E14))) -> 0 | AF76: =SUMPRODUCT(($I71:AF71))-SUMPRODUCT(($I71:AF71)*($I$6:AF$6<=(AF$6-$E14))) -> 0 | AG76: =SUMPRODUCT(($I71:AG71))-SUMPRODUCT(($I71:AG71)*($I$6:AG$6<=(AG$6-$E14))) -> 0
C77: =C15 -> < Enter description > | G77: =input_dollars -> 2023-12-31 | I77: =SUMPRODUCT(($I72:I72))-SUMPRODUCT(($I72:I72)*($I$6:I$6<=(I$6-$E15))) -> 0 | J77: =SUMPRODUCT(($I72:J72))-SUMPRODUCT(($I72:J72)*($I$6:J$6<=(J$6-$E15))) -> 0 | K77: =SUMPRODUCT(($I72:K72))-SUMPRODUCT(($I72:K72)*($I$6:K$6<=(K$6-$E15))) -> 0 | L77: =SUMPRODUCT(($I72:L72))-SUMPRODUCT(($I72:L72)*($I$6:L$6<=(L$6-$E15))) -> 0 | M77: =SUMPRODUCT(($I72:M72))-SUMPRODUCT(($I72:M72)*($I$6:M$6<=(M$6-$E15))) -> 0 | N77: =SUMPRODUCT(($I72:N72))-SUMPRODUCT(($I72:N72)*($I$6:N$6<=(N$6-$E15))) -> 0 | O77: =SUMPRODUCT(($I72:O72))-SUMPRODUCT(($I72:O72)*($I$6:O$6<=(O$6-$E15))) -> 0 | P77: =SUMPRODUCT(($I72:P72))-SUMPRODUCT(($I72:P72)*($I$6:P$6<=(P$6-$E15))) -> 0 | Q77: =SUMPRODUCT(($I72:Q72))-SUMPRODUCT(($I72:Q72)*($I$6:Q$6<=(Q$6-$E15))) -> 0 | R77: =SUMPRODUCT(($I72:R72))-SUMPRODUCT(($I72:R72)*($I$6:R$6<=(R$6-$E15))) -> 0 | S77: =SUMPRODUCT(($I72:S72))-SUMPRODUCT(($I72:S72)*($I$6:S$6<=(S$6-$E15))) -> 0 | T77: =SUMPRODUCT(($I72:T72))-SUMPRODUCT(($I72:T72)*($I$6:T$6<=(T$6-$E15))) -> 0 | U77: =SUMPRODUCT(($I72:U72))-SUMPRODUCT(($I72:U72)*($I$6:U$6<=(U$6-$E15))) -> 0 | V77: =SUMPRODUCT(($I72:V72))-SUMPRODUCT(($I72:V72)*($I$6:V$6<=(V$6-$E15))) -> 0 | W77: =SUMPRODUCT(($I72:W72))-SUMPRODUCT(($I72:W72)*($I$6:W$6<=(W$6-$E15))) -> 0 | X77: =SUMPRODUCT(($I72:X72))-SUMPRODUCT(($I72:X72)*($I$6:X$6<=(X$6-$E15))) -> 0 | Y77: =SUMPRODUCT(($I72:Y72))-SUMPRODUCT(($I72:Y72)*($I$6:Y$6<=(Y$6-$E15))) -> 0 | Z77: =SUMPRODUCT(($I72:Z72))-SUMPRODUCT(($I72:Z72)*($I$6:Z$6<=(Z$6-$E15))) -> 0 | AA77: =SUMPRODUCT(($I72:AA72))-SUMPRODUCT(($I72:AA72)*($I$6:AA$6<=(AA$6-$E15))) -> 0 | AB77: =SUMPRODUCT(($I72:AB72))-SUMPRODUCT(($I72:AB72)*($I$6:AB$6<=(AB$6-$E15))) -> 0 | AC77: =SUMPRODUCT(($I72:AC72))-SUMPRODUCT(($I72:AC72)*($I$6:AC$6<=(AC$6-$E15))) -> 0 | AD77: =SUMPRODUCT(($I72:AD72))-SUMPRODUCT(($I72:AD72)*($I$6:AD$6<=(AD$6-$E15))) -> 0 | AE77: =SUMPRODUCT(($I72:AE72))-SUMPRODUCT(($I72:AE72)*($I$6:AE$6<=(AE$6-$E15))) -> 0 | AF77: =SUMPRODUCT(($I72:AF72))-SUMPRODUCT(($I72:AF72)*($I$6:AF$6<=(AF$6-$E15))) -> 0 | AG77: =SUMPRODUCT(($I72:AG72))-SUMPRODUCT(($I72:AG72)*($I$6:AG$6<=(AG$6-$E15))) -> 0
C78: =C16 -> < Enter description > | G78: =input_dollars -> 2023-12-31 | I78: =SUMPRODUCT(($I73:I73))-SUMPRODUCT(($I73:I73)*($I$6:I$6<=(I$6-$E16))) -> 0 | J78: =SUMPRODUCT(($I73:J73))-SUMPRODUCT(($I73:J73)*($I$6:J$6<=(J$6-$E16))) -> 0 | K78: =SUMPRODUCT(($I73:K73))-SUMPRODUCT(($I73:K73)*($I$6:K$6<=(K$6-$E16))) -> 0 | L78: =SUMPRODUCT(($I73:L73))-SUMPRODUCT(($I73:L73)*($I$6:L$6<=(L$6-$E16))) -> 0 | M78: =SUMPRODUCT(($I73:M73))-SUMPRODUCT(($I73:M73)*($I$6:M$6<=(M$6-$E16))) -> 0 | N78: =SUMPRODUCT(($I73:N73))-SUMPRODUCT(($I73:N73)*($I$6:N$6<=(N$6-$E16))) -> 0 | O78: =SUMPRODUCT(($I73:O73))-SUMPRODUCT(($I73:O73)*($I$6:O$6<=(O$6-$E16))) -> 0 | P78: =SUMPRODUCT(($I73:P73))-SUMPRODUCT(($I73:P73)*($I$6:P$6<=(P$6-$E16))) -> 0 | Q78: =SUMPRODUCT(($I73:Q73))-SUMPRODUCT(($I73:Q73)*($I$6:Q$6<=(Q$6-$E16))) -> 0 | R78: =SUMPRODUCT(($I73:R73))-SUMPRODUCT(($I73:R73)*($I$6:R$6<=(R$6-$E16))) -> 0 | S78: =SUMPRODUCT(($I73:S73))-SUMPRODUCT(($I73:S73)*($I$6:S$6<=(S$6-$E16))) -> 0 | T78: =SUMPRODUCT(($I73:T73))-SUMPRODUCT(($I73:T73)*($I$6:T$6<=(T$6-$E16))) -> 0 | U78: =SUMPRODUCT(($I73:U73))-SUMPRODUCT(($I73:U73)*($I$6:U$6<=(U$6-$E16))) -> 0 | V78: =SUMPRODUCT(($I73:V73))-SUMPRODUCT(($I73:V73)*($I$6:V$6<=(V$6-$E16))) -> 0 | W78: =SUMPRODUCT(($I73:W73))-SUMPRODUCT(($I73:W73)*($I$6:W$6<=(W$6-$E16))) -> 0 | X78: =SUMPRODUCT(($I73:X73))-SUMPRODUCT(($I73:X73)*($I$6:X$6<=(X$6-$E16))) -> 0 | Y78: =SUMPRODUCT(($I73:Y73))-SUMPRODUCT(($I73:Y73)*($I$6:Y$6<=(Y$6-$E16))) -> 0 | Z78: =SUMPRODUCT(($I73:Z73))-SUMPRODUCT(($I73:Z73)*($I$6:Z$6<=(Z$6-$E16))) -> 0 | AA78: =SUMPRODUCT(($I73:AA73))-SUMPRODUCT(($I73:AA73)*($I$6:AA$6<=(AA$6-$E16))) -> 0 | AB78: =SUMPRODUCT(($I73:AB73))-SUMPRODUCT(($I73:AB73)*($I$6:AB$6<=(AB$6-$E16))) -> 0 | AC78: =SUMPRODUCT(($I73:AC73))-SUMPRODUCT(($I73:AC73)*($I$6:AC$6<=(AC$6-$E16))) -> 0 | AD78: =SUMPRODUCT(($I73:AD73))-SUMPRODUCT(($I73:AD73)*($I$6:AD$6<=(AD$6-$E16))) -> 0 | AE78: =SUMPRODUCT(($I73:AE73))-SUMPRODUCT(($I73:AE73)*($I$6:AE$6<=(AE$6-$E16))) -> 0 | AF78: =SUMPRODUCT(($I73:AF73))-SUMPRODUCT(($I73:AF73)*($I$6:AF$6<=(AF$6-$E16))) -> 0 | AG78: =SUMPRODUCT(($I73:AG73))-SUMPRODUCT(($I73:AG73)*($I$6:AG$6<=(AG$6-$E16))) -> 0
C80: Annualised capex
C81: =$C$80&" - "&C14 -> Annualised capex - < Enter description > | G81: =input_dollars -> 2023-12-31 | I81: =IF($E14=0,0,-PMT(real_disc, $E14,H76,)) -> 0 | J81: 0 | K81: 0 | L81: 0 | M81: 0 | N81: 0 | O81: 0 | P81: 0 | Q81: 0 | R81: 0 | S81: 0 | T81: 0 | U81: 0 | V81: 0 | W81: 0 | X81: 0 | Y81: 0 | Z81: 0 | AA81: 0 | AB81: 0 | AC81: 0 | AD81: 0 | AE81: 0 | AF81: 0 | AG81: 0
C82: =$C$80&" - "&C15 -> Annualised capex - < Enter description > | G82: =input_dollars -> 2023-12-31 | I82: =IF($E15=0,0,-PMT(real_disc, $E15,H77,)) -> 0 | J82: 0 | K82: 0 | L82: 0 | M82: 0 | N82: 0 | O82: 0 | P82: 0 | Q82: 0 | R82: 0 | S82: 0 | T82: 0 | U82: 0 | V82: 0 | W82: 0 | X82: 0 | Y82: 0 | Z82: 0 | AA82: 0 | AB82: 0 | AC82: 0 | AD82: 0 | AE82: 0 | AF82: 0 | AG82: 0
C83: =$C$80&" - "&C16 -> Annualised capex - < Enter description > | G83: =input_dollars -> 2023-12-31 | I83: =IF($E16=0,0,-PMT(real_disc, $E16,H78,)) -> 0 | J83: 0 | K83: 0 | L83: 0 | M83: 0 | N83: 0 | O83: 0 | P83: 0 | Q83: 0 | R83: 0 | S83: 0 | T83: 0 | U83: 0 | V83: 0 | W83: 0 | X83: 0 | Y83: 0 | Z83: 0 | AA83: 0 | AB83: 0 | AC83: 0 | AD83: 0 | AE83: 0 | AF83: 0 | AG83: 0
C84: Total annualised capex | G84: =input_dollars -> 2023-12-31 | I84: =SUM(I81:I83) -> 0 | J84: =SUM(J81:J83) -> 0 | K84: 0 | L84: 0 | M84: 0 | N84: 0 | O84: 0 | P84: 0 | Q84: 0 | R84: 0 | S84: 0 | T84: 0 | U84: 0 | V84: 0 | W84: 0 | X84: 0 | Y84: 0 | Z84: 0 | AA84: 0 | AB84: 0 | AC84: =SUM(AC81:AC83) -> 0 | AD84: =SUM(AD81:AD83) -> 0 | AE84: =SUM(AE81:AE83) -> 0 | AF84: =SUM(AF81:AF83) -> 0 | AG84: =SUM(AG81:AG83) -> 0
C86: Annualised capex | G86: =input_dollars -> 2023-12-31 | I86: =I84 -> 0 | J86: =J84 -> 0 | K86: 0 | L86: 0 | M86: 0 | N86: 0 | O86: 0 | P86: 0 | Q86: 0 | R86: 0 | S86: 0 | T86: 0 | U86: 0 | V86: 0 | W86: 0 | X86: 0 | Y86: 0 | Z86: 0 | AA86: 0 | AB86: 0 | AC86: =AC84 -> 0 | AD86: =AD84 -> 0 | AE86: =AE84 -> 0 | AF86: =AF84 -> 0 | AG86: =AG84 -> 0
C87: Operating expenditure | G87: 2023-12-31 | I87: =-I19 -> 0 | J87: 0 | K87: 0 | L87: 0 | M87: 0 | N87: 0 | O87: 0 | P87: 0 | Q87: 0 | R87: 0 | S87: 0 | T87: 0 | U87: 0 | V87: 0 | W87: 0 | X87: 0 | Y87: 0 | Z87: 0 | AA87: 0 | AB87: 0 | AC87: 0 | AD87: 0 | AE87: 0 | AF87: 0 | AG87: 0
C88: Risk mitigated | G88: 2023-12-31 | I88: =I68 -> 0 | J88: =J68 -> 0 | K88: 0 | L88: 0 | M88: 0 | N88: 0 | O88: 0 | P88: 0 | Q88: 0 | R88: 0 | S88: 0 | T88: 0 | U88: 0 | V88: 0 | W88: 0 | X88: 0 | Y88: 0 | Z88: 0 | AA88: 0 | AB88: 0 | AC88: =AC68 -> 0 | AD88: =AD68 -> 0 | AE88: =AE68 -> 0 | AF88: =AF68 -> 0 | AG88: =AG68 -> 0
C89: Other benefits value | G89: 2023-12-31 | I89: =I61 -> 0 | J89: 0 | K89: 0 | L89: 0 | M89: 0 | N89: 0 | O89: 0 | P89: 0 | Q89: 0 | R89: 0 | S89: 0 | T89: 0 | U89: 0 | V89: 0 | W89: 0 | X89: 0 | Y89: 0 | Z89: 0 | AA89: 0 | AB89: 0 | AC89: 0 | AD89: 0 | AE89: 0 | AF89: 0 | AG89: 0
C91: Net benefits | G91: 2023-12-31 | I91: =SUM(I86:I90) -> 0 | J91: 0 | K91: 0 | L91: 0 | M91: 0 | N91: 0 | O91: 0 | P91: 0 | Q91: 0 | R91: 0 | S91: 0 | T91: 0 | U91: 0 | V91: 0 | W91: 0 | X91: 0 | Y91: 0 | Z91: 0 | AA91: 0 | AB91: 0 | AC91: =SUM(AC86:AC90) -> 0 | AD91: =SUM(AD86:AD90) -> 0 | AE91: =SUM(AE86:AE90) -> 0 | AF91: =SUM(AF86:AF90) -> 0 | AG91: =SUM(AG86:AG90) -> 0
C94: First capex year | G94: =IF(SUM($I17:$AG17)=0,0,(INDEX(I$6:AG$6,MATCH(TRUE,INDEX($I17:$AG17<>0,),0)))) -> 0
C96: First year | G96: =IF(_xlfn.MINIFS($G$94:$G$95, $G$94:$G$95, ">"&0)=0, $A$4, _xlfn.MINIFS($G$94:$G$95, $G$94:$G$95, ">"&0)) -> Not used
A106: SENSITIVITIES
A110: NPV | C110: Net benefits | G110: =PROPER($A$3)&A110 -> Option 5NPV | I110: =I91 -> 0 | J110: =J91 -> 0 | K110: 0 | L110: 0 | M110: 0 | N110: 0 | O110: 0 | P110: 0 | Q110: 0 | R110: 0 | S110: 0 | T110: 0 | U110: 0 | V110: 0 | W110: 0 | X110: 0 | Y110: 0 | Z110: 0 | AA110: 0 | AB110: 0 | AC110: 0 | AD110: 0 | AE110: 0 | AF110: 0 | AG110: 0
C111: Total annualised capex | I111: =I86 -> 0 | J111: =J86 -> 0 | K111: 0 | L111: 0 | M111: 0 | N111: 0 | O111: 0 | P111: 0 | Q111: 0 | R111: 0 | S111: 0 | T111: 0 | U111: 0 | V111: 0 | W111: 0 | X111: 0 | Y111: 0 | Z111: 0 | AA111: 0 | AB111: 0 | AC111: 0 | AD111: 0 | AE111: 0 | AF111: 0 | AG111: 0
C112: Total benefits | I112: =SUM(I88:I89) -> 0 | J112: =SUM(J88:J89) -> 0 | K112: 0 | L112: 0 | M112: 0 | N112: 0 | O112: 0 | P112: 0 | Q112: 0 | R112: 0 | S112: 0 | T112: 0 | U112: 0 | V112: 0 | W112: 0 | X112: 0 | Y112: 0 | Z112: 0 | AA112: 0 | AB112: 0 | AC112: 0 | AD112: 0 | AE112: 0 | AF112: 0 | AG112: 0
D113: =Assumptions!G110 -> Capex | E113: =Assumptions!H110 -> Total benefits
A114: ="sens"&Assumptions!B111 -> sens1 | C114: =Assumptions!C111 -> Capex 10% higher | D114: =Assumptions!G111 -> 0.1 | E114: =Assumptions!H111 -> 0 | G114: =PROPER($A$3)&A114 -> Option 5sens1 | I114: =I$110+IF($C114<>0,SUMPRODUCT((I$111:I$112)*TRANSPOSE(($D114:$E114))),0) -> 0 | J114: =J$110+IF($C114<>0,SUMPRODUCT((J$111:J$112)*TRANSPOSE(($D114:$E114))),0) -> 0 | K114: =K$110+IF($C114<>0,SUMPRODUCT((K$111:K$112)*TRANSPOSE(($D114:$E114))),0) -> 0 | L114: =L$110+IF($C114<>0,SUMPRODUCT((L$111:L$112)*TRANSPOSE(($D114:$E114))),0) -> 0 | M114: =M$110+IF($C114<>0,SUMPRODUCT((M$111:M$112)*TRANSPOSE(($D114:$E114))),0) -> 0 | N114: =N$110+IF($C114<>0,SUMPRODUCT((N$111:N$112)*TRANSPOSE(($D114:$E114))),0) -> 0 | O114: =O$110+IF($C114<>0,SUMPRODUCT((O$111:O$112)*TRANSPOSE(($D114:$E114))),0) -> 0 | P114: =P$110+IF($C114<>0,SUMPRODUCT((P$111:P$112)*TRANSPOSE(($D114:$E114))),0) -> 0 | Q114: =Q$110+IF($C114<>0,SUMPRODUCT((Q$111:Q$112)*TRANSPOSE(($D114:$E114))),0) -> 0 | R114: =R$110+IF($C114<>0,SUMPRODUCT((R$111:R$112)*TRANSPOSE(($D114:$E114))),0) -> 0 | S114: =S$110+IF($C114<>0,SUMPRODUCT((S$111:S$112)*TRANSPOSE(($D114:$E114))),0) -> 0 | T114: =T$110+IF($C114<>0,SUMPRODUCT((T$111:T$112)*TRANSPOSE(($D114:$E114))),0) -> 0 | U114: =U$110+IF($C114<>0,SUMPRODUCT((U$111:U$112)*TRANSPOSE(($D114:$E114))),0) -> 0 | V114: =V$110+IF($C114<>0,SUMPRODUCT((V$111:V$112)*TRANSPOSE(($D114:$E114))),0) -> 0 | W114: =W$110+IF($C114<>0,SUMPRODUCT((W$111:W$112)*TRANSPOSE(($D114:$E114))),0) -> 0 | X114: =X$110+IF($C114<>0,SUMPRODUCT((X$111:X$112)*TRANSPOSE(($D114:$E114))),0) -> 0 | Y114: =Y$110+IF($C114<>0,SUMPRODUCT((Y$111:Y$112)*TRANSPOSE(($D114:$E114))),0) -> 0 | Z114: =Z$110+IF($C114<>0,SUMPRODUCT((Z$111:Z$112)*TRANSPOSE(($D114:$E114))),0) -> 0 | AA114: =AA$110+IF($C114<>0,SUMPRODUCT((AA$111:AA$112)*TRANSPOSE(($D114:$E114))),0) -> 0 | AB114: =AB$110+IF($C114<>0,SUMPRODUCT((AB$111:AB$112)*TRANSPOSE(($D114:$E114))),0) -> 0 | AC114: =AC$110+IF($C114<>0,SUMPRODUCT((AC$111:AC$112)*TRANSPOSE(($D114:$E114))),0) -> 0 | AD114: =AD$110+IF($C114<>0,SUMPRODUCT((AD$111:AD$112)*TRANSPOSE(($D114:$E114))),0) -> 0 | AE114: =AE$110+IF($C114<>0,SUMPRODUCT((AE$111:AE$112)*TRANSPOSE(($D114:$E114))),0) -> 0 | AF114: =AF$110+IF($C114<>0,SUMPRODUCT((AF$111:AF$112)*TRANSPOSE(($D114:$E114))),0) -> 0 | AG114: =AG$110+IF($C114<>0,SUMPRODUCT((AG$111:AG$112)*TRANSPOSE(($D114:$E114))),0) -> 0
A115: ="sens"&Assumptions!B112 -> sens2 | C115: =Assumptions!C112 -> Capex 10% lower | D115: =Assumptions!G112 -> -0.1 | E115: =Assumptions!H112 -> 0 | G115: =PROPER($A$3)&A115 -> Option 5sens2 | I115: =I$110+IF($C115<>0,SUMPRODUCT((I$111:I$112)*TRANSPOSE(($D115:$E115))),0) -> 0 | J115: =J$110+IF($C115<>0,SUMPRODUCT((J$111:J$112)*TRANSPOSE(($D115:$E115))),0) -> 0 | K115: =K$110+IF($C115<>0,SUMPRODUCT((K$111:K$112)*TRANSPOSE(($D115:$E115))),0) -> 0 | L115: =L$110+IF($C115<>0,SUMPRODUCT((L$111:L$112)*TRANSPOSE(($D115:$E115))),0) -> 0 | M115: =M$110+IF($C115<>0,SUMPRODUCT((M$111:M$112)*TRANSPOSE(($D115:$E115))),0) -> 0 | N115: =N$110+IF($C115<>0,SUMPRODUCT((N$111:N$112)*TRANSPOSE(($D115:$E115))),0) -> 0 | O115: =O$110+IF($C115<>0,SUMPRODUCT((O$111:O$112)*TRANSPOSE(($D115:$E115))),0) -> 0 | P115: =P$110+IF($C115<>0,SUMPRODUCT((P$111:P$112)*TRANSPOSE(($D115:$E115))),0) -> 0 | Q115: =Q$110+IF($C115<>0,SUMPRODUCT((Q$111:Q$112)*TRANSPOSE(($D115:$E115))),0) -> 0 | R115: =R$110+IF($C115<>0,SUMPRODUCT((R$111:R$112)*TRANSPOSE(($D115:$E115))),0) -> 0 | S115: =S$110+IF($C115<>0,SUMPRODUCT((S$111:S$112)*TRANSPOSE(($D115:$E115))),0) -> 0 | T115: =T$110+IF($C115<>0,SUMPRODUCT((T$111:T$112)*TRANSPOSE(($D115:$E115))),0) -> 0 | U115: =U$110+IF($C115<>0,SUMPRODUCT((U$111:U$112)*TRANSPOSE(($D115:$E115))),0) -> 0 | V115: =V$110+IF($C115<>0,SUMPRODUCT((V$111:V$112)*TRANSPOSE(($D115:$E115))),0) -> 0 | W115: =W$110+IF($C115<>0,SUMPRODUCT((W$111:W$112)*TRANSPOSE(($D115:$E115))),0) -> 0 | X115: =X$110+IF($C115<>0,SUMPRODUCT((X$111:X$112)*TRANSPOSE(($D115:$E115))),0) -> 0 | Y115: =Y$110+IF($C115<>0,SUMPRODUCT((Y$111:Y$112)*TRANSPOSE(($D115:$E115))),0) -> 0 | Z115: =Z$110+IF($C115<>0,SUMPRODUCT((Z$111:Z$112)*TRANSPOSE(($D115:$E115))),0) -> 0 | AA115: =AA$110+IF($C115<>0,SUMPRODUCT((AA$111:AA$112)*TRANSPOSE(($D115:$E115))),0) -> 0 | AB115: =AB$110+IF($C115<>0,SUMPRODUCT((AB$111:AB$112)*TRANSPOSE(($D115:$E115))),0) -> 0 | AC115: =AC$110+IF($C115<>0,SUMPRODUCT((AC$111:AC$112)*TRANSPOSE(($D115:$E115))),0) -> 0 | AD115: =AD$110+IF($C115<>0,SUMPRODUCT((AD$111:AD$112)*TRANSPOSE(($D115:$E115))),0) -> 0 | AE115: =AE$110+IF($C115<>0,SUMPRODUCT((AE$111:AE$112)*TRANSPOSE(($D115:$E115))),0) -> 0 | AF115: =AF$110+IF($C115<>0,SUMPRODUCT((AF$111:AF$112)*TRANSPOSE(($D115:$E115))),0) -> 0 | AG115: =AG$110+IF($C115<>0,SUMPRODUCT((AG$111:AG$112)*TRANSPOSE(($D115:$E115))),0) -> 0
A116: ="sens"&Assumptions!B113 -> sens3 | C116: =Assumptions!C113 -> Total benefits 10% higher | D116: =Assumptions!G113 -> 0 | E116: =Assumptions!H113 -> 0.1 | G116: Option 5sens3 | I116: =I$110+IF($C116<>0,SUMPRODUCT((I$111:I$112)*TRANSPOSE(($D116:$E116))),0) -> 0 | J116: =J$110+IF($C116<>0,SUMPRODUCT((J$111:J$112)*TRANSPOSE(($D116:$E116))),0) -> 0 | K116: =K$110+IF($C116<>0,SUMPRODUCT((K$111:K$112)*TRANSPOSE(($D116:$E116))),0) -> 0 | L116: =L$110+IF($C116<>0,SUMPRODUCT((L$111:L$112)*TRANSPOSE(($D116:$E116))),0) -> 0 | M116: =M$110+IF($C116<>0,SUMPRODUCT((M$111:M$112)*TRANSPOSE(($D116:$E116))),0) -> 0 | N116: =N$110+IF($C116<>0,SUMPRODUCT((N$111:N$112)*TRANSPOSE(($D116:$E116))),0) -> 0 | O116: =O$110+IF($C116<>0,SUMPRODUCT((O$111:O$112)*TRANSPOSE(($D116:$E116))),0) -> 0 | P116: =P$110+IF($C116<>0,SUMPRODUCT((P$111:P$112)*TRANSPOSE(($D116:$E116))),0) -> 0 | Q116: =Q$110+IF($C116<>0,SUMPRODUCT((Q$111:Q$112)*TRANSPOSE(($D116:$E116))),0) -> 0 | R116: =R$110+IF($C116<>0,SUMPRODUCT((R$111:R$112)*TRANSPOSE(($D116:$E116))),0) -> 0 | S116: =S$110+IF($C116<>0,SUMPRODUCT((S$111:S$112)*TRANSPOSE(($D116:$E116))),0) -> 0 | T116: =T$110+IF($C116<>0,SUMPRODUCT((T$111:T$112)*TRANSPOSE(($D116:$E116))),0) -> 0 | U116: =U$110+IF($C116<>0,SUMPRODUCT((U$111:U$112)*TRANSPOSE(($D116:$E116))),0) -> 0 | V116: =V$110+IF($C116<>0,SUMPRODUCT((V$111:V$112)*TRANSPOSE(($D116:$E116))),0) -> 0 | W116: =W$110+IF($C116<>0,SUMPRODUCT((W$111:W$112)*TRANSPOSE(($D116:$E116))),0) -> 0 | X116: =X$110+IF($C116<>0,SUMPRODUCT((X$111:X$112)*TRANSPOSE(($D116:$E116))),0) -> 0 | Y116: =Y$110+IF($C116<>0,SUMPRODUCT((Y$111:Y$112)*TRANSPOSE(($D116:$E116))),0) -> 0 | Z116: =Z$110+IF($C116<>0,SUMPRODUCT((Z$111:Z$112)*TRANSPOSE(($D116:$E116))),0) -> 0 | AA116: =AA$110+IF($C116<>0,SUMPRODUCT((AA$111:AA$112)*TRANSPOSE(($D116:$E116))),0) -> 0 | AB116: =AB$110+IF($C116<>0,SUMPRODUCT((AB$111:AB$112)*TRANSPOSE(($D116:$E116))),0) -> 0 | AC116: =AC$110+IF($C116<>0,SUMPRODUCT((AC$111:AC$112)*TRANSPOSE(($D116:$E116))),0) -> 0 | AD116: =AD$110+IF($C116<>0,SUMPRODUCT((AD$111:AD$112)*TRANSPOSE(($D116:$E116))),0) -> 0 | AE116: =AE$110+IF($C116<>0,SUMPRODUCT((AE$111:AE$112)*TRANSPOSE(($D116:$E116))),0) -> 0 | AF116: =AF$110+IF($C116<>0,SUMPRODUCT((AF$111:AF$112)*TRANSPOSE(($D116:$E116))),0) -> 0 | AG116: =AG$110+IF($C116<>0,SUMPRODUCT((AG$111:AG$112)*TRANSPOSE(($D116:$E116))),0) -> 0
A117: ="sens"&Assumptions!B114 -> sens4 | C117: =Assumptions!C114 -> Total benefits 10% lower | D117: =Assumptions!G114 -> 0 | E117: =Assumptions!H114 -> -0.1 | G117: Option 5sens4 | I117: =I$110+IF($C117<>0,SUMPRODUCT((I$111:I$112)*TRANSPOSE(($D117:$E117))),0) -> 0 | J117: =J$110+IF($C117<>0,SUMPRODUCT((J$111:J$112)*TRANSPOSE(($D117:$E117))),0) -> 0 | K117: =K$110+IF($C117<>0,SUMPRODUCT((K$111:K$112)*TRANSPOSE(($D117:$E117))),0) -> 0 | L117: =L$110+IF($C117<>0,SUMPRODUCT((L$111:L$112)*TRANSPOSE(($D117:$E117))),0) -> 0 | M117: =M$110+IF($C117<>0,SUMPRODUCT((M$111:M$112)*TRANSPOSE(($D117:$E117))),0) -> 0 | N117: =N$110+IF($C117<>0,SUMPRODUCT((N$111:N$112)*TRANSPOSE(($D117:$E117))),0) -> 0 | O117: =O$110+IF($C117<>0,SUMPRODUCT((O$111:O$112)*TRANSPOSE(($D117:$E117))),0) -> 0 | P117: =P$110+IF($C117<>0,SUMPRODUCT((P$111:P$112)*TRANSPOSE(($D117:$E117))),0) -> 0 | Q117: =Q$110+IF($C117<>0,SUMPRODUCT((Q$111:Q$112)*TRANSPOSE(($D117:$E117))),0) -> 0 | R117: =R$110+IF($C117<>0,SUMPRODUCT((R$111:R$112)*TRANSPOSE(($D117:$E117))),0) -> 0 | S117: =S$110+IF($C117<>0,SUMPRODUCT((S$111:S$112)*TRANSPOSE(($D117:$E117))),0) -> 0 | T117: =T$110+IF($C117<>0,SUMPRODUCT((T$111:T$112)*TRANSPOSE(($D117:$E117))),0) -> 0 | U117: =U$110+IF($C117<>0,SUMPRODUCT((U$111:U$112)*TRANSPOSE(($D117:$E117))),0) -> 0 | V117: =V$110+IF($C117<>0,SUMPRODUCT((V$111:V$112)*TRANSPOSE(($D117:$E117))),0) -> 0 | W117: =W$110+IF($C117<>0,SUMPRODUCT((W$111:W$112)*TRANSPOSE(($D117:$E117))),0) -> 0 | X117: =X$110+IF($C117<>0,SUMPRODUCT((X$111:X$112)*TRANSPOSE(($D117:$E117))),0) -> 0 | Y117: =Y$110+IF($C117<>0,SUMPRODUCT((Y$111:Y$112)*TRANSPOSE(($D117:$E117))),0) -> 0 | Z117: =Z$110+IF($C117<>0,SUMPRODUCT((Z$111:Z$112)*TRANSPOSE(($D117:$E117))),0) -> 0 | AA117: =AA$110+IF($C117<>0,SUMPRODUCT((AA$111:AA$112)*TRANSPOSE(($D117:$E117))),0) -> 0 | AB117: =AB$110+IF($C117<>0,SUMPRODUCT((AB$111:AB$112)*TRANSPOSE(($D117:$E117))),0) -> 0 | AC117: =AC$110+IF($C117<>0,SUMPRODUCT((AC$111:AC$112)*TRANSPOSE(($D117:$E117))),0) -> 0 | AD117: =AD$110+IF($C117<>0,SUMPRODUCT((AD$111:AD$112)*TRANSPOSE(($D117:$E117))),0) -> 0 | AE117: =AE$110+IF($C117<>0,SUMPRODUCT((AE$111:AE$112)*TRANSPOSE(($D117:$E117))),0) -> 0 | AF117: =AF$110+IF($C117<>0,SUMPRODUCT((AF$111:AF$112)*TRANSPOSE(($D117:$E117))),0) -> 0 | AG117: =AG$110+IF($C117<>0,SUMPRODUCT((AG$111:AG$112)*TRANSPOSE(($D117:$E117))),0) -> 0
A118: ="sens"&Assumptions!B115 -> sens5 | C118: =Assumptions!C115 -> Capex 10% higher & Total benefits 10% lower | D118: =Assumptions!G115 -> 0.1 | E118: =Assumptions!H115 -> -0.1 | G118: Option 5sens5 | I118: =I$110+IF($C118<>0,SUMPRODUCT((I$111:I$112)*TRANSPOSE(($D118:$E118))),0) -> 0 | J118: =J$110+IF($C118<>0,SUMPRODUCT((J$111:J$112)*TRANSPOSE(($D118:$E118))),0) -> 0 | K118: =K$110+IF($C118<>0,SUMPRODUCT((K$111:K$112)*TRANSPOSE(($D118:$E118))),0) -> 0 | L118: =L$110+IF($C118<>0,SUMPRODUCT((L$111:L$112)*TRANSPOSE(($D118:$E118))),0) -> 0 | M118: =M$110+IF($C118<>0,SUMPRODUCT((M$111:M$112)*TRANSPOSE(($D118:$E118))),0) -> 0 | N118: =N$110+IF($C118<>0,SUMPRODUCT((N$111:N$112)*TRANSPOSE(($D118:$E118))),0) -> 0 | O118: =O$110+IF($C118<>0,SUMPRODUCT((O$111:O$112)*TRANSPOSE(($D118:$E118))),0) -> 0 | P118: =P$110+IF($C118<>0,SUMPRODUCT((P$111:P$112)*TRANSPOSE(($D118:$E118))),0) -> 0 | Q118: =Q$110+IF($C118<>0,SUMPRODUCT((Q$111:Q$112)*TRANSPOSE(($D118:$E118))),0) -> 0 | R118: =R$110+IF($C118<>0,SUMPRODUCT((R$111:R$112)*TRANSPOSE(($D118:$E118))),0) -> 0 | S118: =S$110+IF($C118<>0,SUMPRODUCT((S$111:S$112)*TRANSPOSE(($D118:$E118))),0) -> 0 | T118: =T$110+IF($C118<>0,SUMPRODUCT((T$111:T$112)*TRANSPOSE(($D118:$E118))),0) -> 0 | U118: =U$110+IF($C118<>0,SUMPRODUCT((U$111:U$112)*TRANSPOSE(($D118:$E118))),0) -> 0 | V118: =V$110+IF($C118<>0,SUMPRODUCT((V$111:V$112)*TRANSPOSE(($D118:$E118))),0) -> 0 | W118: =W$110+IF($C118<>0,SUMPRODUCT((W$111:W$112)*TRANSPOSE(($D118:$E118))),0) -> 0 | X118: =X$110+IF($C118<>0,SUMPRODUCT((X$111:X$112)*TRANSPOSE(($D118:$E118))),0) -> 0 | Y118: =Y$110+IF($C118<>0,SUMPRODUCT((Y$111:Y$112)*TRANSPOSE(($D118:$E118))),0) -> 0 | Z118: =Z$110+IF($C118<>0,SUMPRODUCT((Z$111:Z$112)*TRANSPOSE(($D118:$E118))),0) -> 0 | AA118: =AA$110+IF($C118<>0,SUMPRODUCT((AA$111:AA$112)*TRANSPOSE(($D118:$E118))),0) -> 0 | AB118: =AB$110+IF($C118<>0,SUMPRODUCT((AB$111:AB$112)*TRANSPOSE(($D118:$E118))),0) -> 0 | AC118: =AC$110+IF($C118<>0,SUMPRODUCT((AC$111:AC$112)*TRANSPOSE(($D118:$E118))),0) -> 0 | AD118: =AD$110+IF($C118<>0,SUMPRODUCT((AD$111:AD$112)*TRANSPOSE(($D118:$E118))),0) -> 0 | AE118: =AE$110+IF($C118<>0,SUMPRODUCT((AE$111:AE$112)*TRANSPOSE(($D118:$E118))),0) -> 0 | AF118: =AF$110+IF($C118<>0,SUMPRODUCT((AF$111:AF$112)*TRANSPOSE(($D118:$E118))),0) -> 0 | AG118: =AG$110+IF($C118<>0,SUMPRODUCT((AG$111:AG$112)*TRANSPOSE(($D118:$E118))),0) -> 0
A119: ="sens"&Assumptions!B116 -> sens | C119: =Assumptions!C116 -> 0 | D119: =Assumptions!G116 -> 0 | E119: =Assumptions!H116 -> 0 | G119: Option 5sens | I119: =I$110+IF($C119<>0,SUMPRODUCT((I$111:I$112)*TRANSPOSE(($D119:$E119))),0) -> 0 | J119: =J$110+IF($C119<>0,SUMPRODUCT((J$111:J$112)*TRANSPOSE(($D119:$E119))),0) -> 0 | K119: =K$110+IF($C119<>0,SUMPRODUCT((K$111:K$112)*TRANSPOSE(($D119:$E119))),0) -> 0 | L119: =L$110+IF($C119<>0,SUMPRODUCT((L$111:L$112)*TRANSPOSE(($D119:$E119))),0) -> 0 | M119: =M$110+IF($C119<>0,SUMPRODUCT((M$111:M$112)*TRANSPOSE(($D119:$E119))),0) -> 0 | N119: =N$110+IF($C119<>0,SUMPRODUCT((N$111:N$112)*TRANSPOSE(($D119:$E119))),0) -> 0 | O119: =O$110+IF($C119<>0,SUMPRODUCT((O$111:O$112)*TRANSPOSE(($D119:$E119))),0) -> 0 | P119: =P$110+IF($C119<>0,SUMPRODUCT((P$111:P$112)*TRANSPOSE(($D119:$E119))),0) -> 0 | Q119: =Q$110+IF($C119<>0,SUMPRODUCT((Q$111:Q$112)*TRANSPOSE(($D119:$E119))),0) -> 0 | R119: =R$110+IF($C119<>0,SUMPRODUCT((R$111:R$112)*TRANSPOSE(($D119:$E119))),0) -> 0 | S119: =S$110+IF($C119<>0,SUMPRODUCT((S$111:S$112)*TRANSPOSE(($D119:$E119))),0) -> 0 | T119: =T$110+IF($C119<>0,SUMPRODUCT((T$111:T$112)*TRANSPOSE(($D119:$E119))),0) -> 0 | U119: =U$110+IF($C119<>0,SUMPRODUCT((U$111:U$112)*TRANSPOSE(($D119:$E119))),0) -> 0 | V119: =V$110+IF($C119<>0,SUMPRODUCT((V$111:V$112)*TRANSPOSE(($D119:$E119))),0) -> 0 | W119: =W$110+IF($C119<>0,SUMPRODUCT((W$111:W$112)*TRANSPOSE(($D119:$E119))),0) -> 0 | X119: =X$110+IF($C119<>0,SUMPRODUCT((X$111:X$112)*TRANSPOSE(($D119:$E119))),0) -> 0 | Y119: =Y$110+IF($C119<>0,SUMPRODUCT((Y$111:Y$112)*TRANSPOSE(($D119:$E119))),0) -> 0 | Z119: =Z$110+IF($C119<>0,SUMPRODUCT((Z$111:Z$112)*TRANSPOSE(($D119:$E119))),0) -> 0 | AA119: =AA$110+IF($C119<>0,SUMPRODUCT((AA$111:AA$112)*TRANSPOSE(($D119:$E119))),0) -> 0 | AB119: =AB$110+IF($C119<>0,SUMPRODUCT((AB$111:AB$112)*TRANSPOSE(($D119:$E119))),0) -> 0 | AC119: =AC$110+IF($C119<>0,SUMPRODUCT((AC$111:AC$112)*TRANSPOSE(($D119:$E119))),0) -> 0 | AD119: =AD$110+IF($C119<>0,SUMPRODUCT((AD$111:AD$112)*TRANSPOSE(($D119:$E119))),0) -> 0 | AE119: =AE$110+IF($C119<>0,SUMPRODUCT((AE$111:AE$112)*TRANSPOSE(($D119:$E119))),0) -> 0 | AF119: =AF$110+IF($C119<>0,SUMPRODUCT((AF$111:AF$112)*TRANSPOSE(($D119:$E119))),0) -> 0 | AG119: =AG$110+IF($C119<>0,SUMPRODUCT((AG$111:AG$112)*TRANSPOSE(($D119:$E119))),0) -> 0
A120: ="sens"&Assumptions!B117 -> sens | C120: =Assumptions!C117 -> 0 | D120: =Assumptions!G117 -> 0 | E120: =Assumptions!H117 -> 0 | G120: Option 5sens | I120: =I$110+IF($C120<>0,SUMPRODUCT((I$111:I$112)*TRANSPOSE(($D120:$E120))),0) -> 0 | J120: =J$110+IF($C120<>0,SUMPRODUCT((J$111:J$112)*TRANSPOSE(($D120:$E120))),0) -> 0 | K120: =K$110+IF($C120<>0,SUMPRODUCT((K$111:K$112)*TRANSPOSE(($D120:$E120))),0) -> 0 | L120: =L$110+IF($C120<>0,SUMPRODUCT((L$111:L$112)*TRANSPOSE(($D120:$E120))),0) -> 0 | M120: =M$110+IF($C120<>0,SUMPRODUCT((M$111:M$112)*TRANSPOSE(($D120:$E120))),0) -> 0 | N120: =N$110+IF($C120<>0,SUMPRODUCT((N$111:N$112)*TRANSPOSE(($D120:$E120))),0) -> 0 | O120: =O$110+IF($C120<>0,SUMPRODUCT((O$111:O$112)*TRANSPOSE(($D120:$E120))),0) -> 0 | P120: =P$110+IF($C120<>0,SUMPRODUCT((P$111:P$112)*TRANSPOSE(($D120:$E120))),0) -> 0 | Q120: =Q$110+IF($C120<>0,SUMPRODUCT((Q$111:Q$112)*TRANSPOSE(($D120:$E120))),0) -> 0 | R120: =R$110+IF($C120<>0,SUMPRODUCT((R$111:R$112)*TRANSPOSE(($D120:$E120))),0) -> 0 | S120: =S$110+IF($C120<>0,SUMPRODUCT((S$111:S$112)*TRANSPOSE(($D120:$E120))),0) -> 0 | T120: =T$110+IF($C120<>0,SUMPRODUCT((T$111:T$112)*TRANSPOSE(($D120:$E120))),0) -> 0 | U120: =U$110+IF($C120<>0,SUMPRODUCT((U$111:U$112)*TRANSPOSE(($D120:$E120))),0) -> 0 | V120: =V$110+IF($C120<>0,SUMPRODUCT((V$111:V$112)*TRANSPOSE(($D120:$E120))),0) -> 0 | W120: =W$110+IF($C120<>0,SUMPRODUCT((W$111:W$112)*TRANSPOSE(($D120:$E120))),0) -> 0 | X120: =X$110+IF($C120<>0,SUMPRODUCT((X$111:X$112)*TRANSPOSE(($D120:$E120))),0) -> 0 | Y120: =Y$110+IF($C120<>0,SUMPRODUCT((Y$111:Y$112)*TRANSPOSE(($D120:$E120))),0) -> 0 | Z120: =Z$110+IF($C120<>0,SUMPRODUCT((Z$111:Z$112)*TRANSPOSE(($D120:$E120))),0) -> 0 | AA120: =AA$110+IF($C120<>0,SUMPRODUCT((AA$111:AA$112)*TRANSPOSE(($D120:$E120))),0) -> 0 | AB120: =AB$110+IF($C120<>0,SUMPRODUCT((AB$111:AB$112)*TRANSPOSE(($D120:$E120))),0) -> 0 | AC120: =AC$110+IF($C120<>0,SUMPRODUCT((AC$111:AC$112)*TRANSPOSE(($D120:$E120))),0) -> 0 | AD120: =AD$110+IF($C120<>0,SUMPRODUCT((AD$111:AD$112)*TRANSPOSE(($D120:$E120))),0) -> 0 | AE120: =AE$110+IF($C120<>0,SUMPRODUCT((AE$111:AE$112)*TRANSPOSE(($D120:$E120))),0) -> 0 | AF120: =AF$110+IF($C120<>0,SUMPRODUCT((AF$111:AF$112)*TRANSPOSE(($D120:$E120))),0) -> 0 | AG120: =AG$110+IF($C120<>0,SUMPRODUCT((AG$111:AG$112)*TRANSPOSE(($D120:$E120))),0) -> 0
A121: ="sens"&Assumptions!B118 -> sens | C121: =Assumptions!C118 -> 0 | D121: =Assumptions!G118 -> 0 | E121: =Assumptions!H118 -> 0 | G121: Option 5sens | I121: =I$110+IF($C121<>0,SUMPRODUCT((I$111:I$112)*TRANSPOSE(($D121:$E121))),0) -> 0 | J121: =J$110+IF($C121<>0,SUMPRODUCT((J$111:J$112)*TRANSPOSE(($D121:$E121))),0) -> 0 | K121: =K$110+IF($C121<>0,SUMPRODUCT((K$111:K$112)*TRANSPOSE(($D121:$E121))),0) -> 0 | L121: =L$110+IF($C121<>0,SUMPRODUCT((L$111:L$112)*TRANSPOSE(($D121:$E121))),0) -> 0 | M121: =M$110+IF($C121<>0,SUMPRODUCT((M$111:M$112)*TRANSPOSE(($D121:$E121))),0) -> 0 | N121: =N$110+IF($C121<>0,SUMPRODUCT((N$111:N$112)*TRANSPOSE(($D121:$E121))),0) -> 0 | O121: =O$110+IF($C121<>0,SUMPRODUCT((O$111:O$112)*TRANSPOSE(($D121:$E121))),0) -> 0 | P121: =P$110+IF($C121<>0,SUMPRODUCT((P$111:P$112)*TRANSPOSE(($D121:$E121))),0) -> 0 | Q121: =Q$110+IF($C121<>0,SUMPRODUCT((Q$111:Q$112)*TRANSPOSE(($D121:$E121))),0) -> 0 | R121: =R$110+IF($C121<>0,SUMPRODUCT((R$111:R$112)*TRANSPOSE(($D121:$E121))),0) -> 0 | S121: =S$110+IF($C121<>0,SUMPRODUCT((S$111:S$112)*TRANSPOSE(($D121:$E121))),0) -> 0 | T121: =T$110+IF($C121<>0,SUMPRODUCT((T$111:T$112)*TRANSPOSE(($D121:$E121))),0) -> 0 | U121: =U$110+IF($C121<>0,SUMPRODUCT((U$111:U$112)*TRANSPOSE(($D121:$E121))),0) -> 0 | V121: =V$110+IF($C121<>0,SUMPRODUCT((V$111:V$112)*TRANSPOSE(($D121:$E121))),0) -> 0 | W121: =W$110+IF($C121<>0,SUMPRODUCT((W$111:W$112)*TRANSPOSE(($D121:$E121))),0) -> 0 | X121: =X$110+IF($C121<>0,SUMPRODUCT((X$111:X$112)*TRANSPOSE(($D121:$E121))),0) -> 0 | Y121: =Y$110+IF($C121<>0,SUMPRODUCT((Y$111:Y$112)*TRANSPOSE(($D121:$E121))),0) -> 0 | Z121: =Z$110+IF($C121<>0,SUMPRODUCT((Z$111:Z$112)*TRANSPOSE(($D121:$E121))),0) -> 0 | AA121: =AA$110+IF($C121<>0,SUMPRODUCT((AA$111:AA$112)*TRANSPOSE(($D121:$E121))),0) -> 0 | AB121: =AB$110+IF($C121<>0,SUMPRODUCT((AB$111:AB$112)*TRANSPOSE(($D121:$E121))),0) -> 0 | AC121: =AC$110+IF($C121<>0,SUMPRODUCT((AC$111:AC$112)*TRANSPOSE(($D121:$E121))),0) -> 0 | AD121: =AD$110+IF($C121<>0,SUMPRODUCT((AD$111:AD$112)*TRANSPOSE(($D121:$E121))),0) -> 0 | AE121: =AE$110+IF($C121<>0,SUMPRODUCT((AE$111:AE$112)*TRANSPOSE(($D121:$E121))),0) -> 0 | AF121: =AF$110+IF($C121<>0,SUMPRODUCT((AF$111:AF$112)*TRANSPOSE(($D121:$E121))),0) -> 0 | AG121: =AG$110+IF($C121<>0,SUMPRODUCT((AG$111:AG$112)*TRANSPOSE(($D121:$E121))),0) -> 0

Sheet Consol
A1: =bus -> Powercor
A2: =proj -> Drysdale feeder: DDL023
A3: CONSOLIDATED
A5: Discount factor | H5: =IF(H9=start,1/((1+real_disc)^(1/2)),G5/(1+real_disc)) -> 0 | I5: 0.9829463744 | J5: 0.9497066419 | K5: 0.9175909584 | L5: 0.8865613124 | M5: 0.8565809782 | N5: 0.8276144717 | O5: 0.7996275089 | P5: 0.7725869651 | Q5: 0.7464608358 | R5: 0.7212181989 | S5: 0.6968291777 | T5: 0.6732649059 | U5: 0.6504974937 | V5: 0.6284999939 | W5: 0.6072463709 | X5: 0.5867114695 | Y5: 0.566870985 | Z5: 0.5477014348 | AA5: 0.5291801302 | AB5: 0.51128515 | AC5: 0.493995314 | AD5: 0.4772901584 | AE5: 0.4611499115 | AF5: 0.4455554701 | AG5: 0.4304883769
A6: ='Option1 (base case)'!A6 -> Count | H6: ='Option1 (base case)'!H6 -> 0 | I6: ='Option1 (base case)'!I6 -> 1 | J6: ='Option1 (base case)'!J6 -> 2 | K6: ='Option1 (base case)'!K6 -> 3 | L6: ='Option1 (base case)'!L6 -> 4 | M6: ='Option1 (base case)'!M6 -> 5 | N6: ='Option1 (base case)'!N6 -> 6 | O6: ='Option1 (base case)'!O6 -> 7 | P6: ='Option1 (base case)'!P6 -> 8 | Q6: ='Option1 (base case)'!Q6 -> 9 | R6: ='Option1 (base case)'!R6 -> 10 | S6: ='Option1 (base case)'!S6 -> 11 | T6: ='Option1 (base case)'!T6 -> 12 | U6: ='Option1 (base case)'!U6 -> 13 | V6: ='Option1 (base case)'!V6 -> 14 | W6: ='Option1 (base case)'!W6 -> 15 | X6: ='Option1 (base case)'!X6 -> 16 | Y6: ='Option1 (base case)'!Y6 -> 17 | Z6: ='Option1 (base case)'!Z6 -> 18 | AA6: ='Option1 (base case)'!AA6 -> 19 | AB6: ='Option1 (base case)'!AB6 -> 20 | AC6: ='Option1 (base case)'!AC6 -> 21 | AD6: ='Option1 (base case)'!AD6 -> 22 | AE6: ='Option1 (base case)'!AE6 -> 23 | AF6: ='Option1 (base case)'!AF6 -> 24 | AG6: ='Option1 (base case)'!AG6 -> 25
A7: Analysis period | H7: =H$6<(first_year+years) -> TRUE | I7: TRUE | J7: TRUE | K7: TRUE | L7: TRUE | M7: TRUE | N7: TRUE | O7: TRUE | P7: TRUE | Q7: TRUE | R7: TRUE | S7: TRUE | T7: TRUE | U7: TRUE | V7: TRUE | W7: TRUE | X7: TRUE | Y7: TRUE | Z7: TRUE | AA7: TRUE | AB7: TRUE | AC7: TRUE | AD7: FALSE | AE7: FALSE | AF7: FALSE | AG7: FALSE
H9: ='Option1 (base case)'!H9 -> 2026-06-30 | I9: ='Option1 (base case)'!I9 -> 2026-27 | J9: ='Option1 (base case)'!J9 -> 2027-28 | K9: ='Option1 (base case)'!K9 -> 2028-29 | L9: ='Option1 (base case)'!L9 -> 2029-30 | M9: ='Option1 (base case)'!M9 -> 2030-31 | N9: ='Option1 (base case)'!N9 -> 2031-32 | O9: ='Option1 (base case)'!O9 -> 2032-33 | P9: ='Option1 (base case)'!P9 -> 2033-34 | Q9: ='Option1 (base case)'!Q9 -> 2034-35 | R9: ='Option1 (base case)'!R9 -> 2035-36 | S9: ='Option1 (base case)'!S9 -> 2036-37 | T9: ='Option1 (base case)'!T9 -> 2037-38 | U9: ='Option1 (base case)'!U9 -> 2038-39 | V9: ='Option1 (base case)'!V9 -> 2039-40 | W9: ='Option1 (base case)'!W9 -> 2040-41 | X9: ='Option1 (base case)'!X9 -> 2041-42 | Y9: ='Option1 (base case)'!Y9 -> 2042-43 | Z9: ='Option1 (base case)'!Z9 -> 2043-44 | AA9: ='Option1 (base case)'!AA9 -> 2044-45 | AB9: ='Option1 (base case)'!AB9 -> 2045-46 | AC9: ='Option1 (base case)'!AC9 -> 2046-47 | AD9: ='Option1 (base case)'!AD9 -> 2047-48 | AE9: ='Option1 (base case)'!AE9 -> 2048-49 | AF9: ='Option1 (base case)'!AF9 -> 2049-50 | AG9: ='Option1 (base case)'!AG9 -> 2050-51
A11: COSTS | F11: PV | H11: =IF(H6=$C$4,UPPER($A$4),IF(H6=end, "END", "")) -> 
A14: =A15 -> Option 1 (base case) | C14: Energy at risk value | D14: =A14&C14 -> Option 1 (base case)Energy at risk value | F14: =SUMPRODUCT($H14:$AG14, $H$5:$AG$5) -> 6939935.427 | G14: =output_dollars -> 2026-06-30 | I14: ='Option1 (base case)'!I$31*conv_2026 -> 22486.5491 | J14: ='Option1 (base case)'!J$31*conv_2026 -> 43552.76477 | K14: ='Option1 (base case)'!K$31*conv_2026 -> 78442.31366 | L14: ='Option1 (base case)'!L$31*conv_2026 -> 115999.3294 | M14: ='Option1 (base case)'!M$31*conv_2026 -> 167417.2781 | N14: ='Option1 (base case)'!N$31*conv_2026 -> 254962.8379 | O14: ='Option1 (base case)'!O$31*conv_2026 -> 369123.9685 | P14: ='Option1 (base case)'!P$31*conv_2026 -> 482602.864 | Q14: ='Option1 (base case)'!Q$31*conv_2026 -> 581039.2065 | R14: ='Option1 (base case)'!R$31*conv_2026 -> 581039.2065 | S14: ='Option1 (base case)'!S$31*conv_2026 -> 581039.2065 | T14: ='Option1 (base case)'!T$31*conv_2026 -> 581039.2065 | U14: ='Option1 (base case)'!U$31*conv_2026 -> 581039.2065 | V14: ='Option1 (base case)'!V$31*conv_2026 -> 581039.2065 | W14: ='Option1 (base case)'!W$31*conv_2026 -> 581039.2065 | X14: ='Option1 (base case)'!X$31*conv_2026 -> 581039.2065 | Y14: ='Option1 (base case)'!Y$31*conv_2026 -> 581039.2065 | Z14: ='Option1 (base case)'!Z$31*conv_2026 -> 581039.2065 | AA14: ='Option1 (base case)'!AA$31*conv_2026 -> 581039.2065 | AB14: ='Option1 (base case)'!AB$31*conv_2026 -> 581039.2065 | AC14: ='Option1 (base case)'!AC$31*conv_2026 -> 581039.2065 | AD14: ='Option1 (base case)'!AD$31*conv_2026 -> 581039.2065 | AE14: ='Option1 (base case)'!AE$31*conv_2026 -> 581039.2065 | AF14: ='Option1 (base case)'!AF$31*conv_2026 -> 581039.2065 | AG14: ='Option1 (base case)'!AG$31*conv_2026 -> 581039.2065
A15: =Data!B9 -> Option 1 (base case) | C15: ='Option1 (base case)'!C$69 -> Capital expenditure | D15: Option 1 (base case)Capital expenditure | F15: =SUMPRODUCT($H15:$AG15, $H$5:$AG$5) -> 0 | G15: =output_dollars -> 2026-06-30 | I15: =SUM('Option1 (base case)'!I$70:I$72)*conv_2026 -> 0 | J15: =SUM('Option1 (base case)'!J$70:J$72) -> 0 | K15: =SUM('Option1 (base case)'!K$70:K$72) -> 0 | L15: =SUM('Option1 (base case)'!L$70:L$72) -> 0 | M15: =SUM('Option1 (base case)'!M$70:M$72) -> 0 | N15: =SUM('Option1 (base case)'!N$70:N$72) -> 0 | O15: =SUM('Option1 (base case)'!O$70:O$72) -> 0 | P15: =SUM('Option1 (base case)'!P$70:P$72) -> 0 | Q15: =SUM('Option1 (base case)'!Q$70:Q$72) -> 0 | R15: =SUM('Option1 (base case)'!R$70:R$72) -> 0 | S15: =SUM('Option1 (base case)'!S$70:S$72) -> 0 | T15: =SUM('Option1 (base case)'!T$70:T$72) -> 0 | U15: =SUM('Option1 (base case)'!U$70:U$72) -> 0 | V15: =SUM('Option1 (base case)'!V$70:V$72) -> 0 | W15: =SUM('Option1 (base case)'!W$70:W$72) -> 0 | X15: =SUM('Option1 (base case)'!X$70:X$72) -> 0 | Y15: =SUM('Option1 (base case)'!Y$70:Y$72) -> 0 | Z15: =SUM('Option1 (base case)'!Z$70:Z$72) -> 0 | AA15: =SUM('Option1 (base case)'!AA$70:AA$72) -> 0 | AB15: =SUM('Option1 (base case)'!AB$70:AB$72) -> 0 | AC15: =SUM('Option1 (base case)'!AC$70:AC$72) -> 0 | AD15: =SUM('Option1 (base case)'!AD$70:AD$72) -> 0 | AE15: =SUM('Option1 (base case)'!AE$70:AE$72) -> 0 | AF15: =SUM('Option1 (base case)'!AF$70:AF$72) -> 0 | AG15: =SUM('Option1 (base case)'!AG$70:AG$72) -> 0
A16: =A15 -> Option 1 (base case) | C16: ='Option1 (base case)'!C$39 -> Total risk cost | D16: Option 1 (base case)Total risk cost | F16: =SUMPRODUCT(($H16:$AG16)*($H$5:$AG$5)*($H$7:$AG$7)) -> 5885649.132 | G16: =output_dollars -> 2026-06-30 | I16: ='Option1 (base case)'!I$39*conv_2026 -> 22486.5491 | J16: ='Option1 (base case)'!J$39*conv_2026 -> 43552.76477 | K16: ='Option1 (base case)'!K$39*conv_2026 -> 78442.31366 | L16: ='Option1 (base case)'!L$39*conv_2026 -> 115999.3294 | M16: ='Option1 (base case)'!M$39*conv_2026 -> 167417.2781 | N16: ='Option1 (base case)'!N$39*conv_2026 -> 254962.8379 | O16: ='Option1 (base case)'!O$39*conv_2026 -> 369123.9685 | P16: ='Option1 (base case)'!P$39*conv_2026 -> 482602.864 | Q16: ='Option1 (base case)'!Q$39*conv_2026 -> 581039.2065 | R16: ='Option1 (base case)'!R$39*conv_2026 -> 581039.2065 | S16: ='Option1 (base case)'!S$39*conv_2026 -> 581039.2065 | T16: ='Option1 (base case)'!T$39*conv_2026 -> 581039.2065 | U16: ='Option1 (base case)'!U$39*conv_2026 -> 581039.2065 | V16: ='Option1 (base case)'!V$39*conv_2026 -> 581039.2065 | W16: ='Option1 (base case)'!W$39*conv_2026 -> 581039.2065 | X16: ='Option1 (base case)'!X$39*conv_2026 -> 581039.2065 | Y16: ='Option1 (base case)'!Y$39*conv_2026 -> 581039.2065 | Z16: ='Option1 (base case)'!Z$39*conv_2026 -> 581039.2065 | AA16: ='Option1 (base case)'!AA$39*conv_2026 -> 581039.2065 | AB16: ='Option1 (base case)'!AB$39*conv_2026 -> 581039.2065 | AC16: ='Option1 (base case)'!AC$39*conv_2026 -> 581039.2065 | AD16: ='Option1 (base case)'!AD$39*conv_2026 -> 581039.2065 | AE16: ='Option1 (base case)'!AE$39*conv_2026 -> 581039.2065 | AF16: ='Option1 (base case)'!AF$39*conv_2026 -> 581039.2065 | AG16: ='Option1 (base case)'!AG$39*conv_2026 -> 581039.2065
A17: Option 1 (base case) | D17: Option 1 (base case)
A18: Option 1 (base case) | C18: ='Option1 (base case)'!C$85 -> Annualised capex | D18: Option 1 (base case)Annualised capex | F18: =SUMPRODUCT($H18:$AG18, $H$5:$AG$5) -> 0 | G18: =output_dollars -> 2026-06-30 | I18: ='Option1 (base case)'!I$85*conv_2026 -> 0 | J18: ='Option1 (base case)'!J$85*conv_2026 -> 0 | K18: ='Option1 (base case)'!K$85*conv_2026 -> 0 | L18: ='Option1 (base case)'!L$85*conv_2026 -> 0 | M18: ='Option1 (base case)'!M$85*conv_2026 -> 0 | N18: ='Option1 (base case)'!N$85*conv_2026 -> 0 | O18: ='Option1 (base case)'!O$85*conv_2026 -> 0 | P18: ='Option1 (base case)'!P$85*conv_2026 -> 0 | Q18: ='Option1 (base case)'!Q$85*conv_2026 -> 0 | R18: ='Option1 (base case)'!R$85*conv_2026 -> 0 | S18: ='Option1 (base case)'!S$85*conv_2026 -> 0 | T18: ='Option1 (base case)'!T$85*conv_2026 -> 0 | U18: ='Option1 (base case)'!U$85*conv_2026 -> 0 | V18: ='Option1 (base case)'!V$85*conv_2026 -> 0 | W18: ='Option1 (base case)'!W$85*conv_2026 -> 0 | X18: ='Option1 (base case)'!X$85*conv_2026 -> 0 | Y18: ='Option1 (base case)'!Y$85*conv_2026 -> 0 | Z18: ='Option1 (base case)'!Z$85*conv_2026 -> 0 | AA18: ='Option1 (base case)'!AA$85*conv_2026 -> 0 | AB18: ='Option1 (base case)'!AB$85*conv_2026 -> 0 | AC18: ='Option1 (base case)'!AC$85*conv_2026 -> 0 | AD18: ='Option1 (base case)'!AD$85*conv_2026 -> 0 | AE18: ='Option1 (base case)'!AE$85*conv_2026 -> 0 | AF18: ='Option1 (base case)'!AF$85*conv_2026 -> 0 | AG18: ='Option1 (base case)'!AG$85*conv_2026 -> 0
A19: Option 1 (base case) | C19: ='Option1 (base case)'!C$86 -> Operating expenditure | D19: Option 1 (base case)Operating expenditure | F19: =SUMPRODUCT($H19:$AG19, $H$5:$AG$5) -> 0 | G19: 2026-06-30 | I19: ='Option1 (base case)'!I$86*conv_2026 -> 0 | J19: ='Option1 (base case)'!J$86*conv_2026 -> 0 | K19: ='Option1 (base case)'!K$86*conv_2026 -> 0 | L19: ='Option1 (base case)'!L$86*conv_2026 -> 0 | M19: ='Option1 (base case)'!M$86*conv_2026 -> 0 | N19: ='Option1 (base case)'!N$86*conv_2026 -> 0 | O19: ='Option1 (base case)'!O$86*conv_2026 -> 0 | P19: ='Option1 (base case)'!P$86*conv_2026 -> 0 | Q19: ='Option1 (base case)'!Q$86*conv_2026 -> 0 | R19: ='Option1 (base case)'!R$86*conv_2026 -> 0 | S19: ='Option1 (base case)'!S$86*conv_2026 -> 0 | T19: ='Option1 (base case)'!T$86*conv_2026 -> 0 | U19: ='Option1 (base case)'!U$86*conv_2026 -> 0 | V19: ='Option1 (base case)'!V$86*conv_2026 -> 0 | W19: ='Option1 (base case)'!W$86*conv_2026 -> 0 | X19: ='Option1 (base case)'!X$86*conv_2026 -> 0 | Y19: ='Option1 (base case)'!Y$86*conv_2026 -> 0 | Z19: ='Option1 (base case)'!Z$86*conv_2026 -> 0 | AA19: ='Option1 (base case)'!AA$86*conv_2026 -> 0 | AB19: ='Option1 (base case)'!AB$86*conv_2026 -> 0 | AC19: ='Option1 (base case)'!AC$86*conv_2026 -> 0 | AD19: ='Option1 (base case)'!AD$86*conv_2026 -> 0 | AE19: ='Option1 (base case)'!AE$86*conv_2026 -> 0 | AF19: ='Option1 (base case)'!AF$86*conv_2026 -> 0 | AG19: ='Option1 (base case)'!AG$86*conv_2026 -> 0
A20: Option 1 (base case) | C20: ='Option1 (base case)'!C$87 -> Risk mitigated | D20: Option 1 (base case)Risk mitigated | F20: =SUMPRODUCT($H20:$AG20, $H$5:$AG$5) -> 0 | G20: 2026-06-30 | I20: ='Option1 (base case)'!I$87*conv_2026 -> 0 | J20: ='Option1 (base case)'!J$87*conv_2026 -> 0 | K20: ='Option1 (base case)'!K$87*conv_2026 -> 0 | L20: ='Option1 (base case)'!L$87*conv_2026 -> 0 | M20: ='Option1 (base case)'!M$87*conv_2026 -> 0 | N20: ='Option1 (base case)'!N$87*conv_2026 -> 0 | O20: ='Option1 (base case)'!O$87*conv_2026 -> 0 | P20: ='Option1 (base case)'!P$87*conv_2026 -> 0 | Q20: ='Option1 (base case)'!Q$87*conv_2026 -> 0 | R20: ='Option1 (base case)'!R$87*conv_2026 -> 0 | S20: ='Option1 (base case)'!S$87*conv_2026 -> 0 | T20: ='Option1 (base case)'!T$87*conv_2026 -> 0 | U20: ='Option1 (base case)'!U$87*conv_2026 -> 0 | V20: ='Option1 (base case)'!V$87*conv_2026 -> 0 | W20: ='Option1 (base case)'!W$87*conv_2026 -> 0 | X20: ='Option1 (base case)'!X$87*conv_2026 -> 0 | Y20: ='Option1 (base case)'!Y$87*conv_2026 -> 0 | Z20: ='Option1 (base case)'!Z$87*conv_2026 -> 0 | AA20: ='Option1 (base case)'!AA$87*conv_2026 -> 0 | AB20: ='Option1 (base case)'!AB$87*conv_2026 -> 0 | AC20: ='Option1 (base case)'!AC$87*conv_2026 -> 0 | AD20: ='Option1 (base case)'!AD$87*conv_2026 -> 0 | AE20: ='Option1 (base case)'!AE$87*conv_2026 -> 0 | AF20: ='Option1 (base case)'!AF$87*conv_2026 -> 0 | AG20: ='Option1 (base case)'!AG$87*conv_2026 -> 0
A21: Option 1 (base case) | C21: ='Option1 (base case)'!C$88 -> Other benefits value | D21: Option 1 (base case)Other benefits value | F21: =SUMPRODUCT($H21:$AG21, $H$5:$AG$5) -> 0 | G21: 2026-06-30 | I21: ='Option1 (base case)'!I$88*conv_2026 -> 0 | J21: ='Option1 (base case)'!J$88*conv_2026 -> 0 | K21: ='Option1 (base case)'!K$88*conv_2026 -> 0 | L21: ='Option1 (base case)'!L$88*conv_2026 -> 0 | M21: ='Option1 (base case)'!M$88*conv_2026 -> 0 | N21: ='Option1 (base case)'!N$88*conv_2026 -> 0 | O21: ='Option1 (base case)'!O$88*conv_2026 -> 0 | P21: ='Option1 (base case)'!P$88*conv_2026 -> 0 | Q21: ='Option1 (base case)'!Q$88*conv_2026 -> 0 | R21: ='Option1 (base case)'!R$88*conv_2026 -> 0 | S21: ='Option1 (base case)'!S$88*conv_2026 -> 0 | T21: ='Option1 (base case)'!T$88*conv_2026 -> 0 | U21: ='Option1 (base case)'!U$88*conv_2026 -> 0 | V21: ='Option1 (base case)'!V$88*conv_2026 -> 0 | W21: ='Option1 (base case)'!W$88*conv_2026 -> 0 | X21: ='Option1 (base case)'!X$88*conv_2026 -> 0 | Y21: ='Option1 (base case)'!Y$88*conv_2026 -> 0 | Z21: ='Option1 (base case)'!Z$88*conv_2026 -> 0 | AA21: ='Option1 (base case)'!AA$88*conv_2026 -> 0 | AB21: ='Option1 (base case)'!AB$88*conv_2026 -> 0 | AC21: ='Option1 (base case)'!AC$88*conv_2026 -> 0 | AD21: ='Option1 (base case)'!AD$88*conv_2026 -> 0 | AE21: ='Option1 (base case)'!AE$88*conv_2026 -> 0 | AF21: ='Option1 (base case)'!AF$88*conv_2026 -> 0 | AG21: ='Option1 (base case)'!AG$88*conv_2026 -> 0
A22: Option 1 (base case) | C22: ='Option1 (base case)'!C$90 -> Net benefits | D22: Option 1 (base case)Net benefits | G22: 2026-06-30 | I22: =SUM(I18:I21) -> 0 | J22: 0 | K22: 0 | L22: 0 | M22: 0 | N22: 0 | O22: 0 | P22: 0 | Q22: 0 | R22: 0 | S22: 0 | T22: 0 | U22: 0 | V22: 0 | W22: 0 | X22: 0 | Y22: 0 | Z22: 0 | AA22: 0 | AB22: 0 | AC22: 0 | AD22: 0 | AE22: 0 | AF22: 0 | AG22: 0
A23: Option 1 (base case) | C23: NPV | D23: Option 1 (base case)NPV | F23: =SUMPRODUCT(($H22:$AG22)*($H$5:$AG$5)*($H$7:$AG$7)) -> 0 | G23: 2026-06-30
A24: Option 1 (base case) | C24: PV of costs | D24: Option 1 (base case)PV of costs | F24: =SUM(F18:F19) -> 0 | G24: 2026-06-30
A25: Option 1 (base case) | C25: PV of benefits | D25: Option 1 (base case)PV of benefits | F25: =SUM(F20:F21) -> 0 | G25: 2026-06-30
D26: =A26&C26 -> 
A28: =A29 -> Option 2 | C28: Energy at risk value | D28: Option 2Energy at risk value | F28: =SUMPRODUCT($H28:$AG28, $H$5:$AG$5) -> 63465.42188 | G28: =output_dollars -> 2026-06-30 | I28: =Option2!I$32*conv_2026 -> 22486.5491 | J28: =Option2!J$32*conv_2026 -> 43552.76477 | K28: =Option2!K$32*conv_2026 -> 0 | L28: =Option2!L$32*conv_2026 -> 0 | M28: =Option2!M$32*conv_2026 -> 0 | N28: =Option2!N$32*conv_2026 -> 0 | O28: =Option2!O$32*conv_2026 -> 0 | P28: =Option2!P$32*conv_2026 -> 0 | Q28: =Option2!Q$32*conv_2026 -> 0 | R28: =Option2!R$32*conv_2026 -> 0 | S28: =Option2!S$32*conv_2026 -> 0 | T28: =Option2!T$32*conv_2026 -> 0 | U28: =Option2!U$32*conv_2026 -> 0 | V28: =Option2!V$32*conv_2026 -> 0 | W28: =Option2!W$32*conv_2026 -> 0 | X28: =Option2!X$32*conv_2026 -> 0 | Y28: =Option2!Y$32*conv_2026 -> 0 | Z28: =Option2!Z$32*conv_2026 -> 0 | AA28: =Option2!AA$32*conv_2026 -> 0 | AB28: =Option2!AB$32*conv_2026 -> 0 | AC28: =Option2!AC$32*conv_2026 -> 0 | AD28: =Option2!AD$32*conv_2026 -> 0 | AE28: =Option2!AE$32*conv_2026 -> 0 | AF28: =Option2!AF$32*conv_2026 -> 0 | AG28: =Option2!AG$32*conv_2026 -> 0
A29: =Data!B10 -> Option 2 | C29: =Option2!C$70 -> Capital expenditure | D29: Option 2Capital expenditure | F29: =SUMPRODUCT(($H29:$AG29)*($H$5:$AG$5)*($H$7:$AG$7)) -> -1544204.901 | G29: =output_dollars -> 2026-06-30 | I29: =SUM(Option2!I$71:I$73)*conv_2026*I$7 -> 0 | J29: =SUM(Option2!J$71:J$73)*conv_2026*J$7 -> -1625980.943 | K29: =SUM(Option2!K$71:K$73)*conv_2026*K$7 -> 0 | L29: =SUM(Option2!L$71:L$73)*conv_2026*L$7 -> 0 | M29: =SUM(Option2!M$71:M$73)*conv_2026*M$7 -> 0 | N29: =SUM(Option2!N$71:N$73)*conv_2026*N$7 -> 0 | O29: =SUM(Option2!O$71:O$73)*conv_2026*O$7 -> 0 | P29: =SUM(Option2!P$71:P$73)*conv_2026*P$7 -> 0 | Q29: =SUM(Option2!Q$71:Q$73)*conv_2026*Q$7 -> 0 | R29: =SUM(Option2!R$71:R$73)*conv_2026*R$7 -> 0 | S29: =SUM(Option2!S$71:S$73)*conv_2026*S$7 -> 0 | T29: =SUM(Option2!T$71:T$73)*conv_2026*T$7 -> 0 | U29: =SUM(Option2!U$71:U$73)*conv_2026*U$7 -> 0 | V29: =SUM(Option2!V$71:V$73)*conv_2026*V$7 -> 0 | W29: =SUM(Option2!W$71:W$73)*conv_2026*W$7 -> 0 | X29: =SUM(Option2!X$71:X$73)*conv_2026*X$7 -> 0 | Y29: =SUM(Option2!Y$71:Y$73)*conv_2026*Y$7 -> 0 | Z29: =SUM(Option2!Z$71:Z$73)*conv_2026*Z$7 -> 0 | AA29: =SUM(Option2!AA$71:AA$73)*conv_2026*AA$7 -> 0 | AB29: =SUM(Option2!AB$71:AB$73)*conv_2026*AB$7 -> 0 | AC29: =SUM(Option2!AC$71:AC$73)*conv_2026*AC$7 -> 0 | AD29: =SUM(Option2!AD$71:AD$73)*conv_2026*AD$7 -> 0 | AE29: =SUM(Option2!AE$71:AE$73)*conv_2026*AE$7 -> 0 | AF29: =SUM(Option2!AF$71:AF$73)*conv_2026*AF$7 -> 0 | AG29: =SUM(Option2!AG$71:AG$73)*conv_2026*AG$7 -> 0
A30: =A29 -> Option 2 | C30: ='Option1 (base case)'!C$39 -> Total risk cost | D30: Option 2Total risk cost | F30: =SUMPRODUCT(($H30:$AG30)*($H$5:$AG$5)*($H$7:$AG$7)) -> 63465.42188 | G30: =output_dollars -> 2026-06-30 | I30: =Option2!I$40*conv_2026*I$7 -> 22486.5491 | J30: =Option2!J$40*conv_2026*J$7 -> 43552.76477 | K30: =Option2!K$40*conv_2026*K$7 -> 0 | L30: =Option2!L$40*conv_2026*L$7 -> 0 | M30: =Option2!M$40*conv_2026*M$7 -> 0 | N30: =Option2!N$40*conv_2026*N$7 -> 0 | O30: =Option2!O$40*conv_2026*O$7 -> 0 | P30: =Option2!P$40*conv_2026*P$7 -> 0 | Q30: =Option2!Q$40*conv_2026*Q$7 -> 0 | R30: =Option2!R$40*conv_2026*R$7 -> 0 | S30: =Option2!S$40*conv_2026*S$7 -> 0 | T30: =Option2!T$40*conv_2026*T$7 -> 0 | U30: =Option2!U$40*conv_2026*U$7 -> 0 | V30: =Option2!V$40*conv_2026*V$7 -> 0 | W30: =Option2!W$40*conv_2026*W$7 -> 0 | X30: =Option2!X$40*conv_2026*X$7 -> 0 | Y30: =Option2!Y$40*conv_2026*Y$7 -> 0 | Z30: =Option2!Z$40*conv_2026*Z$7 -> 0 | AA30: =Option2!AA$40*conv_2026*AA$7 -> 0 | AB30: =Option2!AB$40*conv_2026*AB$7 -> 0 | AC30: =Option2!AC$40*conv_2026*AC$7 -> 0 | AD30: =Option2!AD$40*conv_2026*AD$7 -> 0 | AE30: =Option2!AE$40*conv_2026*AE$7 -> 0 | AF30: =Option2!AF$40*conv_2026*AF$7 -> 0 | AG30: =Option2!AG$40*conv_2026*AG$7 -> 0
A31: Option 2 | D31: Option 2
A32: Option 2 | C32: =Option2!C$86 -> Annualised capex | D32: Option 2Annualised capex | F32: =SUMPRODUCT(($H32:$AG32)*($H$5:$AG$5)*($H$7:$AG$7)) -> -902589.6589 | G32: =output_dollars -> 2026-06-30 | I32: =Option2!I$86*conv_2026*I$7 -> 0 | J32: =Option2!J$86*conv_2026*J$7 -> 0 | K32: =Option2!K$86*conv_2026*K$7 -> -69321.59928 | L32: =Option2!L$86*conv_2026*L$7 -> -69321.59928 | M32: =Option2!M$86*conv_2026*M$7 -> -69321.59928 | N32: =Option2!N$86*conv_2026*N$7 -> -69321.59928 | O32: =Option2!O$86*conv_2026*O$7 -> -69321.59928 | P32: =Option2!P$86*conv_2026*P$7 -> -69321.59928 | Q32: =Option2!Q$86*conv_2026*Q$7 -> -69321.59928 | R32: =Option2!R$86*conv_2026*R$7 -> -69321.59928 | S32: =Option2!S$86*conv_2026*S$7 -> -69321.59928 | T32: =Option2!T$86*conv_2026*T$7 -> -69321.59928 | U32: =Option2!U$86*conv_2026*U$7 -> -69321.59928 | V32: =Option2!V$86*conv_2026*V$7 -> -69321.59928 | W32: =Option2!W$86*conv_2026*W$7 -> -69321.59928 | X32: =Option2!X$86*conv_2026*X$7 -> -69321.59928 | Y32: =Option2!Y$86*conv_2026*Y$7 -> -69321.59928 | Z32: =Option2!Z$86*conv_2026*Z$7 -> -69321.59928 | AA32: =Option2!AA$86*conv_2026*AA$7 -> -69321.59928 | AB32: =Option2!AB$86*conv_2026*AB$7 -> -69321.59928 | AC32: =Option2!AC$86*conv_2026*AC$7 -> -69321.59928 | AD32: =Option2!AD$86*conv_2026*AD$7 -> 0 | AE32: =Option2!AE$86*conv_2026*AE$7 -> 0 | AF32: =Option2!AF$86*conv_2026*AF$7 -> 0 | AG32: =Option2!AG$86*conv_2026*AG$7 -> 0
A33: Option 2 | C33: =Option2!C$87 -> Operating expenditure | D33: Option 2Operating expenditure | F33: =SUMPRODUCT(($H33:$AG33)*($H$5:$AG$5)*($H$7:$AG$7)) -> 0 | G33: 2026-06-30 | I33: =Option2!I$87*conv_2026*I$7 -> 0 | J33: =Option2!J$87*conv_2026*J$7 -> 0 | K33: =Option2!K$87*conv_2026*K$7 -> 0 | L33: =Option2!L$87*conv_2026*L$7 -> 0 | M33: =Option2!M$87*conv_2026*M$7 -> 0 | N33: =Option2!N$87*conv_2026*N$7 -> 0 | O33: =Option2!O$87*conv_2026*O$7 -> 0 | P33: =Option2!P$87*conv_2026*P$7 -> 0 | Q33: =Option2!Q$87*conv_2026*Q$7 -> 0 | R33: =Option2!R$87*conv_2026*R$7 -> 0 | S33: =Option2!S$87*conv_2026*S$7 -> 0 | T33: =Option2!T$87*conv_2026*T$7 -> 0 | U33: =Option2!U$87*conv_2026*U$7 -> 0 | V33: =Option2!V$87*conv_2026*V$7 -> 0 | W33: =Option2!W$87*conv_2026*W$7 -> 0 | X33: =Option2!X$87*conv_2026*X$7 -> 0 | Y33: =Option2!Y$87*conv_2026*Y$7 -> 0 | Z33: =Option2!Z$87*conv_2026*Z$7 -> 0 | AA33: =Option2!AA$87*conv_2026*AA$7 -> 0 | AB33: =Option2!AB$87*conv_2026*AB$7 -> 0 | AC33: =Option2!AC$87*conv_2026*AC$7 -> 0 | AD33: =Option2!AD$87*conv_2026*AD$7 -> 0 | AE33: =Option2!AE$87*conv_2026*AE$7 -> 0 | AF33: =Option2!AF$87*conv_2026*AF$7 -> 0 | AG33: =Option2!AG$87*conv_2026*AG$7 -> 0
A34: Option 2 | C34: =Option2!C$88 -> Risk mitigated | D34: Option 2Risk mitigated | F34: =SUMPRODUCT(($H34:$AG34)*($H$5:$AG$5)*($H$7:$AG$7)) -> 5822183.71 | G34: 2026-06-30 | I34: =Option2!I$88*conv_2026*I$7 -> 0 | J34: =Option2!J$88*conv_2026*J$7 -> 0 | K34: =Option2!K$88*conv_2026*K$7 -> 78442.31366 | L34: =Option2!L$88*conv_2026*L$7 -> 115999.3294 | M34: =Option2!M$88*conv_2026*M$7 -> 167417.2781 | N34: =Option2!N$88*conv_2026*N$7 -> 254962.8379 | O34: =Option2!O$88*conv_2026*O$7 -> 369123.9685 | P34: =Option2!P$88*conv_2026*P$7 -> 482602.864 | Q34: =Option2!Q$88*conv_2026*Q$7 -> 581039.2065 | R34: =Option2!R$88*conv_2026*R$7 -> 581039.2065 | S34: =Option2!S$88*conv_2026*S$7 -> 581039.2065 | T34: =Option2!T$88*conv_2026*T$7 -> 581039.2065 | U34: =Option2!U$88*conv_2026*U$7 -> 581039.2065 | V34: =Option2!V$88*conv_2026*V$7 -> 581039.2065 | W34: =Option2!W$88*conv_2026*W$7 -> 581039.2065 | X34: =Option2!X$88*conv_2026*X$7 -> 581039.2065 | Y34: =Option2!Y$88*conv_2026*Y$7 -> 581039.2065 | Z34: =Option2!Z$88*conv_2026*Z$7 -> 581039.2065 | AA34: =Option2!AA$88*conv_2026*AA$7 -> 581039.2065 | AB34: =Option2!AB$88*conv_2026*AB$7 -> 581039.2065 | AC34: =Option2!AC$88*conv_2026*AC$7 -> 581039.2065 | AD34: =Option2!AD$88*conv_2026*AD$7 -> 0 | AE34: =Option2!AE$88*conv_2026*AE$7 -> 0 | AF34: =Option2!AF$88*conv_2026*AF$7 -> 0 | AG34: =Option2!AG$88*conv_2026*AG$7 -> 0
A35: Option 2 | C35: =Option2!C$89 -> Other benefits value | D35: Option 2Other benefits value | F35: =SUMPRODUCT(($H35:$AG35)*($H$5:$AG$5)*($H$7:$AG$7)) -> 0 | G35: 2026-06-30 | I35: =Option2!I$89*conv_2026*I$7 -> 0 | J35: =Option2!J$89*conv_2026*J$7 -> 0 | K35: =Option2!K$89*conv_2026*K$7 -> 0 | L35: =Option2!L$89*conv_2026*L$7 -> 0 | M35: =Option2!M$89*conv_2026*M$7 -> 0 | N35: =Option2!N$89*conv_2026*N$7 -> 0 | O35: =Option2!O$89*conv_2026*O$7 -> 0 | P35: =Option2!P$89*conv_2026*P$7 -> 0 | Q35: =Option2!Q$89*conv_2026*Q$7 -> 0 | R35: =Option2!R$89*conv_2026*R$7 -> 0 | S35: =Option2!S$89*conv_2026*S$7 -> 0 | T35: =Option2!T$89*conv_2026*T$7 -> 0 | U35: =Option2!U$89*conv_2026*U$7 -> 0 | V35: =Option2!V$89*conv_2026*V$7 -> 0 | W35: =Option2!W$89*conv_2026*W$7 -> 0 | X35: =Option2!X$89*conv_2026*X$7 -> 0 | Y35: =Option2!Y$89*conv_2026*Y$7 -> 0 | Z35: =Option2!Z$89*conv_2026*Z$7 -> 0 | AA35: =Option2!AA$89*conv_2026*AA$7 -> 0 | AB35: =Option2!AB$89*conv_2026*AB$7 -> 0 | AC35: =Option2!AC$89*conv_2026*AC$7 -> 0 | AD35: =Option2!AD$89*conv_2026*AD$7 -> 0 | AE35: =Option2!AE$89*conv_2026*AE$7 -> 0 | AF35: =Option2!AF$89*conv_2026*AF$7 -> 0 | AG35: =Option2!AG$89*conv_2026*AG$7 -> 0
A36: Option 2 | C36: =Option2!C91 -> Net benefits | D36: Option 2Net benefits | G36: 2026-06-30 | I36: =SUM(I32:I35) -> 0 | J36: =SUM(J32:J35) -> 0 | K36: 9120.714382 | L36: 46677.73009 | M36: 98095.67882 | N36: 185641.2386 | O36: 299802.3692 | P36: 413281.2647 | Q36: 511717.6072 | R36: 511717.6072 | S36: 511717.6072 | T36: 511717.6072 | U36: 511717.6072 | V36: 511717.6072 | W36: 511717.6072 | X36: 511717.6072 | Y36: 511717.6072 | Z36: 511717.6072 | AA36: 511717.6072 | AB36: 511717.6072 | AC36: 511717.6072 | AD36: 0 | AE36: 0 | AF36: 0 | AG36: 0
A37: Option 2 | C37: NPV | D37: Option 2NPV | F37: =SUMPRODUCT(($H36:$AG36)*($H$5:$AG$5)*($H$7:$AG$7)) -> 4919594.051 | G37: 2026-06-30
A38: Option 2 | C38: PV of costs | D38: Option 2PV of costs | F38: =SUM(F32:F33) -> -902589.6589 | G38: 2026-06-30
A39: Option 2 | C39: PV of benefits | D39: Option 2PV of benefits | F39: =SUM(F34:F35) -> 5822183.71 | G39: 2026-06-30
D41: =A41&C41 -> 
A42: =A43 -> Option 3 | C42: Energy at risk value | D42: =A42&C42 -> Option 3Energy at risk value | F42: =SUMPRODUCT($H42:$AG42, $H$5:$AG$5) -> 381690.3532 | G42: =output_dollars -> 2026-06-30 | I42: =Option3!I$32*conv_2026 -> 22486.5491 | J42: =Option3!J$32*conv_2026 -> 43552.76477 | K42: =Option3!K$32*conv_2026 -> 78442.31366 | L42: =Option3!L$32*conv_2026 -> 115999.3294 | M42: =Option3!M$32*conv_2026 -> 167417.2781 | N42: =Option3!N$32*conv_2026 -> 0 | O42: =Option3!O$32*conv_2026 -> 0 | P42: =Option3!P$32*conv_2026 -> 0 | Q42: =Option3!Q$32*conv_2026 -> 0 | R42: =Option3!R$32*conv_2026 -> 0 | S42: =Option3!S$32*conv_2026 -> 0 | T42: =Option3!T$32*conv_2026 -> 0 | U42: =Option3!U$32*conv_2026 -> 0 | V42: =Option3!V$32*conv_2026 -> 0 | W42: =Option3!W$32*conv_2026 -> 0 | X42: =Option3!X$32*conv_2026 -> 0 | Y42: =Option3!Y$32*conv_2026 -> 0 | Z42: =Option3!Z$32*conv_2026 -> 0 | AA42: =Option3!AA$32*conv_2026 -> 0 | AB42: =Option3!AB$32*conv_2026 -> 0 | AC42: =Option3!AC$32*conv_2026 -> 0 | AD42: =Option3!AD$32*conv_2026 -> 0 | AE42: =Option3!AE$32*conv_2026 -> 0 | AF42: =Option3!AF$32*conv_2026 -> 0 | AG42: =Option3!AG$32*conv_2026 -> 0
A43: =Data!B11 -> Option 3 | C43: =Option3!C$70 -> Capital expenditure | D43: =A43&C43 -> Option 3Capital expenditure | F43: =SUMPRODUCT($H43:$AG43, $H$5:$AG$5) -> -3886697.885 | G43: =output_dollars -> 2026-06-30 | I43: =SUM(Option3!I$71:I$73)*conv_2026*I$7 -> 0 | J43: =SUM(Option3!J$71:J$73)*conv_2026*J$7 -> 0 | K43: =SUM(Option3!K$71:K$73)*conv_2026*K$7 -> 0 | L43: =SUM(Option3!L$71:L$73)*conv_2026*L$7 -> 0 | M43: =SUM(Option3!M$71:M$73)*conv_2026*M$7 -> -4537455.283 | N43: =SUM(Option3!N$71:N$73)*conv_2026*N$7 -> 0 | O43: =SUM(Option3!O$71:O$73)*conv_2026*O$7 -> 0 | P43: =SUM(Option3!P$71:P$73)*conv_2026*P$7 -> 0 | Q43: =SUM(Option3!Q$71:Q$73)*conv_2026*Q$7 -> 0 | R43: =SUM(Option3!R$71:R$73)*conv_2026*R$7 -> 0 | S43: =SUM(Option3!S$71:S$73)*conv_2026*S$7 -> 0 | T43: =SUM(Option3!T$71:T$73)*conv_2026*T$7 -> 0 | U43: =SUM(Option3!U$71:U$73)*conv_2026*U$7 -> 0 | V43: =SUM(Option3!V$71:V$73)*conv_2026*V$7 -> 0 | W43: =SUM(Option3!W$71:W$73)*conv_2026*W$7 -> 0 | X43: =SUM(Option3!X$71:X$73)*conv_2026*X$7 -> 0 | Y43: =SUM(Option3!Y$71:Y$73)*conv_2026*Y$7 -> 0 | Z43: =SUM(Option3!Z$71:Z$73)*conv_2026*Z$7 -> 0 | AA43: =SUM(Option3!AA$71:AA$73)*conv_2026*AA$7 -> 0 | AB43: =SUM(Option3!AB$71:AB$73)*conv_2026*AB$7 -> 0 | AC43: =SUM(Option3!AC$71:AC$73)*conv_2026*AC$7 -> 0 | AD43: =SUM(Option3!AD$71:AD$73)*conv_2026*AD$7 -> 0 | AE43: =SUM(Option3!AE$71:AE$73)*conv_2026*AE$7 -> 0 | AF43: =SUM(Option3!AF$71:AF$73)*conv_2026*AF$7 -> 0 | AG43: =SUM(Option3!AG$71:AG$73)*conv_2026*AG$7 -> 0
A44: =A43 -> Option 3 | C44: ='Option1 (base case)'!C$39 -> Total risk cost | D44: =A44&C44 -> Option 3Total risk cost | F44: =SUMPRODUCT($H44:$AG44, $H$5:$AG$5) -> 381690.3532 | G44: =output_dollars -> 2026-06-30 | I44: =Option3!I$40*conv_2026*I$7 -> 22486.5491 | J44: =Option3!J$40*conv_2026*J$7 -> 43552.76477 | K44: =Option3!K$40*conv_2026*K$7 -> 78442.31366 | L44: =Option3!L$40*conv_2026*L$7 -> 115999.3294 | M44: =Option3!M$40*conv_2026*M$7 -> 167417.2781 | N44: =Option3!N$40*conv_2026*N$7 -> 0 | O44: =Option3!O$40*conv_2026*O$7 -> 0 | P44: =Option3!P$40*conv_2026*P$7 -> 0 | Q44: =Option3!Q$40*conv_2026*Q$7 -> 0 | R44: =Option3!R$40*conv_2026*R$7 -> 0 | S44: =Option3!S$40*conv_2026*S$7 -> 0 | T44: =Option3!T$40*conv_2026*T$7 -> 0 | U44: =Option3!U$40*conv_2026*U$7 -> 0 | V44: =Option3!V$40*conv_2026*V$7 -> 0 | W44: =Option3!W$40*conv_2026*W$7 -> 0 | X44: =Option3!X$40*conv_2026*X$7 -> 0 | Y44: =Option3!Y$40*conv_2026*Y$7 -> 0 | Z44: =Option3!Z$40*conv_2026*Z$7 -> 0 | AA44: =Option3!AA$40*conv_2026*AA$7 -> 0 | AB44: =Option3!AB$40*conv_2026*AB$7 -> 0 | AC44: =Option3!AC$40*conv_2026*AC$7 -> 0 | AD44: =Option3!AD$40*conv_2026*AD$7 -> 0 | AE44: =Option3!AE$40*conv_2026*AE$7 -> 0 | AF44: =Option3!AF$40*conv_2026*AF$7 -> 0 | AG44: =Option3!AG$40*conv_2026*AG$7 -> 0
A45: Option 3
